Workbook

Sheet Instruções
B1: RENDA FIXA PRÁTICA | Q1: V 01/2021
B2: Jefferson Figueiredo CGA®
B3: www.rendafixapratica.com.br
A4: A aba Histórico VNA IPCA deve ser atualizada com os dados da Anbima para Valor Nominal Atualizado (VNA)
A5: https://www.anbima.com.br/pt_br/informar/valor-nominal-atualizado.htm
A6: A Anbima só disponibiliza dos último dias, para intervalos maiores baixe a Planilha de VNA do Renda Fixa Prática | K6: https://rendafixapratica.com.br/planilhas/
A7: Na aba Cenários preencha as células verdes claras com inflação mensal esperada para o IPCA
A13: Na aba Resultados preencha as células verdes claras com as Datas de Vencimento ou os Períodos desejados.
A14: Atenção: os resultados serão calculados até o limite de Projeção que definiu na aba Cenários.
A15: Caso deseje juntar o VNA Histórico com o seu VNA Projetado vá a aba Histórico + Projeção e clique no botão.
A16: Vídeo: | B16: https://www.youtube.com/watch?v=VqmqaUlPOkE&list=PLbrmLsPrVGSsV58I5nQ5NK_Hb_5oDmW63&index=2&t=3594s
A18: Artigos: | B18: https://rendafixapratica.com.br/como-investir-usando-o-sistema-de-expectativas-do-bacen/
B19: https://rendafixapratica.com.br/o-que-e-inflacao-implicita/
B20: https://rendafixapratica.com.br/o-que-e-vna-valor-nominal-atualizado/
B21: https://rendafixapratica.com.br/taxas-dos-tesouro-direto-porque-variam/
A23: Qualquer problema ou dúvida não hesite: contato@rendafixapratica.com.br.

Sheet Histórico VNA IPCA
A1: Atualizado até | C1: =MAX(B9:B1048568) -> 2023-11-21 | D1: Linha: | E1: =COUNTA(A10:A5155)+10 -> 5156
A2: https://www.anbima.com.br/pt_br/informar/valor-nominal-atualizado.htm
A3: Só dos último dias, para intervalos maiores aba Instruções
C4: Data | D4: VNA | E4: IPCA (%) | F4: Ref Mês
A5: Último IPCA | C5: =MAX(IF("F"=$E$10:$E$100002,$B$10:$B$100002)) -> 2023-11-16 | D5: =VLOOKUP(C5,B9:D100002,2,FALSE) -> 4159.950948 | E5: =VLOOKUP(C5,B9:D100002,3,FALSE) -> 0.24 | F5: =DATEVALUE("15/"&IF(MONTH(EOMONTH(C5,-1))<10,"0"&MONTH(EOMONTH(C5,-1)),MONTH(EOMONTH(C5,-1)))&"/"&YEAR(EOMONTH(C5,-1))) -> 2023-10-15
A7: TESOURO IPCA
A8: NTN-B
A9: Código Selic | B9: Data Referência | C9: VNA | D9: IPCA (%) | E9: P/F | F9: Válido a partir de
A10: 760199 | B10: 2000-07-17 | C10: 1000
A11: 760199 | B11: 2000-07-18 | C11: 1000.760984
A12: 760199 | B12: 2000-07-19 | C12: 1001.522547
A13: 760199 | B13: 2000-07-20 | C13: 1002.284689
A14: 760199 | B14: 2000-07-21 | C14: 1003.047412
A15: 760199 | B15: 2000-07-24 | C15: 1003.810715
A16: 760199 | B16: 2000-07-25 | C16: 1004.574599
A17: 760199 | B17: 2000-07-26 | C17: 1005.339064
A18: 760199 | B18: 2000-07-27 | C18: 1006.104111
A19: 760199 | B19: 2000-07-28 | C19: 1006.86974
A20: 760199 | B20: 2000-07-31 | C20: 1007.635951
A21: 760199 | B21: 2000-08-01 | C21: 1008.402746
A22: 760199 | B22: 2000-08-02 | C22: 1009.170124
A23: 760199 | B23: 2000-08-03 | C23: 1009.938086
A24: 760199 | B24: 2000-08-04 | C24: 1010.706633
A25: 760199 | B25: 2000-08-07 | C25: 1011.475764
A26: 760199 | B26: 2000-08-08 | C26: 1012.245481
A27: 760199 | B27: 2000-08-09 | C27: 1013.015784
A28: 760199 | B28: 2000-08-10 | C28: 1013.786672
A29: 760199 | B29: 2000-08-11 | C29: 1014.558148
A30: 760199 | B30: 2000-08-14 | C30: 1015.33021
A31: 760199 | B31: 2000-08-15 | C31: 1016.10286
A32: 760199 | B32: 2000-08-16 | C32: 1016.704093
A33: 760199 | B33: 2000-08-17 | C33: 1017.305682
A34: 760199 | B34: 2000-08-18 | C34: 1017.907627
A35: 760199 | B35: 2000-08-21 | C35: 1018.509928
A36: 760199 | B36: 2000-08-22 | C36: 1019.112585
A37: 760199 | B37: 2000-08-23 | C37: 1019.7156
A38: 760199 | B38: 2000-08-24 | C38: 1020.31897
A39: 760199 | B39: 2000-08-25 | C39: 1020.922698
A40: 760199 | B40: 2000-08-28 | C40: 1021.526783
A41: 760199 | B41: 2000-08-29 | C41: 1022.131226
A42: 760199 | B42: 2000-08-30 | C42: 1022.736026
A43: 760199 | B43: 2000-08-31 | C43: 1023.341184
A44: 760199 | B44: 2000-09-01 | C44: 1023.9467
A45: 760199 | B45: 2000-09-04 | C45: 1024.552574
A46: 760199 | B46: 2000-09-05 | C46: 1025.158807
A47: 760199 | B47: 2000-09-06 | C47: 1025.765399
A48: 760199 | B48: 2000-09-08 | C48: 1026.372349
A49: 760199 | B49: 2000-09-11 | C49: 1026.979659
A50: 760199 | B50: 2000-09-12 | C50: 1027.587328
A51: 760199 | B51: 2000-09-13 | C51: 1028.195357
A52: 760199 | B52: 2000-09-14 | C52: 1028.803745
A53: 760199 | B53: 2000-09-15 | C53: 1029.412493
A54: 760199 | B54: 2000-09-18 | C54: 1029.530658
A55: 760199 | B55: 2000-09-19 | C55: 1029.648837
A56: 760199 | B56: 2000-09-20 | C56: 1029.767029
A57: 760199 | B57: 2000-09-21 | C57: 1029.885235
A58: 760199 | B58: 2000-09-22 | C58: 1030.003455
A59: 760199 | B59: 2000-09-25 | C59: 1030.121688
A60: 760199 | B60: 2000-09-26 | C60: 1030.239934
A61: 760199 | B61: 2000-09-27 | C61: 1030.358194
A62: 760199 | B62: 2000-09-28 | C62: 1030.476468
A63: 760199 | B63: 2000-09-29 | C63: 1030.594755
A64: 760199 | B64: 2000-10-03 | C64: 1030.831371
A65: 760199 | B65: 2000-10-02 | C65: 1030.713056
A66: 760199 | B66: 2000-10-04 | C66: 1030.949699
A67: 760199 | B67: 2000-10-05 | C67: 1031.06804
A68: 760199 | B68: 2000-10-06 | C68: 1031.186395
A69: 760199 | B69: 2000-10-09 | C69: 1031.304764
A70: 760199 | B70: 2000-10-10 | C70: 1031.423147
A71: 760199 | B71: 2000-10-11 | C71: 1031.541542
A72: 760199 | B72: 2000-10-13 | C72: 1031.659952
A73: 760199 | B73: 2000-10-16 | C73: 1031.778375
A74: 760199 | B74: 2000-10-17 | C74: 1031.847047
A75: 760199 | B75: 2000-10-18 | C75: 1031.915723
A76: 760199 | B76: 2000-10-19 | C76: 1031.984404
A77: 760199 | B77: 2000-10-20 | C77: 1032.053089
A78: 760199 | B78: 2000-10-23 | C78: 1032.121779
A79: 760199 | B79: 2000-10-24 | C79: 1032.190473
A80: 760199 | B80: 2000-10-25 | C80: 1032.259172
A81: 760199 | B81: 2000-10-26 | C81: 1032.327876
A82: 760199 | B82: 2000-10-27 | C82: 1032.396584
A83: 760199 | B83: 2000-10-30 | C83: 1032.465297
A84: 760199 | B84: 2000-10-31 | C84: 1032.534014
A85: 760199 | B85: 2000-11-01 | C85: 1032.602736
A86: 760199 | B86: 2000-11-03 | C86: 1032.671463
A87: 760199 | B87: 2000-11-06 | C87: 1032.740194
A88: 760199 | B88: 2000-11-07 | C88: 1032.808929
A89: 760199 | B89: 2000-11-08 | C89: 1032.877669
A90: 760199 | B90: 2000-11-09 | C90: 1032.946414
A91: 760199 | B91: 2000-11-10 | C91: 1033.015164
A92: 760199 | B92: 2000-11-13 | C92: 1033.083918
A93: 760199 | B93: 2000-11-14 | C93: 1033.152676
A94: 760199 | B94: 2000-11-16 | C94: 1033.221439
A95: 760199 | B95: 2000-11-17 | C95: 1033.378689
A96: 760199 | B96: 2000-11-20 | C96: 1033.535963
A97: 760199 | B97: 2000-11-21 | C97: 1033.693261
A98: 760199 | B98: 2000-11-22 | C98: 1033.850583
A99: 760199 | B99: 2000-11-23 | C99: 1034.007928
A100: 760199 | B100: 2000-11-24 | C100: 1034.165298
A101: 760199 | B101: 2000-11-27 | C101: 1034.322691
A102: 760199 | B102: 2000-11-28 | C102: 1034.480109
A103: 760199 | B103: 2000-11-29 | C103: 1034.637551
A104: 760199 | B104: 2000-11-30 | C104: 1034.795016
A105: 760199 | B105: 2000-12-01 | C105: 1034.952505
A106: 760199 | B106: 2000-12-04 | C106: 1035.110019
A107: 760199 | B107: 2000-12-05 | C107: 1035.267556
A108: 760199 | B108: 2000-12-06 | C108: 1035.425118
A109: 760199 | B109: 2000-12-07 | C109: 1035.582703
A110: 760199 | B110: 2000-12-08 | C110: 1035.740312
A111: 760199 | B111: 2000-12-11 | C111: 1035.897946
A112: 760199 | B112: 2000-12-12 | C112: 1036.055603
A113: 760199 | B113: 2000-12-13 | C113: 1036.213284
A114: 760199 | B114: 2000-12-14 | C114: 1036.37099
A115: 760199 | B115: 2000-12-15 | C115: 1036.528719
A116: 760199 | B116: 2000-12-18 | C116: 1036.849555
A117: 760199 | B117: 2000-12-19 | C117: 1037.17049
A118: 760199 | B118: 2000-12-20 | C118: 1037.491524
A119: 760199 | B119: 2000-12-21 | C119: 1037.812658
A120: 760199 | B120: 2000-12-22 | C120: 1038.133892
A121: 760199 | B121: 2000-12-26 | C121: 1038.455224
A122: 760199 | B122: 2000-12-27 | C122: 1038.776657
A123: 760199 | B123: 2000-12-28 | C123: 1039.098188
A124: 760199 | B124: 2000-12-29 | C124: 1039.41982
A125: 760199 | B125: 2001-01-02 | C125: 1039.74155
A126: 760199 | B126: 2001-01-03 | C126: 1040.063381
A127: 760199 | B127: 2001-01-04 | C127: 1040.385311
A128: 760199 | B128: 2001-01-05 | C128: 1040.70734
A129: 760199 | B129: 2001-01-08 | C129: 1041.02947
A130: 760199 | B130: 2001-01-09 | C130: 1041.351699
A131: 760199 | B131: 2001-01-10 | C131: 1041.674027
A132: 760199 | B132: 2001-01-11 | C132: 1041.996456
A133: 760199 | B133: 2001-01-12 | C133: 1042.318984
A134: 760199 | B134: 2001-01-15 | C134: 1042.641612
A135: 760199 | B135: 2001-01-16 | C135: 1042.899417
A136: 760199 | B136: 2001-01-17 | C136: 1043.157286
A137: 760199 | B137: 2001-01-18 | C137: 1043.415219
A138: 760199 | B138: 2001-01-19 | C138: 1043.673215
A139: 760199 | B139: 2001-01-22 | C139: 1043.931275
A140: 760199 | B140: 2001-01-23 | C140: 1044.189399
A141: 760199 | B141: 2001-01-24 | C141: 1044.447587
A142: 760199 | B142: 2001-01-25 | C142: 1044.705838
A143: 760199 | B143: 2001-01-26 | C143: 1044.964154
A144: 760199 | B144: 2001-01-29 | C144: 1045.222533
A145: 760199 | B145: 2001-01-30 | C145: 1045.480976
A146: 760199 | B146: 2001-01-31 | C146: 1045.739483
A147: 760199 | B147: 2001-02-01 | C147: 1045.998054
A148: 760199 | B148: 2001-02-02 | C148: 1046.256689
A149: 760199 | B149: 2001-02-05 | C149: 1046.515388
A150: 760199 | B150: 2001-02-06 | C150: 1046.774151
A151: 760199 | B151: 2001-02-07 | C151: 1047.032978
A152: 760199 | B152: 2001-02-08 | C152: 1047.291869
A153: 760199 | B153: 2001-02-09 | C153: 1047.550824
A154: 760199 | B154: 2001-02-12 | C154: 1047.809843
A155: 760199 | B155: 2001-02-13 | C155: 1048.068926
A156: 760199 | B156: 2001-02-14 | C156: 1048.328073
A157: 760199 | B157: 2001-02-15 | C157: 1048.587284
A158: 760199 | B158: 2001-02-16 | C158: 1048.85474
A159: 760199 | B159: 2001-02-19 | C159: 1049.122264
A160: 760199 | B160: 2001-02-20 | C160: 1049.389857
A161: 760199 | B161: 2001-02-21 | C161: 1049.657518
A162: 760199 | B162: 2001-02-22 | C162: 1049.925247
A163: 760199 | B163: 2001-02-23 | C163: 1050.193045
A164: 760199 | B164: 2001-02-28 | C164: 1050.460911
A165: 760199 | B165: 2001-03-01 | C165: 1050.728845
A166: 760199 | B166: 2001-03-02 | C166: 1050.996848
A167: 760199 | B167: 2001-03-05 | C167: 1051.264918
A168: 760199 | B168: 2001-03-06 | C168: 1051.533058
A169: 760199 | B169: 2001-03-07 | C169: 1051.801265
A170: 760199 | B170: 2001-03-08 | C170: 1052.069541
A171: 760199 | B171: 2001-03-09 | C171: 1052.337886
A172: 760199 | B172: 2001-03-12 | C172: 1052.606299
A173: 760199 | B173: 2001-03-13 | C173: 1052.87478
A174: 760199 | B174: 2001-03-14 | C174: 1053.14333
A175: 760199 | B175: 2001-03-15 | C175: 1053.411948
A176: 760199 | B176: 2001-03-16 | C176: 1053.602126
A177: 760199 | B177: 2001-03-19 | C177: 1053.792337
A178: 760199 | B178: 2001-03-20 | C178: 1053.982583
A179: 760199 | B179: 2001-03-21 | C179: 1054.172864
A180: 760199 | B180: 2001-03-22 | C180: 1054.363178
A181: 760199 | B181: 2001-03-23 | C181: 1054.553527
A182: 760199 | B182: 2001-03-26 | C182: 1054.743911
A183: 760199 | B183: 2001-03-27 | C183: 1054.934328
A184: 760199 | B184: 2001-03-28 | C184: 1055.12478
A185: 760199 | B185: 2001-03-29 | C185: 1055.315267
A186: 760199 | B186: 2001-03-30 | C186: 1055.505788
A187: 760199 | B187: 2001-04-02 | C187: 1055.696343
A188: 760199 | B188: 2001-04-03 | C188: 1055.886933
A189: 760199 | B189: 2001-04-04 | C189: 1056.077557
A190: 760199 | B190: 2001-04-05 | C190: 1056.268216
A191: 760199 | B191: 2001-04-06 | C191: 1056.458908
A192: 760199 | B192: 2001-04-09 | C192: 1056.649636
A193: 760199 | B193: 2001-04-10 | C193: 1056.840398
A194: 760199 | B194: 2001-04-11 | C194: 1057.031194
A195: 760199 | B195: 2001-04-12 | C195: 1057.222025
A196: 760199 | B196: 2001-04-16 | C196: 1057.41289
A197: 760199 | B197: 2001-04-17 | C197: 1057.718622
A198: 760199 | B198: 2001-04-18 | C198: 1058.024443
A199: 760199 | B199: 2001-04-19 | C199: 1058.330352
A200: 760199 | B200: 2001-04-20 | C200: 1058.63635
A201: 760199 | B201: 2001-04-23 | C201: 1058.942436
... 5673 more rows

Sheet Cálculo VNA
A2: Histórico → | B2: =MAX('Histórico VNA IPCA'!B9:B1048576) -> 2023-11-21
J3: 1 | K3: 2 | P3: 3
A4: Data Referência | B4: VNA | C4: IPCA | D4: P / F | E4: Critério | F4: VNA Calculado | G4: Retorno a.d | H4: Fator Acum | I4: Retorno Acum | J4: VNA Calculado | K4: Data Mês -1 | L4: VNA Mês -1 15 | M4: du1 | N4: du2 | O4: VNA Calculado | P4: Data Mês -1 | Q4: VNA Mês -1 15 | R4: du1 | S4: du2 | T4: Data Mês | U4: VNA atual 15 | V4: Data Mês +1 | W4: du1 | X4: du2 | Y4: VNA Calculado
A5: 2023-08-15 | B5: 4129.727118 | C5: 0.12 | D5: F | E5: =IF(A5=T5,1,IF(D5="f",2,3)) -> 1 | F5: =IF(E5=3,Y5,IF(E5=2,O5,J5)) -> 4129.727117 | G5: 0 | H5: 1 | I5: 0 | J5: =IF(E5<>1,"",TRUNC((VLOOKUP(K5,'IPCA IBGE'!A:D,4,FALSE)/100+1)*L5,6)) -> 4129.727117 | K5: =WORKDAY(WORKDAY(DATEVALUE(CONCATENATE("15/"&MONTH(EDATE($A5,-1))&"/"&YEAR(EDATE(A5,-1)))),-1,Feriados!$A$2:$A$1037),1,Feriados!$A$2:$A$1037) -> 2023-07-17 | L5: =VLOOKUP(K5,'Histórico VNA IPCA'!B9:E50000,2,FALSE) -> 4124.778585 | M5: =IF(E5<>2,"",NETWORKDAYS(K5,A5-1,Feriados!$A$2:$A$1037)) ->  | N5: =IF(E5<>2,"",NETWORKDAYS(K5,T5-1,Feriados!$A$2:$A$1037)) ->  | O5: =IF(E5<>2,"",TRUNC((L5)*(1+VLOOKUP(K5,'IPCA IBGE'!A:D,4,FALSE)/100)^(M5/N5),6)) ->  | P5: =WORKDAY(WORKDAY(DATEVALUE(CONCATENATE("15/"&MONTH(EDATE($A5,-1))&"/"&YEAR(EDATE(A5,-1)))),-1,Feriados!$A$2:$A$1037),1,Feriados!$A$2:$A$1037) -> 2023-07-17 | Q5: =VLOOKUP(P5,'Histórico VNA IPCA'!B9:E50000,2,FALSE) -> 4124.778585 | R5: =IF(E5<>3,"",NETWORKDAYS(P5,A5-1,Feriados!$A$2:$A$1037)) ->  | S5: =IF(E5<>3,"",NETWORKDAYS(P5,T5-1,Feriados!$A$2:$A$1037)) ->  | T5: =WORKDAY(WORKDAY(DATEVALUE(CONCATENATE("15/"&MONTH(A5)&"/"&YEAR(A5))),-1,Feriados!$A$2:$A$1037),1,Feriados!$A$2:$A$1037) -> 2023-08-15 | U5: =VLOOKUP(T5,'Histórico VNA IPCA'!B9:E50000,2,FALSE) -> 4129.727118 | V5: =WORKDAY(WORKDAY(DATEVALUE(CONCATENATE("15/"&MONTH(EDATE(A5,1))&"/"&YEAR(EDATE(A5,1)))),-1,Feriados!$A$2:$A$1037),1,Feriados!$A$2:$A$1037) -> 2023-09-15 | W5: =IF(E5<>3,"",NETWORKDAYS(T5,A5-1,Feriados!$A$2:$A$1037)) ->  | X5: =IF(E5<>3,"",NETWORKDAYS(T5,V5-1,Feriados!$A$2:$A$1037)) ->  | Y5: =IF(E5<>3,"",IF(A5>T5,TRUNC(+U5*((1+C5/100)^(W5/X5)),6),TRUNC(+Q5*((1+C5/100)^(R5/S5)),6))) -> 
A6: 2023-08-16 | B6: 4130.008488 | C6: 0.15 | D6: P | E6: 3 | F6: =IF(E6=3,Y6,IF(E6=2,O6,J6)) -> 4130.008488 | G6: =+(F6/F5-1)*100 -> 0.006813307321 | H6: =+(G6/100+1)*H5 -> 1.000068133 | I6: =(+H6-1)*100 -> 0.006813307321 | J6: =IF(E6<>1,"",TRUNC((VLOOKUP(K6,'IPCA IBGE'!A:D,4,FALSE)/100+1)*L6,6)) ->  | K6: =WORKDAY(WORKDAY(DATEVALUE(CONCATENATE("15/"&MONTH(EDATE($A6,-1))&"/"&YEAR(EDATE(A6,-1)))),-1,Feriados!$A$2:$A$1037),1,Feriados!$A$2:$A$1037) -> 2023-07-17 | L6: =VLOOKUP(K6,'Histórico VNA IPCA'!B10:E50001,2,FALSE) -> 4124.778585 | M6: =IF(E6<>2,"",NETWORKDAYS(K6,A6-1,Feriados!$A$2:$A$1037)) ->  | N6: =IF(E6<>2,"",NETWORKDAYS(K6,T6-1,Feriados!$A$2:$A$1037)) ->  | O6: =IF(E6<>2,"",TRUNC((L6)*(1+VLOOKUP(K6,'IPCA IBGE'!A:D,4,FALSE)/100)^(M6/N6),6)) ->  | P6: =WORKDAY(WORKDAY(DATEVALUE(CONCATENATE("15/"&MONTH(EDATE($A6,-1))&"/"&YEAR(EDATE(A6,-1)))),-1,Feriados!$A$2:$A$1037),1,Feriados!$A$2:$A$1037) -> 2023-07-17 | Q6: =VLOOKUP(P6,'Histórico VNA IPCA'!B10:E50001,2,FALSE) -> 4124.778585 | R6: =IF(E6<>3,"",NETWORKDAYS(P6,A6-1,Feriados!$A$2:$A$1037)) -> 22 | S6: =IF(E6<>3,"",NETWORKDAYS(P6,T6-1,Feriados!$A$2:$A$1037)) -> 21 | T6: =WORKDAY(WORKDAY(DATEVALUE(CONCATENATE("15/"&MONTH(A6)&"/"&YEAR(A6))),-1,Feriados!$A$2:$A$1037),1,Feriados!$A$2:$A$1037) -> 2023-08-15 | U6: =VLOOKUP(T6,'Histórico VNA IPCA'!B10:E50001,2,FALSE) -> 4129.727118 | V6: =WORKDAY(WORKDAY(DATEVALUE(CONCATENATE("15/"&MONTH(EDATE(A6,1))&"/"&YEAR(EDATE(A6,1)))),-1,Feriados!$A$2:$A$1037),1,Feriados!$A$2:$A$1037) -> 2023-09-15 | W6: =IF(E6<>3,"",NETWORKDAYS(T6,A6-1,Feriados!$A$2:$A$1037)) -> 1 | X6: =IF(E6<>3,"",NETWORKDAYS(T6,V6-1,Feriados!$A$2:$A$1037)) -> 22 | Y6: =IF(E6<>3,"",IF(A6>T6,TRUNC(+U6*((1+C6/100)^(W6/X6)),6),TRUNC(+Q6*((1+C6/100)^(R6/S6)),6))) -> 4130.008488
A7: 2023-08-17 | B7: 4130.289879 | C7: 0.15 | D7: P | E7: 3 | F7: 4130.289879 | G7: =+(F7/F6-1)*100 -> 0.006813327402 | H7: =+(G7/100+1)*H6 -> 1.000136271 | I7: =(+H7-1)*100 -> 0.01362709894 | J7: =IF(E7<>1,"",TRUNC((VLOOKUP(K7,'IPCA IBGE'!A:D,4,FALSE)/100+1)*L7,6)) ->  | K7: =WORKDAY(WORKDAY(DATEVALUE(CONCATENATE("15/"&MONTH(EDATE($A7,-1))&"/"&YEAR(EDATE(A7,-1)))),-1,Feriados!$A$2:$A$1037),1,Feriados!$A$2:$A$1037) -> 2023-07-17 | L7: =VLOOKUP(K7,'Histórico VNA IPCA'!B11:E50002,2,FALSE) -> 4124.778585 | M7: =IF(E7<>2,"",NETWORKDAYS(K7,A7-1,Feriados!$A$2:$A$1037)) ->  | N7: =IF(E7<>2,"",NETWORKDAYS(K7,T7-1,Feriados!$A$2:$A$1037)) ->  | O7: =IF(E7<>2,"",TRUNC((L7)*(1+VLOOKUP(K7,'IPCA IBGE'!A:D,4,FALSE)/100)^(M7/N7),6)) ->  | P7: =WORKDAY(WORKDAY(DATEVALUE(CONCATENATE("15/"&MONTH(EDATE($A7,-1))&"/"&YEAR(EDATE(A7,-1)))),-1,Feriados!$A$2:$A$1037),1,Feriados!$A$2:$A$1037) -> 2023-07-17 | Q7: =VLOOKUP(P7,'Histórico VNA IPCA'!B11:E50002,2,FALSE) -> 4124.778585 | R7: =IF(E7<>3,"",NETWORKDAYS(P7,A7-1,Feriados!$A$2:$A$1037)) -> 23 | S7: =IF(E7<>3,"",NETWORKDAYS(P7,T7-1,Feriados!$A$2:$A$1037)) -> 21 | T7: =WORKDAY(WORKDAY(DATEVALUE(CONCATENATE("15/"&MONTH(A7)&"/"&YEAR(A7))),-1,Feriados!$A$2:$A$1037),1,Feriados!$A$2:$A$1037) -> 2023-08-15 | U7: =VLOOKUP(T7,'Histórico VNA IPCA'!B11:E50002,2,FALSE) -> 4129.727118 | V7: =WORKDAY(WORKDAY(DATEVALUE(CONCATENATE("15/"&MONTH(EDATE(A7,1))&"/"&YEAR(EDATE(A7,1)))),-1,Feriados!$A$2:$A$1037),1,Feriados!$A$2:$A$1037) -> 2023-09-15 | W7: =IF(E7<>3,"",NETWORKDAYS(T7,A7-1,Feriados!$A$2:$A$1037)) -> 2 | X7: =IF(E7<>3,"",NETWORKDAYS(T7,V7-1,Feriados!$A$2:$A$1037)) -> 22 | Y7: 4130.289879
A8: 2023-08-18 | B8: 4130.571288 | C8: 0.15 | D8: P | E8: 3 | F8: 4130.571288 | G8: 0.006813299024 | H8: 1.000204413 | I8: 0.02044132641 | J8: =IF(E8<>1,"",TRUNC((VLOOKUP(K8,'IPCA IBGE'!A:D,4,FALSE)/100+1)*L8,6)) ->  | K8: =WORKDAY(WORKDAY(DATEVALUE(CONCATENATE("15/"&MONTH(EDATE($A8,-1))&"/"&YEAR(EDATE(A8,-1)))),-1,Feriados!$A$2:$A$1037),1,Feriados!$A$2:$A$1037) -> 2023-07-17 | L8: =VLOOKUP(K8,'Histórico VNA IPCA'!B12:E50003,2,FALSE) -> 4124.778585 | M8: =IF(E8<>2,"",NETWORKDAYS(K8,A8-1,Feriados!$A$2:$A$1037)) ->  | N8: =IF(E8<>2,"",NETWORKDAYS(K8,T8-1,Feriados!$A$2:$A$1037)) ->  | O8: =IF(E8<>2,"",TRUNC((L8)*(1+VLOOKUP(K8,'IPCA IBGE'!A:D,4,FALSE)/100)^(M8/N8),6)) ->  | P8: =WORKDAY(WORKDAY(DATEVALUE(CONCATENATE("15/"&MONTH(EDATE($A8,-1))&"/"&YEAR(EDATE(A8,-1)))),-1,Feriados!$A$2:$A$1037),1,Feriados!$A$2:$A$1037) -> 2023-07-17 | Q8: =VLOOKUP(P8,'Histórico VNA IPCA'!B12:E50003,2,FALSE) -> 4124.778585 | R8: =IF(E8<>3,"",NETWORKDAYS(P8,A8-1,Feriados!$A$2:$A$1037)) -> 24 | S8: =IF(E8<>3,"",NETWORKDAYS(P8,T8-1,Feriados!$A$2:$A$1037)) -> 21 | T8: =WORKDAY(WORKDAY(DATEVALUE(CONCATENATE("15/"&MONTH(A8)&"/"&YEAR(A8))),-1,Feriados!$A$2:$A$1037),1,Feriados!$A$2:$A$1037) -> 2023-08-15 | U8: =VLOOKUP(T8,'Histórico VNA IPCA'!B12:E50003,2,FALSE) -> 4129.727118 | V8: =WORKDAY(WORKDAY(DATEVALUE(CONCATENATE("15/"&MONTH(EDATE(A8,1))&"/"&YEAR(EDATE(A8,1)))),-1,Feriados!$A$2:$A$1037),1,Feriados!$A$2:$A$1037) -> 2023-09-15 | W8: =IF(E8<>3,"",NETWORKDAYS(T8,A8-1,Feriados!$A$2:$A$1037)) -> 3 | X8: =IF(E8<>3,"",NETWORKDAYS(T8,V8-1,Feriados!$A$2:$A$1037)) -> 22 | Y8: 4130.571288
A9: 2023-08-21 | B9: 4130.852716 | C9: 0.15 | D9: P | E9: 3 | F9: 4130.852716 | G9: 0.00681329483 | H9: 1.00027256 | I9: 0.02725601397 | J9: =IF(E9<>1,"",TRUNC((VLOOKUP(K9,'IPCA IBGE'!A:D,4,FALSE)/100+1)*L9,6)) ->  | K9: =WORKDAY(WORKDAY(DATEVALUE(CONCATENATE("15/"&MONTH(EDATE($A9,-1))&"/"&YEAR(EDATE(A9,-1)))),-1,Feriados!$A$2:$A$1037),1,Feriados!$A$2:$A$1037) -> 2023-07-17 | L9: =VLOOKUP(K9,'Histórico VNA IPCA'!B13:E50004,2,FALSE) -> 4124.778585 | M9: =IF(E9<>2,"",NETWORKDAYS(K9,A9-1,Feriados!$A$2:$A$1037)) ->  | N9: =IF(E9<>2,"",NETWORKDAYS(K9,T9-1,Feriados!$A$2:$A$1037)) ->  | O9: =IF(E9<>2,"",TRUNC((L9)*(1+VLOOKUP(K9,'IPCA IBGE'!A:D,4,FALSE)/100)^(M9/N9),6)) ->  | P9: =WORKDAY(WORKDAY(DATEVALUE(CONCATENATE("15/"&MONTH(EDATE($A9,-1))&"/"&YEAR(EDATE(A9,-1)))),-1,Feriados!$A$2:$A$1037),1,Feriados!$A$2:$A$1037) -> 2023-07-17 | Q9: =VLOOKUP(P9,'Histórico VNA IPCA'!B13:E50004,2,FALSE) -> 4124.778585 | R9: =IF(E9<>3,"",NETWORKDAYS(P9,A9-1,Feriados!$A$2:$A$1037)) -> 25 | S9: =IF(E9<>3,"",NETWORKDAYS(P9,T9-1,Feriados!$A$2:$A$1037)) -> 21 | T9: =WORKDAY(WORKDAY(DATEVALUE(CONCATENATE("15/"&MONTH(A9)&"/"&YEAR(A9))),-1,Feriados!$A$2:$A$1037),1,Feriados!$A$2:$A$1037) -> 2023-08-15 | U9: =VLOOKUP(T9,'Histórico VNA IPCA'!B13:E50004,2,FALSE) -> 4129.727118 | V9: =WORKDAY(WORKDAY(DATEVALUE(CONCATENATE("15/"&MONTH(EDATE(A9,1))&"/"&YEAR(EDATE(A9,1)))),-1,Feriados!$A$2:$A$1037),1,Feriados!$A$2:$A$1037) -> 2023-09-15 | W9: =IF(E9<>3,"",NETWORKDAYS(T9,A9-1,Feriados!$A$2:$A$1037)) -> 4 | X9: =IF(E9<>3,"",NETWORKDAYS(T9,V9-1,Feriados!$A$2:$A$1037)) -> 22 | Y9: 4130.852716
A10: 2023-08-22 | B10: 4131.134164 | C10: 0.15 | D10: P | E10: 3 | F10: 4131.134164 | G10: 0.006813314813 | H10: 1.000340712 | I10: 0.03407118582 | J10: =IF(E10<>1,"",TRUNC((VLOOKUP(K10,'IPCA IBGE'!A:D,4,FALSE)/100+1)*L10,6)) ->  | K10: =WORKDAY(WORKDAY(DATEVALUE(CONCATENATE("15/"&MONTH(EDATE($A10,-1))&"/"&YEAR(EDATE(A10,-1)))),-1,Feriados!$A$2:$A$1037),1,Feriados!$A$2:$A$1037) -> 2023-07-17 | L10: =VLOOKUP(K10,'Histórico VNA IPCA'!B14:E50005,2,FALSE) -> 4124.778585 | M10: =IF(E10<>2,"",NETWORKDAYS(K10,A10-1,Feriados!$A$2:$A$1037)) ->  | N10: =IF(E10<>2,"",NETWORKDAYS(K10,T10-1,Feriados!$A$2:$A$1037)) ->  | O10: =IF(E10<>2,"",TRUNC((L10)*(1+VLOOKUP(K10,'IPCA IBGE'!A:D,4,FALSE)/100)^(M10/N10),6)) ->  | P10: =WORKDAY(WORKDAY(DATEVALUE(CONCATENATE("15/"&MONTH(EDATE($A10,-1))&"/"&YEAR(EDATE(A10,-1)))),-1,Feriados!$A$2:$A$1037),1,Feriados!$A$2:$A$1037) -> 2023-07-17 | Q10: =VLOOKUP(P10,'Histórico VNA IPCA'!B14:E50005,2,FALSE) -> 4124.778585 | R10: =IF(E10<>3,"",NETWORKDAYS(P10,A10-1,Feriados!$A$2:$A$1037)) -> 26 | S10: =IF(E10<>3,"",NETWORKDAYS(P10,T10-1,Feriados!$A$2:$A$1037)) -> 21 | T10: =WORKDAY(WORKDAY(DATEVALUE(CONCATENATE("15/"&MONTH(A10)&"/"&YEAR(A10))),-1,Feriados!$A$2:$A$1037),1,Feriados!$A$2:$A$1037) -> 2023-08-15 | U10: =VLOOKUP(T10,'Histórico VNA IPCA'!B14:E50005,2,FALSE) -> 4129.727118 | V10: =WORKDAY(WORKDAY(DATEVALUE(CONCATENATE("15/"&MONTH(EDATE(A10,1))&"/"&YEAR(EDATE(A10,1)))),-1,Feriados!$A$2:$A$1037),1,Feriados!$A$2:$A$1037) -> 2023-09-15 | W10: =IF(E10<>3,"",NETWORKDAYS(T10,A10-1,Feriados!$A$2:$A$1037)) -> 5 | X10: =IF(E10<>3,"",NETWORKDAYS(T10,V10-1,Feriados!$A$2:$A$1037)) -> 22 | Y10: 4131.134164
A11: 2023-08-23 | B11: 4131.415631 | C11: 0.15 | D11: P | E11: 3 | F11: 4131.415631 | G11: 0.006813310554 | H11: 1.000408868 | I11: 0.04088681775 | J11: =IF(E11<>1,"",TRUNC((VLOOKUP(K11,'IPCA IBGE'!A:D,4,FALSE)/100+1)*L11,6)) ->  | K11: =WORKDAY(WORKDAY(DATEVALUE(CONCATENATE("15/"&MONTH(EDATE($A11,-1))&"/"&YEAR(EDATE(A11,-1)))),-1,Feriados!$A$2:$A$1037),1,Feriados!$A$2:$A$1037) -> 2023-07-17 | L11: =VLOOKUP(K11,'Histórico VNA IPCA'!B15:E50006,2,FALSE) -> 4124.778585 | M11: =IF(E11<>2,"",NETWORKDAYS(K11,A11-1,Feriados!$A$2:$A$1037)) ->  | N11: =IF(E11<>2,"",NETWORKDAYS(K11,T11-1,Feriados!$A$2:$A$1037)) ->  | O11: =IF(E11<>2,"",TRUNC((L11)*(1+VLOOKUP(K11,'IPCA IBGE'!A:D,4,FALSE)/100)^(M11/N11),6)) ->  | P11: =WORKDAY(WORKDAY(DATEVALUE(CONCATENATE("15/"&MONTH(EDATE($A11,-1))&"/"&YEAR(EDATE(A11,-1)))),-1,Feriados!$A$2:$A$1037),1,Feriados!$A$2:$A$1037) -> 2023-07-17 | Q11: =VLOOKUP(P11,'Histórico VNA IPCA'!B15:E50006,2,FALSE) -> 4124.778585 | R11: =IF(E11<>3,"",NETWORKDAYS(P11,A11-1,Feriados!$A$2:$A$1037)) -> 27 | S11: =IF(E11<>3,"",NETWORKDAYS(P11,T11-1,Feriados!$A$2:$A$1037)) -> 21 | T11: =WORKDAY(WORKDAY(DATEVALUE(CONCATENATE("15/"&MONTH(A11)&"/"&YEAR(A11))),-1,Feriados!$A$2:$A$1037),1,Feriados!$A$2:$A$1037) -> 2023-08-15 | U11: =VLOOKUP(T11,'Histórico VNA IPCA'!B15:E50006,2,FALSE) -> 4129.727118 | V11: =WORKDAY(WORKDAY(DATEVALUE(CONCATENATE("15/"&MONTH(EDATE(A11,1))&"/"&YEAR(EDATE(A11,1)))),-1,Feriados!$A$2:$A$1037),1,Feriados!$A$2:$A$1037) -> 2023-09-15 | W11: =IF(E11<>3,"",NETWORKDAYS(T11,A11-1,Feriados!$A$2:$A$1037)) -> 6 | X11: =IF(E11<>3,"",NETWORKDAYS(T11,V11-1,Feriados!$A$2:$A$1037)) -> 22 | Y11: 4131.415631
A12: 2023-08-24 | B12: 4131.697117 | C12: 0.15 | D12: P | E12: 3 | F12: 4131.697117 | G12: 0.006813306265 | H12: 1.000477029 | I12: 0.04770290976 | J12: =IF(E12<>1,"",TRUNC((VLOOKUP(K12,'IPCA IBGE'!A:D,4,FALSE)/100+1)*L12,6)) ->  | K12: =WORKDAY(WORKDAY(DATEVALUE(CONCATENATE("15/"&MONTH(EDATE($A12,-1))&"/"&YEAR(EDATE(A12,-1)))),-1,Feriados!$A$2:$A$1037),1,Feriados!$A$2:$A$1037) -> 2023-07-17 | L12: =VLOOKUP(K12,'Histórico VNA IPCA'!B16:E50007,2,FALSE) -> 4124.778585 | M12: =IF(E12<>2,"",NETWORKDAYS(K12,A12-1,Feriados!$A$2:$A$1037)) ->  | N12: =IF(E12<>2,"",NETWORKDAYS(K12,T12-1,Feriados!$A$2:$A$1037)) ->  | O12: =IF(E12<>2,"",TRUNC((L12)*(1+VLOOKUP(K12,'IPCA IBGE'!A:D,4,FALSE)/100)^(M12/N12),6)) ->  | P12: =WORKDAY(WORKDAY(DATEVALUE(CONCATENATE("15/"&MONTH(EDATE($A12,-1))&"/"&YEAR(EDATE(A12,-1)))),-1,Feriados!$A$2:$A$1037),1,Feriados!$A$2:$A$1037) -> 2023-07-17 | Q12: =VLOOKUP(P12,'Histórico VNA IPCA'!B16:E50007,2,FALSE) -> 4124.778585 | R12: =IF(E12<>3,"",NETWORKDAYS(P12,A12-1,Feriados!$A$2:$A$1037)) -> 28 | S12: =IF(E12<>3,"",NETWORKDAYS(P12,T12-1,Feriados!$A$2:$A$1037)) -> 21 | T12: =WORKDAY(WORKDAY(DATEVALUE(CONCATENATE("15/"&MONTH(A12)&"/"&YEAR(A12))),-1,Feriados!$A$2:$A$1037),1,Feriados!$A$2:$A$1037) -> 2023-08-15 | U12: =VLOOKUP(T12,'Histórico VNA IPCA'!B16:E50007,2,FALSE) -> 4129.727118 | V12: =WORKDAY(WORKDAY(DATEVALUE(CONCATENATE("15/"&MONTH(EDATE(A12,1))&"/"&YEAR(EDATE(A12,1)))),-1,Feriados!$A$2:$A$1037),1,Feriados!$A$2:$A$1037) -> 2023-09-15 | W12: =IF(E12<>3,"",NETWORKDAYS(T12,A12-1,Feriados!$A$2:$A$1037)) -> 7 | X12: =IF(E12<>3,"",NETWORKDAYS(T12,V12-1,Feriados!$A$2:$A$1037)) -> 22 | Y12: 4131.697117
A13: 2023-08-25 | B13: 4131.978622 | C13: 0.15 | D13: P | E13: 3 | F13: 4131.978622 | G13: 0.006813301944 | H13: 1.000545195 | I13: 0.05451946185 | J13: =IF(E13<>1,"",TRUNC((VLOOKUP(K13,'IPCA IBGE'!A:D,4,FALSE)/100+1)*L13,6)) ->  | K13: =WORKDAY(WORKDAY(DATEVALUE(CONCATENATE("15/"&MONTH(EDATE($A13,-1))&"/"&YEAR(EDATE(A13,-1)))),-1,Feriados!$A$2:$A$1037),1,Feriados!$A$2:$A$1037) -> 2023-07-17 | L13: =VLOOKUP(K13,'Histórico VNA IPCA'!B17:E50008,2,FALSE) -> 4124.778585 | M13: =IF(E13<>2,"",NETWORKDAYS(K13,A13-1,Feriados!$A$2:$A$1037)) ->  | N13: =IF(E13<>2,"",NETWORKDAYS(K13,T13-1,Feriados!$A$2:$A$1037)) ->  | O13: =IF(E13<>2,"",TRUNC((L13)*(1+VLOOKUP(K13,'IPCA IBGE'!A:D,4,FALSE)/100)^(M13/N13),6)) ->  | P13: =WORKDAY(WORKDAY(DATEVALUE(CONCATENATE("15/"&MONTH(EDATE($A13,-1))&"/"&YEAR(EDATE(A13,-1)))),-1,Feriados!$A$2:$A$1037),1,Feriados!$A$2:$A$1037) -> 2023-07-17 | Q13: =VLOOKUP(P13,'Histórico VNA IPCA'!B17:E50008,2,FALSE) -> 4124.778585 | R13: =IF(E13<>3,"",NETWORKDAYS(P13,A13-1,Feriados!$A$2:$A$1037)) -> 29 | S13: =IF(E13<>3,"",NETWORKDAYS(P13,T13-1,Feriados!$A$2:$A$1037)) -> 21 | T13: =WORKDAY(WORKDAY(DATEVALUE(CONCATENATE("15/"&MONTH(A13)&"/"&YEAR(A13))),-1,Feriados!$A$2:$A$1037),1,Feriados!$A$2:$A$1037) -> 2023-08-15 | U13: =VLOOKUP(T13,'Histórico VNA IPCA'!B17:E50008,2,FALSE) -> 4129.727118 | V13: =WORKDAY(WORKDAY(DATEVALUE(CONCATENATE("15/"&MONTH(EDATE(A13,1))&"/"&YEAR(EDATE(A13,1)))),-1,Feriados!$A$2:$A$1037),1,Feriados!$A$2:$A$1037) -> 2023-09-15 | W13: =IF(E13<>3,"",NETWORKDAYS(T13,A13-1,Feriados!$A$2:$A$1037)) -> 8 | X13: =IF(E13<>3,"",NETWORKDAYS(T13,V13-1,Feriados!$A$2:$A$1037)) -> 22 | Y13: 4131.978622
A14: 2023-08-28 | B14: 4134.116276 | C14: 0.26 | D14: P | E14: 3 | F14: 4134.116276 | G14: 0.05173439157 | H14: 1.001062821 | I14: 0.1062820587 | J14: =IF(E14<>1,"",TRUNC((VLOOKUP(K14,'IPCA IBGE'!A:D,4,FALSE)/100+1)*L14,6)) ->  | K14: =WORKDAY(WORKDAY(DATEVALUE(CONCATENATE("15/"&MONTH(EDATE($A14,-1))&"/"&YEAR(EDATE(A14,-1)))),-1,Feriados!$A$2:$A$1037),1,Feriados!$A$2:$A$1037) -> 2023-07-17 | L14: =VLOOKUP(K14,'Histórico VNA IPCA'!B18:E50009,2,FALSE) -> 4124.778585 | M14: =IF(E14<>2,"",NETWORKDAYS(K14,A14-1,Feriados!$A$2:$A$1037)) ->  | N14: =IF(E14<>2,"",NETWORKDAYS(K14,T14-1,Feriados!$A$2:$A$1037)) ->  | O14: =IF(E14<>2,"",TRUNC((L14)*(1+VLOOKUP(K14,'IPCA IBGE'!A:D,4,FALSE)/100)^(M14/N14),6)) ->  | P14: =WORKDAY(WORKDAY(DATEVALUE(CONCATENATE("15/"&MONTH(EDATE($A14,-1))&"/"&YEAR(EDATE(A14,-1)))),-1,Feriados!$A$2:$A$1037),1,Feriados!$A$2:$A$1037) -> 2023-07-17 | Q14: =VLOOKUP(P14,'Histórico VNA IPCA'!B18:E50009,2,FALSE) -> 4124.778585 | R14: =IF(E14<>3,"",NETWORKDAYS(P14,A14-1,Feriados!$A$2:$A$1037)) -> 30 | S14: =IF(E14<>3,"",NETWORKDAYS(P14,T14-1,Feriados!$A$2:$A$1037)) -> 21 | T14: =WORKDAY(WORKDAY(DATEVALUE(CONCATENATE("15/"&MONTH(A14)&"/"&YEAR(A14))),-1,Feriados!$A$2:$A$1037),1,Feriados!$A$2:$A$1037) -> 2023-08-15 | U14: =VLOOKUP(T14,'Histórico VNA IPCA'!B18:E50009,2,FALSE) -> 4129.727118 | V14: =WORKDAY(WORKDAY(DATEVALUE(CONCATENATE("15/"&MONTH(EDATE(A14,1))&"/"&YEAR(EDATE(A14,1)))),-1,Feriados!$A$2:$A$1037),1,Feriados!$A$2:$A$1037) -> 2023-09-15 | W14: =IF(E14<>3,"",NETWORKDAYS(T14,A14-1,Feriados!$A$2:$A$1037)) -> 9 | X14: =IF(E14<>3,"",NETWORKDAYS(T14,V14-1,Feriados!$A$2:$A$1037)) -> 22 | Y14: 4134.116276
A15: 2023-08-29 | B15: 4134.604248 | C15: 0.26 | D15: P | E15: =IF(A15=T15,1,IF(D15="f",2,3)) -> 3 | F15: 4134.604248 | G15: 0.01180353835 | H15: 1.001180981 | I15: 0.1180981421 | J15: =IF(E15<>1,"",TRUNC((VLOOKUP(K15,'IPCA IBGE'!A:D,4,FALSE)/100+1)*L15,6)) ->  | K15: =WORKDAY(WORKDAY(DATEVALUE(CONCATENATE("15/"&MONTH(EDATE($A15,-1))&"/"&YEAR(EDATE(A15,-1)))),-1,Feriados!$A$2:$A$1037),1,Feriados!$A$2:$A$1037) -> 2023-07-17 | L15: =VLOOKUP(K15,'Histórico VNA IPCA'!B19:E50010,2,FALSE) -> 4124.778585 | M15: =IF(E15<>2,"",NETWORKDAYS(K15,A15-1,Feriados!$A$2:$A$1037)) ->  | N15: =IF(E15<>2,"",NETWORKDAYS(K15,T15-1,Feriados!$A$2:$A$1037)) ->  | O15: =IF(E15<>2,"",TRUNC((L15)*(1+VLOOKUP(K15,'IPCA IBGE'!A:D,4,FALSE)/100)^(M15/N15),6)) ->  | P15: =WORKDAY(WORKDAY(DATEVALUE(CONCATENATE("15/"&MONTH(EDATE($A15,-1))&"/"&YEAR(EDATE(A15,-1)))),-1,Feriados!$A$2:$A$1037),1,Feriados!$A$2:$A$1037) -> 2023-07-17 | Q15: =VLOOKUP(P15,'Histórico VNA IPCA'!B19:E50010,2,FALSE) -> 4124.778585 | R15: =IF(E15<>3,"",NETWORKDAYS(P15,A15-1,Feriados!$A$2:$A$1037)) -> 31 | S15: =IF(E15<>3,"",NETWORKDAYS(P15,T15-1,Feriados!$A$2:$A$1037)) -> 21 | T15: =WORKDAY(WORKDAY(DATEVALUE(CONCATENATE("15/"&MONTH(A15)&"/"&YEAR(A15))),-1,Feriados!$A$2:$A$1037),1,Feriados!$A$2:$A$1037) -> 2023-08-15 | U15: =VLOOKUP(T15,'Histórico VNA IPCA'!B19:E50010,2,FALSE) -> 4129.727118 | V15: =WORKDAY(WORKDAY(DATEVALUE(CONCATENATE("15/"&MONTH(EDATE(A15,1))&"/"&YEAR(EDATE(A15,1)))),-1,Feriados!$A$2:$A$1037),1,Feriados!$A$2:$A$1037) -> 2023-09-15 | W15: =IF(E15<>3,"",NETWORKDAYS(T15,A15-1,Feriados!$A$2:$A$1037)) -> 10 | X15: =IF(E15<>3,"",NETWORKDAYS(T15,V15-1,Feriados!$A$2:$A$1037)) -> 22 | Y15: 4134.604248
A16: 2023-08-30 | B16: 4135.092278 | C16: 0.26 | D16: P | E16: 3 | F16: 4135.092278 | G16: 0.01180354807 | H16: 1.001299156 | I16: 0.12991563 | J16: =IF(E16<>1,"",TRUNC((VLOOKUP(K16,'IPCA IBGE'!A:D,4,FALSE)/100+1)*L16,6)) ->  | K16: =WORKDAY(WORKDAY(DATEVALUE(CONCATENATE("15/"&MONTH(EDATE($A16,-1))&"/"&YEAR(EDATE(A16,-1)))),-1,Feriados!$A$2:$A$1037),1,Feriados!$A$2:$A$1037) -> 2023-07-17 | L16: =VLOOKUP(K16,'Histórico VNA IPCA'!B20:E50011,2,FALSE) -> 4124.778585 | M16: =IF(E16<>2,"",NETWORKDAYS(K16,A16-1,Feriados!$A$2:$A$1037)) ->  | N16: =IF(E16<>2,"",NETWORKDAYS(K16,T16-1,Feriados!$A$2:$A$1037)) ->  | O16: =IF(E16<>2,"",TRUNC((L16)*(1+VLOOKUP(K16,'IPCA IBGE'!A:D,4,FALSE)/100)^(M16/N16),6)) ->  | P16: =WORKDAY(WORKDAY(DATEVALUE(CONCATENATE("15/"&MONTH(EDATE($A16,-1))&"/"&YEAR(EDATE(A16,-1)))),-1,Feriados!$A$2:$A$1037),1,Feriados!$A$2:$A$1037) -> 2023-07-17 | Q16: =VLOOKUP(P16,'Histórico VNA IPCA'!B20:E50011,2,FALSE) -> 4124.778585 | R16: =IF(E16<>3,"",NETWORKDAYS(P16,A16-1,Feriados!$A$2:$A$1037)) -> 32 | S16: =IF(E16<>3,"",NETWORKDAYS(P16,T16-1,Feriados!$A$2:$A$1037)) -> 21 | T16: =WORKDAY(WORKDAY(DATEVALUE(CONCATENATE("15/"&MONTH(A16)&"/"&YEAR(A16))),-1,Feriados!$A$2:$A$1037),1,Feriados!$A$2:$A$1037) -> 2023-08-15 | U16: =VLOOKUP(T16,'Histórico VNA IPCA'!B20:E50011,2,FALSE) -> 4129.727118 | V16: =WORKDAY(WORKDAY(DATEVALUE(CONCATENATE("15/"&MONTH(EDATE(A16,1))&"/"&YEAR(EDATE(A16,1)))),-1,Feriados!$A$2:$A$1037),1,Feriados!$A$2:$A$1037) -> 2023-09-15 | W16: =IF(E16<>3,"",NETWORKDAYS(T16,A16-1,Feriados!$A$2:$A$1037)) -> 11 | X16: =IF(E16<>3,"",NETWORKDAYS(T16,V16-1,Feriados!$A$2:$A$1037)) -> 22 | Y16: 4135.092278
A17: 2023-08-31 | B17: 4135.580365 | C17: 0.26 | D17: P | E17: 3 | F17: 4135.580365 | G17: 0.01180353344 | H17: 1.001417345 | I17: 0.141734498 | J17: =IF(E17<>1,"",TRUNC((VLOOKUP(K17,'IPCA IBGE'!A:D,4,FALSE)/100+1)*L17,6)) ->  | K17: =WORKDAY(WORKDAY(DATEVALUE(CONCATENATE("15/"&MONTH(EDATE($A17,-1))&"/"&YEAR(EDATE(A17,-1)))),-1,Feriados!$A$2:$A$1037),1,Feriados!$A$2:$A$1037) -> 2023-07-17 | L17: =VLOOKUP(K17,'Histórico VNA IPCA'!B21:E50012,2,FALSE) -> 4124.778585 | M17: =IF(E17<>2,"",NETWORKDAYS(K17,A17-1,Feriados!$A$2:$A$1037)) ->  | N17: =IF(E17<>2,"",NETWORKDAYS(K17,T17-1,Feriados!$A$2:$A$1037)) ->  | O17: =IF(E17<>2,"",TRUNC((L17)*(1+VLOOKUP(K17,'IPCA IBGE'!A:D,4,FALSE)/100)^(M17/N17),6)) ->  | P17: =WORKDAY(WORKDAY(DATEVALUE(CONCATENATE("15/"&MONTH(EDATE($A17,-1))&"/"&YEAR(EDATE(A17,-1)))),-1,Feriados!$A$2:$A$1037),1,Feriados!$A$2:$A$1037) -> 2023-07-17 | Q17: =VLOOKUP(P17,'Histórico VNA IPCA'!B21:E50012,2,FALSE) -> 4124.778585 | R17: =IF(E17<>3,"",NETWORKDAYS(P17,A17-1,Feriados!$A$2:$A$1037)) -> 33 | S17: =IF(E17<>3,"",NETWORKDAYS(P17,T17-1,Feriados!$A$2:$A$1037)) -> 21 | T17: =WORKDAY(WORKDAY(DATEVALUE(CONCATENATE("15/"&MONTH(A17)&"/"&YEAR(A17))),-1,Feriados!$A$2:$A$1037),1,Feriados!$A$2:$A$1037) -> 2023-08-15 | U17: =VLOOKUP(T17,'Histórico VNA IPCA'!B21:E50012,2,FALSE) -> 4129.727118 | V17: =WORKDAY(WORKDAY(DATEVALUE(CONCATENATE("15/"&MONTH(EDATE(A17,1))&"/"&YEAR(EDATE(A17,1)))),-1,Feriados!$A$2:$A$1037),1,Feriados!$A$2:$A$1037) -> 2023-09-15 | W17: =IF(E17<>3,"",NETWORKDAYS(T17,A17-1,Feriados!$A$2:$A$1037)) -> 12 | X17: =IF(E17<>3,"",NETWORKDAYS(T17,V17-1,Feriados!$A$2:$A$1037)) -> 22 | Y17: 4135.580365
A18: 2023-09-01 | B18: 4136.06851 | C18: 0.26 | D18: P | E18: 3 | F18: 4136.06851 | G18: 0.01180354284 | H18: 1.001535548 | I18: 0.1535547706 | J18: =IF(E18<>1,"",TRUNC((VLOOKUP(K18,'IPCA IBGE'!A:D,4,FALSE)/100+1)*L18,6)) ->  | K18: =WORKDAY(WORKDAY(DATEVALUE(CONCATENATE("15/"&MONTH(EDATE($A18,-1))&"/"&YEAR(EDATE(A18,-1)))),-1,Feriados!$A$2:$A$1037),1,Feriados!$A$2:$A$1037) -> 2023-08-15 | L18: =VLOOKUP(K18,'Histórico VNA IPCA'!B22:E50013,2,FALSE) -> 4129.727118 | M18: =IF(E18<>2,"",NETWORKDAYS(K18,A18-1,Feriados!$A$2:$A$1037)) ->  | N18: =IF(E18<>2,"",NETWORKDAYS(K18,T18-1,Feriados!$A$2:$A$1037)) ->  | O18: =IF(E18<>2,"",TRUNC((L18)*(1+VLOOKUP(K18,'IPCA IBGE'!A:D,4,FALSE)/100)^(M18/N18),6)) ->  | P18: =WORKDAY(WORKDAY(DATEVALUE(CONCATENATE("15/"&MONTH(EDATE($A18,-1))&"/"&YEAR(EDATE(A18,-1)))),-1,Feriados!$A$2:$A$1037),1,Feriados!$A$2:$A$1037) -> 2023-08-15 | Q18: =VLOOKUP(P18,'Histórico VNA IPCA'!B22:E50013,2,FALSE) -> 4129.727118 | R18: =IF(E18<>3,"",NETWORKDAYS(P18,A18-1,Feriados!$A$2:$A$1037)) -> 13 | S18: =IF(E18<>3,"",NETWORKDAYS(P18,T18-1,Feriados!$A$2:$A$1037)) -> 22 | T18: =WORKDAY(WORKDAY(DATEVALUE(CONCATENATE("15/"&MONTH(A18)&"/"&YEAR(A18))),-1,Feriados!$A$2:$A$1037),1,Feriados!$A$2:$A$1037) -> 2023-09-15 | U18: =VLOOKUP(T18,'Histórico VNA IPCA'!B22:E50013,2,FALSE) -> 4139.227805 | V18: =WORKDAY(WORKDAY(DATEVALUE(CONCATENATE("15/"&MONTH(EDATE(A18,1))&"/"&YEAR(EDATE(A18,1)))),-1,Feriados!$A$2:$A$1037),1,Feriados!$A$2:$A$1037) -> 2023-10-16 | W18: =IF(E18<>3,"",NETWORKDAYS(T18,A18-1,Feriados!$A$2:$A$1037)) -> -11 | X18: =IF(E18<>3,"",NETWORKDAYS(T18,V18-1,Feriados!$A$2:$A$1037)) -> 20 | Y18: 4136.06851
A19: 2023-09-04 | B19: 4136.556712 | C19: 0.26 | D19: P | E19: 3 | F19: 4136.556712 | G19: 0.01180352789 | H19: 1.001653764 | I19: 0.1653764233 | J19: =IF(E19<>1,"",TRUNC((VLOOKUP(K19,'IPCA IBGE'!A:D,4,FALSE)/100+1)*L19,6)) ->  | K19: =WORKDAY(WORKDAY(DATEVALUE(CONCATENATE("15/"&MONTH(EDATE($A19,-1))&"/"&YEAR(EDATE(A19,-1)))),-1,Feriados!$A$2:$A$1037),1,Feriados!$A$2:$A$1037) -> 2023-08-15 | L19: =VLOOKUP(K19,'Histórico VNA IPCA'!B23:E50014,2,FALSE) -> 4129.727118 | M19: =IF(E19<>2,"",NETWORKDAYS(K19,A19-1,Feriados!$A$2:$A$1037)) ->  | N19: =IF(E19<>2,"",NETWORKDAYS(K19,T19-1,Feriados!$A$2:$A$1037)) ->  | O19: =IF(E19<>2,"",TRUNC((L19)*(1+VLOOKUP(K19,'IPCA IBGE'!A:D,4,FALSE)/100)^(M19/N19),6)) ->  | P19: =WORKDAY(WORKDAY(DATEVALUE(CONCATENATE("15/"&MONTH(EDATE($A19,-1))&"/"&YEAR(EDATE(A19,-1)))),-1,Feriados!$A$2:$A$1037),1,Feriados!$A$2:$A$1037) -> 2023-08-15 | Q19: =VLOOKUP(P19,'Histórico VNA IPCA'!B23:E50014,2,FALSE) -> 4129.727118 | R19: =IF(E19<>3,"",NETWORKDAYS(P19,A19-1,Feriados!$A$2:$A$1037)) -> 14 | S19: =IF(E19<>3,"",NETWORKDAYS(P19,T19-1,Feriados!$A$2:$A$1037)) -> 22 | T19: =WORKDAY(WORKDAY(DATEVALUE(CONCATENATE("15/"&MONTH(A19)&"/"&YEAR(A19))),-1,Feriados!$A$2:$A$1037),1,Feriados!$A$2:$A$1037) -> 2023-09-15 | U19: =VLOOKUP(T19,'Histórico VNA IPCA'!B23:E50014,2,FALSE) -> 4139.227805 | V19: =WORKDAY(WORKDAY(DATEVALUE(CONCATENATE("15/"&MONTH(EDATE(A19,1))&"/"&YEAR(EDATE(A19,1)))),-1,Feriados!$A$2:$A$1037),1,Feriados!$A$2:$A$1037) -> 2023-10-16 | W19: =IF(E19<>3,"",NETWORKDAYS(T19,A19-1,Feriados!$A$2:$A$1037)) -> -9 | X19: =IF(E19<>3,"",NETWORKDAYS(T19,V19-1,Feriados!$A$2:$A$1037)) -> 20 | Y19: 4136.556712
A20: 2023-09-05 | B20: 4137.044973 | C20: 0.26 | D20: P | E20: 3 | F20: 4137.044973 | G20: 0.01180356113 | H20: 1.001771995 | I20: 0.1771995048 | J20: =IF(E20<>1,"",TRUNC((VLOOKUP(K20,'IPCA IBGE'!A:D,4,FALSE)/100+1)*L20,6)) ->  | K20: =WORKDAY(WORKDAY(DATEVALUE(CONCATENATE("15/"&MONTH(EDATE($A20,-1))&"/"&YEAR(EDATE(A20,-1)))),-1,Feriados!$A$2:$A$1037),1,Feriados!$A$2:$A$1037) -> 2023-08-15 | L20: =VLOOKUP(K20,'Histórico VNA IPCA'!B24:E50015,2,FALSE) -> 4129.727118 | M20: =IF(E20<>2,"",NETWORKDAYS(K20,A20-1,Feriados!$A$2:$A$1037)) ->  | N20: =IF(E20<>2,"",NETWORKDAYS(K20,T20-1,Feriados!$A$2:$A$1037)) ->  | O20: =IF(E20<>2,"",TRUNC((L20)*(1+VLOOKUP(K20,'IPCA IBGE'!A:D,4,FALSE)/100)^(M20/N20),6)) ->  | P20: =WORKDAY(WORKDAY(DATEVALUE(CONCATENATE("15/"&MONTH(EDATE($A20,-1))&"/"&YEAR(EDATE(A20,-1)))),-1,Feriados!$A$2:$A$1037),1,Feriados!$A$2:$A$1037) -> 2023-08-15 | Q20: =VLOOKUP(P20,'Histórico VNA IPCA'!B24:E50015,2,FALSE) -> 4129.727118 | R20: =IF(E20<>3,"",NETWORKDAYS(P20,A20-1,Feriados!$A$2:$A$1037)) -> 15 | S20: =IF(E20<>3,"",NETWORKDAYS(P20,T20-1,Feriados!$A$2:$A$1037)) -> 22 | T20: =WORKDAY(WORKDAY(DATEVALUE(CONCATENATE("15/"&MONTH(A20)&"/"&YEAR(A20))),-1,Feriados!$A$2:$A$1037),1,Feriados!$A$2:$A$1037) -> 2023-09-15 | U20: =VLOOKUP(T20,'Histórico VNA IPCA'!B24:E50015,2,FALSE) -> 4139.227805 | V20: =WORKDAY(WORKDAY(DATEVALUE(CONCATENATE("15/"&MONTH(EDATE(A20,1))&"/"&YEAR(EDATE(A20,1)))),-1,Feriados!$A$2:$A$1037),1,Feriados!$A$2:$A$1037) -> 2023-10-16 | W20: =IF(E20<>3,"",NETWORKDAYS(T20,A20-1,Feriados!$A$2:$A$1037)) -> -9 | X20: =IF(E20<>3,"",NETWORKDAYS(T20,V20-1,Feriados!$A$2:$A$1037)) -> 20 | Y20: 4137.044973
A21: 2023-09-06 | B21: 4137.53329 | C21: 0.26 | D21: P | E21: 3 | F21: 4137.53329 | G21: 0.01180352167 | H21: 1.001890239 | I21: 0.1890239422 | J21: =IF(E21<>1,"",TRUNC((VLOOKUP(K21,'IPCA IBGE'!A:D,4,FALSE)/100+1)*L21,6)) ->  | K21: =WORKDAY(WORKDAY(DATEVALUE(CONCATENATE("15/"&MONTH(EDATE($A21,-1))&"/"&YEAR(EDATE(A21,-1)))),-1,Feriados!$A$2:$A$1037),1,Feriados!$A$2:$A$1037) -> 2023-08-15 | L21: =VLOOKUP(K21,'Histórico VNA IPCA'!B25:E50016,2,FALSE) -> 4129.727118 | M21: =IF(E21<>2,"",NETWORKDAYS(K21,A21-1,Feriados!$A$2:$A$1037)) ->  | N21: =IF(E21<>2,"",NETWORKDAYS(K21,T21-1,Feriados!$A$2:$A$1037)) ->  | O21: =IF(E21<>2,"",TRUNC((L21)*(1+VLOOKUP(K21,'IPCA IBGE'!A:D,4,FALSE)/100)^(M21/N21),6)) ->  | P21: =WORKDAY(WORKDAY(DATEVALUE(CONCATENATE("15/"&MONTH(EDATE($A21,-1))&"/"&YEAR(EDATE(A21,-1)))),-1,Feriados!$A$2:$A$1037),1,Feriados!$A$2:$A$1037) -> 2023-08-15 | Q21: =VLOOKUP(P21,'Histórico VNA IPCA'!B25:E50016,2,FALSE) -> 4129.727118 | R21: =IF(E21<>3,"",NETWORKDAYS(P21,A21-1,Feriados!$A$2:$A$1037)) -> 16 | S21: =IF(E21<>3,"",NETWORKDAYS(P21,T21-1,Feriados!$A$2:$A$1037)) -> 22 | T21: =WORKDAY(WORKDAY(DATEVALUE(CONCATENATE("15/"&MONTH(A21)&"/"&YEAR(A21))),-1,Feriados!$A$2:$A$1037),1,Feriados!$A$2:$A$1037) -> 2023-09-15 | U21: =VLOOKUP(T21,'Histórico VNA IPCA'!B25:E50016,2,FALSE) -> 4139.227805 | V21: =WORKDAY(WORKDAY(DATEVALUE(CONCATENATE("15/"&MONTH(EDATE(A21,1))&"/"&YEAR(EDATE(A21,1)))),-1,Feriados!$A$2:$A$1037),1,Feriados!$A$2:$A$1037) -> 2023-10-16 | W21: =IF(E21<>3,"",NETWORKDAYS(T21,A21-1,Feriados!$A$2:$A$1037)) -> -8 | X21: =IF(E21<>3,"",NETWORKDAYS(T21,V21-1,Feriados!$A$2:$A$1037)) -> 20 | Y21: 4137.53329
A22: 2023-09-08 | B22: 4138.021666 | C22: 0.26 | D22: P | E22: 3 | F22: 4138.021666 | G22: 0.01180355458 | H22: 1.002008498 | I22: 0.2008498084 | J22: =IF(E22<>1,"",TRUNC((VLOOKUP(K22,'IPCA IBGE'!A:D,4,FALSE)/100+1)*L22,6)) ->  | K22: =WORKDAY(WORKDAY(DATEVALUE(CONCATENATE("15/"&MONTH(EDATE($A22,-1))&"/"&YEAR(EDATE(A22,-1)))),-1,Feriados!$A$2:$A$1037),1,Feriados!$A$2:$A$1037) -> 2023-08-15 | L22: =VLOOKUP(K22,'Histórico VNA IPCA'!B26:E50017,2,FALSE) -> 4129.727118 | M22: =IF(E22<>2,"",NETWORKDAYS(K22,A22-1,Feriados!$A$2:$A$1037)) ->  | N22: =IF(E22<>2,"",NETWORKDAYS(K22,T22-1,Feriados!$A$2:$A$1037)) ->  | O22: =IF(E22<>2,"",TRUNC((L22)*(1+VLOOKUP(K22,'IPCA IBGE'!A:D,4,FALSE)/100)^(M22/N22),6)) ->  | P22: =WORKDAY(WORKDAY(DATEVALUE(CONCATENATE("15/"&MONTH(EDATE($A22,-1))&"/"&YEAR(EDATE(A22,-1)))),-1,Feriados!$A$2:$A$1037),1,Feriados!$A$2:$A$1037) -> 2023-08-15 | Q22: =VLOOKUP(P22,'Histórico VNA IPCA'!B26:E50017,2,FALSE) -> 4129.727118 | R22: =IF(E22<>3,"",NETWORKDAYS(P22,A22-1,Feriados!$A$2:$A$1037)) -> 17 | S22: =IF(E22<>3,"",NETWORKDAYS(P22,T22-1,Feriados!$A$2:$A$1037)) -> 22 | T22: =WORKDAY(WORKDAY(DATEVALUE(CONCATENATE("15/"&MONTH(A22)&"/"&YEAR(A22))),-1,Feriados!$A$2:$A$1037),1,Feriados!$A$2:$A$1037) -> 2023-09-15 | U22: =VLOOKUP(T22,'Histórico VNA IPCA'!B26:E50017,2,FALSE) -> 4139.227805 | V22: =WORKDAY(WORKDAY(DATEVALUE(CONCATENATE("15/"&MONTH(EDATE(A22,1))&"/"&YEAR(EDATE(A22,1)))),-1,Feriados!$A$2:$A$1037),1,Feriados!$A$2:$A$1037) -> 2023-10-16 | W22: =IF(E22<>3,"",NETWORKDAYS(T22,A22-1,Feriados!$A$2:$A$1037)) -> -6 | X22: =IF(E22<>3,"",NETWORKDAYS(T22,V22-1,Feriados!$A$2:$A$1037)) -> 20 | Y22: 4138.021666
A23: 2023-09-11 | B23: 4138.510099 | C23: 0.26 | D23: P | E23: 3 | F23: 4138.510099 | G23: 0.01180353897 | H23: 1.002126771 | I23: 0.2126770547 | J23: =IF(E23<>1,"",TRUNC((VLOOKUP(K23,'IPCA IBGE'!A:D,4,FALSE)/100+1)*L23,6)) ->  | K23: =WORKDAY(WORKDAY(DATEVALUE(CONCATENATE("15/"&MONTH(EDATE($A23,-1))&"/"&YEAR(EDATE(A23,-1)))),-1,Feriados!$A$2:$A$1037),1,Feriados!$A$2:$A$1037) -> 2023-08-15 | L23: =VLOOKUP(K23,'Histórico VNA IPCA'!B27:E50018,2,FALSE) -> 4129.727118 | M23: =IF(E23<>2,"",NETWORKDAYS(K23,A23-1,Feriados!$A$2:$A$1037)) ->  | N23: =IF(E23<>2,"",NETWORKDAYS(K23,T23-1,Feriados!$A$2:$A$1037)) ->  | O23: =IF(E23<>2,"",TRUNC((L23)*(1+VLOOKUP(K23,'IPCA IBGE'!A:D,4,FALSE)/100)^(M23/N23),6)) ->  | P23: =WORKDAY(WORKDAY(DATEVALUE(CONCATENATE("15/"&MONTH(EDATE($A23,-1))&"/"&YEAR(EDATE(A23,-1)))),-1,Feriados!$A$2:$A$1037),1,Feriados!$A$2:$A$1037) -> 2023-08-15 | Q23: =VLOOKUP(P23,'Histórico VNA IPCA'!B27:E50018,2,FALSE) -> 4129.727118 | R23: =IF(E23<>3,"",NETWORKDAYS(P23,A23-1,Feriados!$A$2:$A$1037)) -> 18 | S23: =IF(E23<>3,"",NETWORKDAYS(P23,T23-1,Feriados!$A$2:$A$1037)) -> 22 | T23: =WORKDAY(WORKDAY(DATEVALUE(CONCATENATE("15/"&MONTH(A23)&"/"&YEAR(A23))),-1,Feriados!$A$2:$A$1037),1,Feriados!$A$2:$A$1037) -> 2023-09-15 | U23: =VLOOKUP(T23,'Histórico VNA IPCA'!B27:E50018,2,FALSE) -> 4139.227805 | V23: =WORKDAY(WORKDAY(DATEVALUE(CONCATENATE("15/"&MONTH(EDATE(A23,1))&"/"&YEAR(EDATE(A23,1)))),-1,Feriados!$A$2:$A$1037),1,Feriados!$A$2:$A$1037) -> 2023-10-16 | W23: =IF(E23<>3,"",NETWORKDAYS(T23,A23-1,Feriados!$A$2:$A$1037)) -> -5 | X23: =IF(E23<>3,"",NETWORKDAYS(T23,V23-1,Feriados!$A$2:$A$1037)) -> 20 | Y23: 4138.510099
A24: 2023-09-12 | B24: 4137.930971 | C24: 0.23 | D24: F | E24: 2 | F24: 4137.930971 | G24: -0.01399363506 | H24: 1.001986537 | I24: 0.1986536584 | J24: =IF(E24<>1,"",TRUNC((VLOOKUP(K24,'IPCA IBGE'!A:D,4,FALSE)/100+1)*L24,6)) ->  | K24: =WORKDAY(WORKDAY(DATEVALUE(CONCATENATE("15/"&MONTH(EDATE($A24,-1))&"/"&YEAR(EDATE(A24,-1)))),-1,Feriados!$A$2:$A$1037),1,Feriados!$A$2:$A$1037) -> 2023-08-15 | L24: =VLOOKUP(K24,'Histórico VNA IPCA'!B28:E50019,2,FALSE) -> 4129.727118 | M24: =IF(E24<>2,"",NETWORKDAYS(K24,A24-1,Feriados!$A$2:$A$1037)) -> 19 | N24: =IF(E24<>2,"",NETWORKDAYS(K24,T24-1,Feriados!$A$2:$A$1037)) -> 22 | O24: =IF(E24<>2,"",TRUNC((L24)*(1+VLOOKUP(K24,'IPCA IBGE'!A:D,4,FALSE)/100)^(M24/N24),6)) -> 4137.930971 | P24: =WORKDAY(WORKDAY(DATEVALUE(CONCATENATE("15/"&MONTH(EDATE($A24,-1))&"/"&YEAR(EDATE(A24,-1)))),-1,Feriados!$A$2:$A$1037),1,Feriados!$A$2:$A$1037) -> 2023-08-15 | Q24: =VLOOKUP(P24,'Histórico VNA IPCA'!B28:E50019,2,FALSE) -> 4129.727118 | R24: =IF(E24<>3,"",NETWORKDAYS(P24,A24-1,Feriados!$A$2:$A$1037)) ->  | S24: =IF(E24<>3,"",NETWORKDAYS(P24,T24-1,Feriados!$A$2:$A$1037)) ->  | T24: =WORKDAY(WORKDAY(DATEVALUE(CONCATENATE("15/"&MONTH(A24)&"/"&YEAR(A24))),-1,Feriados!$A$2:$A$1037),1,Feriados!$A$2:$A$1037) -> 2023-09-15 | U24: =VLOOKUP(T24,'Histórico VNA IPCA'!B28:E50019,2,FALSE) -> 4139.227805 | V24: =WORKDAY(WORKDAY(DATEVALUE(CONCATENATE("15/"&MONTH(EDATE(A24,1))&"/"&YEAR(EDATE(A24,1)))),-1,Feriados!$A$2:$A$1037),1,Feriados!$A$2:$A$1037) -> 2023-10-16 | W24: =IF(E24<>3,"",NETWORKDAYS(T24,A24-1,Feriados!$A$2:$A$1037)) ->  | X24: =IF(E24<>3,"",NETWORKDAYS(T24,V24-1,Feriados!$A$2:$A$1037)) -> 
A25: 2023-09-13 | B25: 4138.363204 | C25: 0.23 | D25: F | E25: 2 | F25: 4138.363204 | G25: 0.01044563099 | H25: 1.0020912 | I25: 0.20912004 | J25: =IF(E25<>1,"",TRUNC((VLOOKUP(K25,'IPCA IBGE'!A:D,4,FALSE)/100+1)*L25,6)) ->  | K25: =WORKDAY(WORKDAY(DATEVALUE(CONCATENATE("15/"&MONTH(EDATE($A25,-1))&"/"&YEAR(EDATE(A25,-1)))),-1,Feriados!$A$2:$A$1037),1,Feriados!$A$2:$A$1037) -> 2023-08-15 | L25: =VLOOKUP(K25,'Histórico VNA IPCA'!B29:E50020,2,FALSE) -> 4129.727118 | M25: =IF(E25<>2,"",NETWORKDAYS(K25,A25-1,Feriados!$A$2:$A$1037)) -> 20 | N25: =IF(E25<>2,"",NETWORKDAYS(K25,T25-1,Feriados!$A$2:$A$1037)) -> 22 | O25: =IF(E25<>2,"",TRUNC((L25)*(1+VLOOKUP(K25,'IPCA IBGE'!A:D,4,FALSE)/100)^(M25/N25),6)) -> 4138.363204 | P25: =WORKDAY(WORKDAY(DATEVALUE(CONCATENATE("15/"&MONTH(EDATE($A25,-1))&"/"&YEAR(EDATE(A25,-1)))),-1,Feriados!$A$2:$A$1037),1,Feriados!$A$2:$A$1037) -> 2023-08-15 | Q25: =VLOOKUP(P25,'Histórico VNA IPCA'!B29:E50020,2,FALSE) -> 4129.727118 | R25: =IF(E25<>3,"",NETWORKDAYS(P25,A25-1,Feriados!$A$2:$A$1037)) ->  | S25: =IF(E25<>3,"",NETWORKDAYS(P25,T25-1,Feriados!$A$2:$A$1037)) ->  | T25: =WORKDAY(WORKDAY(DATEVALUE(CONCATENATE("15/"&MONTH(A25)&"/"&YEAR(A25))),-1,Feriados!$A$2:$A$1037),1,Feriados!$A$2:$A$1037) -> 2023-09-15 | U25: =VLOOKUP(T25,'Histórico VNA IPCA'!B29:E50020,2,FALSE) -> 4139.227805 | V25: =WORKDAY(WORKDAY(DATEVALUE(CONCATENATE("15/"&MONTH(EDATE(A25,1))&"/"&YEAR(EDATE(A25,1)))),-1,Feriados!$A$2:$A$1037),1,Feriados!$A$2:$A$1037) -> 2023-10-16 | W25: =IF(E25<>3,"",NETWORKDAYS(T25,A25-1,Feriados!$A$2:$A$1037)) ->  | X25: =IF(E25<>3,"",NETWORKDAYS(T25,V25-1,Feriados!$A$2:$A$1037)) -> 
A26: 2023-09-14 | B26: 4138.795482 | C26: 0.23 | D26: F | E26: 2 | F26: 4138.795482 | G26: 0.01044562738 | H26: 1.002195875 | I26: 0.2195875113 | J26: =IF(E26<>1,"",TRUNC((VLOOKUP(K26,'IPCA IBGE'!A:D,4,FALSE)/100+1)*L26,6)) ->  | K26: =WORKDAY(WORKDAY(DATEVALUE(CONCATENATE("15/"&MONTH(EDATE($A26,-1))&"/"&YEAR(EDATE(A26,-1)))),-1,Feriados!$A$2:$A$1037),1,Feriados!$A$2:$A$1037) -> 2023-08-15 | L26: =VLOOKUP(K26,'Histórico VNA IPCA'!B30:E50021,2,FALSE) -> 4129.727118 | M26: =IF(E26<>2,"",NETWORKDAYS(K26,A26-1,Feriados!$A$2:$A$1037)) -> 21 | N26: =IF(E26<>2,"",NETWORKDAYS(K26,T26-1,Feriados!$A$2:$A$1037)) -> 22 | O26: =IF(E26<>2,"",TRUNC((L26)*(1+VLOOKUP(K26,'IPCA IBGE'!A:D,4,FALSE)/100)^(M26/N26),6)) -> 4138.795482 | P26: =WORKDAY(WORKDAY(DATEVALUE(CONCATENATE("15/"&MONTH(EDATE($A26,-1))&"/"&YEAR(EDATE(A26,-1)))),-1,Feriados!$A$2:$A$1037),1,Feriados!$A$2:$A$1037) -> 2023-08-15 | Q26: =VLOOKUP(P26,'Histórico VNA IPCA'!B30:E50021,2,FALSE) -> 4129.727118 | R26: =IF(E26<>3,"",NETWORKDAYS(P26,A26-1,Feriados!$A$2:$A$1037)) ->  | S26: =IF(E26<>3,"",NETWORKDAYS(P26,T26-1,Feriados!$A$2:$A$1037)) ->  | T26: =WORKDAY(WORKDAY(DATEVALUE(CONCATENATE("15/"&MONTH(A26)&"/"&YEAR(A26))),-1,Feriados!$A$2:$A$1037),1,Feriados!$A$2:$A$1037) -> 2023-09-15 | U26: =VLOOKUP(T26,'Histórico VNA IPCA'!B30:E50021,2,FALSE) -> 4139.227805 | V26: =WORKDAY(WORKDAY(DATEVALUE(CONCATENATE("15/"&MONTH(EDATE(A26,1))&"/"&YEAR(EDATE(A26,1)))),-1,Feriados!$A$2:$A$1037),1,Feriados!$A$2:$A$1037) -> 2023-10-16 | W26: =IF(E26<>3,"",NETWORKDAYS(T26,A26-1,Feriados!$A$2:$A$1037)) ->  | X26: =IF(E26<>3,"",NETWORKDAYS(T26,V26-1,Feriados!$A$2:$A$1037)) -> 
A27: 2023-09-15 | B27: 4139.227805 | C27: 0.23 | D27: F | E27: 1 | F27: 4139.227805 | G27: 0.01044562366 | H27: 1.002300561 | I27: 0.2300560722 | J27: =IF(E27<>1,"",TRUNC((VLOOKUP(K27,'IPCA IBGE'!A:D,4,FALSE)/100+1)*L27,6)) -> 4139.227805 | K27: =WORKDAY(WORKDAY(DATEVALUE(CONCATENATE("15/"&MONTH(EDATE($A27,-1))&"/"&YEAR(EDATE(A27,-1)))),-1,Feriados!$A$2:$A$1037),1,Feriados!$A$2:$A$1037) -> 2023-08-15 | L27: =VLOOKUP(K27,'Histórico VNA IPCA'!B31:E50022,2,FALSE) -> 4129.727118 | M27: =IF(E27<>2,"",NETWORKDAYS(K27,A27-1,Feriados!$A$2:$A$1037)) ->  | N27: =IF(E27<>2,"",NETWORKDAYS(K27,T27-1,Feriados!$A$2:$A$1037)) ->  | O27: =IF(E27<>2,"",TRUNC((L27)*(1+VLOOKUP(K27,'IPCA IBGE'!A:D,4,FALSE)/100)^(M27/N27),6)) ->  | P27: =WORKDAY(WORKDAY(DATEVALUE(CONCATENATE("15/"&MONTH(EDATE($A27,-1))&"/"&YEAR(EDATE(A27,-1)))),-1,Feriados!$A$2:$A$1037),1,Feriados!$A$2:$A$1037) -> 2023-08-15 | Q27: =VLOOKUP(P27,'Histórico VNA IPCA'!B31:E50022,2,FALSE) -> 4129.727118 | R27: =IF(E27<>3,"",NETWORKDAYS(P27,A27-1,Feriados!$A$2:$A$1037)) ->  | S27: =IF(E27<>3,"",NETWORKDAYS(P27,T27-1,Feriados!$A$2:$A$1037)) ->  | T27: =WORKDAY(WORKDAY(DATEVALUE(CONCATENATE("15/"&MONTH(A27)&"/"&YEAR(A27))),-1,Feriados!$A$2:$A$1037),1,Feriados!$A$2:$A$1037) -> 2023-09-15 | U27: =VLOOKUP(T27,'Histórico VNA IPCA'!B31:E50022,2,FALSE) -> 4139.227805 | V27: =WORKDAY(WORKDAY(DATEVALUE(CONCATENATE("15/"&MONTH(EDATE(A27,1))&"/"&YEAR(EDATE(A27,1)))),-1,Feriados!$A$2:$A$1037),1,Feriados!$A$2:$A$1037) -> 2023-10-16 | W27: =IF(E27<>3,"",NETWORKDAYS(T27,A27-1,Feriados!$A$2:$A$1037)) ->  | X27: =IF(E27<>3,"",NETWORKDAYS(T27,V27-1,Feriados!$A$2:$A$1037)) -> 
A28: 2023-09-18 | B28: 4140.012842 | C28: 0.38 | D28: P | E28: 3 | F28: 4140.012842 | G28: 0.01896578388 | H28: 1.002490655 | I28: 0.2490654881 | J28: =IF(E28<>1,"",TRUNC((VLOOKUP(K28,'IPCA IBGE'!A:D,4,FALSE)/100+1)*L28,6)) ->  | K28: =WORKDAY(WORKDAY(DATEVALUE(CONCATENATE("15/"&MONTH(EDATE($A28,-1))&"/"&YEAR(EDATE(A28,-1)))),-1,Feriados!$A$2:$A$1037),1,Feriados!$A$2:$A$1037) -> 2023-08-15 | L28: =VLOOKUP(K28,'Histórico VNA IPCA'!B32:E50023,2,FALSE) -> 4129.727118 | M28: =IF(E28<>2,"",NETWORKDAYS(K28,A28-1,Feriados!$A$2:$A$1037)) ->  | N28: =IF(E28<>2,"",NETWORKDAYS(K28,T28-1,Feriados!$A$2:$A$1037)) ->  | O28: =IF(E28<>2,"",TRUNC((L28)*(1+VLOOKUP(K28,'IPCA IBGE'!A:D,4,FALSE)/100)^(M28/N28),6)) ->  | P28: =WORKDAY(WORKDAY(DATEVALUE(CONCATENATE("15/"&MONTH(EDATE($A28,-1))&"/"&YEAR(EDATE(A28,-1)))),-1,Feriados!$A$2:$A$1037),1,Feriados!$A$2:$A$1037) -> 2023-08-15 | Q28: =VLOOKUP(P28,'Histórico VNA IPCA'!B32:E50023,2,FALSE) -> 4129.727118 | R28: =IF(E28<>3,"",NETWORKDAYS(P28,A28-1,Feriados!$A$2:$A$1037)) -> 23 | S28: =IF(E28<>3,"",NETWORKDAYS(P28,T28-1,Feriados!$A$2:$A$1037)) -> 22 | T28: =WORKDAY(WORKDAY(DATEVALUE(CONCATENATE("15/"&MONTH(A28)&"/"&YEAR(A28))),-1,Feriados!$A$2:$A$1037),1,Feriados!$A$2:$A$1037) -> 2023-09-15 | U28: =VLOOKUP(T28,'Histórico VNA IPCA'!B32:E50023,2,FALSE) -> 4139.227805 | V28: =WORKDAY(WORKDAY(DATEVALUE(CONCATENATE("15/"&MONTH(EDATE(A28,1))&"/"&YEAR(EDATE(A28,1)))),-1,Feriados!$A$2:$A$1037),1,Feriados!$A$2:$A$1037) -> 2023-10-16 | W28: =IF(E28<>3,"",NETWORKDAYS(T28,A28-1,Feriados!$A$2:$A$1037)) -> 1 | X28: =IF(E28<>3,"",NETWORKDAYS(T28,V28-1,Feriados!$A$2:$A$1037)) -> 20 | Y28: 4140.012842
A29: 2023-09-19 | B29: 4140.798028 | C29: 0.38 | D29: P | E29: 3 | F29: 4140.798028 | G29: 0.01896578658 | H29: 1.002680785 | I29: 0.2680785119 | J29: =IF(E29<>1,"",TRUNC((VLOOKUP(K29,'IPCA IBGE'!A:D,4,FALSE)/100+1)*L29,6)) ->  | K29: =WORKDAY(WORKDAY(DATEVALUE(CONCATENATE("15/"&MONTH(EDATE($A29,-1))&"/"&YEAR(EDATE(A29,-1)))),-1,Feriados!$A$2:$A$1037),1,Feriados!$A$2:$A$1037) -> 2023-08-15 | L29: =VLOOKUP(K29,'Histórico VNA IPCA'!B33:E50024,2,FALSE) -> 4129.727118 | M29: =IF(E29<>2,"",NETWORKDAYS(K29,A29-1,Feriados!$A$2:$A$1037)) ->  | N29: =IF(E29<>2,"",NETWORKDAYS(K29,T29-1,Feriados!$A$2:$A$1037)) ->  | O29: =IF(E29<>2,"",TRUNC((L29)*(1+VLOOKUP(K29,'IPCA IBGE'!A:D,4,FALSE)/100)^(M29/N29),6)) ->  | P29: =WORKDAY(WORKDAY(DATEVALUE(CONCATENATE("15/"&MONTH(EDATE($A29,-1))&"/"&YEAR(EDATE(A29,-1)))),-1,Feriados!$A$2:$A$1037),1,Feriados!$A$2:$A$1037) -> 2023-08-15 | Q29: =VLOOKUP(P29,'Histórico VNA IPCA'!B33:E50024,2,FALSE) -> 4129.727118 | R29: =IF(E29<>3,"",NETWORKDAYS(P29,A29-1,Feriados!$A$2:$A$1037)) -> 24 | S29: =IF(E29<>3,"",NETWORKDAYS(P29,T29-1,Feriados!$A$2:$A$1037)) -> 22 | T29: =WORKDAY(WORKDAY(DATEVALUE(CONCATENATE("15/"&MONTH(A29)&"/"&YEAR(A29))),-1,Feriados!$A$2:$A$1037),1,Feriados!$A$2:$A$1037) -> 2023-09-15 | U29: =VLOOKUP(T29,'Histórico VNA IPCA'!B33:E50024,2,FALSE) -> 4139.227805 | V29: =WORKDAY(WORKDAY(DATEVALUE(CONCATENATE("15/"&MONTH(EDATE(A29,1))&"/"&YEAR(EDATE(A29,1)))),-1,Feriados!$A$2:$A$1037),1,Feriados!$A$2:$A$1037) -> 2023-10-16 | W29: =IF(E29<>3,"",NETWORKDAYS(T29,A29-1,Feriados!$A$2:$A$1037)) -> 2 | X29: =IF(E29<>3,"",NETWORKDAYS(T29,V29-1,Feriados!$A$2:$A$1037)) -> 20 | Y29: 4140.798028
A30: 2023-09-20 | B30: 4141.583363 | C30: 0.38 | D30: P | E30: 3 | F30: 4141.583363 | G30: 0.01896578859 | H30: 1.002870951 | I30: 0.2870951437 | J30: =IF(E30<>1,"",TRUNC((VLOOKUP(K30,'IPCA IBGE'!A:D,4,FALSE)/100+1)*L30,6)) ->  | K30: =WORKDAY(WORKDAY(DATEVALUE(CONCATENATE("15/"&MONTH(EDATE($A30,-1))&"/"&YEAR(EDATE(A30,-1)))),-1,Feriados!$A$2:$A$1037),1,Feriados!$A$2:$A$1037) -> 2023-08-15 | L30: =VLOOKUP(K30,'Histórico VNA IPCA'!B34:E50025,2,FALSE) -> 4129.727118 | M30: =IF(E30<>2,"",NETWORKDAYS(K30,A30-1,Feriados!$A$2:$A$1037)) ->  | N30: =IF(E30<>2,"",NETWORKDAYS(K30,T30-1,Feriados!$A$2:$A$1037)) ->  | O30: =IF(E30<>2,"",TRUNC((L30)*(1+VLOOKUP(K30,'IPCA IBGE'!A:D,4,FALSE)/100)^(M30/N30),6)) ->  | P30: =WORKDAY(WORKDAY(DATEVALUE(CONCATENATE("15/"&MONTH(EDATE($A30,-1))&"/"&YEAR(EDATE(A30,-1)))),-1,Feriados!$A$2:$A$1037),1,Feriados!$A$2:$A$1037) -> 2023-08-15 | Q30: =VLOOKUP(P30,'Histórico VNA IPCA'!B34:E50025,2,FALSE) -> 4129.727118 | R30: =IF(E30<>3,"",NETWORKDAYS(P30,A30-1,Feriados!$A$2:$A$1037)) -> 25 | S30: =IF(E30<>3,"",NETWORKDAYS(P30,T30-1,Feriados!$A$2:$A$1037)) -> 22 | T30: =WORKDAY(WORKDAY(DATEVALUE(CONCATENATE("15/"&MONTH(A30)&"/"&YEAR(A30))),-1,Feriados!$A$2:$A$1037),1,Feriados!$A$2:$A$1037) -> 2023-09-15 | U30: =VLOOKUP(T30,'Histórico VNA IPCA'!B34:E50025,2,FALSE) -> 4139.227805 | V30: =WORKDAY(WORKDAY(DATEVALUE(CONCATENATE("15/"&MONTH(EDATE(A30,1))&"/"&YEAR(EDATE(A30,1)))),-1,Feriados!$A$2:$A$1037),1,Feriados!$A$2:$A$1037) -> 2023-10-16 | W30: =IF(E30<>3,"",NETWORKDAYS(T30,A30-1,Feriados!$A$2:$A$1037)) -> 3 | X30: =IF(E30<>3,"",NETWORKDAYS(T30,V30-1,Feriados!$A$2:$A$1037)) -> 20 | Y30: 4141.583363
A31: 2023-09-21 | B31: 4142.368847 | C31: 0.38 | D31: P | E31: 3 | F31: 4142.368847 | G31: 0.01896578992 | H31: 1.003061154 | I31: 0.3061153835 | J31: =IF(E31<>1,"",TRUNC((VLOOKUP(K31,'IPCA IBGE'!A:D,4,FALSE)/100+1)*L31,6)) ->  | K31: =WORKDAY(WORKDAY(DATEVALUE(CONCATENATE("15/"&MONTH(EDATE($A31,-1))&"/"&YEAR(EDATE(A31,-1)))),-1,Feriados!$A$2:$A$1037),1,Feriados!$A$2:$A$1037) -> 2023-08-15 | L31: =VLOOKUP(K31,'Histórico VNA IPCA'!B35:E50026,2,FALSE) -> 4129.727118 | M31: =IF(E31<>2,"",NETWORKDAYS(K31,A31-1,Feriados!$A$2:$A$1037)) ->  | N31: =IF(E31<>2,"",NETWORKDAYS(K31,T31-1,Feriados!$A$2:$A$1037)) ->  | O31: =IF(E31<>2,"",TRUNC((L31)*(1+VLOOKUP(K31,'IPCA IBGE'!A:D,4,FALSE)/100)^(M31/N31),6)) ->  | P31: =WORKDAY(WORKDAY(DATEVALUE(CONCATENATE("15/"&MONTH(EDATE($A31,-1))&"/"&YEAR(EDATE(A31,-1)))),-1,Feriados!$A$2:$A$1037),1,Feriados!$A$2:$A$1037) -> 2023-08-15 | Q31: =VLOOKUP(P31,'Histórico VNA IPCA'!B35:E50026,2,FALSE) -> 4129.727118 | R31: =IF(E31<>3,"",NETWORKDAYS(P31,A31-1,Feriados!$A$2:$A$1037)) -> 26 | S31: =IF(E31<>3,"",NETWORKDAYS(P31,T31-1,Feriados!$A$2:$A$1037)) -> 22 | T31: =WORKDAY(WORKDAY(DATEVALUE(CONCATENATE("15/"&MONTH(A31)&"/"&YEAR(A31))),-1,Feriados!$A$2:$A$1037),1,Feriados!$A$2:$A$1037) -> 2023-09-15 | U31: =VLOOKUP(T31,'Histórico VNA IPCA'!B35:E50026,2,FALSE) -> 4139.227805 | V31: =WORKDAY(WORKDAY(DATEVALUE(CONCATENATE("15/"&MONTH(EDATE(A31,1))&"/"&YEAR(EDATE(A31,1)))),-1,Feriados!$A$2:$A$1037),1,Feriados!$A$2:$A$1037) -> 2023-10-16 | W31: =IF(E31<>3,"",NETWORKDAYS(T31,A31-1,Feriados!$A$2:$A$1037)) -> 4 | X31: =IF(E31<>3,"",NETWORKDAYS(T31,V31-1,Feriados!$A$2:$A$1037)) -> 20 | Y31: 4142.368847
A32: 2023-09-22 | B32: 4143.15448 | C32: 0.38 | D32: P | E32: 3 | F32: 4143.15448 | G32: 0.01896579057 | H32: 1.003251392 | I32: 0.3251392312 | J32: =IF(E32<>1,"",TRUNC((VLOOKUP(K32,'IPCA IBGE'!A:D,4,FALSE)/100+1)*L32,6)) ->  | K32: =WORKDAY(WORKDAY(DATEVALUE(CONCATENATE("15/"&MONTH(EDATE($A32,-1))&"/"&YEAR(EDATE(A32,-1)))),-1,Feriados!$A$2:$A$1037),1,Feriados!$A$2:$A$1037) -> 2023-08-15 | L32: =VLOOKUP(K32,'Histórico VNA IPCA'!B36:E50027,2,FALSE) -> 4129.727118 | M32: =IF(E32<>2,"",NETWORKDAYS(K32,A32-1,Feriados!$A$2:$A$1037)) ->  | N32: =IF(E32<>2,"",NETWORKDAYS(K32,T32-1,Feriados!$A$2:$A$1037)) ->  | O32: =IF(E32<>2,"",TRUNC((L32)*(1+VLOOKUP(K32,'IPCA IBGE'!A:D,4,FALSE)/100)^(M32/N32),6)) ->  | P32: =WORKDAY(WORKDAY(DATEVALUE(CONCATENATE("15/"&MONTH(EDATE($A32,-1))&"/"&YEAR(EDATE(A32,-1)))),-1,Feriados!$A$2:$A$1037),1,Feriados!$A$2:$A$1037) -> 2023-08-15 | Q32: =VLOOKUP(P32,'Histórico VNA IPCA'!B36:E50027,2,FALSE) -> 4129.727118 | R32: =IF(E32<>3,"",NETWORKDAYS(P32,A32-1,Feriados!$A$2:$A$1037)) -> 27 | S32: =IF(E32<>3,"",NETWORKDAYS(P32,T32-1,Feriados!$A$2:$A$1037)) -> 22 | T32: =WORKDAY(WORKDAY(DATEVALUE(CONCATENATE("15/"&MONTH(A32)&"/"&YEAR(A32))),-1,Feriados!$A$2:$A$1037),1,Feriados!$A$2:$A$1037) -> 2023-09-15 | U32: =VLOOKUP(T32,'Histórico VNA IPCA'!B36:E50027,2,FALSE) -> 4139.227805 | V32: =WORKDAY(WORKDAY(DATEVALUE(CONCATENATE("15/"&MONTH(EDATE(A32,1))&"/"&YEAR(EDATE(A32,1)))),-1,Feriados!$A$2:$A$1037),1,Feriados!$A$2:$A$1037) -> 2023-10-16 | W32: =IF(E32<>3,"",NETWORKDAYS(T32,A32-1,Feriados!$A$2:$A$1037)) -> 5 | X32: =IF(E32<>3,"",NETWORKDAYS(T32,V32-1,Feriados!$A$2:$A$1037)) -> 20 | Y32: 4143.15448
A33: 2023-09-25 | B33: 4143.940262 | C33: 0.38 | D33: P | E33: =IF(A33=T33,1,IF(D33="f",2,3)) -> 3 | F33: =IF(E33=3,Y33,IF(E33=2,O33,J33)) -> 4143.940262 | G33: =+(F33/F32-1)*100 -> 0.01896579053 | H33: =+(G33/100+1)*H32 -> 1.003441667 | I33: =(+H33-1)*100 -> 0.344166687 | J33: =IF(E33<>1,"",TRUNC((VLOOKUP(K33,'IPCA IBGE'!A:D,4,FALSE)/100+1)*L33,6)) ->  | K33: =WORKDAY(WORKDAY(DATEVALUE(CONCATENATE("15/"&MONTH(EDATE($A33,-1))&"/"&YEAR(EDATE(A33,-1)))),-1,Feriados!$A$2:$A$1037),1,Feriados!$A$2:$A$1037) -> 2023-08-15 | L33: =VLOOKUP(K33,'Histórico VNA IPCA'!B37:E50028,2,FALSE) -> 4129.727118 | M33: =IF(E33<>2,"",NETWORKDAYS(K33,A33-1,Feriados!$A$2:$A$1037)) ->  | N33: =IF(E33<>2,"",NETWORKDAYS(K33,T33-1,Feriados!$A$2:$A$1037)) ->  | O33: =IF(E33<>2,"",TRUNC((L33)*(1+VLOOKUP(K33,'IPCA IBGE'!A:D,4,FALSE)/100)^(M33/N33),6)) ->  | P33: =WORKDAY(WORKDAY(DATEVALUE(CONCATENATE("15/"&MONTH(EDATE($A33,-1))&"/"&YEAR(EDATE(A33,-1)))),-1,Feriados!$A$2:$A$1037),1,Feriados!$A$2:$A$1037) -> 2023-08-15 | Q33: =VLOOKUP(P33,'Histórico VNA IPCA'!B37:E50028,2,FALSE) -> 4129.727118 | R33: =IF(E33<>3,"",NETWORKDAYS(P33,A33-1,Feriados!$A$2:$A$1037)) -> 28 | S33: =IF(E33<>3,"",NETWORKDAYS(P33,T33-1,Feriados!$A$2:$A$1037)) -> 22 | T33: =WORKDAY(WORKDAY(DATEVALUE(CONCATENATE("15/"&MONTH(A33)&"/"&YEAR(A33))),-1,Feriados!$A$2:$A$1037),1,Feriados!$A$2:$A$1037) -> 2023-09-15 | U33: =VLOOKUP(T33,'Histórico VNA IPCA'!B37:E50028,2,FALSE) -> 4139.227805 | V33: =WORKDAY(WORKDAY(DATEVALUE(CONCATENATE("15/"&MONTH(EDATE(A33,1))&"/"&YEAR(EDATE(A33,1)))),-1,Feriados!$A$2:$A$1037),1,Feriados!$A$2:$A$1037) -> 2023-10-16 | W33: =IF(E33<>3,"",NETWORKDAYS(T33,A33-1,Feriados!$A$2:$A$1037)) -> 6 | X33: =IF(E33<>3,"",NETWORKDAYS(T33,V33-1,Feriados!$A$2:$A$1037)) -> 20 | Y33: =IF(E33<>3,"",IF(A33>T33,TRUNC(+U33*((1+C33/100)^(W33/X33)),6),TRUNC(+Q33*((1+C33/100)^(R33/S33)),6))) -> 4143.940262
A34: 2023-09-26 | B34: 4144.726193 | C34: 0.38 | D34: P | E34: 3 | F34: 4144.726193 | G34: 0.01896578981 | H34: 1.003631978 | I34: 0.3631977507 | J34: =IF(E34<>1,"",TRUNC((VLOOKUP(K34,'IPCA IBGE'!A:D,4,FALSE)/100+1)*L34,6)) ->  | K34: =WORKDAY(WORKDAY(DATEVALUE(CONCATENATE("15/"&MONTH(EDATE($A34,-1))&"/"&YEAR(EDATE(A34,-1)))),-1,Feriados!$A$2:$A$1037),1,Feriados!$A$2:$A$1037) -> 2023-08-15 | L34: =VLOOKUP(K34,'Histórico VNA IPCA'!B38:E50029,2,FALSE) -> 4129.727118 | M34: =IF(E34<>2,"",NETWORKDAYS(K34,A34-1,Feriados!$A$2:$A$1037)) ->  | N34: =IF(E34<>2,"",NETWORKDAYS(K34,T34-1,Feriados!$A$2:$A$1037)) ->  | O34: =IF(E34<>2,"",TRUNC((L34)*(1+VLOOKUP(K34,'IPCA IBGE'!A:D,4,FALSE)/100)^(M34/N34),6)) ->  | P34: =WORKDAY(WORKDAY(DATEVALUE(CONCATENATE("15/"&MONTH(EDATE($A34,-1))&"/"&YEAR(EDATE(A34,-1)))),-1,Feriados!$A$2:$A$1037),1,Feriados!$A$2:$A$1037) -> 2023-08-15 | Q34: =VLOOKUP(P34,'Histórico VNA IPCA'!B38:E50029,2,FALSE) -> 4129.727118 | R34: =IF(E34<>3,"",NETWORKDAYS(P34,A34-1,Feriados!$A$2:$A$1037)) -> 29 | S34: =IF(E34<>3,"",NETWORKDAYS(P34,T34-1,Feriados!$A$2:$A$1037)) -> 22 | T34: =WORKDAY(WORKDAY(DATEVALUE(CONCATENATE("15/"&MONTH(A34)&"/"&YEAR(A34))),-1,Feriados!$A$2:$A$1037),1,Feriados!$A$2:$A$1037) -> 2023-09-15 | U34: =VLOOKUP(T34,'Histórico VNA IPCA'!B38:E50029,2,FALSE) -> 4139.227805 | V34: =WORKDAY(WORKDAY(DATEVALUE(CONCATENATE("15/"&MONTH(EDATE(A34,1))&"/"&YEAR(EDATE(A34,1)))),-1,Feriados!$A$2:$A$1037),1,Feriados!$A$2:$A$1037) -> 2023-10-16 | W34: =IF(E34<>3,"",NETWORKDAYS(T34,A34-1,Feriados!$A$2:$A$1037)) -> 7 | X34: =IF(E34<>3,"",NETWORKDAYS(T34,V34-1,Feriados!$A$2:$A$1037)) -> 20 | Y34: 4144.726193
A35: 2023-09-27 | B35: 4144.520938 | C35: 0.32 | D35: P | E35: 3 | F35: 4144.520938 | G35: -0.004952196851 | H35: 1.003582276 | I35: 0.3582275676 | J35: =IF(E35<>1,"",TRUNC((VLOOKUP(K35,'IPCA IBGE'!A:D,4,FALSE)/100+1)*L35,6)) ->  | K35: =WORKDAY(WORKDAY(DATEVALUE(CONCATENATE("15/"&MONTH(EDATE($A35,-1))&"/"&YEAR(EDATE(A35,-1)))),-1,Feriados!$A$2:$A$1037),1,Feriados!$A$2:$A$1037) -> 2023-08-15 | L35: =VLOOKUP(K35,'Histórico VNA IPCA'!B39:E50030,2,FALSE) -> 4129.727118 | M35: =IF(E35<>2,"",NETWORKDAYS(K35,A35-1,Feriados!$A$2:$A$1037)) ->  | N35: =IF(E35<>2,"",NETWORKDAYS(K35,T35-1,Feriados!$A$2:$A$1037)) ->  | O35: =IF(E35<>2,"",TRUNC((L35)*(1+VLOOKUP(K35,'IPCA IBGE'!A:D,4,FALSE)/100)^(M35/N35),6)) ->  | P35: =WORKDAY(WORKDAY(DATEVALUE(CONCATENATE("15/"&MONTH(EDATE($A35,-1))&"/"&YEAR(EDATE(A35,-1)))),-1,Feriados!$A$2:$A$1037),1,Feriados!$A$2:$A$1037) -> 2023-08-15 | Q35: =VLOOKUP(P35,'Histórico VNA IPCA'!B39:E50030,2,FALSE) -> 4129.727118 | R35: =IF(E35<>3,"",NETWORKDAYS(P35,A35-1,Feriados!$A$2:$A$1037)) -> 30 | S35: =IF(E35<>3,"",NETWORKDAYS(P35,T35-1,Feriados!$A$2:$A$1037)) -> 22 | T35: =WORKDAY(WORKDAY(DATEVALUE(CONCATENATE("15/"&MONTH(A35)&"/"&YEAR(A35))),-1,Feriados!$A$2:$A$1037),1,Feriados!$A$2:$A$1037) -> 2023-09-15 | U35: =VLOOKUP(T35,'Histórico VNA IPCA'!B39:E50030,2,FALSE) -> 4139.227805 | V35: =WORKDAY(WORKDAY(DATEVALUE(CONCATENATE("15/"&MONTH(EDATE(A35,1))&"/"&YEAR(EDATE(A35,1)))),-1,Feriados!$A$2:$A$1037),1,Feriados!$A$2:$A$1037) -> 2023-10-16 | W35: =IF(E35<>3,"",NETWORKDAYS(T35,A35-1,Feriados!$A$2:$A$1037)) -> 8 | X35: =IF(E35<>3,"",NETWORKDAYS(T35,V35-1,Feriados!$A$2:$A$1037)) -> 20 | Y35: 4144.520938
A36: 2023-09-28 | B36: 4145.183056 | C36: 0.32 | D36: P | E36: 3 | F36: 4145.183056 | G36: 0.01597574267 | H36: 1.003742605 | I36: 0.3742605398 | J36: =IF(E36<>1,"",TRUNC((VLOOKUP(K36,'IPCA IBGE'!A:D,4,FALSE)/100+1)*L36,6)) ->  | K36: =WORKDAY(WORKDAY(DATEVALUE(CONCATENATE("15/"&MONTH(EDATE($A36,-1))&"/"&YEAR(EDATE(A36,-1)))),-1,Feriados!$A$2:$A$1037),1,Feriados!$A$2:$A$1037) -> 2023-08-15 | L36: =VLOOKUP(K36,'Histórico VNA IPCA'!B40:E50031,2,FALSE) -> 4129.727118 | M36: =IF(E36<>2,"",NETWORKDAYS(K36,A36-1,Feriados!$A$2:$A$1037)) ->  | N36: =IF(E36<>2,"",NETWORKDAYS(K36,T36-1,Feriados!$A$2:$A$1037)) ->  | O36: =IF(E36<>2,"",TRUNC((L36)*(1+VLOOKUP(K36,'IPCA IBGE'!A:D,4,FALSE)/100)^(M36/N36),6)) ->  | P36: =WORKDAY(WORKDAY(DATEVALUE(CONCATENATE("15/"&MONTH(EDATE($A36,-1))&"/"&YEAR(EDATE(A36,-1)))),-1,Feriados!$A$2:$A$1037),1,Feriados!$A$2:$A$1037) -> 2023-08-15 | Q36: =VLOOKUP(P36,'Histórico VNA IPCA'!B40:E50031,2,FALSE) -> 4129.727118 | R36: =IF(E36<>3,"",NETWORKDAYS(P36,A36-1,Feriados!$A$2:$A$1037)) -> 31 | S36: =IF(E36<>3,"",NETWORKDAYS(P36,T36-1,Feriados!$A$2:$A$1037)) -> 22 | T36: =WORKDAY(WORKDAY(DATEVALUE(CONCATENATE("15/"&MONTH(A36)&"/"&YEAR(A36))),-1,Feriados!$A$2:$A$1037),1,Feriados!$A$2:$A$1037) -> 2023-09-15 | U36: =VLOOKUP(T36,'Histórico VNA IPCA'!B40:E50031,2,FALSE) -> 4139.227805 | V36: =WORKDAY(WORKDAY(DATEVALUE(CONCATENATE("15/"&MONTH(EDATE(A36,1))&"/"&YEAR(EDATE(A36,1)))),-1,Feriados!$A$2:$A$1037),1,Feriados!$A$2:$A$1037) -> 2023-10-16 | W36: =IF(E36<>3,"",NETWORKDAYS(T36,A36-1,Feriados!$A$2:$A$1037)) -> 9 | X36: =IF(E36<>3,"",NETWORKDAYS(T36,V36-1,Feriados!$A$2:$A$1037)) -> 20 | Y36: 4145.183056
A37: 2023-09-29 | B37: 4145.845279 | C37: 0.32 | D37: P | E37: 3 | F37: 4145.845279 | G37: 0.0159757239 | H37: 1.003902961 | I37: 0.3902960545 | J37: =IF(E37<>1,"",TRUNC((VLOOKUP(K37,'IPCA IBGE'!A:D,4,FALSE)/100+1)*L37,6)) ->  | K37: =WORKDAY(WORKDAY(DATEVALUE(CONCATENATE("15/"&MONTH(EDATE($A37,-1))&"/"&YEAR(EDATE(A37,-1)))),-1,Feriados!$A$2:$A$1037),1,Feriados!$A$2:$A$1037) -> 2023-08-15 | L37: =VLOOKUP(K37,'Histórico VNA IPCA'!B41:E50032,2,FALSE) -> 4129.727118 | M37: =IF(E37<>2,"",NETWORKDAYS(K37,A37-1,Feriados!$A$2:$A$1037)) ->  | N37: =IF(E37<>2,"",NETWORKDAYS(K37,T37-1,Feriados!$A$2:$A$1037)) ->  | O37: =IF(E37<>2,"",TRUNC((L37)*(1+VLOOKUP(K37,'IPCA IBGE'!A:D,4,FALSE)/100)^(M37/N37),6)) ->  | P37: =WORKDAY(WORKDAY(DATEVALUE(CONCATENATE("15/"&MONTH(EDATE($A37,-1))&"/"&YEAR(EDATE(A37,-1)))),-1,Feriados!$A$2:$A$1037),1,Feriados!$A$2:$A$1037) -> 2023-08-15 | Q37: =VLOOKUP(P37,'Histórico VNA IPCA'!B41:E50032,2,FALSE) -> 4129.727118 | R37: =IF(E37<>3,"",NETWORKDAYS(P37,A37-1,Feriados!$A$2:$A$1037)) -> 32 | S37: =IF(E37<>3,"",NETWORKDAYS(P37,T37-1,Feriados!$A$2:$A$1037)) -> 22 | T37: =WORKDAY(WORKDAY(DATEVALUE(CONCATENATE("15/"&MONTH(A37)&"/"&YEAR(A37))),-1,Feriados!$A$2:$A$1037),1,Feriados!$A$2:$A$1037) -> 2023-09-15 | U37: =VLOOKUP(T37,'Histórico VNA IPCA'!B41:E50032,2,FALSE) -> 4139.227805 | V37: =WORKDAY(WORKDAY(DATEVALUE(CONCATENATE("15/"&MONTH(EDATE(A37,1))&"/"&YEAR(EDATE(A37,1)))),-1,Feriados!$A$2:$A$1037),1,Feriados!$A$2:$A$1037) -> 2023-10-16 | W37: =IF(E37<>3,"",NETWORKDAYS(T37,A37-1,Feriados!$A$2:$A$1037)) -> 10 | X37: =IF(E37<>3,"",NETWORKDAYS(T37,V37-1,Feriados!$A$2:$A$1037)) -> 20 | Y37: 4145.845279
A38: 2023-10-02 | B38: 4146.507608 | C38: 0.32 | D38: P | E38: 3 | F38: 4146.507608 | G38: 0.01597572884 | H38: 1.004063341 | I38: 0.406334136 | J38: =IF(E38<>1,"",TRUNC((VLOOKUP(K38,'IPCA IBGE'!A:D,4,FALSE)/100+1)*L38,6)) ->  | K38: =WORKDAY(WORKDAY(DATEVALUE(CONCATENATE("15/"&MONTH(EDATE($A38,-1))&"/"&YEAR(EDATE(A38,-1)))),-1,Feriados!$A$2:$A$1037),1,Feriados!$A$2:$A$1037) -> 2023-09-15 | L38: =VLOOKUP(K38,'Histórico VNA IPCA'!B42:E50033,2,FALSE) -> 4139.227805 | M38: =IF(E38<>2,"",NETWORKDAYS(K38,A38-1,Feriados!$A$2:$A$1037)) ->  | N38: =IF(E38<>2,"",NETWORKDAYS(K38,T38-1,Feriados!$A$2:$A$1037)) ->  | O38: =IF(E38<>2,"",TRUNC((L38)*(1+VLOOKUP(K38,'IPCA IBGE'!A:D,4,FALSE)/100)^(M38/N38),6)) ->  | P38: =WORKDAY(WORKDAY(DATEVALUE(CONCATENATE("15/"&MONTH(EDATE($A38,-1))&"/"&YEAR(EDATE(A38,-1)))),-1,Feriados!$A$2:$A$1037),1,Feriados!$A$2:$A$1037) -> 2023-09-15 | Q38: =VLOOKUP(P38,'Histórico VNA IPCA'!B42:E50033,2,FALSE) -> 4139.227805 | R38: =IF(E38<>3,"",NETWORKDAYS(P38,A38-1,Feriados!$A$2:$A$1037)) -> 11 | S38: =IF(E38<>3,"",NETWORKDAYS(P38,T38-1,Feriados!$A$2:$A$1037)) -> 20 | T38: =WORKDAY(WORKDAY(DATEVALUE(CONCATENATE("15/"&MONTH(A38)&"/"&YEAR(A38))),-1,Feriados!$A$2:$A$1037),1,Feriados!$A$2:$A$1037) -> 2023-10-16 | U38: =VLOOKUP(T38,'Histórico VNA IPCA'!B42:E50033,2,FALSE) -> 4149.991948 | V38: =WORKDAY(WORKDAY(DATEVALUE(CONCATENATE("15/"&MONTH(EDATE(A38,1))&"/"&YEAR(EDATE(A38,1)))),-1,Feriados!$A$2:$A$1037),1,Feriados!$A$2:$A$1037) -> 2023-11-16 | W38: =IF(E38<>3,"",NETWORKDAYS(T38,A38-1,Feriados!$A$2:$A$1037)) -> -10 | X38: =IF(E38<>3,"",NETWORKDAYS(T38,V38-1,Feriados!$A$2:$A$1037)) -> 21 | Y38: 4146.507608
A39: 2023-10-03 | B39: 4147.170043 | C39: 0.32 | D39: P | E39: 3 | F39: 4147.170043 | G39: 0.01597573338 | H39: 1.004223748 | I39: 0.4223747842 | J39: =IF(E39<>1,"",TRUNC((VLOOKUP(K39,'IPCA IBGE'!A:D,4,FALSE)/100+1)*L39,6)) ->  | K39: =WORKDAY(WORKDAY(DATEVALUE(CONCATENATE("15/"&MONTH(EDATE($A39,-1))&"/"&YEAR(EDATE(A39,-1)))),-1,Feriados!$A$2:$A$1037),1,Feriados!$A$2:$A$1037) -> 2023-09-15 | L39: =VLOOKUP(K39,'Histórico VNA IPCA'!B43:E50034,2,FALSE) -> 4139.227805 | M39: =IF(E39<>2,"",NETWORKDAYS(K39,A39-1,Feriados!$A$2:$A$1037)) ->  | N39: =IF(E39<>2,"",NETWORKDAYS(K39,T39-1,Feriados!$A$2:$A$1037)) ->  | O39: =IF(E39<>2,"",TRUNC((L39)*(1+VLOOKUP(K39,'IPCA IBGE'!A:D,4,FALSE)/100)^(M39/N39),6)) ->  | P39: =WORKDAY(WORKDAY(DATEVALUE(CONCATENATE("15/"&MONTH(EDATE($A39,-1))&"/"&YEAR(EDATE(A39,-1)))),-1,Feriados!$A$2:$A$1037),1,Feriados!$A$2:$A$1037) -> 2023-09-15 | Q39: =VLOOKUP(P39,'Histórico VNA IPCA'!B43:E50034,2,FALSE) -> 4139.227805 | R39: =IF(E39<>3,"",NETWORKDAYS(P39,A39-1,Feriados!$A$2:$A$1037)) -> 12 | S39: =IF(E39<>3,"",NETWORKDAYS(P39,T39-1,Feriados!$A$2:$A$1037)) -> 20 | T39: =WORKDAY(WORKDAY(DATEVALUE(CONCATENATE("15/"&MONTH(A39)&"/"&YEAR(A39))),-1,Feriados!$A$2:$A$1037),1,Feriados!$A$2:$A$1037) -> 2023-10-16 | U39: =VLOOKUP(T39,'Histórico VNA IPCA'!B43:E50034,2,FALSE) -> 4149.991948 | V39: =WORKDAY(WORKDAY(DATEVALUE(CONCATENATE("15/"&MONTH(EDATE(A39,1))&"/"&YEAR(EDATE(A39,1)))),-1,Feriados!$A$2:$A$1037),1,Feriados!$A$2:$A$1037) -> 2023-11-16 | W39: =IF(E39<>3,"",NETWORKDAYS(T39,A39-1,Feriados!$A$2:$A$1037)) -> -10 | X39: =IF(E39<>3,"",NETWORKDAYS(T39,V39-1,Feriados!$A$2:$A$1037)) -> 21 | Y39: 4147.170043
A40: 2023-10-04 | B40: 4147.832584 | C40: 0.32 | D40: P | E40: 3 | F40: 4147.832584 | G40: 0.01597573751 | H40: 1.00438418 | I40: 0.4384179992 | J40: =IF(E40<>1,"",TRUNC((VLOOKUP(K40,'IPCA IBGE'!A:D,4,FALSE)/100+1)*L40,6)) ->  | K40: =WORKDAY(WORKDAY(DATEVALUE(CONCATENATE("15/"&MONTH(EDATE($A40,-1))&"/"&YEAR(EDATE(A40,-1)))),-1,Feriados!$A$2:$A$1037),1,Feriados!$A$2:$A$1037) -> 2023-09-15 | L40: =VLOOKUP(K40,'Histórico VNA IPCA'!B44:E50035,2,FALSE) -> 4139.227805 | M40: =IF(E40<>2,"",NETWORKDAYS(K40,A40-1,Feriados!$A$2:$A$1037)) ->  | N40: =IF(E40<>2,"",NETWORKDAYS(K40,T40-1,Feriados!$A$2:$A$1037)) ->  | O40: =IF(E40<>2,"",TRUNC((L40)*(1+VLOOKUP(K40,'IPCA IBGE'!A:D,4,FALSE)/100)^(M40/N40),6)) ->  | P40: =WORKDAY(WORKDAY(DATEVALUE(CONCATENATE("15/"&MONTH(EDATE($A40,-1))&"/"&YEAR(EDATE(A40,-1)))),-1,Feriados!$A$2:$A$1037),1,Feriados!$A$2:$A$1037) -> 2023-09-15 | Q40: =VLOOKUP(P40,'Histórico VNA IPCA'!B44:E50035,2,FALSE) -> 4139.227805 | R40: =IF(E40<>3,"",NETWORKDAYS(P40,A40-1,Feriados!$A$2:$A$1037)) -> 13 | S40: =IF(E40<>3,"",NETWORKDAYS(P40,T40-1,Feriados!$A$2:$A$1037)) -> 20 | T40: =WORKDAY(WORKDAY(DATEVALUE(CONCATENATE("15/"&MONTH(A40)&"/"&YEAR(A40))),-1,Feriados!$A$2:$A$1037),1,Feriados!$A$2:$A$1037) -> 2023-10-16 | U40: =VLOOKUP(T40,'Histórico VNA IPCA'!B44:E50035,2,FALSE) -> 4149.991948 | V40: =WORKDAY(WORKDAY(DATEVALUE(CONCATENATE("15/"&MONTH(EDATE(A40,1))&"/"&YEAR(EDATE(A40,1)))),-1,Feriados!$A$2:$A$1037),1,Feriados!$A$2:$A$1037) -> 2023-11-16 | W40: =IF(E40<>3,"",NETWORKDAYS(T40,A40-1,Feriados!$A$2:$A$1037)) -> -9 | X40: =IF(E40<>3,"",NETWORKDAYS(T40,V40-1,Feriados!$A$2:$A$1037)) -> 21 | Y40: 4147.832584
A41: 2023-10-05 | B41: 4148.49523 | C41: 0.32 | D41: P | E41: 3 | F41: 4148.49523 | G41: 0.01597571711 | H41: 1.004544638 | I41: 0.4544637568 | J41: =IF(E41<>1,"",TRUNC((VLOOKUP(K41,'IPCA IBGE'!A:D,4,FALSE)/100+1)*L41,6)) ->  | K41: =WORKDAY(WORKDAY(DATEVALUE(CONCATENATE("15/"&MONTH(EDATE($A41,-1))&"/"&YEAR(EDATE(A41,-1)))),-1,Feriados!$A$2:$A$1037),1,Feriados!$A$2:$A$1037) -> 2023-09-15 | L41: =VLOOKUP(K41,'Histórico VNA IPCA'!B45:E50036,2,FALSE) -> 4139.227805 | M41: =IF(E41<>2,"",NETWORKDAYS(K41,A41-1,Feriados!$A$2:$A$1037)) ->  | N41: =IF(E41<>2,"",NETWORKDAYS(K41,T41-1,Feriados!$A$2:$A$1037)) ->  | O41: =IF(E41<>2,"",TRUNC((L41)*(1+VLOOKUP(K41,'IPCA IBGE'!A:D,4,FALSE)/100)^(M41/N41),6)) ->  | P41: =WORKDAY(WORKDAY(DATEVALUE(CONCATENATE("15/"&MONTH(EDATE($A41,-1))&"/"&YEAR(EDATE(A41,-1)))),-1,Feriados!$A$2:$A$1037),1,Feriados!$A$2:$A$1037) -> 2023-09-15 | Q41: =VLOOKUP(P41,'Histórico VNA IPCA'!B45:E50036,2,FALSE) -> 4139.227805 | R41: =IF(E41<>3,"",NETWORKDAYS(P41,A41-1,Feriados!$A$2:$A$1037)) -> 14 | S41: =IF(E41<>3,"",NETWORKDAYS(P41,T41-1,Feriados!$A$2:$A$1037)) -> 20 | T41: =WORKDAY(WORKDAY(DATEVALUE(CONCATENATE("15/"&MONTH(A41)&"/"&YEAR(A41))),-1,Feriados!$A$2:$A$1037),1,Feriados!$A$2:$A$1037) -> 2023-10-16 | U41: =VLOOKUP(T41,'Histórico VNA IPCA'!B45:E50036,2,FALSE) -> 4149.991948 | V41: =WORKDAY(WORKDAY(DATEVALUE(CONCATENATE("15/"&MONTH(EDATE(A41,1))&"/"&YEAR(EDATE(A41,1)))),-1,Feriados!$A$2:$A$1037),1,Feriados!$A$2:$A$1037) -> 2023-11-16 | W41: =IF(E41<>3,"",NETWORKDAYS(T41,A41-1,Feriados!$A$2:$A$1037)) -> -8 | X41: =IF(E41<>3,"",NETWORKDAYS(T41,V41-1,Feriados!$A$2:$A$1037)) -> 21 | Y41: 4148.49523
A42: 2023-10-06 | B42: 4149.157983 | C42: 0.32 | D42: P | E42: 3 | F42: 4149.157983 | G42: 0.01597574454 | H42: 1.004705121 | I42: 0.4705121053 | J42: =IF(E42<>1,"",TRUNC((VLOOKUP(K42,'IPCA IBGE'!A:D,4,FALSE)/100+1)*L42,6)) ->  | K42: =WORKDAY(WORKDAY(DATEVALUE(CONCATENATE("15/"&MONTH(EDATE($A42,-1))&"/"&YEAR(EDATE(A42,-1)))),-1,Feriados!$A$2:$A$1037),1,Feriados!$A$2:$A$1037) -> 2023-09-15 | L42: =VLOOKUP(K42,'Histórico VNA IPCA'!B46:E50037,2,FALSE) -> 4139.227805 | M42: =IF(E42<>2,"",NETWORKDAYS(K42,A42-1,Feriados!$A$2:$A$1037)) ->  | N42: =IF(E42<>2,"",NETWORKDAYS(K42,T42-1,Feriados!$A$2:$A$1037)) ->  | O42: =IF(E42<>2,"",TRUNC((L42)*(1+VLOOKUP(K42,'IPCA IBGE'!A:D,4,FALSE)/100)^(M42/N42),6)) ->  | P42: =WORKDAY(WORKDAY(DATEVALUE(CONCATENATE("15/"&MONTH(EDATE($A42,-1))&"/"&YEAR(EDATE(A42,-1)))),-1,Feriados!$A$2:$A$1037),1,Feriados!$A$2:$A$1037) -> 2023-09-15 | Q42: =VLOOKUP(P42,'Histórico VNA IPCA'!B46:E50037,2,FALSE) -> 4139.227805 | R42: =IF(E42<>3,"",NETWORKDAYS(P42,A42-1,Feriados!$A$2:$A$1037)) -> 15 | S42: =IF(E42<>3,"",NETWORKDAYS(P42,T42-1,Feriados!$A$2:$A$1037)) -> 20 | T42: =WORKDAY(WORKDAY(DATEVALUE(CONCATENATE("15/"&MONTH(A42)&"/"&YEAR(A42))),-1,Feriados!$A$2:$A$1037),1,Feriados!$A$2:$A$1037) -> 2023-10-16 | U42: =VLOOKUP(T42,'Histórico VNA IPCA'!B46:E50037,2,FALSE) -> 4149.991948 | V42: =WORKDAY(WORKDAY(DATEVALUE(CONCATENATE("15/"&MONTH(EDATE(A42,1))&"/"&YEAR(EDATE(A42,1)))),-1,Feriados!$A$2:$A$1037),1,Feriados!$A$2:$A$1037) -> 2023-11-16 | W42: =IF(E42<>3,"",NETWORKDAYS(T42,A42-1,Feriados!$A$2:$A$1037)) -> -7 | X42: =IF(E42<>3,"",NETWORKDAYS(T42,V42-1,Feriados!$A$2:$A$1037)) -> 21 | Y42: 4149.157983
A43: 2023-10-09 | B43: 4149.820841 | C43: 0.32 | D43: P | E43: 3 | F43: 4149.820841 | G43: 0.01597572333 | H43: 1.00486563 | I43: 0.4865629963 | J43: =IF(E43<>1,"",TRUNC((VLOOKUP(K43,'IPCA IBGE'!A:D,4,FALSE)/100+1)*L43,6)) ->  | K43: =WORKDAY(WORKDAY(DATEVALUE(CONCATENATE("15/"&MONTH(EDATE($A43,-1))&"/"&YEAR(EDATE(A43,-1)))),-1,Feriados!$A$2:$A$1037),1,Feriados!$A$2:$A$1037) -> 2023-09-15 | L43: =VLOOKUP(K43,'Histórico VNA IPCA'!B47:E50038,2,FALSE) -> 4139.227805 | M43: =IF(E43<>2,"",NETWORKDAYS(K43,A43-1,Feriados!$A$2:$A$1037)) ->  | N43: =IF(E43<>2,"",NETWORKDAYS(K43,T43-1,Feriados!$A$2:$A$1037)) ->  | O43: =IF(E43<>2,"",TRUNC((L43)*(1+VLOOKUP(K43,'IPCA IBGE'!A:D,4,FALSE)/100)^(M43/N43),6)) ->  | P43: =WORKDAY(WORKDAY(DATEVALUE(CONCATENATE("15/"&MONTH(EDATE($A43,-1))&"/"&YEAR(EDATE(A43,-1)))),-1,Feriados!$A$2:$A$1037),1,Feriados!$A$2:$A$1037) -> 2023-09-15 | Q43: =VLOOKUP(P43,'Histórico VNA IPCA'!B47:E50038,2,FALSE) -> 4139.227805 | R43: =IF(E43<>3,"",NETWORKDAYS(P43,A43-1,Feriados!$A$2:$A$1037)) -> 16 | S43: =IF(E43<>3,"",NETWORKDAYS(P43,T43-1,Feriados!$A$2:$A$1037)) -> 20 | T43: =WORKDAY(WORKDAY(DATEVALUE(CONCATENATE("15/"&MONTH(A43)&"/"&YEAR(A43))),-1,Feriados!$A$2:$A$1037),1,Feriados!$A$2:$A$1037) -> 2023-10-16 | U43: =VLOOKUP(T43,'Histórico VNA IPCA'!B47:E50038,2,FALSE) -> 4149.991948 | V43: =WORKDAY(WORKDAY(DATEVALUE(CONCATENATE("15/"&MONTH(EDATE(A43,1))&"/"&YEAR(EDATE(A43,1)))),-1,Feriados!$A$2:$A$1037),1,Feriados!$A$2:$A$1037) -> 2023-11-16 | W43: =IF(E43<>3,"",NETWORKDAYS(T43,A43-1,Feriados!$A$2:$A$1037)) -> -5 | X43: =IF(E43<>3,"",NETWORKDAYS(T43,V43-1,Feriados!$A$2:$A$1037)) -> 21 | Y43: 4149.820841
A44: 2023-10-10 | B44: 4150.483805 | C44: 0.32 | D44: P | E44: 3 | F44: 4150.483805 | G44: 0.01597572583 | H44: 1.005026165 | I44: 0.5026164541 | J44: =IF(E44<>1,"",TRUNC((VLOOKUP(K44,'IPCA IBGE'!A:D,4,FALSE)/100+1)*L44,6)) ->  | K44: =WORKDAY(WORKDAY(DATEVALUE(CONCATENATE("15/"&MONTH(EDATE($A44,-1))&"/"&YEAR(EDATE(A44,-1)))),-1,Feriados!$A$2:$A$1037),1,Feriados!$A$2:$A$1037) -> 2023-09-15 | L44: =VLOOKUP(K44,'Histórico VNA IPCA'!B48:E50039,2,FALSE) -> 4139.227805 | M44: =IF(E44<>2,"",NETWORKDAYS(K44,A44-1,Feriados!$A$2:$A$1037)) ->  | N44: =IF(E44<>2,"",NETWORKDAYS(K44,T44-1,Feriados!$A$2:$A$1037)) ->  | O44: =IF(E44<>2,"",TRUNC((L44)*(1+VLOOKUP(K44,'IPCA IBGE'!A:D,4,FALSE)/100)^(M44/N44),6)) ->  | P44: =WORKDAY(WORKDAY(DATEVALUE(CONCATENATE("15/"&MONTH(EDATE($A44,-1))&"/"&YEAR(EDATE(A44,-1)))),-1,Feriados!$A$2:$A$1037),1,Feriados!$A$2:$A$1037) -> 2023-09-15 | Q44: =VLOOKUP(P44,'Histórico VNA IPCA'!B48:E50039,2,FALSE) -> 4139.227805 | R44: =IF(E44<>3,"",NETWORKDAYS(P44,A44-1,Feriados!$A$2:$A$1037)) -> 17 | S44: =IF(E44<>3,"",NETWORKDAYS(P44,T44-1,Feriados!$A$2:$A$1037)) -> 20 | T44: =WORKDAY(WORKDAY(DATEVALUE(CONCATENATE("15/"&MONTH(A44)&"/"&YEAR(A44))),-1,Feriados!$A$2:$A$1037),1,Feriados!$A$2:$A$1037) -> 2023-10-16 | U44: =VLOOKUP(T44,'Histórico VNA IPCA'!B48:E50039,2,FALSE) -> 4149.991948 | V44: =WORKDAY(WORKDAY(DATEVALUE(CONCATENATE("15/"&MONTH(EDATE(A44,1))&"/"&YEAR(EDATE(A44,1)))),-1,Feriados!$A$2:$A$1037),1,Feriados!$A$2:$A$1037) -> 2023-11-16 | W44: =IF(E44<>3,"",NETWORKDAYS(T44,A44-1,Feriados!$A$2:$A$1037)) -> -5 | X44: =IF(E44<>3,"",NETWORKDAYS(T44,V44-1,Feriados!$A$2:$A$1037)) -> 21 | Y44: 4150.483805
A45: 2023-10-11 | B45: 4148.914274 | C45: 0.26 | D45: F | E45: 2 | F45: 4148.914274 | G45: -0.03781561557 | H45: 1.004646108 | I45: 0.464610771 | J45: =IF(E45<>1,"",TRUNC((VLOOKUP(K45,'IPCA IBGE'!A:D,4,FALSE)/100+1)*L45,6)) ->  | K45: =WORKDAY(WORKDAY(DATEVALUE(CONCATENATE("15/"&MONTH(EDATE($A45,-1))&"/"&YEAR(EDATE(A45,-1)))),-1,Feriados!$A$2:$A$1037),1,Feriados!$A$2:$A$1037) -> 2023-09-15 | L45: =VLOOKUP(K45,'Histórico VNA IPCA'!B49:E50040,2,FALSE) -> 4139.227805 | M45: =IF(E45<>2,"",NETWORKDAYS(K45,A45-1,Feriados!$A$2:$A$1037)) -> 18 | N45: =IF(E45<>2,"",NETWORKDAYS(K45,T45-1,Feriados!$A$2:$A$1037)) -> 20 | O45: =IF(E45<>2,"",TRUNC((L45)*(1+VLOOKUP(K45,'IPCA IBGE'!A:D,4,FALSE)/100)^(M45/N45),6)) -> 4148.914274 | P45: =WORKDAY(WORKDAY(DATEVALUE(CONCATENATE("15/"&MONTH(EDATE($A45,-1))&"/"&YEAR(EDATE(A45,-1)))),-1,Feriados!$A$2:$A$1037),1,Feriados!$A$2:$A$1037) -> 2023-09-15 | Q45: =VLOOKUP(P45,'Histórico VNA IPCA'!B49:E50040,2,FALSE) -> 4139.227805 | R45: =IF(E45<>3,"",NETWORKDAYS(P45,A45-1,Feriados!$A$2:$A$1037)) ->  | S45: =IF(E45<>3,"",NETWORKDAYS(P45,T45-1,Feriados!$A$2:$A$1037)) ->  | T45: =WORKDAY(WORKDAY(DATEVALUE(CONCATENATE("15/"&MONTH(A45)&"/"&YEAR(A45))),-1,Feriados!$A$2:$A$1037),1,Feriados!$A$2:$A$1037) -> 2023-10-16 | U45: =VLOOKUP(T45,'Histórico VNA IPCA'!B49:E50040,2,FALSE) -> 4149.991948 | V45: =WORKDAY(WORKDAY(DATEVALUE(CONCATENATE("15/"&MONTH(EDATE(A45,1))&"/"&YEAR(EDATE(A45,1)))),-1,Feriados!$A$2:$A$1037),1,Feriados!$A$2:$A$1037) -> 2023-11-16 | W45: =IF(E45<>3,"",NETWORKDAYS(T45,A45-1,Feriados!$A$2:$A$1037)) ->  | X45: =IF(E45<>3,"",NETWORKDAYS(T45,V45-1,Feriados!$A$2:$A$1037)) -> 
A46: 2023-10-13 | B46: 4149.453076 | C46: 0.26 | D46: F | E46: 2 | F46: 4149.453076 | G46: 0.01298657828 | H46: 1.004776577 | I46: 0.4776576864 | J46: =IF(E46<>1,"",TRUNC((VLOOKUP(K46,'IPCA IBGE'!A:D,4,FALSE)/100+1)*L46,6)) ->  | K46: =WORKDAY(WORKDAY(DATEVALUE(CONCATENATE("15/"&MONTH(EDATE($A46,-1))&"/"&YEAR(EDATE(A46,-1)))),-1,Feriados!$A$2:$A$1037),1,Feriados!$A$2:$A$1037) -> 2023-09-15 | L46: =VLOOKUP(K46,'Histórico VNA IPCA'!B50:E50041,2,FALSE) -> 4139.227805 | M46: =IF(E46<>2,"",NETWORKDAYS(K46,A46-1,Feriados!$A$2:$A$1037)) -> 19 | N46: =IF(E46<>2,"",NETWORKDAYS(K46,T46-1,Feriados!$A$2:$A$1037)) -> 20 | O46: =IF(E46<>2,"",TRUNC((L46)*(1+VLOOKUP(K46,'IPCA IBGE'!A:D,4,FALSE)/100)^(M46/N46),6)) -> 4149.453076 | P46: =WORKDAY(WORKDAY(DATEVALUE(CONCATENATE("15/"&MONTH(EDATE($A46,-1))&"/"&YEAR(EDATE(A46,-1)))),-1,Feriados!$A$2:$A$1037),1,Feriados!$A$2:$A$1037) -> 2023-09-15 | Q46: =VLOOKUP(P46,'Histórico VNA IPCA'!B50:E50041,2,FALSE) -> 4139.227805 | R46: =IF(E46<>3,"",NETWORKDAYS(P46,A46-1,Feriados!$A$2:$A$1037)) ->  | S46: =IF(E46<>3,"",NETWORKDAYS(P46,T46-1,Feriados!$A$2:$A$1037)) ->  | T46: =WORKDAY(WORKDAY(DATEVALUE(CONCATENATE("15/"&MONTH(A46)&"/"&YEAR(A46))),-1,Feriados!$A$2:$A$1037),1,Feriados!$A$2:$A$1037) -> 2023-10-16 | U46: =VLOOKUP(T46,'Histórico VNA IPCA'!B50:E50041,2,FALSE) -> 4149.991948 | V46: =WORKDAY(WORKDAY(DATEVALUE(CONCATENATE("15/"&MONTH(EDATE(A46,1))&"/"&YEAR(EDATE(A46,1)))),-1,Feriados!$A$2:$A$1037),1,Feriados!$A$2:$A$1037) -> 2023-11-16 | W46: =IF(E46<>3,"",NETWORKDAYS(T46,A46-1,Feriados!$A$2:$A$1037)) ->  | X46: =IF(E46<>3,"",NETWORKDAYS(T46,V46-1,Feriados!$A$2:$A$1037)) -> 
A47: 2023-10-16 | B47: 4149.991948 | C47: 0.26 | D47: F | E47: 1 | F47: 4149.991947 | G47: 0.01298655486 | H47: 1.004907063 | I47: 0.4907062725 | J47: =IF(E47<>1,"",TRUNC((VLOOKUP(K47,'IPCA IBGE'!A:D,4,FALSE)/100+1)*L47,6)) -> 4149.991947 | K47: =WORKDAY(WORKDAY(DATEVALUE(CONCATENATE("15/"&MONTH(EDATE($A47,-1))&"/"&YEAR(EDATE(A47,-1)))),-1,Feriados!$A$2:$A$1037),1,Feriados!$A$2:$A$1037) -> 2023-09-15 | L47: =VLOOKUP(K47,'Histórico VNA IPCA'!B51:E50042,2,FALSE) -> 4139.227805 | M47: =IF(E47<>2,"",NETWORKDAYS(K47,A47-1,Feriados!$A$2:$A$1037)) ->  | N47: =IF(E47<>2,"",NETWORKDAYS(K47,T47-1,Feriados!$A$2:$A$1037)) ->  | O47: =IF(E47<>2,"",TRUNC((L47)*(1+VLOOKUP(K47,'IPCA IBGE'!A:D,4,FALSE)/100)^(M47/N47),6)) ->  | P47: =WORKDAY(WORKDAY(DATEVALUE(CONCATENATE("15/"&MONTH(EDATE($A47,-1))&"/"&YEAR(EDATE(A47,-1)))),-1,Feriados!$A$2:$A$1037),1,Feriados!$A$2:$A$1037) -> 2023-09-15 | Q47: =VLOOKUP(P47,'Histórico VNA IPCA'!B51:E50042,2,FALSE) -> 4139.227805 | R47: =IF(E47<>3,"",NETWORKDAYS(P47,A47-1,Feriados!$A$2:$A$1037)) ->  | S47: =IF(E47<>3,"",NETWORKDAYS(P47,T47-1,Feriados!$A$2:$A$1037)) ->  | T47: =WORKDAY(WORKDAY(DATEVALUE(CONCATENATE("15/"&MONTH(A47)&"/"&YEAR(A47))),-1,Feriados!$A$2:$A$1037),1,Feriados!$A$2:$A$1037) -> 2023-10-16 | U47: =VLOOKUP(T47,'Histórico VNA IPCA'!B51:E50042,2,FALSE) -> 4149.991948 | V47: =WORKDAY(WORKDAY(DATEVALUE(CONCATENATE("15/"&MONTH(EDATE(A47,1))&"/"&YEAR(EDATE(A47,1)))),-1,Feriados!$A$2:$A$1037),1,Feriados!$A$2:$A$1037) -> 2023-11-16 | W47: =IF(E47<>3,"",NETWORKDAYS(T47,A47-1,Feriados!$A$2:$A$1037)) ->  | X47: =IF(E47<>3,"",NETWORKDAYS(T47,V47-1,Feriados!$A$2:$A$1037)) -> 
A48: 2023-10-17 | B48: 4150.603663 | C48: 0.31 | D48: P | E48: 3 | F48: 4150.603663 | G48: 0.01474017318 | H48: 1.005055188 | I48: 0.5055187766 | J48: =IF(E48<>1,"",TRUNC((VLOOKUP(K48,'IPCA IBGE'!A:D,4,FALSE)/100+1)*L48,6)) ->  | K48: =WORKDAY(WORKDAY(DATEVALUE(CONCATENATE("15/"&MONTH(EDATE($A48,-1))&"/"&YEAR(EDATE(A48,-1)))),-1,Feriados!$A$2:$A$1037),1,Feriados!$A$2:$A$1037) -> 2023-09-15 | L48: =VLOOKUP(K48,'Histórico VNA IPCA'!B52:E50043,2,FALSE) -> 4139.227805 | M48: =IF(E48<>2,"",NETWORKDAYS(K48,A48-1,Feriados!$A$2:$A$1037)) ->  | N48: =IF(E48<>2,"",NETWORKDAYS(K48,T48-1,Feriados!$A$2:$A$1037)) ->  | O48: =IF(E48<>2,"",TRUNC((L48)*(1+VLOOKUP(K48,'IPCA IBGE'!A:D,4,FALSE)/100)^(M48/N48),6)) ->  | P48: =WORKDAY(WORKDAY(DATEVALUE(CONCATENATE("15/"&MONTH(EDATE($A48,-1))&"/"&YEAR(EDATE(A48,-1)))),-1,Feriados!$A$2:$A$1037),1,Feriados!$A$2:$A$1037) -> 2023-09-15 | Q48: =VLOOKUP(P48,'Histórico VNA IPCA'!B52:E50043,2,FALSE) -> 4139.227805 | R48: =IF(E48<>3,"",NETWORKDAYS(P48,A48-1,Feriados!$A$2:$A$1037)) -> 21 | S48: =IF(E48<>3,"",NETWORKDAYS(P48,T48-1,Feriados!$A$2:$A$1037)) -> 20 | T48: =WORKDAY(WORKDAY(DATEVALUE(CONCATENATE("15/"&MONTH(A48)&"/"&YEAR(A48))),-1,Feriados!$A$2:$A$1037),1,Feriados!$A$2:$A$1037) -> 2023-10-16 | U48: =VLOOKUP(T48,'Histórico VNA IPCA'!B52:E50043,2,FALSE) -> 4149.991948 | V48: =WORKDAY(WORKDAY(DATEVALUE(CONCATENATE("15/"&MONTH(EDATE(A48,1))&"/"&YEAR(EDATE(A48,1)))),-1,Feriados!$A$2:$A$1037),1,Feriados!$A$2:$A$1037) -> 2023-11-16 | W48: =IF(E48<>3,"",NETWORKDAYS(T48,A48-1,Feriados!$A$2:$A$1037)) -> 1 | X48: =IF(E48<>3,"",NETWORKDAYS(T48,V48-1,Feriados!$A$2:$A$1037)) -> 21 | Y48: 4150.603663
A49: 2023-10-18 | B49: 4151.215468 | C49: 0.31 | D49: P | E49: 3 | F49: 4151.215468 | G49: 0.01474014504 | H49: 1.005203334 | I49: 0.5203334359 | J49: =IF(E49<>1,"",TRUNC((VLOOKUP(K49,'IPCA IBGE'!A:D,4,FALSE)/100+1)*L49,6)) ->  | K49: =WORKDAY(WORKDAY(DATEVALUE(CONCATENATE("15/"&MONTH(EDATE($A49,-1))&"/"&YEAR(EDATE(A49,-1)))),-1,Feriados!$A$2:$A$1037),1,Feriados!$A$2:$A$1037) -> 2023-09-15 | L49: =VLOOKUP(K49,'Histórico VNA IPCA'!B53:E50044,2,FALSE) -> 4139.227805 | M49: =IF(E49<>2,"",NETWORKDAYS(K49,A49-1,Feriados!$A$2:$A$1037)) ->  | N49: =IF(E49<>2,"",NETWORKDAYS(K49,T49-1,Feriados!$A$2:$A$1037)) ->  | O49: =IF(E49<>2,"",TRUNC((L49)*(1+VLOOKUP(K49,'IPCA IBGE'!A:D,4,FALSE)/100)^(M49/N49),6)) ->  | P49: =WORKDAY(WORKDAY(DATEVALUE(CONCATENATE("15/"&MONTH(EDATE($A49,-1))&"/"&YEAR(EDATE(A49,-1)))),-1,Feriados!$A$2:$A$1037),1,Feriados!$A$2:$A$1037) -> 2023-09-15 | Q49: =VLOOKUP(P49,'Histórico VNA IPCA'!B53:E50044,2,FALSE) -> 4139.227805 | R49: =IF(E49<>3,"",NETWORKDAYS(P49,A49-1,Feriados!$A$2:$A$1037)) -> 22 | S49: =IF(E49<>3,"",NETWORKDAYS(P49,T49-1,Feriados!$A$2:$A$1037)) -> 20 | T49: =WORKDAY(WORKDAY(DATEVALUE(CONCATENATE("15/"&MONTH(A49)&"/"&YEAR(A49))),-1,Feriados!$A$2:$A$1037),1,Feriados!$A$2:$A$1037) -> 2023-10-16 | U49: =VLOOKUP(T49,'Histórico VNA IPCA'!B53:E50044,2,FALSE) -> 4149.991948 | V49: =WORKDAY(WORKDAY(DATEVALUE(CONCATENATE("15/"&MONTH(EDATE(A49,1))&"/"&YEAR(EDATE(A49,1)))),-1,Feriados!$A$2:$A$1037),1,Feriados!$A$2:$A$1037) -> 2023-11-16 | W49: =IF(E49<>3,"",NETWORKDAYS(T49,A49-1,Feriados!$A$2:$A$1037)) -> 2 | X49: =IF(E49<>3,"",NETWORKDAYS(T49,V49-1,Feriados!$A$2:$A$1037)) -> 21 | Y49: 4151.215468
A50: 2023-10-19 | B50: 4151.827364 | C50: 0.31 | D50: P | E50: 3 | F50: 4151.827364 | G50: 0.01474016477 | H50: 1.005351503 | I50: 0.5351502986 | J50: =IF(E50<>1,"",TRUNC((VLOOKUP(K50,'IPCA IBGE'!A:D,4,FALSE)/100+1)*L50,6)) ->  | K50: =WORKDAY(WORKDAY(DATEVALUE(CONCATENATE("15/"&MONTH(EDATE($A50,-1))&"/"&YEAR(EDATE(A50,-1)))),-1,Feriados!$A$2:$A$1037),1,Feriados!$A$2:$A$1037) -> 2023-09-15 | L50: =VLOOKUP(K50,'Histórico VNA IPCA'!B54:E50045,2,FALSE) -> 4139.227805 | M50: =IF(E50<>2,"",NETWORKDAYS(K50,A50-1,Feriados!$A$2:$A$1037)) ->  | N50: =IF(E50<>2,"",NETWORKDAYS(K50,T50-1,Feriados!$A$2:$A$1037)) ->  | O50: =IF(E50<>2,"",TRUNC((L50)*(1+VLOOKUP(K50,'IPCA IBGE'!A:D,4,FALSE)/100)^(M50/N50),6)) ->  | P50: =WORKDAY(WORKDAY(DATEVALUE(CONCATENATE("15/"&MONTH(EDATE($A50,-1))&"/"&YEAR(EDATE(A50,-1)))),-1,Feriados!$A$2:$A$1037),1,Feriados!$A$2:$A$1037) -> 2023-09-15 | Q50: =VLOOKUP(P50,'Histórico VNA IPCA'!B54:E50045,2,FALSE) -> 4139.227805 | R50: =IF(E50<>3,"",NETWORKDAYS(P50,A50-1,Feriados!$A$2:$A$1037)) -> 23 | S50: =IF(E50<>3,"",NETWORKDAYS(P50,T50-1,Feriados!$A$2:$A$1037)) -> 20 | T50: =WORKDAY(WORKDAY(DATEVALUE(CONCATENATE("15/"&MONTH(A50)&"/"&YEAR(A50))),-1,Feriados!$A$2:$A$1037),1,Feriados!$A$2:$A$1037) -> 2023-10-16 | U50: =VLOOKUP(T50,'Histórico VNA IPCA'!B54:E50045,2,FALSE) -> 4149.991948 | V50: =WORKDAY(WORKDAY(DATEVALUE(CONCATENATE("15/"&MONTH(EDATE(A50,1))&"/"&YEAR(EDATE(A50,1)))),-1,Feriados!$A$2:$A$1037),1,Feriados!$A$2:$A$1037) -> 2023-11-16 | W50: =IF(E50<>3,"",NETWORKDAYS(T50,A50-1,Feriados!$A$2:$A$1037)) -> 3 | X50: =IF(E50<>3,"",NETWORKDAYS(T50,V50-1,Feriados!$A$2:$A$1037)) -> 21 | Y50: 4151.827364
A51: 2023-10-20 | B51: 4152.43935 | C51: 0.31 | D51: P | E51: 3 | F51: 4152.43935 | G51: 0.01474016009 | H51: 1.005499693 | I51: 0.5499693407 | J51: =IF(E51<>1,"",TRUNC((VLOOKUP(K51,'IPCA IBGE'!A:D,4,FALSE)/100+1)*L51,6)) ->  | K51: =WORKDAY(WORKDAY(DATEVALUE(CONCATENATE("15/"&MONTH(EDATE($A51,-1))&"/"&YEAR(EDATE(A51,-1)))),-1,Feriados!$A$2:$A$1037),1,Feriados!$A$2:$A$1037) -> 2023-09-15 | L51: =VLOOKUP(K51,'Histórico VNA IPCA'!B55:E50046,2,FALSE) -> 4139.227805 | M51: =IF(E51<>2,"",NETWORKDAYS(K51,A51-1,Feriados!$A$2:$A$1037)) ->  | N51: =IF(E51<>2,"",NETWORKDAYS(K51,T51-1,Feriados!$A$2:$A$1037)) ->  | O51: =IF(E51<>2,"",TRUNC((L51)*(1+VLOOKUP(K51,'IPCA IBGE'!A:D,4,FALSE)/100)^(M51/N51),6)) ->  | P51: =WORKDAY(WORKDAY(DATEVALUE(CONCATENATE("15/"&MONTH(EDATE($A51,-1))&"/"&YEAR(EDATE(A51,-1)))),-1,Feriados!$A$2:$A$1037),1,Feriados!$A$2:$A$1037) -> 2023-09-15 | Q51: =VLOOKUP(P51,'Histórico VNA IPCA'!B55:E50046,2,FALSE) -> 4139.227805 | R51: =IF(E51<>3,"",NETWORKDAYS(P51,A51-1,Feriados!$A$2:$A$1037)) -> 24 | S51: =IF(E51<>3,"",NETWORKDAYS(P51,T51-1,Feriados!$A$2:$A$1037)) -> 20 | T51: =WORKDAY(WORKDAY(DATEVALUE(CONCATENATE("15/"&MONTH(A51)&"/"&YEAR(A51))),-1,Feriados!$A$2:$A$1037),1,Feriados!$A$2:$A$1037) -> 2023-10-16 | U51: =VLOOKUP(T51,'Histórico VNA IPCA'!B55:E50046,2,FALSE) -> 4149.991948 | V51: =WORKDAY(WORKDAY(DATEVALUE(CONCATENATE("15/"&MONTH(EDATE(A51,1))&"/"&YEAR(EDATE(A51,1)))),-1,Feriados!$A$2:$A$1037),1,Feriados!$A$2:$A$1037) -> 2023-11-16 | W51: =IF(E51<>3,"",NETWORKDAYS(T51,A51-1,Feriados!$A$2:$A$1037)) -> 4 | X51: =IF(E51<>3,"",NETWORKDAYS(T51,V51-1,Feriados!$A$2:$A$1037)) -> 21 | Y51: 4152.43935
A52: 2023-10-23 | B52: 4153.051426 | C52: 0.31 | D52: P | E52: 3 | F52: 4153.051426 | G52: 0.01474015509 | H52: 1.005647906 | I52: 0.5647905622 | J52: =IF(E52<>1,"",TRUNC((VLOOKUP(K52,'IPCA IBGE'!A:D,4,FALSE)/100+1)*L52,6)) ->  | K52: =WORKDAY(WORKDAY(DATEVALUE(CONCATENATE("15/"&MONTH(EDATE($A52,-1))&"/"&YEAR(EDATE(A52,-1)))),-1,Feriados!$A$2:$A$1037),1,Feriados!$A$2:$A$1037) -> 2023-09-15 | L52: =VLOOKUP(K52,'Histórico VNA IPCA'!B56:E50047,2,FALSE) -> 4139.227805 | M52: =IF(E52<>2,"",NETWORKDAYS(K52,A52-1,Feriados!$A$2:$A$1037)) ->  | N52: =IF(E52<>2,"",NETWORKDAYS(K52,T52-1,Feriados!$A$2:$A$1037)) ->  | O52: =IF(E52<>2,"",TRUNC((L52)*(1+VLOOKUP(K52,'IPCA IBGE'!A:D,4,FALSE)/100)^(M52/N52),6)) ->  | P52: =WORKDAY(WORKDAY(DATEVALUE(CONCATENATE("15/"&MONTH(EDATE($A52,-1))&"/"&YEAR(EDATE(A52,-1)))),-1,Feriados!$A$2:$A$1037),1,Feriados!$A$2:$A$1037) -> 2023-09-15 | Q52: =VLOOKUP(P52,'Histórico VNA IPCA'!B56:E50047,2,FALSE) -> 4139.227805 | R52: =IF(E52<>3,"",NETWORKDAYS(P52,A52-1,Feriados!$A$2:$A$1037)) -> 25 | S52: =IF(E52<>3,"",NETWORKDAYS(P52,T52-1,Feriados!$A$2:$A$1037)) -> 20 | T52: =WORKDAY(WORKDAY(DATEVALUE(CONCATENATE("15/"&MONTH(A52)&"/"&YEAR(A52))),-1,Feriados!$A$2:$A$1037),1,Feriados!$A$2:$A$1037) -> 2023-10-16 | U52: =VLOOKUP(T52,'Histórico VNA IPCA'!B56:E50047,2,FALSE) -> 4149.991948 | V52: =WORKDAY(WORKDAY(DATEVALUE(CONCATENATE("15/"&MONTH(EDATE(A52,1))&"/"&YEAR(EDATE(A52,1)))),-1,Feriados!$A$2:$A$1037),1,Feriados!$A$2:$A$1037) -> 2023-11-16 | W52: =IF(E52<>3,"",NETWORKDAYS(T52,A52-1,Feriados!$A$2:$A$1037)) -> 5 | X52: =IF(E52<>3,"",NETWORKDAYS(T52,V52-1,Feriados!$A$2:$A$1037)) -> 21 | Y52: 4153.051426
A53: 2023-10-24 | B53: 4153.663592 | C53: 0.31 | D53: P | E53: 3 | F53: 4153.663592 | G53: 0.01474014976 | H53: 1.00579614 | I53: 0.5796139629 | J53: =IF(E53<>1,"",TRUNC((VLOOKUP(K53,'IPCA IBGE'!A:D,4,FALSE)/100+1)*L53,6)) ->  | K53: =WORKDAY(WORKDAY(DATEVALUE(CONCATENATE("15/"&MONTH(EDATE($A53,-1))&"/"&YEAR(EDATE(A53,-1)))),-1,Feriados!$A$2:$A$1037),1,Feriados!$A$2:$A$1037) -> 2023-09-15 | L53: =VLOOKUP(K53,'Histórico VNA IPCA'!B57:E50048,2,FALSE) -> 4139.227805 | M53: =IF(E53<>2,"",NETWORKDAYS(K53,A53-1,Feriados!$A$2:$A$1037)) ->  | N53: =IF(E53<>2,"",NETWORKDAYS(K53,T53-1,Feriados!$A$2:$A$1037)) ->  | O53: =IF(E53<>2,"",TRUNC((L53)*(1+VLOOKUP(K53,'IPCA IBGE'!A:D,4,FALSE)/100)^(M53/N53),6)) ->  | P53: =WORKDAY(WORKDAY(DATEVALUE(CONCATENATE("15/"&MONTH(EDATE($A53,-1))&"/"&YEAR(EDATE(A53,-1)))),-1,Feriados!$A$2:$A$1037),1,Feriados!$A$2:$A$1037) -> 2023-09-15 | Q53: =VLOOKUP(P53,'Histórico VNA IPCA'!B57:E50048,2,FALSE) -> 4139.227805 | R53: =IF(E53<>3,"",NETWORKDAYS(P53,A53-1,Feriados!$A$2:$A$1037)) -> 26 | S53: =IF(E53<>3,"",NETWORKDAYS(P53,T53-1,Feriados!$A$2:$A$1037)) -> 20 | T53: =WORKDAY(WORKDAY(DATEVALUE(CONCATENATE("15/"&MONTH(A53)&"/"&YEAR(A53))),-1,Feriados!$A$2:$A$1037),1,Feriados!$A$2:$A$1037) -> 2023-10-16 | U53: =VLOOKUP(T53,'Histórico VNA IPCA'!B57:E50048,2,FALSE) -> 4149.991948 | V53: =WORKDAY(WORKDAY(DATEVALUE(CONCATENATE("15/"&MONTH(EDATE(A53,1))&"/"&YEAR(EDATE(A53,1)))),-1,Feriados!$A$2:$A$1037),1,Feriados!$A$2:$A$1037) -> 2023-11-16 | W53: =IF(E53<>3,"",NETWORKDAYS(T53,A53-1,Feriados!$A$2:$A$1037)) -> 6 | X53: =IF(E53<>3,"",NETWORKDAYS(T53,V53-1,Feriados!$A$2:$A$1037)) -> 21 | Y53: 4153.663592
A54: 2023-10-25 | B54: 4154.275849 | C54: 0.31 | D54: P | E54: 3 | F54: 4154.275849 | G54: 0.0147401682 | H54: 1.005944396 | I54: 0.5944395672 | J54: =IF(E54<>1,"",TRUNC((VLOOKUP(K54,'IPCA IBGE'!A:D,4,FALSE)/100+1)*L54,6)) ->  | K54: =WORKDAY(WORKDAY(DATEVALUE(CONCATENATE("15/"&MONTH(EDATE($A54,-1))&"/"&YEAR(EDATE(A54,-1)))),-1,Feriados!$A$2:$A$1037),1,Feriados!$A$2:$A$1037) -> 2023-09-15 | L54: =VLOOKUP(K54,'Histórico VNA IPCA'!B58:E50049,2,FALSE) -> 4139.227805 | M54: =IF(E54<>2,"",NETWORKDAYS(K54,A54-1,Feriados!$A$2:$A$1037)) ->  | N54: =IF(E54<>2,"",NETWORKDAYS(K54,T54-1,Feriados!$A$2:$A$1037)) ->  | O54: =IF(E54<>2,"",TRUNC((L54)*(1+VLOOKUP(K54,'IPCA IBGE'!A:D,4,FALSE)/100)^(M54/N54),6)) ->  | P54: =WORKDAY(WORKDAY(DATEVALUE(CONCATENATE("15/"&MONTH(EDATE($A54,-1))&"/"&YEAR(EDATE(A54,-1)))),-1,Feriados!$A$2:$A$1037),1,Feriados!$A$2:$A$1037) -> 2023-09-15 | Q54: =VLOOKUP(P54,'Histórico VNA IPCA'!B58:E50049,2,FALSE) -> 4139.227805 | R54: =IF(E54<>3,"",NETWORKDAYS(P54,A54-1,Feriados!$A$2:$A$1037)) -> 27 | S54: =IF(E54<>3,"",NETWORKDAYS(P54,T54-1,Feriados!$A$2:$A$1037)) -> 20 | T54: =WORKDAY(WORKDAY(DATEVALUE(CONCATENATE("15/"&MONTH(A54)&"/"&YEAR(A54))),-1,Feriados!$A$2:$A$1037),1,Feriados!$A$2:$A$1037) -> 2023-10-16 | U54: =VLOOKUP(T54,'Histórico VNA IPCA'!B58:E50049,2,FALSE) -> 4149.991948 | V54: =WORKDAY(WORKDAY(DATEVALUE(CONCATENATE("15/"&MONTH(EDATE(A54,1))&"/"&YEAR(EDATE(A54,1)))),-1,Feriados!$A$2:$A$1037),1,Feriados!$A$2:$A$1037) -> 2023-11-16 | W54: =IF(E54<>3,"",NETWORKDAYS(T54,A54-1,Feriados!$A$2:$A$1037)) -> 7 | X54: =IF(E54<>3,"",NETWORKDAYS(T54,V54-1,Feriados!$A$2:$A$1037)) -> 21 | Y54: 4154.275849
A55: 2023-10-26 | B55: 4154.888196 | C55: 0.31 | D55: P | E55: 3 | F55: 4154.888196 | G55: 0.01474016224 | H55: 1.006092674 | I55: 0.6092673508 | J55: =IF(E55<>1,"",TRUNC((VLOOKUP(K55,'IPCA IBGE'!A:D,4,FALSE)/100+1)*L55,6)) ->  | K55: =WORKDAY(WORKDAY(DATEVALUE(CONCATENATE("15/"&MONTH(EDATE($A55,-1))&"/"&YEAR(EDATE(A55,-1)))),-1,Feriados!$A$2:$A$1037),1,Feriados!$A$2:$A$1037) -> 2023-09-15 | L55: =VLOOKUP(K55,'Histórico VNA IPCA'!B59:E50050,2,FALSE) -> 4139.227805 | M55: =IF(E55<>2,"",NETWORKDAYS(K55,A55-1,Feriados!$A$2:$A$1037)) ->  | N55: =IF(E55<>2,"",NETWORKDAYS(K55,T55-1,Feriados!$A$2:$A$1037)) ->  | O55: =IF(E55<>2,"",TRUNC((L55)*(1+VLOOKUP(K55,'IPCA IBGE'!A:D,4,FALSE)/100)^(M55/N55),6)) ->  | P55: =WORKDAY(WORKDAY(DATEVALUE(CONCATENATE("15/"&MONTH(EDATE($A55,-1))&"/"&YEAR(EDATE(A55,-1)))),-1,Feriados!$A$2:$A$1037),1,Feriados!$A$2:$A$1037) -> 2023-09-15 | Q55: =VLOOKUP(P55,'Histórico VNA IPCA'!B59:E50050,2,FALSE) -> 4139.227805 | R55: =IF(E55<>3,"",NETWORKDAYS(P55,A55-1,Feriados!$A$2:$A$1037)) -> 28 | S55: =IF(E55<>3,"",NETWORKDAYS(P55,T55-1,Feriados!$A$2:$A$1037)) -> 20 | T55: =WORKDAY(WORKDAY(DATEVALUE(CONCATENATE("15/"&MONTH(A55)&"/"&YEAR(A55))),-1,Feriados!$A$2:$A$1037),1,Feriados!$A$2:$A$1037) -> 2023-10-16 | U55: =VLOOKUP(T55,'Histórico VNA IPCA'!B59:E50050,2,FALSE) -> 4149.991948 | V55: =WORKDAY(WORKDAY(DATEVALUE(CONCATENATE("15/"&MONTH(EDATE(A55,1))&"/"&YEAR(EDATE(A55,1)))),-1,Feriados!$A$2:$A$1037),1,Feriados!$A$2:$A$1037) -> 2023-11-16 | W55: =IF(E55<>3,"",NETWORKDAYS(T55,A55-1,Feriados!$A$2:$A$1037)) -> 8 | X55: =IF(E55<>3,"",NETWORKDAYS(T55,V55-1,Feriados!$A$2:$A$1037)) -> 21 | Y55: 4154.888196
A56: 2023-10-27 | B56: 4154.790382 | C56: 0.27 | D56: P | E56: 3 | F56: 4154.790382 | G56: -0.002354190904 | H56: 1.006068988 | I56: 0.6068988166 | J56: =IF(E56<>1,"",TRUNC((VLOOKUP(K56,'IPCA IBGE'!A:D,4,FALSE)/100+1)*L56,6)) ->  | K56: =WORKDAY(WORKDAY(DATEVALUE(CONCATENATE("15/"&MONTH(EDATE($A56,-1))&"/"&YEAR(EDATE(A56,-1)))),-1,Feriados!$A$2:$A$1037),1,Feriados!$A$2:$A$1037) -> 2023-09-15 | L56: =VLOOKUP(K56,'Histórico VNA IPCA'!B60:E50051,2,FALSE) -> 4139.227805 | M56: =IF(E56<>2,"",NETWORKDAYS(K56,A56-1,Feriados!$A$2:$A$1037)) ->  | N56: =IF(E56<>2,"",NETWORKDAYS(K56,T56-1,Feriados!$A$2:$A$1037)) ->  | O56: =IF(E56<>2,"",TRUNC((L56)*(1+VLOOKUP(K56,'IPCA IBGE'!A:D,4,FALSE)/100)^(M56/N56),6)) ->  | P56: =WORKDAY(WORKDAY(DATEVALUE(CONCATENATE("15/"&MONTH(EDATE($A56,-1))&"/"&YEAR(EDATE(A56,-1)))),-1,Feriados!$A$2:$A$1037),1,Feriados!$A$2:$A$1037) -> 2023-09-15 | Q56: =VLOOKUP(P56,'Histórico VNA IPCA'!B60:E50051,2,FALSE) -> 4139.227805 | R56: =IF(E56<>3,"",NETWORKDAYS(P56,A56-1,Feriados!$A$2:$A$1037)) -> 29 | S56: =IF(E56<>3,"",NETWORKDAYS(P56,T56-1,Feriados!$A$2:$A$1037)) -> 20 | T56: =WORKDAY(WORKDAY(DATEVALUE(CONCATENATE("15/"&MONTH(A56)&"/"&YEAR(A56))),-1,Feriados!$A$2:$A$1037),1,Feriados!$A$2:$A$1037) -> 2023-10-16 | U56: =VLOOKUP(T56,'Histórico VNA IPCA'!B60:E50051,2,FALSE) -> 4149.991948 | V56: =WORKDAY(WORKDAY(DATEVALUE(CONCATENATE("15/"&MONTH(EDATE(A56,1))&"/"&YEAR(EDATE(A56,1)))),-1,Feriados!$A$2:$A$1037),1,Feriados!$A$2:$A$1037) -> 2023-11-16 | W56: =IF(E56<>3,"",NETWORKDAYS(T56,A56-1,Feriados!$A$2:$A$1037)) -> 9 | X56: =IF(E56<>3,"",NETWORKDAYS(T56,V56-1,Feriados!$A$2:$A$1037)) -> 21 | Y56: 4154.790382
A57: 2023-10-30 | B57: 4155.323883 | C57: 0.27 | D57: P | E57: 3 | F57: 4155.323883 | G57: 0.01284062374 | H57: 1.006198174 | I57: 0.6198173699 | J57: =IF(E57<>1,"",TRUNC((VLOOKUP(K57,'IPCA IBGE'!A:D,4,FALSE)/100+1)*L57,6)) ->  | K57: =WORKDAY(WORKDAY(DATEVALUE(CONCATENATE("15/"&MONTH(EDATE($A57,-1))&"/"&YEAR(EDATE(A57,-1)))),-1,Feriados!$A$2:$A$1037),1,Feriados!$A$2:$A$1037) -> 2023-09-15 | L57: =VLOOKUP(K57,'Histórico VNA IPCA'!B61:E50052,2,FALSE) -> 4139.227805 | M57: =IF(E57<>2,"",NETWORKDAYS(K57,A57-1,Feriados!$A$2:$A$1037)) ->  | N57: =IF(E57<>2,"",NETWORKDAYS(K57,T57-1,Feriados!$A$2:$A$1037)) ->  | O57: =IF(E57<>2,"",TRUNC((L57)*(1+VLOOKUP(K57,'IPCA IBGE'!A:D,4,FALSE)/100)^(M57/N57),6)) ->  | P57: =WORKDAY(WORKDAY(DATEVALUE(CONCATENATE("15/"&MONTH(EDATE($A57,-1))&"/"&YEAR(EDATE(A57,-1)))),-1,Feriados!$A$2:$A$1037),1,Feriados!$A$2:$A$1037) -> 2023-09-15 | Q57: =VLOOKUP(P57,'Histórico VNA IPCA'!B61:E50052,2,FALSE) -> 4139.227805 | R57: =IF(E57<>3,"",NETWORKDAYS(P57,A57-1,Feriados!$A$2:$A$1037)) -> 30 | S57: =IF(E57<>3,"",NETWORKDAYS(P57,T57-1,Feriados!$A$2:$A$1037)) -> 20 | T57: =WORKDAY(WORKDAY(DATEVALUE(CONCATENATE("15/"&MONTH(A57)&"/"&YEAR(A57))),-1,Feriados!$A$2:$A$1037),1,Feriados!$A$2:$A$1037) -> 2023-10-16 | U57: =VLOOKUP(T57,'Histórico VNA IPCA'!B61:E50052,2,FALSE) -> 4149.991948 | V57: =WORKDAY(WORKDAY(DATEVALUE(CONCATENATE("15/"&MONTH(EDATE(A57,1))&"/"&YEAR(EDATE(A57,1)))),-1,Feriados!$A$2:$A$1037),1,Feriados!$A$2:$A$1037) -> 2023-11-16 | W57: =IF(E57<>3,"",NETWORKDAYS(T57,A57-1,Feriados!$A$2:$A$1037)) -> 10 | X57: =IF(E57<>3,"",NETWORKDAYS(T57,V57-1,Feriados!$A$2:$A$1037)) -> 21 | Y57: 4155.323883
A58: 2023-10-31 | B58: 4155.857454 | C58: 0.27 | D58: P | E58: 3 | F58: 4155.857454 | G58: 0.01284065972 | H58: 1.006327376 | I58: 0.6327376182 | J58: =IF(E58<>1,"",TRUNC((VLOOKUP(K58,'IPCA IBGE'!A:D,4,FALSE)/100+1)*L58,6)) ->  | K58: =WORKDAY(WORKDAY(DATEVALUE(CONCATENATE("15/"&MONTH(EDATE($A58,-1))&"/"&YEAR(EDATE(A58,-1)))),-1,Feriados!$A$2:$A$1037),1,Feriados!$A$2:$A$1037) -> 2023-09-15 | L58: =VLOOKUP(K58,'Histórico VNA IPCA'!B62:E50053,2,FALSE) -> 4139.227805 | M58: =IF(E58<>2,"",NETWORKDAYS(K58,A58-1,Feriados!$A$2:$A$1037)) ->  | N58: =IF(E58<>2,"",NETWORKDAYS(K58,T58-1,Feriados!$A$2:$A$1037)) ->  | O58: =IF(E58<>2,"",TRUNC((L58)*(1+VLOOKUP(K58,'IPCA IBGE'!A:D,4,FALSE)/100)^(M58/N58),6)) ->  | P58: =WORKDAY(WORKDAY(DATEVALUE(CONCATENATE("15/"&MONTH(EDATE($A58,-1))&"/"&YEAR(EDATE(A58,-1)))),-1,Feriados!$A$2:$A$1037),1,Feriados!$A$2:$A$1037) -> 2023-09-15 | Q58: =VLOOKUP(P58,'Histórico VNA IPCA'!B62:E50053,2,FALSE) -> 4139.227805 | R58: =IF(E58<>3,"",NETWORKDAYS(P58,A58-1,Feriados!$A$2:$A$1037)) -> 31 | S58: =IF(E58<>3,"",NETWORKDAYS(P58,T58-1,Feriados!$A$2:$A$1037)) -> 20 | T58: =WORKDAY(WORKDAY(DATEVALUE(CONCATENATE("15/"&MONTH(A58)&"/"&YEAR(A58))),-1,Feriados!$A$2:$A$1037),1,Feriados!$A$2:$A$1037) -> 2023-10-16 | U58: =VLOOKUP(T58,'Histórico VNA IPCA'!B62:E50053,2,FALSE) -> 4149.991948 | V58: =WORKDAY(WORKDAY(DATEVALUE(CONCATENATE("15/"&MONTH(EDATE(A58,1))&"/"&YEAR(EDATE(A58,1)))),-1,Feriados!$A$2:$A$1037),1,Feriados!$A$2:$A$1037) -> 2023-11-16 | W58: =IF(E58<>3,"",NETWORKDAYS(T58,A58-1,Feriados!$A$2:$A$1037)) -> 11 | X58: =IF(E58<>3,"",NETWORKDAYS(T58,V58-1,Feriados!$A$2:$A$1037)) -> 21 | Y58: 4155.857454
A59: 2023-11-01 | B59: 4156.391092 | C59: 0.27 | D59: P | E59: 3 | F59: 4156.391092 | G59: 0.01284062329 | H59: 1.006456595 | I59: 0.645659489 | J59: =IF(E59<>1,"",TRUNC((VLOOKUP(K59,'IPCA IBGE'!A:D,4,FALSE)/100+1)*L59,6)) ->  | K59: =WORKDAY(WORKDAY(DATEVALUE(CONCATENATE("15/"&MONTH(EDATE($A59,-1))&"/"&YEAR(EDATE(A59,-1)))),-1,Feriados!$A$2:$A$1037),1,Feriados!$A$2:$A$1037) -> 2023-10-16 | L59: =VLOOKUP(K59,'Histórico VNA IPCA'!B63:E50054,2,FALSE) -> 4149.991948 | M59: =IF(E59<>2,"",NETWORKDAYS(K59,A59-1,Feriados!$A$2:$A$1037)) ->  | N59: =IF(E59<>2,"",NETWORKDAYS(K59,T59-1,Feriados!$A$2:$A$1037)) ->  | O59: =IF(E59<>2,"",TRUNC((L59)*(1+VLOOKUP(K59,'IPCA IBGE'!A:D,4,FALSE)/100)^(M59/N59),6)) ->  | P59: =WORKDAY(WORKDAY(DATEVALUE(CONCATENATE("15/"&MONTH(EDATE($A59,-1))&"/"&YEAR(EDATE(A59,-1)))),-1,Feriados!$A$2:$A$1037),1,Feriados!$A$2:$A$1037) -> 2023-10-16 | Q59: =VLOOKUP(P59,'Histórico VNA IPCA'!B63:E50054,2,FALSE) -> 4149.991948 | R59: =IF(E59<>3,"",NETWORKDAYS(P59,A59-1,Feriados!$A$2:$A$1037)) -> 12 | S59: =IF(E59<>3,"",NETWORKDAYS(P59,T59-1,Feriados!$A$2:$A$1037)) -> 21 | T59: =WORKDAY(WORKDAY(DATEVALUE(CONCATENATE("15/"&MONTH(A59)&"/"&YEAR(A59))),-1,Feriados!$A$2:$A$1037),1,Feriados!$A$2:$A$1037) -> 2023-11-16 | U59: =VLOOKUP(T59,'Histórico VNA IPCA'!B63:E50054,2,FALSE) -> 4159.950948 | V59: =WORKDAY(WORKDAY(DATEVALUE(CONCATENATE("15/"&MONTH(EDATE(A59,1))&"/"&YEAR(EDATE(A59,1)))),-1,Feriados!$A$2:$A$1037),1,Feriados!$A$2:$A$1037) -> 2023-12-15 | W59: =IF(E59<>3,"",NETWORKDAYS(T59,A59-1,Feriados!$A$2:$A$1037)) -> -11 | X59: =IF(E59<>3,"",NETWORKDAYS(T59,V59-1,Feriados!$A$2:$A$1037)) -> 21 | Y59: 4156.391092
A60: 2023-11-03 | B60: 4156.9248 | C60: 0.27 | D60: P | E60: 3 | F60: 4156.9248 | G60: 0.01284065884 | H60: 1.006585831 | I60: 0.6585830548 | J60: =IF(E60<>1,"",TRUNC((VLOOKUP(K60,'IPCA IBGE'!A:D,4,FALSE)/100+1)*L60,6)) ->  | K60: =WORKDAY(WORKDAY(DATEVALUE(CONCATENATE("15/"&MONTH(EDATE($A60,-1))&"/"&YEAR(EDATE(A60,-1)))),-1,Feriados!$A$2:$A$1037),1,Feriados!$A$2:$A$1037) -> 2023-10-16 | L60: =VLOOKUP(K60,'Histórico VNA IPCA'!B64:E50055,2,FALSE) -> 4149.991948 | M60: =IF(E60<>2,"",NETWORKDAYS(K60,A60-1,Feriados!$A$2:$A$1037)) ->  | N60: =IF(E60<>2,"",NETWORKDAYS(K60,T60-1,Feriados!$A$2:$A$1037)) ->  | O60: =IF(E60<>2,"",TRUNC((L60)*(1+VLOOKUP(K60,'IPCA IBGE'!A:D,4,FALSE)/100)^(M60/N60),6)) ->  | P60: =WORKDAY(WORKDAY(DATEVALUE(CONCATENATE("15/"&MONTH(EDATE($A60,-1))&"/"&YEAR(EDATE(A60,-1)))),-1,Feriados!$A$2:$A$1037),1,Feriados!$A$2:$A$1037) -> 2023-10-16 | Q60: =VLOOKUP(P60,'Histórico VNA IPCA'!B64:E50055,2,FALSE) -> 4149.991948 | R60: =IF(E60<>3,"",NETWORKDAYS(P60,A60-1,Feriados!$A$2:$A$1037)) -> 13 | S60: =IF(E60<>3,"",NETWORKDAYS(P60,T60-1,Feriados!$A$2:$A$1037)) -> 21 | T60: =WORKDAY(WORKDAY(DATEVALUE(CONCATENATE("15/"&MONTH(A60)&"/"&YEAR(A60))),-1,Feriados!$A$2:$A$1037),1,Feriados!$A$2:$A$1037) -> 2023-11-16 | U60: =VLOOKUP(T60,'Histórico VNA IPCA'!B64:E50055,2,FALSE) -> 4159.950948 | V60: =WORKDAY(WORKDAY(DATEVALUE(CONCATENATE("15/"&MONTH(EDATE(A60,1))&"/"&YEAR(EDATE(A60,1)))),-1,Feriados!$A$2:$A$1037),1,Feriados!$A$2:$A$1037) -> 2023-12-15 | W60: =IF(E60<>3,"",NETWORKDAYS(T60,A60-1,Feriados!$A$2:$A$1037)) -> -9 | X60: =IF(E60<>3,"",NETWORKDAYS(T60,V60-1,Feriados!$A$2:$A$1037)) -> 21 | Y60: 4156.9248
A61: 2023-11-06 | B61: 4157.458576 | C61: 0.27 | D61: P | E61: 3 | F61: 4157.458576 | G61: 0.01284064605 | H61: 1.006715083 | I61: 0.6715082671 | J61: =IF(E61<>1,"",TRUNC((VLOOKUP(K61,'IPCA IBGE'!A:D,4,FALSE)/100+1)*L61,6)) ->  | K61: =WORKDAY(WORKDAY(DATEVALUE(CONCATENATE("15/"&MONTH(EDATE($A61,-1))&"/"&YEAR(EDATE(A61,-1)))),-1,Feriados!$A$2:$A$1037),1,Feriados!$A$2:$A$1037) -> 2023-10-16 | L61: =VLOOKUP(K61,'Histórico VNA IPCA'!B65:E50056,2,FALSE) -> 4149.991948 | M61: =IF(E61<>2,"",NETWORKDAYS(K61,A61-1,Feriados!$A$2:$A$1037)) ->  | N61: =IF(E61<>2,"",NETWORKDAYS(K61,T61-1,Feriados!$A$2:$A$1037)) ->  | O61: =IF(E61<>2,"",TRUNC((L61)*(1+VLOOKUP(K61,'IPCA IBGE'!A:D,4,FALSE)/100)^(M61/N61),6)) ->  | P61: =WORKDAY(WORKDAY(DATEVALUE(CONCATENATE("15/"&MONTH(EDATE($A61,-1))&"/"&YEAR(EDATE(A61,-1)))),-1,Feriados!$A$2:$A$1037),1,Feriados!$A$2:$A$1037) -> 2023-10-16 | Q61: =VLOOKUP(P61,'Histórico VNA IPCA'!B65:E50056,2,FALSE) -> 4149.991948 | R61: =IF(E61<>3,"",NETWORKDAYS(P61,A61-1,Feriados!$A$2:$A$1037)) -> 14 | S61: =IF(E61<>3,"",NETWORKDAYS(P61,T61-1,Feriados!$A$2:$A$1037)) -> 21 | T61: =WORKDAY(WORKDAY(DATEVALUE(CONCATENATE("15/"&MONTH(A61)&"/"&YEAR(A61))),-1,Feriados!$A$2:$A$1037),1,Feriados!$A$2:$A$1037) -> 2023-11-16 | U61: =VLOOKUP(T61,'Histórico VNA IPCA'!B65:E50056,2,FALSE) -> 4159.950948 | V61: =WORKDAY(WORKDAY(DATEVALUE(CONCATENATE("15/"&MONTH(EDATE(A61,1))&"/"&YEAR(EDATE(A61,1)))),-1,Feriados!$A$2:$A$1037),1,Feriados!$A$2:$A$1037) -> 2023-12-15 | W61: =IF(E61<>3,"",NETWORKDAYS(T61,A61-1,Feriados!$A$2:$A$1037)) -> -8 | X61: =IF(E61<>3,"",NETWORKDAYS(T61,V61-1,Feriados!$A$2:$A$1037)) -> 21 | Y61: 4157.458576
A62: 2023-11-07 | B62: 4157.99242 | C62: 0.27 | D62: P | E62: 3 | F62: 4157.99242 | G62: 0.01284063305 | H62: 1.006844351 | I62: 0.6844351261 | J62: =IF(E62<>1,"",TRUNC((VLOOKUP(K62,'IPCA IBGE'!A:D,4,FALSE)/100+1)*L62,6)) ->  | K62: =WORKDAY(WORKDAY(DATEVALUE(CONCATENATE("15/"&MONTH(EDATE($A62,-1))&"/"&YEAR(EDATE(A62,-1)))),-1,Feriados!$A$2:$A$1037),1,Feriados!$A$2:$A$1037) -> 2023-10-16 | L62: =VLOOKUP(K62,'Histórico VNA IPCA'!B66:E50057,2,FALSE) -> 4149.991948 | M62: =IF(E62<>2,"",NETWORKDAYS(K62,A62-1,Feriados!$A$2:$A$1037)) ->  | N62: =IF(E62<>2,"",NETWORKDAYS(K62,T62-1,Feriados!$A$2:$A$1037)) ->  | O62: =IF(E62<>2,"",TRUNC((L62)*(1+VLOOKUP(K62,'IPCA IBGE'!A:D,4,FALSE)/100)^(M62/N62),6)) ->  | P62: =WORKDAY(WORKDAY(DATEVALUE(CONCATENATE("15/"&MONTH(EDATE($A62,-1))&"/"&YEAR(EDATE(A62,-1)))),-1,Feriados!$A$2:$A$1037),1,Feriados!$A$2:$A$1037) -> 2023-10-16 | Q62: =VLOOKUP(P62,'Histórico VNA IPCA'!B66:E50057,2,FALSE) -> 4149.991948 | R62: =IF(E62<>3,"",NETWORKDAYS(P62,A62-1,Feriados!$A$2:$A$1037)) -> 15 | S62: =IF(E62<>3,"",NETWORKDAYS(P62,T62-1,Feriados!$A$2:$A$1037)) -> 21 | T62: =WORKDAY(WORKDAY(DATEVALUE(CONCATENATE("15/"&MONTH(A62)&"/"&YEAR(A62))),-1,Feriados!$A$2:$A$1037),1,Feriados!$A$2:$A$1037) -> 2023-11-16 | U62: =VLOOKUP(T62,'Histórico VNA IPCA'!B66:E50057,2,FALSE) -> 4159.950948 | V62: =WORKDAY(WORKDAY(DATEVALUE(CONCATENATE("15/"&MONTH(EDATE(A62,1))&"/"&YEAR(EDATE(A62,1)))),-1,Feriados!$A$2:$A$1037),1,Feriados!$A$2:$A$1037) -> 2023-12-15 | W62: =IF(E62<>3,"",NETWORKDAYS(T62,A62-1,Feriados!$A$2:$A$1037)) -> -8 | X62: =IF(E62<>3,"",NETWORKDAYS(T62,V62-1,Feriados!$A$2:$A$1037)) -> 21 | Y62: 4157.99242
A63: 2023-11-08 | B63: 4158.526333 | C63: 0.27 | D63: P | E63: 3 | F63: 4158.526333 | G63: 0.0128406439 | H63: 1.006973637 | I63: 0.6973636559 | J63: =IF(E63<>1,"",TRUNC((VLOOKUP(K63,'IPCA IBGE'!A:D,4,FALSE)/100+1)*L63,6)) ->  | K63: =WORKDAY(WORKDAY(DATEVALUE(CONCATENATE("15/"&MONTH(EDATE($A63,-1))&"/"&YEAR(EDATE(A63,-1)))),-1,Feriados!$A$2:$A$1037),1,Feriados!$A$2:$A$1037) -> 2023-10-16 | L63: =VLOOKUP(K63,'Histórico VNA IPCA'!B67:E50058,2,FALSE) -> 4149.991948 | M63: =IF(E63<>2,"",NETWORKDAYS(K63,A63-1,Feriados!$A$2:$A$1037)) ->  | N63: =IF(E63<>2,"",NETWORKDAYS(K63,T63-1,Feriados!$A$2:$A$1037)) ->  | O63: =IF(E63<>2,"",TRUNC((L63)*(1+VLOOKUP(K63,'IPCA IBGE'!A:D,4,FALSE)/100)^(M63/N63),6)) ->  | P63: =WORKDAY(WORKDAY(DATEVALUE(CONCATENATE("15/"&MONTH(EDATE($A63,-1))&"/"&YEAR(EDATE(A63,-1)))),-1,Feriados!$A$2:$A$1037),1,Feriados!$A$2:$A$1037) -> 2023-10-16 | Q63: =VLOOKUP(P63,'Histórico VNA IPCA'!B67:E50058,2,FALSE) -> 4149.991948 | R63: =IF(E63<>3,"",NETWORKDAYS(P63,A63-1,Feriados!$A$2:$A$1037)) -> 16 | S63: =IF(E63<>3,"",NETWORKDAYS(P63,T63-1,Feriados!$A$2:$A$1037)) -> 21 | T63: =WORKDAY(WORKDAY(DATEVALUE(CONCATENATE("15/"&MONTH(A63)&"/"&YEAR(A63))),-1,Feriados!$A$2:$A$1037),1,Feriados!$A$2:$A$1037) -> 2023-11-16 | U63: =VLOOKUP(T63,'Histórico VNA IPCA'!B67:E50058,2,FALSE) -> 4159.950948 | V63: =WORKDAY(WORKDAY(DATEVALUE(CONCATENATE("15/"&MONTH(EDATE(A63,1))&"/"&YEAR(EDATE(A63,1)))),-1,Feriados!$A$2:$A$1037),1,Feriados!$A$2:$A$1037) -> 2023-12-15 | W63: =IF(E63<>3,"",NETWORKDAYS(T63,A63-1,Feriados!$A$2:$A$1037)) -> -7 | X63: =IF(E63<>3,"",NETWORKDAYS(T63,V63-1,Feriados!$A$2:$A$1037)) -> 21 | Y63: 4158.526333
A64: 2023-11-09 | B64: 4159.060314 | C64: 0.27 | D64: P | E64: 3 | F64: 4159.060314 | G64: 0.01284063048 | H64: 1.007102938 | I64: 0.7102938322 | J64: =IF(E64<>1,"",TRUNC((VLOOKUP(K64,'IPCA IBGE'!A:D,4,FALSE)/100+1)*L64,6)) ->  | K64: =WORKDAY(WORKDAY(DATEVALUE(CONCATENATE("15/"&MONTH(EDATE($A64,-1))&"/"&YEAR(EDATE(A64,-1)))),-1,Feriados!$A$2:$A$1037),1,Feriados!$A$2:$A$1037) -> 2023-10-16 | L64: =VLOOKUP(K64,'Histórico VNA IPCA'!B68:E50059,2,FALSE) -> 4149.991948 | M64: =IF(E64<>2,"",NETWORKDAYS(K64,A64-1,Feriados!$A$2:$A$1037)) ->  | N64: =IF(E64<>2,"",NETWORKDAYS(K64,T64-1,Feriados!$A$2:$A$1037)) ->  | O64: =IF(E64<>2,"",TRUNC((L64)*(1+VLOOKUP(K64,'IPCA IBGE'!A:D,4,FALSE)/100)^(M64/N64),6)) ->  | P64: =WORKDAY(WORKDAY(DATEVALUE(CONCATENATE("15/"&MONTH(EDATE($A64,-1))&"/"&YEAR(EDATE(A64,-1)))),-1,Feriados!$A$2:$A$1037),1,Feriados!$A$2:$A$1037) -> 2023-10-16 | Q64: =VLOOKUP(P64,'Histórico VNA IPCA'!B68:E50059,2,FALSE) -> 4149.991948 | R64: =IF(E64<>3,"",NETWORKDAYS(P64,A64-1,Feriados!$A$2:$A$1037)) -> 17 | S64: =IF(E64<>3,"",NETWORKDAYS(P64,T64-1,Feriados!$A$2:$A$1037)) -> 21 | T64: =WORKDAY(WORKDAY(DATEVALUE(CONCATENATE("15/"&MONTH(A64)&"/"&YEAR(A64))),-1,Feriados!$A$2:$A$1037),1,Feriados!$A$2:$A$1037) -> 2023-11-16 | U64: =VLOOKUP(T64,'Histórico VNA IPCA'!B68:E50059,2,FALSE) -> 4159.950948 | V64: =WORKDAY(WORKDAY(DATEVALUE(CONCATENATE("15/"&MONTH(EDATE(A64,1))&"/"&YEAR(EDATE(A64,1)))),-1,Feriados!$A$2:$A$1037),1,Feriados!$A$2:$A$1037) -> 2023-12-15 | W64: =IF(E64<>3,"",NETWORKDAYS(T64,A64-1,Feriados!$A$2:$A$1037)) -> -6 | X64: =IF(E64<>3,"",NETWORKDAYS(T64,V64-1,Feriados!$A$2:$A$1037)) -> 21 | Y64: 4159.060314
A65: 2023-11-10 | B65: 4158.526771 | C65: 0.24 | D65: F | E65: 2 | F65: 4158.526771 | G65: -0.01282845065 | H65: 1.006973743 | I65: 0.6973742619 | J65: =IF(E65<>1,"",TRUNC((VLOOKUP(K65,'IPCA IBGE'!A:D,4,FALSE)/100+1)*L65,6)) ->  | K65: =WORKDAY(WORKDAY(DATEVALUE(CONCATENATE("15/"&MONTH(EDATE($A65,-1))&"/"&YEAR(EDATE(A65,-1)))),-1,Feriados!$A$2:$A$1037),1,Feriados!$A$2:$A$1037) -> 2023-10-16 | L65: =VLOOKUP(K65,'Histórico VNA IPCA'!B69:E50060,2,FALSE) -> 4149.991948 | M65: =IF(E65<>2,"",NETWORKDAYS(K65,A65-1,Feriados!$A$2:$A$1037)) -> 18 | N65: =IF(E65<>2,"",NETWORKDAYS(K65,T65-1,Feriados!$A$2:$A$1037)) -> 21 | O65: =IF(E65<>2,"",TRUNC((L65)*(1+VLOOKUP(K65,'IPCA IBGE'!A:D,4,FALSE)/100)^(M65/N65),6)) -> 4158.526771 | P65: =WORKDAY(WORKDAY(DATEVALUE(CONCATENATE("15/"&MONTH(EDATE($A65,-1))&"/"&YEAR(EDATE(A65,-1)))),-1,Feriados!$A$2:$A$1037),1,Feriados!$A$2:$A$1037) -> 2023-10-16 | Q65: =VLOOKUP(P65,'Histórico VNA IPCA'!B69:E50060,2,FALSE) -> 4149.991948 | R65: =IF(E65<>3,"",NETWORKDAYS(P65,A65-1,Feriados!$A$2:$A$1037)) ->  | S65: =IF(E65<>3,"",NETWORKDAYS(P65,T65-1,Feriados!$A$2:$A$1037)) ->  | T65: =WORKDAY(WORKDAY(DATEVALUE(CONCATENATE("15/"&MONTH(A65)&"/"&YEAR(A65))),-1,Feriados!$A$2:$A$1037),1,Feriados!$A$2:$A$1037) -> 2023-11-16 | U65: =VLOOKUP(T65,'Histórico VNA IPCA'!B69:E50060,2,FALSE) -> 4159.950948 | V65: =WORKDAY(WORKDAY(DATEVALUE(CONCATENATE("15/"&MONTH(EDATE(A65,1))&"/"&YEAR(EDATE(A65,1)))),-1,Feriados!$A$2:$A$1037),1,Feriados!$A$2:$A$1037) -> 2023-12-15 | W65: =IF(E65<>3,"",NETWORKDAYS(T65,A65-1,Feriados!$A$2:$A$1037)) ->  | X65: =IF(E65<>3,"",NETWORKDAYS(T65,V65-1,Feriados!$A$2:$A$1037)) -> 
A66: 2023-11-13 | B66: 4159.001442 | C66: 0.24 | D66: F | E66: 2 | F66: 4159.001442 | G66: 0.01141440289 | H66: 1.007088683 | I66: 0.7088682659 | J66: =IF(E66<>1,"",TRUNC((VLOOKUP(K66,'IPCA IBGE'!A:D,4,FALSE)/100+1)*L66,6)) ->  | K66: =WORKDAY(WORKDAY(DATEVALUE(CONCATENATE("15/"&MONTH(EDATE($A66,-1))&"/"&YEAR(EDATE(A66,-1)))),-1,Feriados!$A$2:$A$1037),1,Feriados!$A$2:$A$1037) -> 2023-10-16 | L66: =VLOOKUP(K66,'Histórico VNA IPCA'!B70:E50061,2,FALSE) -> 4149.991948 | M66: =IF(E66<>2,"",NETWORKDAYS(K66,A66-1,Feriados!$A$2:$A$1037)) -> 19 | N66: =IF(E66<>2,"",NETWORKDAYS(K66,T66-1,Feriados!$A$2:$A$1037)) -> 21 | O66: =IF(E66<>2,"",TRUNC((L66)*(1+VLOOKUP(K66,'IPCA IBGE'!A:D,4,FALSE)/100)^(M66/N66),6)) -> 4159.001442 | P66: =WORKDAY(WORKDAY(DATEVALUE(CONCATENATE("15/"&MONTH(EDATE($A66,-1))&"/"&YEAR(EDATE(A66,-1)))),-1,Feriados!$A$2:$A$1037),1,Feriados!$A$2:$A$1037) -> 2023-10-16 | Q66: =VLOOKUP(P66,'Histórico VNA IPCA'!B70:E50061,2,FALSE) -> 4149.991948 | R66: =IF(E66<>3,"",NETWORKDAYS(P66,A66-1,Feriados!$A$2:$A$1037)) ->  | S66: =IF(E66<>3,"",NETWORKDAYS(P66,T66-1,Feriados!$A$2:$A$1037)) ->  | T66: =WORKDAY(WORKDAY(DATEVALUE(CONCATENATE("15/"&MONTH(A66)&"/"&YEAR(A66))),-1,Feriados!$A$2:$A$1037),1,Feriados!$A$2:$A$1037) -> 2023-11-16 | U66: =VLOOKUP(T66,'Histórico VNA IPCA'!B70:E50061,2,FALSE) -> 4159.950948 | V66: =WORKDAY(WORKDAY(DATEVALUE(CONCATENATE("15/"&MONTH(EDATE(A66,1))&"/"&YEAR(EDATE(A66,1)))),-1,Feriados!$A$2:$A$1037),1,Feriados!$A$2:$A$1037) -> 2023-12-15 | W66: =IF(E66<>3,"",NETWORKDAYS(T66,A66-1,Feriados!$A$2:$A$1037)) ->  | X66: =IF(E66<>3,"",NETWORKDAYS(T66,V66-1,Feriados!$A$2:$A$1037)) -> 
A67: 2023-11-14 | B67: 4159.476168 | C67: 0.24 | D67: F | E67: 2 | F67: 4159.476168 | G67: 0.01141442259 | H67: 1.007203636 | I67: 0.7203636017 | J67: =IF(E67<>1,"",TRUNC((VLOOKUP(K67,'IPCA IBGE'!A:D,4,FALSE)/100+1)*L67,6)) ->  | K67: =WORKDAY(WORKDAY(DATEVALUE(CONCATENATE("15/"&MONTH(EDATE($A67,-1))&"/"&YEAR(EDATE(A67,-1)))),-1,Feriados!$A$2:$A$1037),1,Feriados!$A$2:$A$1037) -> 2023-10-16 | L67: =VLOOKUP(K67,'Histórico VNA IPCA'!B71:E50062,2,FALSE) -> 4149.991948 | M67: =IF(E67<>2,"",NETWORKDAYS(K67,A67-1,Feriados!$A$2:$A$1037)) -> 20 | N67: =IF(E67<>2,"",NETWORKDAYS(K67,T67-1,Feriados!$A$2:$A$1037)) -> 21 | O67: =IF(E67<>2,"",TRUNC((L67)*(1+VLOOKUP(K67,'IPCA IBGE'!A:D,4,FALSE)/100)^(M67/N67),6)) -> 4159.476168 | P67: =WORKDAY(WORKDAY(DATEVALUE(CONCATENATE("15/"&MONTH(EDATE($A67,-1))&"/"&YEAR(EDATE(A67,-1)))),-1,Feriados!$A$2:$A$1037),1,Feriados!$A$2:$A$1037) -> 2023-10-16 | Q67: =VLOOKUP(P67,'Histórico VNA IPCA'!B71:E50062,2,FALSE) -> 4149.991948 | R67: =IF(E67<>3,"",NETWORKDAYS(P67,A67-1,Feriados!$A$2:$A$1037)) ->  | S67: =IF(E67<>3,"",NETWORKDAYS(P67,T67-1,Feriados!$A$2:$A$1037)) ->  | T67: =WORKDAY(WORKDAY(DATEVALUE(CONCATENATE("15/"&MONTH(A67)&"/"&YEAR(A67))),-1,Feriados!$A$2:$A$1037),1,Feriados!$A$2:$A$1037) -> 2023-11-16 | U67: =VLOOKUP(T67,'Histórico VNA IPCA'!B71:E50062,2,FALSE) -> 4159.950948 | V67: =WORKDAY(WORKDAY(DATEVALUE(CONCATENATE("15/"&MONTH(EDATE(A67,1))&"/"&YEAR(EDATE(A67,1)))),-1,Feriados!$A$2:$A$1037),1,Feriados!$A$2:$A$1037) -> 2023-12-15 | W67: =IF(E67<>3,"",NETWORKDAYS(T67,A67-1,Feriados!$A$2:$A$1037)) ->  | X67: =IF(E67<>3,"",NETWORKDAYS(T67,V67-1,Feriados!$A$2:$A$1037)) -> 
A68: 2023-11-16 | B68: 4159.950948 | C68: 0.24 | D68: F | E68: 1 | F68: 4159.950947 | G68: 0.01141439404 | H68: 1.007318602 | I68: 0.7318602209 | J68: =IF(E68<>1,"",TRUNC((VLOOKUP(K68,'IPCA IBGE'!A:D,4,FALSE)/100+1)*L68,6)) -> 4159.950947 | K68: =WORKDAY(WORKDAY(DATEVALUE(CONCATENATE("15/"&MONTH(EDATE($A68,-1))&"/"&YEAR(EDATE(A68,-1)))),-1,Feriados!$A$2:$A$1037),1,Feriados!$A$2:$A$1037) -> 2023-10-16 | L68: =VLOOKUP(K68,'Histórico VNA IPCA'!B72:E50063,2,FALSE) -> 4149.991948 | M68: =IF(E68<>2,"",NETWORKDAYS(K68,A68-1,Feriados!$A$2:$A$1037)) ->  | N68: =IF(E68<>2,"",NETWORKDAYS(K68,T68-1,Feriados!$A$2:$A$1037)) ->  | O68: =IF(E68<>2,"",TRUNC((L68)*(1+VLOOKUP(K68,'IPCA IBGE'!A:D,4,FALSE)/100)^(M68/N68),6)) ->  | P68: =WORKDAY(WORKDAY(DATEVALUE(CONCATENATE("15/"&MONTH(EDATE($A68,-1))&"/"&YEAR(EDATE(A68,-1)))),-1,Feriados!$A$2:$A$1037),1,Feriados!$A$2:$A$1037) -> 2023-10-16 | Q68: =VLOOKUP(P68,'Histórico VNA IPCA'!B72:E50063,2,FALSE) -> 4149.991948 | R68: =IF(E68<>3,"",NETWORKDAYS(P68,A68-1,Feriados!$A$2:$A$1037)) ->  | S68: =IF(E68<>3,"",NETWORKDAYS(P68,T68-1,Feriados!$A$2:$A$1037)) ->  | T68: =WORKDAY(WORKDAY(DATEVALUE(CONCATENATE("15/"&MONTH(A68)&"/"&YEAR(A68))),-1,Feriados!$A$2:$A$1037),1,Feriados!$A$2:$A$1037) -> 2023-11-16 | U68: =VLOOKUP(T68,'Histórico VNA IPCA'!B72:E50063,2,FALSE) -> 4159.950948 | V68: =WORKDAY(WORKDAY(DATEVALUE(CONCATENATE("15/"&MONTH(EDATE(A68,1))&"/"&YEAR(EDATE(A68,1)))),-1,Feriados!$A$2:$A$1037),1,Feriados!$A$2:$A$1037) -> 2023-12-15 | W68: =IF(E68<>3,"",NETWORKDAYS(T68,A68-1,Feriados!$A$2:$A$1037)) ->  | X68: =IF(E68<>3,"",NETWORKDAYS(T68,V68-1,Feriados!$A$2:$A$1037)) -> 
A69: 2023-11-17 | B69: 4160.524625 | C69: 0.29 | D69: P | E69: 3 | F69: 4160.524625 | G69: 0.01379049915 | H69: 1.007457516 | I69: 0.7457516472 | J69: =IF(E69<>1,"",TRUNC((VLOOKUP(K69,'IPCA IBGE'!A:D,4,FALSE)/100+1)*L69,6)) ->  | K69: =WORKDAY(WORKDAY(DATEVALUE(CONCATENATE("15/"&MONTH(EDATE($A69,-1))&"/"&YEAR(EDATE(A69,-1)))),-1,Feriados!$A$2:$A$1037),1,Feriados!$A$2:$A$1037) -> 2023-10-16 | L69: =VLOOKUP(K69,'Histórico VNA IPCA'!B73:E50064,2,FALSE) -> 4149.991948 | M69: =IF(E69<>2,"",NETWORKDAYS(K69,A69-1,Feriados!$A$2:$A$1037)) ->  | N69: =IF(E69<>2,"",NETWORKDAYS(K69,T69-1,Feriados!$A$2:$A$1037)) ->  | O69: =IF(E69<>2,"",TRUNC((L69)*(1+VLOOKUP(K69,'IPCA IBGE'!A:D,4,FALSE)/100)^(M69/N69),6)) ->  | P69: =WORKDAY(WORKDAY(DATEVALUE(CONCATENATE("15/"&MONTH(EDATE($A69,-1))&"/"&YEAR(EDATE(A69,-1)))),-1,Feriados!$A$2:$A$1037),1,Feriados!$A$2:$A$1037) -> 2023-10-16 | Q69: =VLOOKUP(P69,'Histórico VNA IPCA'!B73:E50064,2,FALSE) -> 4149.991948 | R69: =IF(E69<>3,"",NETWORKDAYS(P69,A69-1,Feriados!$A$2:$A$1037)) -> 22 | S69: =IF(E69<>3,"",NETWORKDAYS(P69,T69-1,Feriados!$A$2:$A$1037)) -> 21 | T69: =WORKDAY(WORKDAY(DATEVALUE(CONCATENATE("15/"&MONTH(A69)&"/"&YEAR(A69))),-1,Feriados!$A$2:$A$1037),1,Feriados!$A$2:$A$1037) -> 2023-11-16 | U69: =VLOOKUP(T69,'Histórico VNA IPCA'!B73:E50064,2,FALSE) -> 4159.950948 | V69: =WORKDAY(WORKDAY(DATEVALUE(CONCATENATE("15/"&MONTH(EDATE(A69,1))&"/"&YEAR(EDATE(A69,1)))),-1,Feriados!$A$2:$A$1037),1,Feriados!$A$2:$A$1037) -> 2023-12-15 | W69: =IF(E69<>3,"",NETWORKDAYS(T69,A69-1,Feriados!$A$2:$A$1037)) -> 1 | X69: =IF(E69<>3,"",NETWORKDAYS(T69,V69-1,Feriados!$A$2:$A$1037)) -> 21 | Y69: 4160.524625
A70: 2023-11-20 | B70: 4161.098382 | C70: 0.29 | D70: P | E70: 3 | F70: 4161.098382 | G70: 0.01379049643 | H70: 1.00759645 | I70: 0.7596449865 | J70: =IF(E70<>1,"",TRUNC((VLOOKUP(K70,'IPCA IBGE'!A:D,4,FALSE)/100+1)*L70,6)) ->  | K70: =WORKDAY(WORKDAY(DATEVALUE(CONCATENATE("15/"&MONTH(EDATE($A70,-1))&"/"&YEAR(EDATE(A70,-1)))),-1,Feriados!$A$2:$A$1037),1,Feriados!$A$2:$A$1037) -> 2023-10-16 | L70: =VLOOKUP(K70,'Histórico VNA IPCA'!B74:E50065,2,FALSE) -> 4149.991948 | M70: =IF(E70<>2,"",NETWORKDAYS(K70,A70-1,Feriados!$A$2:$A$1037)) ->  | N70: =IF(E70<>2,"",NETWORKDAYS(K70,T70-1,Feriados!$A$2:$A$1037)) ->  | O70: =IF(E70<>2,"",TRUNC((L70)*(1+VLOOKUP(K70,'IPCA IBGE'!A:D,4,FALSE)/100)^(M70/N70),6)) ->  | P70: =WORKDAY(WORKDAY(DATEVALUE(CONCATENATE("15/"&MONTH(EDATE($A70,-1))&"/"&YEAR(EDATE(A70,-1)))),-1,Feriados!$A$2:$A$1037),1,Feriados!$A$2:$A$1037) -> 2023-10-16 | Q70: =VLOOKUP(P70,'Histórico VNA IPCA'!B74:E50065,2,FALSE) -> 4149.991948 | R70: =IF(E70<>3,"",NETWORKDAYS(P70,A70-1,Feriados!$A$2:$A$1037)) -> 23 | S70: =IF(E70<>3,"",NETWORKDAYS(P70,T70-1,Feriados!$A$2:$A$1037)) -> 21 | T70: =WORKDAY(WORKDAY(DATEVALUE(CONCATENATE("15/"&MONTH(A70)&"/"&YEAR(A70))),-1,Feriados!$A$2:$A$1037),1,Feriados!$A$2:$A$1037) -> 2023-11-16 | U70: =VLOOKUP(T70,'Histórico VNA IPCA'!B74:E50065,2,FALSE) -> 4159.950948 | V70: =WORKDAY(WORKDAY(DATEVALUE(CONCATENATE("15/"&MONTH(EDATE(A70,1))&"/"&YEAR(EDATE(A70,1)))),-1,Feriados!$A$2:$A$1037),1,Feriados!$A$2:$A$1037) -> 2023-12-15 | W70: =IF(E70<>3,"",NETWORKDAYS(T70,A70-1,Feriados!$A$2:$A$1037)) -> 2 | X70: =IF(E70<>3,"",NETWORKDAYS(T70,V70-1,Feriados!$A$2:$A$1037)) -> 21 | Y70: 4161.098382
A71: 2023-11-21 | B71: 4161.672218 | C71: 0.29 | D71: P | E71: 3 | F71: 4161.672218 | G71: 0.01379049345 | H71: 1.007735402 | I71: 0.7735402387 | J71: =IF(E71<>1,"",TRUNC((VLOOKUP(K71,'IPCA IBGE'!A:D,4,FALSE)/100+1)*L71,6)) ->  | K71: =WORKDAY(WORKDAY(DATEVALUE(CONCATENATE("15/"&MONTH(EDATE($A71,-1))&"/"&YEAR(EDATE(A71,-1)))),-1,Feriados!$A$2:$A$1037),1,Feriados!$A$2:$A$1037) -> 2023-10-16 | L71: =VLOOKUP(K71,'Histórico VNA IPCA'!B75:E50066,2,FALSE) -> 4149.991948 | M71: =IF(E71<>2,"",NETWORKDAYS(K71,A71-1,Feriados!$A$2:$A$1037)) ->  | N71: =IF(E71<>2,"",NETWORKDAYS(K71,T71-1,Feriados!$A$2:$A$1037)) ->  | O71: =IF(E71<>2,"",TRUNC((L71)*(1+VLOOKUP(K71,'IPCA IBGE'!A:D,4,FALSE)/100)^(M71/N71),6)) ->  | P71: =WORKDAY(WORKDAY(DATEVALUE(CONCATENATE("15/"&MONTH(EDATE($A71,-1))&"/"&YEAR(EDATE(A71,-1)))),-1,Feriados!$A$2:$A$1037),1,Feriados!$A$2:$A$1037) -> 2023-10-16 | Q71: =VLOOKUP(P71,'Histórico VNA IPCA'!B75:E50066,2,FALSE) -> 4149.991948 | R71: =IF(E71<>3,"",NETWORKDAYS(P71,A71-1,Feriados!$A$2:$A$1037)) -> 24 | S71: =IF(E71<>3,"",NETWORKDAYS(P71,T71-1,Feriados!$A$2:$A$1037)) -> 21 | T71: =WORKDAY(WORKDAY(DATEVALUE(CONCATENATE("15/"&MONTH(A71)&"/"&YEAR(A71))),-1,Feriados!$A$2:$A$1037),1,Feriados!$A$2:$A$1037) -> 2023-11-16 | U71: =VLOOKUP(T71,'Histórico VNA IPCA'!B75:E50066,2,FALSE) -> 4159.950948 | V71: =WORKDAY(WORKDAY(DATEVALUE(CONCATENATE("15/"&MONTH(EDATE(A71,1))&"/"&YEAR(EDATE(A71,1)))),-1,Feriados!$A$2:$A$1037),1,Feriados!$A$2:$A$1037) -> 2023-12-15 | W71: =IF(E71<>3,"",NETWORKDAYS(T71,A71-1,Feriados!$A$2:$A$1037)) -> 3 | X71: =IF(E71<>3,"",NETWORKDAYS(T71,V71-1,Feriados!$A$2:$A$1037)) -> 21 | Y71: 4161.672218
A72: 2023-11-22 | B72: 4162.246133 | C72: 0.29 | D72: P | E72: 3 | F72: 4162.246133 | G72: 0.01379049021 | H72: 1.007874374 | I72: 0.7874374039 | J72: =IF(E72<>1,"",TRUNC((VLOOKUP(K72,'IPCA IBGE'!A:D,4,FALSE)/100+1)*L72,6)) ->  | K72: =WORKDAY(WORKDAY(DATEVALUE(CONCATENATE("15/"&MONTH(EDATE($A72,-1))&"/"&YEAR(EDATE(A72,-1)))),-1,Feriados!$A$2:$A$1037),1,Feriados!$A$2:$A$1037) -> 2023-10-16 | L72: =VLOOKUP(K72,'Histórico VNA IPCA'!B76:E50067,2,FALSE) -> 4149.991948 | M72: =IF(E72<>2,"",NETWORKDAYS(K72,A72-1,Feriados!$A$2:$A$1037)) ->  | N72: =IF(E72<>2,"",NETWORKDAYS(K72,T72-1,Feriados!$A$2:$A$1037)) ->  | O72: =IF(E72<>2,"",TRUNC((L72)*(1+VLOOKUP(K72,'IPCA IBGE'!A:D,4,FALSE)/100)^(M72/N72),6)) ->  | P72: =WORKDAY(WORKDAY(DATEVALUE(CONCATENATE("15/"&MONTH(EDATE($A72,-1))&"/"&YEAR(EDATE(A72,-1)))),-1,Feriados!$A$2:$A$1037),1,Feriados!$A$2:$A$1037) -> 2023-10-16 | Q72: =VLOOKUP(P72,'Histórico VNA IPCA'!B76:E50067,2,FALSE) -> 4149.991948 | R72: =IF(E72<>3,"",NETWORKDAYS(P72,A72-1,Feriados!$A$2:$A$1037)) -> 25 | S72: =IF(E72<>3,"",NETWORKDAYS(P72,T72-1,Feriados!$A$2:$A$1037)) -> 21 | T72: =WORKDAY(WORKDAY(DATEVALUE(CONCATENATE("15/"&MONTH(A72)&"/"&YEAR(A72))),-1,Feriados!$A$2:$A$1037),1,Feriados!$A$2:$A$1037) -> 2023-11-16 | U72: =VLOOKUP(T72,'Histórico VNA IPCA'!B76:E50067,2,FALSE) -> 4159.950948 | V72: =WORKDAY(WORKDAY(DATEVALUE(CONCATENATE("15/"&MONTH(EDATE(A72,1))&"/"&YEAR(EDATE(A72,1)))),-1,Feriados!$A$2:$A$1037),1,Feriados!$A$2:$A$1037) -> 2023-12-15 | W72: =IF(E72<>3,"",NETWORKDAYS(T72,A72-1,Feriados!$A$2:$A$1037)) -> 4 | X72: =IF(E72<>3,"",NETWORKDAYS(T72,V72-1,Feriados!$A$2:$A$1037)) -> 21 | Y72: 4162.246133

Sheet Cálculo VNA Tesouro
A2: Histórico → | B2: =MAX('Histórico VNA IPCA'!B9:B1048576) -> 2023-11-21
J3: 1 | K3: 2 | P3: 3
A4: Data Referência | B4: VNA Anbima | C4: IPCA | D4: P / F | E4: Critério | F4: VNA Calculado Tesouro | G4: Retorno a.d | H4: Fator Acum | I4: Retorno Acum | J4: VNA Calculado | K4: Data Mês -1 | L4: VNA Mês -1 15 | M4: dc1 | N4: dc2 | O4: VNA Calculado | P4: Data Mês -1 | Q4: VNA Mês -1 15 | R4: dc1 | S4: dc2 | T4: Data Mês | U4: VNA atual 15 | V4: Data Mês +1 | W4: dc1 | X4: dc2 | Y4: VNA Calculado
A5: 2023-08-15 | B5: 4129.727118 | C5: 0.12 | D5: F | E5: =IF(A5=T5,1,IF(D5="f",2,3)) -> 1 | F5: =IF(E5=3,Y5,IF(E5=2,O5,J5)) -> 4129.727117 | G5: 0 | H5: 1 | I5: 0 | J5: =IF(E5<>1,"",TRUNC((VLOOKUP(WORKDAY(WORKDAY(K5,-1,Feriados!$A$2:$A$1037),1,Feriados!$A$2:$A$1037),'IPCA IBGE'!A:D,4,FALSE)/100+1)*L5,6)) -> 4129.727117 | K5: =DATEVALUE(CONCATENATE("15/"&MONTH(EDATE($A5,-1))&"/"&YEAR(EDATE(A5,-1)))) -> 2023-07-15 | L5: =VLOOKUP(WORKDAY(WORKDAY(K5,-1,Feriados!$A$2:$A$1037),1,Feriados!$A$2:$A$1037),'Histórico VNA IPCA'!B9:E50000,2,FALSE) -> 4124.778585 | M5: =IF(E5<>2,"",A5-K5) ->  | N5: =IF(E5<>2,"",T5-K5) ->  | O5: =IF(E5<>2,"",TRUNC((L5)*(1+VLOOKUP(WORKDAY(WORKDAY(K5,-1,Feriados!$A$2:$A$1037),1,Feriados!$A$2:$A$1037),'IPCA IBGE'!A:D,4,FALSE)/100)^(M5/N5),6)) ->  | P5: =DATEVALUE(CONCATENATE("15/"&MONTH(EDATE($A5,-1))&"/"&YEAR(EDATE(A5,-1)))) -> 2023-07-15 | Q5: =VLOOKUP(WORKDAY(WORKDAY(P5,-1,Feriados!$A$2:$A$1037),1,Feriados!$A$2:$A$1037),'Histórico VNA IPCA'!B9:E50000,2,FALSE) -> 4124.778585 | R5: =IF(E5<>3,"",A5-P5) ->  | S5: =IF(E5<>3,"",T5-P5) ->  | T5: =WORKDAY(WORKDAY(DATEVALUE(CONCATENATE("15/"&MONTH(A5)&"/"&YEAR(A5))),-1,Feriados!$A$2:$A$1037),1,Feriados!$A$2:$A$1037) -> 2023-08-15 | U5: =VLOOKUP(WORKDAY(WORKDAY(T5,-1,Feriados!$A$2:$A$1037),1,Feriados!$A$2:$A$1037),'Histórico VNA IPCA'!B9:E50000,2,FALSE) -> 4129.727118 | V5: =DATEVALUE(CONCATENATE("15/"&MONTH(EDATE(A5,1))&"/"&YEAR(EDATE(A5,1)))) -> 2023-09-15 | W5: =IF(E5<>3,"",A5-T5) ->  | X5: =IF(E5<>3,"",V5-T5) ->  | Y5: =IF(E5<>3,"",IF(A5>T5,TRUNC(+U5*((1+C5/100)^(W5/X5)),6),TRUNC(+Q5*((1+C5/100)^(R5/S5)),6))) -> 
A6: 2023-08-16 | B6: 4130.008488 | C6: 0.15 | D6: P | E6: 3 | F6: =IF(E6=3,Y6,IF(E6=2,O6,J6)) -> 4129.926798 | G6: =+(F6/F5-1)*100 -> 0.00483521052 | H6: =+(G6/100+1)*H5 -> 1.000048352 | I6: =(+H6-1)*100 -> 0.00483521052 | J6: =IF(E6<>1,"",TRUNC((VLOOKUP(WORKDAY(WORKDAY(K6,-1,Feriados!$A$2:$A$1037),1,Feriados!$A$2:$A$1037),'IPCA IBGE'!A:D,4,FALSE)/100+1)*L6,6)) ->  | K6: =DATEVALUE(CONCATENATE("15/"&MONTH(EDATE($A6,-1))&"/"&YEAR(EDATE(A6,-1)))) -> 2023-07-15 | L6: =VLOOKUP(WORKDAY(WORKDAY(K6,-1,Feriados!$A$2:$A$1037),1,Feriados!$A$2:$A$1037),'Histórico VNA IPCA'!B10:E50001,2,FALSE) -> 4124.778585 | M6: =IF(E6<>2,"",A6-K6) ->  | N6: =IF(E6<>2,"",T6-K6) ->  | O6: =IF(E6<>2,"",TRUNC((L6)*(1+VLOOKUP(WORKDAY(WORKDAY(K6,-1,Feriados!$A$2:$A$1037),1,Feriados!$A$2:$A$1037),'IPCA IBGE'!A:D,4,FALSE)/100)^(M6/N6),6)) ->  | P6: =DATEVALUE(CONCATENATE("15/"&MONTH(EDATE($A6,-1))&"/"&YEAR(EDATE(A6,-1)))) -> 2023-07-15 | Q6: =VLOOKUP(WORKDAY(WORKDAY(P6,-1,Feriados!$A$2:$A$1037),1,Feriados!$A$2:$A$1037),'Histórico VNA IPCA'!B10:E50001,2,FALSE) -> 4124.778585 | R6: =IF(E6<>3,"",A6-P6) -> 32 | S6: =IF(E6<>3,"",T6-P6) -> 31 | T6: =WORKDAY(WORKDAY(DATEVALUE(CONCATENATE("15/"&MONTH(A6)&"/"&YEAR(A6))),-1,Feriados!$A$2:$A$1037),1,Feriados!$A$2:$A$1037) -> 2023-08-15 | U6: =VLOOKUP(WORKDAY(WORKDAY(T6,-1,Feriados!$A$2:$A$1037),1,Feriados!$A$2:$A$1037),'Histórico VNA IPCA'!B10:E50001,2,FALSE) -> 4129.727118 | V6: =DATEVALUE(CONCATENATE("15/"&MONTH(EDATE(A6,1))&"/"&YEAR(EDATE(A6,1)))) -> 2023-09-15 | W6: =IF(E6<>3,"",A6-T6) -> 1 | X6: =IF(E6<>3,"",V6-T6) -> 31 | Y6: =IF(E6<>3,"",IF(A6>T6,TRUNC(+U6*((1+C6/100)^(W6/X6)),6),TRUNC(+Q6*((1+C6/100)^(R6/S6)),6))) -> 4129.926798
A7: 2023-08-17 | B7: 4130.289879 | C7: 0.15 | D7: P | E7: =IF(A7=T7,1,IF(D7="f",2,3)) -> 3 | F7: =IF(E7=3,Y7,IF(E7=2,O7,J7)) -> 4130.126488 | G7: =+(F7/F6-1)*100 -> 0.00483519466 | H7: =+(G7/100+1)*H6 -> 1.000096706 | I7: =(+H7-1)*100 -> 0.009670638972 | J7: =IF(E7<>1,"",TRUNC((VLOOKUP(WORKDAY(WORKDAY(K7,-1,Feriados!$A$2:$A$1037),1,Feriados!$A$2:$A$1037),'IPCA IBGE'!A:D,4,FALSE)/100+1)*L7,6)) ->  | K7: =DATEVALUE(CONCATENATE("15/"&MONTH(EDATE($A7,-1))&"/"&YEAR(EDATE(A7,-1)))) -> 2023-07-15 | L7: =VLOOKUP(WORKDAY(WORKDAY(K7,-1,Feriados!$A$2:$A$1037),1,Feriados!$A$2:$A$1037),'Histórico VNA IPCA'!B11:E50002,2,FALSE) -> 4124.778585 | M7: =IF(E7<>2,"",A7-K7) ->  | N7: =IF(E7<>2,"",T7-K7) ->  | O7: =IF(E7<>2,"",TRUNC((L7)*(1+VLOOKUP(WORKDAY(WORKDAY(K7,-1,Feriados!$A$2:$A$1037),1,Feriados!$A$2:$A$1037),'IPCA IBGE'!A:D,4,FALSE)/100)^(M7/N7),6)) ->  | P7: =DATEVALUE(CONCATENATE("15/"&MONTH(EDATE($A7,-1))&"/"&YEAR(EDATE(A7,-1)))) -> 2023-07-15 | Q7: =VLOOKUP(WORKDAY(WORKDAY(P7,-1,Feriados!$A$2:$A$1037),1,Feriados!$A$2:$A$1037),'Histórico VNA IPCA'!B11:E50002,2,FALSE) -> 4124.778585 | R7: =IF(E7<>3,"",A7-P7) -> 33 | S7: =IF(E7<>3,"",T7-P7) -> 31 | T7: =WORKDAY(WORKDAY(DATEVALUE(CONCATENATE("15/"&MONTH(A7)&"/"&YEAR(A7))),-1,Feriados!$A$2:$A$1037),1,Feriados!$A$2:$A$1037) -> 2023-08-15 | U7: =VLOOKUP(WORKDAY(WORKDAY(T7,-1,Feriados!$A$2:$A$1037),1,Feriados!$A$2:$A$1037),'Histórico VNA IPCA'!B11:E50002,2,FALSE) -> 4129.727118 | V7: =DATEVALUE(CONCATENATE("15/"&MONTH(EDATE(A7,1))&"/"&YEAR(EDATE(A7,1)))) -> 2023-09-15 | W7: =IF(E7<>3,"",A7-T7) -> 2 | X7: =IF(E7<>3,"",V7-T7) -> 31 | Y7: =IF(E7<>3,"",IF(A7>T7,TRUNC(+U7*((1+C7/100)^(W7/X7)),6),TRUNC(+Q7*((1+C7/100)^(R7/S7)),6))) -> 4130.126488
A8: 2023-08-18 | B8: 4130.571288 | C8: 0.15 | D8: P | E8: 3 | F8: 4130.326188 | G8: 0.004835203004 | H8: 1.000145063 | I8: 0.01450630957 | J8: =IF(E8<>1,"",TRUNC((VLOOKUP(WORKDAY(WORKDAY(K8,-1,Feriados!$A$2:$A$1037),1,Feriados!$A$2:$A$1037),'IPCA IBGE'!A:D,4,FALSE)/100+1)*L8,6)) ->  | K8: 2023-07-15 | L8: =VLOOKUP(WORKDAY(WORKDAY(K8,-1,Feriados!$A$2:$A$1037),1,Feriados!$A$2:$A$1037),'Histórico VNA IPCA'!B12:E50003,2,FALSE) -> 4124.778585 | O8: =IF(E8<>2,"",TRUNC((L8)*(1+VLOOKUP(WORKDAY(WORKDAY(K8,-1,Feriados!$A$2:$A$1037),1,Feriados!$A$2:$A$1037),'IPCA IBGE'!A:D,4,FALSE)/100)^(M8/N8),6)) ->  | P8: 2023-07-15 | Q8: =VLOOKUP(WORKDAY(WORKDAY(P8,-1,Feriados!$A$2:$A$1037),1,Feriados!$A$2:$A$1037),'Histórico VNA IPCA'!B12:E50003,2,FALSE) -> 4124.778585 | R8: 34 | S8: 31 | T8: =WORKDAY(WORKDAY(DATEVALUE(CONCATENATE("15/"&MONTH(A8)&"/"&YEAR(A8))),-1,Feriados!$A$2:$A$1037),1,Feriados!$A$2:$A$1037) -> 2023-08-15 | U8: =VLOOKUP(WORKDAY(WORKDAY(T8,-1,Feriados!$A$2:$A$1037),1,Feriados!$A$2:$A$1037),'Histórico VNA IPCA'!B12:E50003,2,FALSE) -> 4129.727118 | V8: 2023-09-15 | W8: 3 | X8: 31 | Y8: 4130.326188
A9: 2023-08-21 | B9: 4130.852716 | C9: 0.15 | D9: P | E9: 3 | F9: 4130.925346 | G9: 0.01450631192 | H9: 1.000290147 | I9: 0.02901472582 | J9: =IF(E9<>1,"",TRUNC((VLOOKUP(WORKDAY(WORKDAY(K9,-1,Feriados!$A$2:$A$1037),1,Feriados!$A$2:$A$1037),'IPCA IBGE'!A:D,4,FALSE)/100+1)*L9,6)) ->  | K9: 2023-07-15 | L9: =VLOOKUP(WORKDAY(WORKDAY(K9,-1,Feriados!$A$2:$A$1037),1,Feriados!$A$2:$A$1037),'Histórico VNA IPCA'!B13:E50004,2,FALSE) -> 4124.778585 | O9: =IF(E9<>2,"",TRUNC((L9)*(1+VLOOKUP(WORKDAY(WORKDAY(K9,-1,Feriados!$A$2:$A$1037),1,Feriados!$A$2:$A$1037),'IPCA IBGE'!A:D,4,FALSE)/100)^(M9/N9),6)) ->  | P9: 2023-07-15 | Q9: =VLOOKUP(WORKDAY(WORKDAY(P9,-1,Feriados!$A$2:$A$1037),1,Feriados!$A$2:$A$1037),'Histórico VNA IPCA'!B13:E50004,2,FALSE) -> 4124.778585 | R9: 37 | S9: 31 | T9: =WORKDAY(WORKDAY(DATEVALUE(CONCATENATE("15/"&MONTH(A9)&"/"&YEAR(A9))),-1,Feriados!$A$2:$A$1037),1,Feriados!$A$2:$A$1037) -> 2023-08-15 | U9: =VLOOKUP(WORKDAY(WORKDAY(T9,-1,Feriados!$A$2:$A$1037),1,Feriados!$A$2:$A$1037),'Histórico VNA IPCA'!B13:E50004,2,FALSE) -> 4129.727118 | V9: 2023-09-15 | W9: 6 | X9: 31 | Y9: 4130.925346
A10: 2023-08-22 | B10: 4131.134164 | C10: 0.15 | D10: P | E10: 3 | F10: 4131.125085 | G10: 0.004835212047 | H10: 1.000338513 | I10: 0.03385134079 | J10: =IF(E10<>1,"",TRUNC((VLOOKUP(WORKDAY(WORKDAY(K10,-1,Feriados!$A$2:$A$1037),1,Feriados!$A$2:$A$1037),'IPCA IBGE'!A:D,4,FALSE)/100+1)*L10,6)) ->  | K10: 2023-07-15 | L10: =VLOOKUP(WORKDAY(WORKDAY(K10,-1,Feriados!$A$2:$A$1037),1,Feriados!$A$2:$A$1037),'Histórico VNA IPCA'!B14:E50005,2,FALSE) -> 4124.778585 | O10: =IF(E10<>2,"",TRUNC((L10)*(1+VLOOKUP(WORKDAY(WORKDAY(K10,-1,Feriados!$A$2:$A$1037),1,Feriados!$A$2:$A$1037),'IPCA IBGE'!A:D,4,FALSE)/100)^(M10/N10),6)) ->  | P10: 2023-07-15 | Q10: =VLOOKUP(WORKDAY(WORKDAY(P10,-1,Feriados!$A$2:$A$1037),1,Feriados!$A$2:$A$1037),'Histórico VNA IPCA'!B14:E50005,2,FALSE) -> 4124.778585 | R10: 38 | S10: 31 | T10: =WORKDAY(WORKDAY(DATEVALUE(CONCATENATE("15/"&MONTH(A10)&"/"&YEAR(A10))),-1,Feriados!$A$2:$A$1037),1,Feriados!$A$2:$A$1037) -> 2023-08-15 | U10: =VLOOKUP(WORKDAY(WORKDAY(T10,-1,Feriados!$A$2:$A$1037),1,Feriados!$A$2:$A$1037),'Histórico VNA IPCA'!B14:E50005,2,FALSE) -> 4129.727118 | V10: 2023-09-15 | W10: 7 | X10: 31 | Y10: 4131.125085
A11: 2023-08-23 | B11: 4131.415631 | C11: 0.15 | D11: P | E11: 3 | F11: 4131.324833 | G11: 0.004835196124 | H11: 1.000386882 | I11: 0.03868817369 | J11: =IF(E11<>1,"",TRUNC((VLOOKUP(WORKDAY(WORKDAY(K11,-1,Feriados!$A$2:$A$1037),1,Feriados!$A$2:$A$1037),'IPCA IBGE'!A:D,4,FALSE)/100+1)*L11,6)) ->  | K11: 2023-07-15 | L11: =VLOOKUP(WORKDAY(WORKDAY(K11,-1,Feriados!$A$2:$A$1037),1,Feriados!$A$2:$A$1037),'Histórico VNA IPCA'!B15:E50006,2,FALSE) -> 4124.778585 | O11: =IF(E11<>2,"",TRUNC((L11)*(1+VLOOKUP(WORKDAY(WORKDAY(K11,-1,Feriados!$A$2:$A$1037),1,Feriados!$A$2:$A$1037),'IPCA IBGE'!A:D,4,FALSE)/100)^(M11/N11),6)) ->  | P11: 2023-07-15 | Q11: =VLOOKUP(WORKDAY(WORKDAY(P11,-1,Feriados!$A$2:$A$1037),1,Feriados!$A$2:$A$1037),'Histórico VNA IPCA'!B15:E50006,2,FALSE) -> 4124.778585 | R11: 39 | S11: 31 | T11: =WORKDAY(WORKDAY(DATEVALUE(CONCATENATE("15/"&MONTH(A11)&"/"&YEAR(A11))),-1,Feriados!$A$2:$A$1037),1,Feriados!$A$2:$A$1037) -> 2023-08-15 | U11: =VLOOKUP(WORKDAY(WORKDAY(T11,-1,Feriados!$A$2:$A$1037),1,Feriados!$A$2:$A$1037),'Histórico VNA IPCA'!B15:E50006,2,FALSE) -> 4129.727118 | V11: 2023-09-15 | W11: 8 | X11: 31 | Y11: 4131.324833
A12: 2023-08-24 | B12: 4131.697117 | C12: 0.15 | D12: P | E12: 3 | F12: 4131.524591 | G12: 0.004835204398 | H12: 1.000435252 | I12: 0.04352524874 | J12: =IF(E12<>1,"",TRUNC((VLOOKUP(WORKDAY(WORKDAY(K12,-1,Feriados!$A$2:$A$1037),1,Feriados!$A$2:$A$1037),'IPCA IBGE'!A:D,4,FALSE)/100+1)*L12,6)) ->  | K12: 2023-07-15 | L12: =VLOOKUP(WORKDAY(WORKDAY(K12,-1,Feriados!$A$2:$A$1037),1,Feriados!$A$2:$A$1037),'Histórico VNA IPCA'!B16:E50007,2,FALSE) -> 4124.778585 | O12: =IF(E12<>2,"",TRUNC((L12)*(1+VLOOKUP(WORKDAY(WORKDAY(K12,-1,Feriados!$A$2:$A$1037),1,Feriados!$A$2:$A$1037),'IPCA IBGE'!A:D,4,FALSE)/100)^(M12/N12),6)) ->  | P12: 2023-07-15 | Q12: =VLOOKUP(WORKDAY(WORKDAY(P12,-1,Feriados!$A$2:$A$1037),1,Feriados!$A$2:$A$1037),'Histórico VNA IPCA'!B16:E50007,2,FALSE) -> 4124.778585 | R12: 40 | S12: 31 | T12: =WORKDAY(WORKDAY(DATEVALUE(CONCATENATE("15/"&MONTH(A12)&"/"&YEAR(A12))),-1,Feriados!$A$2:$A$1037),1,Feriados!$A$2:$A$1037) -> 2023-08-15 | U12: =VLOOKUP(WORKDAY(WORKDAY(T12,-1,Feriados!$A$2:$A$1037),1,Feriados!$A$2:$A$1037),'Histórico VNA IPCA'!B16:E50007,2,FALSE) -> 4129.727118 | V12: 2023-09-15 | W12: 9 | X12: 31 | Y12: 4131.524591
A13: 2023-08-25 | B13: 4131.978622 | C13: 0.15 | D13: P | E13: 3 | F13: 4131.724358 | G13: 0.004835188454 | H13: 1.000483625 | I13: 0.04836254172 | J13: =IF(E13<>1,"",TRUNC((VLOOKUP(WORKDAY(WORKDAY(K13,-1,Feriados!$A$2:$A$1037),1,Feriados!$A$2:$A$1037),'IPCA IBGE'!A:D,4,FALSE)/100+1)*L13,6)) ->  | K13: 2023-07-15 | L13: =VLOOKUP(WORKDAY(WORKDAY(K13,-1,Feriados!$A$2:$A$1037),1,Feriados!$A$2:$A$1037),'Histórico VNA IPCA'!B17:E50008,2,FALSE) -> 4124.778585 | O13: =IF(E13<>2,"",TRUNC((L13)*(1+VLOOKUP(WORKDAY(WORKDAY(K13,-1,Feriados!$A$2:$A$1037),1,Feriados!$A$2:$A$1037),'IPCA IBGE'!A:D,4,FALSE)/100)^(M13/N13),6)) ->  | P13: 2023-07-15 | Q13: =VLOOKUP(WORKDAY(WORKDAY(P13,-1,Feriados!$A$2:$A$1037),1,Feriados!$A$2:$A$1037),'Histórico VNA IPCA'!B17:E50008,2,FALSE) -> 4124.778585 | R13: 41 | S13: 31 | T13: =WORKDAY(WORKDAY(DATEVALUE(CONCATENATE("15/"&MONTH(A13)&"/"&YEAR(A13))),-1,Feriados!$A$2:$A$1037),1,Feriados!$A$2:$A$1037) -> 2023-08-15 | U13: =VLOOKUP(WORKDAY(WORKDAY(T13,-1,Feriados!$A$2:$A$1037),1,Feriados!$A$2:$A$1037),'Histórico VNA IPCA'!B17:E50008,2,FALSE) -> 4129.727118 | V13: 2023-09-15 | W13: 10 | X13: 31 | Y13: 4131.724358
A14: 2023-08-28 | B14: 4134.116276 | C14: 0.26 | D14: P | E14: 3 | F14: 4134.226458 | G14: 0.06055825082 | H14: 1.001089501 | I14: 0.1089500801 | J14: =IF(E14<>1,"",TRUNC((VLOOKUP(WORKDAY(WORKDAY(K14,-1,Feriados!$A$2:$A$1037),1,Feriados!$A$2:$A$1037),'IPCA IBGE'!A:D,4,FALSE)/100+1)*L14,6)) ->  | K14: 2023-07-15 | L14: =VLOOKUP(WORKDAY(WORKDAY(K14,-1,Feriados!$A$2:$A$1037),1,Feriados!$A$2:$A$1037),'Histórico VNA IPCA'!B18:E50009,2,FALSE) -> 4124.778585 | O14: =IF(E14<>2,"",TRUNC((L14)*(1+VLOOKUP(WORKDAY(WORKDAY(K14,-1,Feriados!$A$2:$A$1037),1,Feriados!$A$2:$A$1037),'IPCA IBGE'!A:D,4,FALSE)/100)^(M14/N14),6)) ->  | P14: 2023-07-15 | Q14: =VLOOKUP(WORKDAY(WORKDAY(P14,-1,Feriados!$A$2:$A$1037),1,Feriados!$A$2:$A$1037),'Histórico VNA IPCA'!B18:E50009,2,FALSE) -> 4124.778585 | R14: 44 | S14: 31 | T14: =WORKDAY(WORKDAY(DATEVALUE(CONCATENATE("15/"&MONTH(A14)&"/"&YEAR(A14))),-1,Feriados!$A$2:$A$1037),1,Feriados!$A$2:$A$1037) -> 2023-08-15 | U14: =VLOOKUP(WORKDAY(WORKDAY(T14,-1,Feriados!$A$2:$A$1037),1,Feriados!$A$2:$A$1037),'Histórico VNA IPCA'!B18:E50009,2,FALSE) -> 4129.727118 | V14: 2023-09-15 | W14: 13 | X14: 31 | Y14: 4134.226458
A15: 2023-08-29 | B15: 4134.604248 | C15: 0.26 | D15: P | E15: 3 | F15: 4134.572764 | G15: 0.008376560973 | H15: 1.001173358 | I15: 0.1173357673 | J15: =IF(E15<>1,"",TRUNC((VLOOKUP(WORKDAY(WORKDAY(K15,-1,Feriados!$A$2:$A$1037),1,Feriados!$A$2:$A$1037),'IPCA IBGE'!A:D,4,FALSE)/100+1)*L15,6)) ->  | K15: 2023-07-15 | L15: =VLOOKUP(WORKDAY(WORKDAY(K15,-1,Feriados!$A$2:$A$1037),1,Feriados!$A$2:$A$1037),'Histórico VNA IPCA'!B19:E50010,2,FALSE) -> 4124.778585 | O15: =IF(E15<>2,"",TRUNC((L15)*(1+VLOOKUP(WORKDAY(WORKDAY(K15,-1,Feriados!$A$2:$A$1037),1,Feriados!$A$2:$A$1037),'IPCA IBGE'!A:D,4,FALSE)/100)^(M15/N15),6)) ->  | P15: 2023-07-15 | Q15: =VLOOKUP(WORKDAY(WORKDAY(P15,-1,Feriados!$A$2:$A$1037),1,Feriados!$A$2:$A$1037),'Histórico VNA IPCA'!B19:E50010,2,FALSE) -> 4124.778585 | R15: 45 | S15: 31 | T15: =WORKDAY(WORKDAY(DATEVALUE(CONCATENATE("15/"&MONTH(A15)&"/"&YEAR(A15))),-1,Feriados!$A$2:$A$1037),1,Feriados!$A$2:$A$1037) -> 2023-08-15 | U15: =VLOOKUP(WORKDAY(WORKDAY(T15,-1,Feriados!$A$2:$A$1037),1,Feriados!$A$2:$A$1037),'Histórico VNA IPCA'!B19:E50010,2,FALSE) -> 4129.727118 | V15: 2023-09-15 | W15: 14 | X15: 31 | Y15: 4134.572764
A16: 2023-08-30 | B16: 4135.092278 | C16: 0.26 | D16: P | E16: 3 | F16: 4134.919099 | G16: 0.008376560766 | H16: 1.001257222 | I16: 0.1257221568 | J16: =IF(E16<>1,"",TRUNC((VLOOKUP(WORKDAY(WORKDAY(K16,-1,Feriados!$A$2:$A$1037),1,Feriados!$A$2:$A$1037),'IPCA IBGE'!A:D,4,FALSE)/100+1)*L16,6)) ->  | K16: 2023-07-15 | L16: =VLOOKUP(WORKDAY(WORKDAY(K16,-1,Feriados!$A$2:$A$1037),1,Feriados!$A$2:$A$1037),'Histórico VNA IPCA'!B20:E50011,2,FALSE) -> 4124.778585 | O16: =IF(E16<>2,"",TRUNC((L16)*(1+VLOOKUP(WORKDAY(WORKDAY(K16,-1,Feriados!$A$2:$A$1037),1,Feriados!$A$2:$A$1037),'IPCA IBGE'!A:D,4,FALSE)/100)^(M16/N16),6)) ->  | P16: 2023-07-15 | Q16: =VLOOKUP(WORKDAY(WORKDAY(P16,-1,Feriados!$A$2:$A$1037),1,Feriados!$A$2:$A$1037),'Histórico VNA IPCA'!B20:E50011,2,FALSE) -> 4124.778585 | R16: 46 | S16: 31 | T16: =WORKDAY(WORKDAY(DATEVALUE(CONCATENATE("15/"&MONTH(A16)&"/"&YEAR(A16))),-1,Feriados!$A$2:$A$1037),1,Feriados!$A$2:$A$1037) -> 2023-08-15 | U16: =VLOOKUP(WORKDAY(WORKDAY(T16,-1,Feriados!$A$2:$A$1037),1,Feriados!$A$2:$A$1037),'Histórico VNA IPCA'!B20:E50011,2,FALSE) -> 4129.727118 | V16: 2023-09-15 | W16: 15 | X16: 31 | Y16: 4134.919099
A17: 2023-08-31 | B17: 4135.580365 | C17: 0.26 | D17: P | E17: 3 | F17: 4135.265463 | G17: 0.008376560501 | H17: 1.001341092 | I17: 0.1341092485 | J17: =IF(E17<>1,"",TRUNC((VLOOKUP(WORKDAY(WORKDAY(K17,-1,Feriados!$A$2:$A$1037),1,Feriados!$A$2:$A$1037),'IPCA IBGE'!A:D,4,FALSE)/100+1)*L17,6)) ->  | K17: 2023-07-15 | L17: =VLOOKUP(WORKDAY(WORKDAY(K17,-1,Feriados!$A$2:$A$1037),1,Feriados!$A$2:$A$1037),'Histórico VNA IPCA'!B21:E50012,2,FALSE) -> 4124.778585 | O17: =IF(E17<>2,"",TRUNC((L17)*(1+VLOOKUP(WORKDAY(WORKDAY(K17,-1,Feriados!$A$2:$A$1037),1,Feriados!$A$2:$A$1037),'IPCA IBGE'!A:D,4,FALSE)/100)^(M17/N17),6)) ->  | P17: 2023-07-15 | Q17: =VLOOKUP(WORKDAY(WORKDAY(P17,-1,Feriados!$A$2:$A$1037),1,Feriados!$A$2:$A$1037),'Histórico VNA IPCA'!B21:E50012,2,FALSE) -> 4124.778585 | R17: 47 | S17: 31 | T17: =WORKDAY(WORKDAY(DATEVALUE(CONCATENATE("15/"&MONTH(A17)&"/"&YEAR(A17))),-1,Feriados!$A$2:$A$1037),1,Feriados!$A$2:$A$1037) -> 2023-08-15 | U17: =VLOOKUP(WORKDAY(WORKDAY(T17,-1,Feriados!$A$2:$A$1037),1,Feriados!$A$2:$A$1037),'Histórico VNA IPCA'!B21:E50012,2,FALSE) -> 4129.727118 | V17: 2023-09-15 | W17: 16 | X17: 31 | Y17: 4135.265463
A18: 2023-09-01 | B18: 4136.06851 | C18: 0.26 | D18: P | E18: 3 | F18: 4135.611856 | G18: 0.008376560177 | H18: 1.00142497 | I18: 0.1424970424 | J18: =IF(E18<>1,"",TRUNC((VLOOKUP(WORKDAY(WORKDAY(K18,-1,Feriados!$A$2:$A$1037),1,Feriados!$A$2:$A$1037),'IPCA IBGE'!A:D,4,FALSE)/100+1)*L18,6)) ->  | K18: 2023-08-15 | L18: =VLOOKUP(WORKDAY(WORKDAY(K18,-1,Feriados!$A$2:$A$1037),1,Feriados!$A$2:$A$1037),'Histórico VNA IPCA'!B22:E50013,2,FALSE) -> 4129.727118 | O18: =IF(E18<>2,"",TRUNC((L18)*(1+VLOOKUP(WORKDAY(WORKDAY(K18,-1,Feriados!$A$2:$A$1037),1,Feriados!$A$2:$A$1037),'IPCA IBGE'!A:D,4,FALSE)/100)^(M18/N18),6)) ->  | P18: 2023-08-15 | Q18: =VLOOKUP(WORKDAY(WORKDAY(P18,-1,Feriados!$A$2:$A$1037),1,Feriados!$A$2:$A$1037),'Histórico VNA IPCA'!B22:E50013,2,FALSE) -> 4129.727118 | R18: 17 | S18: 31 | T18: =WORKDAY(WORKDAY(DATEVALUE(CONCATENATE("15/"&MONTH(A18)&"/"&YEAR(A18))),-1,Feriados!$A$2:$A$1037),1,Feriados!$A$2:$A$1037) -> 2023-09-15 | U18: =VLOOKUP(WORKDAY(WORKDAY(T18,-1,Feriados!$A$2:$A$1037),1,Feriados!$A$2:$A$1037),'Histórico VNA IPCA'!B22:E50013,2,FALSE) -> 4139.227805 | V18: 2023-10-15 | W18: -14 | X18: 30 | Y18: 4135.611856
A19: 2023-09-04 | B19: 4136.556712 | C19: 0.26 | D19: P | E19: 3 | F19: 4136.65121 | G19: 0.02513180724 | H19: 1.001676647 | I19: 0.1676646617 | J19: =IF(E19<>1,"",TRUNC((VLOOKUP(WORKDAY(WORKDAY(K19,-1,Feriados!$A$2:$A$1037),1,Feriados!$A$2:$A$1037),'IPCA IBGE'!A:D,4,FALSE)/100+1)*L19,6)) ->  | K19: 2023-08-15 | L19: =VLOOKUP(WORKDAY(WORKDAY(K19,-1,Feriados!$A$2:$A$1037),1,Feriados!$A$2:$A$1037),'Histórico VNA IPCA'!B23:E50014,2,FALSE) -> 4129.727118 | O19: =IF(E19<>2,"",TRUNC((L19)*(1+VLOOKUP(WORKDAY(WORKDAY(K19,-1,Feriados!$A$2:$A$1037),1,Feriados!$A$2:$A$1037),'IPCA IBGE'!A:D,4,FALSE)/100)^(M19/N19),6)) ->  | P19: 2023-08-15 | Q19: =VLOOKUP(WORKDAY(WORKDAY(P19,-1,Feriados!$A$2:$A$1037),1,Feriados!$A$2:$A$1037),'Histórico VNA IPCA'!B23:E50014,2,FALSE) -> 4129.727118 | R19: 20 | S19: 31 | T19: =WORKDAY(WORKDAY(DATEVALUE(CONCATENATE("15/"&MONTH(A19)&"/"&YEAR(A19))),-1,Feriados!$A$2:$A$1037),1,Feriados!$A$2:$A$1037) -> 2023-09-15 | U19: =VLOOKUP(WORKDAY(WORKDAY(T19,-1,Feriados!$A$2:$A$1037),1,Feriados!$A$2:$A$1037),'Histórico VNA IPCA'!B23:E50014,2,FALSE) -> 4139.227805 | V19: 2023-10-15 | W19: -11 | X19: 30 | Y19: 4136.65121
A20: 2023-09-05 | B20: 4137.044973 | C20: 0.26 | D20: P | E20: 3 | F20: 4136.997719 | G20: 0.008376558293 | H20: 1.001760553 | I20: 0.1760552645 | J20: =IF(E20<>1,"",TRUNC((VLOOKUP(WORKDAY(WORKDAY(K20,-1,Feriados!$A$2:$A$1037),1,Feriados!$A$2:$A$1037),'IPCA IBGE'!A:D,4,FALSE)/100+1)*L20,6)) ->  | K20: 2023-08-15 | L20: =VLOOKUP(WORKDAY(WORKDAY(K20,-1,Feriados!$A$2:$A$1037),1,Feriados!$A$2:$A$1037),'Histórico VNA IPCA'!B24:E50015,2,FALSE) -> 4129.727118 | O20: =IF(E20<>2,"",TRUNC((L20)*(1+VLOOKUP(WORKDAY(WORKDAY(K20,-1,Feriados!$A$2:$A$1037),1,Feriados!$A$2:$A$1037),'IPCA IBGE'!A:D,4,FALSE)/100)^(M20/N20),6)) ->  | P20: 2023-08-15 | Q20: =VLOOKUP(WORKDAY(WORKDAY(P20,-1,Feriados!$A$2:$A$1037),1,Feriados!$A$2:$A$1037),'Histórico VNA IPCA'!B24:E50015,2,FALSE) -> 4129.727118 | R20: 21 | S20: 31 | T20: =WORKDAY(WORKDAY(DATEVALUE(CONCATENATE("15/"&MONTH(A20)&"/"&YEAR(A20))),-1,Feriados!$A$2:$A$1037),1,Feriados!$A$2:$A$1037) -> 2023-09-15 | U20: =VLOOKUP(WORKDAY(WORKDAY(T20,-1,Feriados!$A$2:$A$1037),1,Feriados!$A$2:$A$1037),'Histórico VNA IPCA'!B24:E50015,2,FALSE) -> 4139.227805 | V20: 2023-10-15 | W20: -10 | X20: 30 | Y20: 4136.997719
A21: 2023-09-06 | B21: 4137.53329 | C21: 0.26 | D21: P | E21: 3 | F21: 4137.344257 | G21: 0.008376557676 | H21: 1.001844466 | I21: 0.1844465696 | J21: =IF(E21<>1,"",TRUNC((VLOOKUP(WORKDAY(WORKDAY(K21,-1,Feriados!$A$2:$A$1037),1,Feriados!$A$2:$A$1037),'IPCA IBGE'!A:D,4,FALSE)/100+1)*L21,6)) ->  | K21: 2023-08-15 | L21: =VLOOKUP(WORKDAY(WORKDAY(K21,-1,Feriados!$A$2:$A$1037),1,Feriados!$A$2:$A$1037),'Histórico VNA IPCA'!B25:E50016,2,FALSE) -> 4129.727118 | O21: =IF(E21<>2,"",TRUNC((L21)*(1+VLOOKUP(WORKDAY(WORKDAY(K21,-1,Feriados!$A$2:$A$1037),1,Feriados!$A$2:$A$1037),'IPCA IBGE'!A:D,4,FALSE)/100)^(M21/N21),6)) ->  | P21: 2023-08-15 | Q21: =VLOOKUP(WORKDAY(WORKDAY(P21,-1,Feriados!$A$2:$A$1037),1,Feriados!$A$2:$A$1037),'Histórico VNA IPCA'!B25:E50016,2,FALSE) -> 4129.727118 | R21: 22 | S21: 31 | T21: =WORKDAY(WORKDAY(DATEVALUE(CONCATENATE("15/"&MONTH(A21)&"/"&YEAR(A21))),-1,Feriados!$A$2:$A$1037),1,Feriados!$A$2:$A$1037) -> 2023-09-15 | U21: =VLOOKUP(WORKDAY(WORKDAY(T21,-1,Feriados!$A$2:$A$1037),1,Feriados!$A$2:$A$1037),'Histórico VNA IPCA'!B25:E50016,2,FALSE) -> 4139.227805 | V21: 2023-10-15 | W21: -9 | X21: 30 | Y21: 4137.344257
A22: 2023-09-08 | B22: 4138.021666 | C22: 0.26 | D22: P | E22: 3 | F22: 4138.037421 | G22: 0.0167538391 | H22: 1.002012313 | I22: 0.2012313106 | J22: =IF(E22<>1,"",TRUNC((VLOOKUP(WORKDAY(WORKDAY(K22,-1,Feriados!$A$2:$A$1037),1,Feriados!$A$2:$A$1037),'IPCA IBGE'!A:D,4,FALSE)/100+1)*L22,6)) ->  | K22: 2023-08-15 | L22: =VLOOKUP(WORKDAY(WORKDAY(K22,-1,Feriados!$A$2:$A$1037),1,Feriados!$A$2:$A$1037),'Histórico VNA IPCA'!B26:E50017,2,FALSE) -> 4129.727118 | O22: =IF(E22<>2,"",TRUNC((L22)*(1+VLOOKUP(WORKDAY(WORKDAY(K22,-1,Feriados!$A$2:$A$1037),1,Feriados!$A$2:$A$1037),'IPCA IBGE'!A:D,4,FALSE)/100)^(M22/N22),6)) ->  | P22: 2023-08-15 | Q22: =VLOOKUP(WORKDAY(WORKDAY(P22,-1,Feriados!$A$2:$A$1037),1,Feriados!$A$2:$A$1037),'Histórico VNA IPCA'!B26:E50017,2,FALSE) -> 4129.727118 | R22: 24 | S22: 31 | T22: =WORKDAY(WORKDAY(DATEVALUE(CONCATENATE("15/"&MONTH(A22)&"/"&YEAR(A22))),-1,Feriados!$A$2:$A$1037),1,Feriados!$A$2:$A$1037) -> 2023-09-15 | U22: =VLOOKUP(WORKDAY(WORKDAY(T22,-1,Feriados!$A$2:$A$1037),1,Feriados!$A$2:$A$1037),'Histórico VNA IPCA'!B26:E50017,2,FALSE) -> 4139.227805 | V22: 2023-10-15 | W22: -7 | X22: 30 | Y22: 4138.037421
A23: 2023-09-11 | B23: 4138.510099 | C23: 0.26 | D23: P | E23: 3 | F23: 4139.077384 | G23: 0.02513179303 | H23: 1.002264137 | I23: 0.2264136766 | J23: =IF(E23<>1,"",TRUNC((VLOOKUP(WORKDAY(WORKDAY(K23,-1,Feriados!$A$2:$A$1037),1,Feriados!$A$2:$A$1037),'IPCA IBGE'!A:D,4,FALSE)/100+1)*L23,6)) ->  | K23: 2023-08-15 | L23: =VLOOKUP(WORKDAY(WORKDAY(K23,-1,Feriados!$A$2:$A$1037),1,Feriados!$A$2:$A$1037),'Histórico VNA IPCA'!B27:E50018,2,FALSE) -> 4129.727118 | O23: =IF(E23<>2,"",TRUNC((L23)*(1+VLOOKUP(WORKDAY(WORKDAY(K23,-1,Feriados!$A$2:$A$1037),1,Feriados!$A$2:$A$1037),'IPCA IBGE'!A:D,4,FALSE)/100)^(M23/N23),6)) ->  | P23: 2023-08-15 | Q23: =VLOOKUP(WORKDAY(WORKDAY(P23,-1,Feriados!$A$2:$A$1037),1,Feriados!$A$2:$A$1037),'Histórico VNA IPCA'!B27:E50018,2,FALSE) -> 4129.727118 | R23: 27 | S23: 31 | T23: =WORKDAY(WORKDAY(DATEVALUE(CONCATENATE("15/"&MONTH(A23)&"/"&YEAR(A23))),-1,Feriados!$A$2:$A$1037),1,Feriados!$A$2:$A$1037) -> 2023-09-15 | U23: =VLOOKUP(WORKDAY(WORKDAY(T23,-1,Feriados!$A$2:$A$1037),1,Feriados!$A$2:$A$1037),'Histórico VNA IPCA'!B27:E50018,2,FALSE) -> 4139.227805 | V23: 2023-10-15 | W23: -4 | X23: 30 | Y23: 4139.077384
A24: 2023-09-12 | B24: 4137.930971 | C24: 0.23 | D24: F | E24: 2 | F24: 4138.307429 | G24: -0.01860209241 | H24: 1.002077695 | I24: 0.2077694665 | J24: =IF(E24<>1,"",TRUNC((VLOOKUP(WORKDAY(WORKDAY(K24,-1,Feriados!$A$2:$A$1037),1,Feriados!$A$2:$A$1037),'IPCA IBGE'!A:D,4,FALSE)/100+1)*L24,6)) ->  | K24: 2023-08-15 | L24: =VLOOKUP(WORKDAY(WORKDAY(K24,-1,Feriados!$A$2:$A$1037),1,Feriados!$A$2:$A$1037),'Histórico VNA IPCA'!B28:E50019,2,FALSE) -> 4129.727118 | M24: 28 | N24: 31 | O24: =IF(E24<>2,"",TRUNC((L24)*(1+VLOOKUP(WORKDAY(WORKDAY(K24,-1,Feriados!$A$2:$A$1037),1,Feriados!$A$2:$A$1037),'IPCA IBGE'!A:D,4,FALSE)/100)^(M24/N24),6)) -> 4138.307429 | P24: 2023-08-15 | Q24: =VLOOKUP(WORKDAY(WORKDAY(P24,-1,Feriados!$A$2:$A$1037),1,Feriados!$A$2:$A$1037),'Histórico VNA IPCA'!B28:E50019,2,FALSE) -> 4129.727118 | T24: =WORKDAY(WORKDAY(DATEVALUE(CONCATENATE("15/"&MONTH(A24)&"/"&YEAR(A24))),-1,Feriados!$A$2:$A$1037),1,Feriados!$A$2:$A$1037) -> 2023-09-15 | U24: =VLOOKUP(WORKDAY(WORKDAY(T24,-1,Feriados!$A$2:$A$1037),1,Feriados!$A$2:$A$1037),'Histórico VNA IPCA'!B28:E50019,2,FALSE) -> 4139.227805 | V24: 2023-10-15
A25: 2023-09-13 | B25: 4138.363204 | C25: 0.23 | D25: F | E25: 2 | F25: 4138.614198 | G25: 0.007412909873 | H25: 1.002151978 | I25: 0.2151977782 | J25: =IF(E25<>1,"",TRUNC((VLOOKUP(WORKDAY(WORKDAY(K25,-1,Feriados!$A$2:$A$1037),1,Feriados!$A$2:$A$1037),'IPCA IBGE'!A:D,4,FALSE)/100+1)*L25,6)) ->  | K25: 2023-08-15 | L25: =VLOOKUP(WORKDAY(WORKDAY(K25,-1,Feriados!$A$2:$A$1037),1,Feriados!$A$2:$A$1037),'Histórico VNA IPCA'!B29:E50020,2,FALSE) -> 4129.727118 | M25: 29 | N25: 31 | O25: =IF(E25<>2,"",TRUNC((L25)*(1+VLOOKUP(WORKDAY(WORKDAY(K25,-1,Feriados!$A$2:$A$1037),1,Feriados!$A$2:$A$1037),'IPCA IBGE'!A:D,4,FALSE)/100)^(M25/N25),6)) -> 4138.614198 | P25: 2023-08-15 | Q25: =VLOOKUP(WORKDAY(WORKDAY(P25,-1,Feriados!$A$2:$A$1037),1,Feriados!$A$2:$A$1037),'Histórico VNA IPCA'!B29:E50020,2,FALSE) -> 4129.727118 | T25: =WORKDAY(WORKDAY(DATEVALUE(CONCATENATE("15/"&MONTH(A25)&"/"&YEAR(A25))),-1,Feriados!$A$2:$A$1037),1,Feriados!$A$2:$A$1037) -> 2023-09-15 | U25: =VLOOKUP(WORKDAY(WORKDAY(T25,-1,Feriados!$A$2:$A$1037),1,Feriados!$A$2:$A$1037),'Histórico VNA IPCA'!B29:E50020,2,FALSE) -> 4139.227805 | V25: 2023-10-15
A26: 2023-09-14 | B26: 4138.795482 | C26: 0.23 | D26: F | E26: 2 | F26: 4138.92099 | G26: 0.007412916143 | H26: 1.002226266 | I26: 0.2226266467 | J26: =IF(E26<>1,"",TRUNC((VLOOKUP(WORKDAY(WORKDAY(K26,-1,Feriados!$A$2:$A$1037),1,Feriados!$A$2:$A$1037),'IPCA IBGE'!A:D,4,FALSE)/100+1)*L26,6)) ->  | K26: 2023-08-15 | L26: =VLOOKUP(WORKDAY(WORKDAY(K26,-1,Feriados!$A$2:$A$1037),1,Feriados!$A$2:$A$1037),'Histórico VNA IPCA'!B30:E50021,2,FALSE) -> 4129.727118 | M26: 30 | N26: 31 | O26: =IF(E26<>2,"",TRUNC((L26)*(1+VLOOKUP(WORKDAY(WORKDAY(K26,-1,Feriados!$A$2:$A$1037),1,Feriados!$A$2:$A$1037),'IPCA IBGE'!A:D,4,FALSE)/100)^(M26/N26),6)) -> 4138.92099 | P26: 2023-08-15 | Q26: =VLOOKUP(WORKDAY(WORKDAY(P26,-1,Feriados!$A$2:$A$1037),1,Feriados!$A$2:$A$1037),'Histórico VNA IPCA'!B30:E50021,2,FALSE) -> 4129.727118 | T26: =WORKDAY(WORKDAY(DATEVALUE(CONCATENATE("15/"&MONTH(A26)&"/"&YEAR(A26))),-1,Feriados!$A$2:$A$1037),1,Feriados!$A$2:$A$1037) -> 2023-09-15 | U26: =VLOOKUP(WORKDAY(WORKDAY(T26,-1,Feriados!$A$2:$A$1037),1,Feriados!$A$2:$A$1037),'Histórico VNA IPCA'!B30:E50021,2,FALSE) -> 4139.227805 | V26: 2023-10-15
A27: 2023-09-15 | B27: 4139.227805 | C27: 0.23 | D27: F | E27: 1 | F27: 4139.227805 | G27: 0.007412922371 | H27: 1.002300561 | I27: 0.2300560722 | J27: =IF(E27<>1,"",TRUNC((VLOOKUP(WORKDAY(WORKDAY(K27,-1,Feriados!$A$2:$A$1037),1,Feriados!$A$2:$A$1037),'IPCA IBGE'!A:D,4,FALSE)/100+1)*L27,6)) -> 4139.227805 | K27: 2023-08-15 | L27: =VLOOKUP(WORKDAY(WORKDAY(K27,-1,Feriados!$A$2:$A$1037),1,Feriados!$A$2:$A$1037),'Histórico VNA IPCA'!B31:E50022,2,FALSE) -> 4129.727118 | O27: =IF(E27<>2,"",TRUNC((L27)*(1+VLOOKUP(WORKDAY(WORKDAY(K27,-1,Feriados!$A$2:$A$1037),1,Feriados!$A$2:$A$1037),'IPCA IBGE'!A:D,4,FALSE)/100)^(M27/N27),6)) ->  | P27: 2023-08-15 | Q27: =VLOOKUP(WORKDAY(WORKDAY(P27,-1,Feriados!$A$2:$A$1037),1,Feriados!$A$2:$A$1037),'Histórico VNA IPCA'!B31:E50022,2,FALSE) -> 4129.727118 | T27: =WORKDAY(WORKDAY(DATEVALUE(CONCATENATE("15/"&MONTH(A27)&"/"&YEAR(A27))),-1,Feriados!$A$2:$A$1037),1,Feriados!$A$2:$A$1037) -> 2023-09-15 | U27: =VLOOKUP(WORKDAY(WORKDAY(T27,-1,Feriados!$A$2:$A$1037),1,Feriados!$A$2:$A$1037),'Histórico VNA IPCA'!B31:E50022,2,FALSE) -> 4139.227805 | V27: 2023-10-15
A28: 2023-09-18 | B28: 4140.012842 | C28: 0.38 | D28: P | E28: 3 | F28: 4140.798028 | G28: 0.03793516748 | H28: 1.002680785 | I28: 0.2680785119 | J28: =IF(E28<>1,"",TRUNC((VLOOKUP(WORKDAY(WORKDAY(K28,-1,Feriados!$A$2:$A$1037),1,Feriados!$A$2:$A$1037),'IPCA IBGE'!A:D,4,FALSE)/100+1)*L28,6)) ->  | K28: 2023-08-15 | L28: =VLOOKUP(WORKDAY(WORKDAY(K28,-1,Feriados!$A$2:$A$1037),1,Feriados!$A$2:$A$1037),'Histórico VNA IPCA'!B32:E50023,2,FALSE) -> 4129.727118 | O28: =IF(E28<>2,"",TRUNC((L28)*(1+VLOOKUP(WORKDAY(WORKDAY(K28,-1,Feriados!$A$2:$A$1037),1,Feriados!$A$2:$A$1037),'IPCA IBGE'!A:D,4,FALSE)/100)^(M28/N28),6)) ->  | P28: 2023-08-15 | Q28: =VLOOKUP(WORKDAY(WORKDAY(P28,-1,Feriados!$A$2:$A$1037),1,Feriados!$A$2:$A$1037),'Histórico VNA IPCA'!B32:E50023,2,FALSE) -> 4129.727118 | R28: 34 | S28: 31 | T28: =WORKDAY(WORKDAY(DATEVALUE(CONCATENATE("15/"&MONTH(A28)&"/"&YEAR(A28))),-1,Feriados!$A$2:$A$1037),1,Feriados!$A$2:$A$1037) -> 2023-09-15 | U28: =VLOOKUP(WORKDAY(WORKDAY(T28,-1,Feriados!$A$2:$A$1037),1,Feriados!$A$2:$A$1037),'Histórico VNA IPCA'!B32:E50023,2,FALSE) -> 4139.227805 | V28: 2023-10-15 | W28: 3 | X28: 30 | Y28: 4140.798028
A29: 2023-09-19 | B29: 4140.798028 | C29: 0.38 | D29: P | E29: 3 | F29: 4141.321568 | G29: 0.01264345656 | H29: 1.002807559 | I29: 0.2807558628 | J29: =IF(E29<>1,"",TRUNC((VLOOKUP(WORKDAY(WORKDAY(K29,-1,Feriados!$A$2:$A$1037),1,Feriados!$A$2:$A$1037),'IPCA IBGE'!A:D,4,FALSE)/100+1)*L29,6)) ->  | K29: 2023-08-15 | L29: =VLOOKUP(WORKDAY(WORKDAY(K29,-1,Feriados!$A$2:$A$1037),1,Feriados!$A$2:$A$1037),'Histórico VNA IPCA'!B33:E50024,2,FALSE) -> 4129.727118 | O29: =IF(E29<>2,"",TRUNC((L29)*(1+VLOOKUP(WORKDAY(WORKDAY(K29,-1,Feriados!$A$2:$A$1037),1,Feriados!$A$2:$A$1037),'IPCA IBGE'!A:D,4,FALSE)/100)^(M29/N29),6)) ->  | P29: 2023-08-15 | Q29: =VLOOKUP(WORKDAY(WORKDAY(P29,-1,Feriados!$A$2:$A$1037),1,Feriados!$A$2:$A$1037),'Histórico VNA IPCA'!B33:E50024,2,FALSE) -> 4129.727118 | R29: 35 | S29: 31 | T29: =WORKDAY(WORKDAY(DATEVALUE(CONCATENATE("15/"&MONTH(A29)&"/"&YEAR(A29))),-1,Feriados!$A$2:$A$1037),1,Feriados!$A$2:$A$1037) -> 2023-09-15 | U29: =VLOOKUP(WORKDAY(WORKDAY(T29,-1,Feriados!$A$2:$A$1037),1,Feriados!$A$2:$A$1037),'Histórico VNA IPCA'!B33:E50024,2,FALSE) -> 4139.227805 | V29: 2023-10-15 | W29: 4 | X29: 30 | Y29: 4141.321568
A30: 2023-09-20 | B30: 4141.583363 | C30: 0.38 | D30: P | E30: 3 | F30: 4141.845174 | G30: 0.01264345189 | H30: 1.002934348 | I30: 0.293434812 | J30: =IF(E30<>1,"",TRUNC((VLOOKUP(WORKDAY(WORKDAY(K30,-1,Feriados!$A$2:$A$1037),1,Feriados!$A$2:$A$1037),'IPCA IBGE'!A:D,4,FALSE)/100+1)*L30,6)) ->  | K30: 2023-08-15 | L30: =VLOOKUP(WORKDAY(WORKDAY(K30,-1,Feriados!$A$2:$A$1037),1,Feriados!$A$2:$A$1037),'Histórico VNA IPCA'!B34:E50025,2,FALSE) -> 4129.727118 | O30: =IF(E30<>2,"",TRUNC((L30)*(1+VLOOKUP(WORKDAY(WORKDAY(K30,-1,Feriados!$A$2:$A$1037),1,Feriados!$A$2:$A$1037),'IPCA IBGE'!A:D,4,FALSE)/100)^(M30/N30),6)) ->  | P30: 2023-08-15 | Q30: =VLOOKUP(WORKDAY(WORKDAY(P30,-1,Feriados!$A$2:$A$1037),1,Feriados!$A$2:$A$1037),'Histórico VNA IPCA'!B34:E50025,2,FALSE) -> 4129.727118 | R30: 36 | S30: 31 | T30: =WORKDAY(WORKDAY(DATEVALUE(CONCATENATE("15/"&MONTH(A30)&"/"&YEAR(A30))),-1,Feriados!$A$2:$A$1037),1,Feriados!$A$2:$A$1037) -> 2023-09-15 | U30: =VLOOKUP(WORKDAY(WORKDAY(T30,-1,Feriados!$A$2:$A$1037),1,Feriados!$A$2:$A$1037),'Histórico VNA IPCA'!B34:E50025,2,FALSE) -> 4139.227805 | V30: 2023-10-15 | W30: 5 | X30: 30 | Y30: 4141.845174
A31: 2023-09-21 | B31: 4142.368847 | C31: 0.38 | D31: P | E31: 3 | F31: 4142.368847 | G31: 0.01264347116 | H31: 1.003061154 | I31: 0.3061153835 | J31: =IF(E31<>1,"",TRUNC((VLOOKUP(WORKDAY(WORKDAY(K31,-1,Feriados!$A$2:$A$1037),1,Feriados!$A$2:$A$1037),'IPCA IBGE'!A:D,4,FALSE)/100+1)*L31,6)) ->  | K31: 2023-08-15 | L31: =VLOOKUP(WORKDAY(WORKDAY(K31,-1,Feriados!$A$2:$A$1037),1,Feriados!$A$2:$A$1037),'Histórico VNA IPCA'!B35:E50026,2,FALSE) -> 4129.727118 | O31: =IF(E31<>2,"",TRUNC((L31)*(1+VLOOKUP(WORKDAY(WORKDAY(K31,-1,Feriados!$A$2:$A$1037),1,Feriados!$A$2:$A$1037),'IPCA IBGE'!A:D,4,FALSE)/100)^(M31/N31),6)) ->  | P31: 2023-08-15 | Q31: =VLOOKUP(WORKDAY(WORKDAY(P31,-1,Feriados!$A$2:$A$1037),1,Feriados!$A$2:$A$1037),'Histórico VNA IPCA'!B35:E50026,2,FALSE) -> 4129.727118 | R31: 37 | S31: 31 | T31: =WORKDAY(WORKDAY(DATEVALUE(CONCATENATE("15/"&MONTH(A31)&"/"&YEAR(A31))),-1,Feriados!$A$2:$A$1037),1,Feriados!$A$2:$A$1037) -> 2023-09-15 | U31: =VLOOKUP(WORKDAY(WORKDAY(T31,-1,Feriados!$A$2:$A$1037),1,Feriados!$A$2:$A$1037),'Histórico VNA IPCA'!B35:E50026,2,FALSE) -> 4139.227805 | V31: 2023-10-15 | W31: 6 | X31: 30 | Y31: 4142.368847
A32: 2023-09-22 | B32: 4143.15448 | C32: 0.38 | D32: P | E32: 3 | F32: 4142.892586 | G32: 0.01264346608 | H32: 1.003187976 | I32: 0.3187975531 | J32: =IF(E32<>1,"",TRUNC((VLOOKUP(WORKDAY(WORKDAY(K32,-1,Feriados!$A$2:$A$1037),1,Feriados!$A$2:$A$1037),'IPCA IBGE'!A:D,4,FALSE)/100+1)*L32,6)) ->  | K32: 2023-08-15 | L32: =VLOOKUP(WORKDAY(WORKDAY(K32,-1,Feriados!$A$2:$A$1037),1,Feriados!$A$2:$A$1037),'Histórico VNA IPCA'!B36:E50027,2,FALSE) -> 4129.727118 | O32: =IF(E32<>2,"",TRUNC((L32)*(1+VLOOKUP(WORKDAY(WORKDAY(K32,-1,Feriados!$A$2:$A$1037),1,Feriados!$A$2:$A$1037),'IPCA IBGE'!A:D,4,FALSE)/100)^(M32/N32),6)) ->  | P32: 2023-08-15 | Q32: =VLOOKUP(WORKDAY(WORKDAY(P32,-1,Feriados!$A$2:$A$1037),1,Feriados!$A$2:$A$1037),'Histórico VNA IPCA'!B36:E50027,2,FALSE) -> 4129.727118 | R32: 38 | S32: 31 | T32: =WORKDAY(WORKDAY(DATEVALUE(CONCATENATE("15/"&MONTH(A32)&"/"&YEAR(A32))),-1,Feriados!$A$2:$A$1037),1,Feriados!$A$2:$A$1037) -> 2023-09-15 | U32: =VLOOKUP(WORKDAY(WORKDAY(T32,-1,Feriados!$A$2:$A$1037),1,Feriados!$A$2:$A$1037),'Histórico VNA IPCA'!B36:E50027,2,FALSE) -> 4139.227805 | V32: 2023-10-15 | W32: 7 | X32: 30 | Y32: 4142.892586
A33: 2023-09-25 | B33: 4143.940262 | C33: 0.38 | D33: P | E33: 3 | F33: 4144.464199 | G33: 0.03793516166 | H33: 1.003568537 | I33: 0.3568536512 | J33: =IF(E33<>1,"",TRUNC((VLOOKUP(WORKDAY(WORKDAY(K33,-1,Feriados!$A$2:$A$1037),1,Feriados!$A$2:$A$1037),'IPCA IBGE'!A:D,4,FALSE)/100+1)*L33,6)) ->  | K33: 2023-08-15 | L33: =VLOOKUP(WORKDAY(WORKDAY(K33,-1,Feriados!$A$2:$A$1037),1,Feriados!$A$2:$A$1037),'Histórico VNA IPCA'!B37:E50028,2,FALSE) -> 4129.727118 | O33: =IF(E33<>2,"",TRUNC((L33)*(1+VLOOKUP(WORKDAY(WORKDAY(K33,-1,Feriados!$A$2:$A$1037),1,Feriados!$A$2:$A$1037),'IPCA IBGE'!A:D,4,FALSE)/100)^(M33/N33),6)) ->  | P33: 2023-08-15 | Q33: =VLOOKUP(WORKDAY(WORKDAY(P33,-1,Feriados!$A$2:$A$1037),1,Feriados!$A$2:$A$1037),'Histórico VNA IPCA'!B37:E50028,2,FALSE) -> 4129.727118 | R33: 41 | S33: 31 | T33: =WORKDAY(WORKDAY(DATEVALUE(CONCATENATE("15/"&MONTH(A33)&"/"&YEAR(A33))),-1,Feriados!$A$2:$A$1037),1,Feriados!$A$2:$A$1037) -> 2023-09-15 | U33: =VLOOKUP(WORKDAY(WORKDAY(T33,-1,Feriados!$A$2:$A$1037),1,Feriados!$A$2:$A$1037),'Histórico VNA IPCA'!B37:E50028,2,FALSE) -> 4139.227805 | V33: 2023-10-15 | W33: 10 | X33: 30 | Y33: 4144.464199
A34: 2023-09-26 | B34: 4144.726193 | C34: 0.38 | D34: P | E34: 3 | F34: 4144.988203 | G34: 0.01264346788 | H34: 1.003695422 | I34: 0.3695422377 | J34: =IF(E34<>1,"",TRUNC((VLOOKUP(WORKDAY(WORKDAY(K34,-1,Feriados!$A$2:$A$1037),1,Feriados!$A$2:$A$1037),'IPCA IBGE'!A:D,4,FALSE)/100+1)*L34,6)) ->  | K34: 2023-08-15 | L34: =VLOOKUP(WORKDAY(WORKDAY(K34,-1,Feriados!$A$2:$A$1037),1,Feriados!$A$2:$A$1037),'Histórico VNA IPCA'!B38:E50029,2,FALSE) -> 4129.727118 | O34: =IF(E34<>2,"",TRUNC((L34)*(1+VLOOKUP(WORKDAY(WORKDAY(K34,-1,Feriados!$A$2:$A$1037),1,Feriados!$A$2:$A$1037),'IPCA IBGE'!A:D,4,FALSE)/100)^(M34/N34),6)) ->  | P34: 2023-08-15 | Q34: =VLOOKUP(WORKDAY(WORKDAY(P34,-1,Feriados!$A$2:$A$1037),1,Feriados!$A$2:$A$1037),'Histórico VNA IPCA'!B38:E50029,2,FALSE) -> 4129.727118 | R34: 42 | S34: 31 | T34: =WORKDAY(WORKDAY(DATEVALUE(CONCATENATE("15/"&MONTH(A34)&"/"&YEAR(A34))),-1,Feriados!$A$2:$A$1037),1,Feriados!$A$2:$A$1037) -> 2023-09-15 | U34: =VLOOKUP(WORKDAY(WORKDAY(T34,-1,Feriados!$A$2:$A$1037),1,Feriados!$A$2:$A$1037),'Histórico VNA IPCA'!B38:E50029,2,FALSE) -> 4139.227805 | V34: 2023-10-15 | W34: 11 | X34: 30 | Y34: 4144.988203
A35: 2023-09-27 | B35: 4144.520938 | C35: 0.32 | D35: P | E35: 3 | F35: 4144.520938 | G35: -0.01127301158 | H35: 1.003582276 | I35: 0.3582275676 | J35: =IF(E35<>1,"",TRUNC((VLOOKUP(WORKDAY(WORKDAY(K35,-1,Feriados!$A$2:$A$1037),1,Feriados!$A$2:$A$1037),'IPCA IBGE'!A:D,4,FALSE)/100+1)*L35,6)) ->  | K35: 2023-08-15 | L35: =VLOOKUP(WORKDAY(WORKDAY(K35,-1,Feriados!$A$2:$A$1037),1,Feriados!$A$2:$A$1037),'Histórico VNA IPCA'!B39:E50030,2,FALSE) -> 4129.727118 | O35: =IF(E35<>2,"",TRUNC((L35)*(1+VLOOKUP(WORKDAY(WORKDAY(K35,-1,Feriados!$A$2:$A$1037),1,Feriados!$A$2:$A$1037),'IPCA IBGE'!A:D,4,FALSE)/100)^(M35/N35),6)) ->  | P35: 2023-08-15 | Q35: =VLOOKUP(WORKDAY(WORKDAY(P35,-1,Feriados!$A$2:$A$1037),1,Feriados!$A$2:$A$1037),'Histórico VNA IPCA'!B39:E50030,2,FALSE) -> 4129.727118 | R35: 43 | S35: 31 | T35: =WORKDAY(WORKDAY(DATEVALUE(CONCATENATE("15/"&MONTH(A35)&"/"&YEAR(A35))),-1,Feriados!$A$2:$A$1037),1,Feriados!$A$2:$A$1037) -> 2023-09-15 | U35: =VLOOKUP(WORKDAY(WORKDAY(T35,-1,Feriados!$A$2:$A$1037),1,Feriados!$A$2:$A$1037),'Histórico VNA IPCA'!B39:E50030,2,FALSE) -> 4139.227805 | V35: 2023-10-15 | W35: 12 | X35: 30 | Y35: 4144.520938
A36: 2023-09-28 | B36: 4145.183056 | C36: 0.32 | D36: P | E36: 3 | F36: 4144.962338 | G36: 0.01065020558 | H36: 1.003689159 | I36: 0.3689159252 | J36: =IF(E36<>1,"",TRUNC((VLOOKUP(WORKDAY(WORKDAY(K36,-1,Feriados!$A$2:$A$1037),1,Feriados!$A$2:$A$1037),'IPCA IBGE'!A:D,4,FALSE)/100+1)*L36,6)) ->  | K36: 2023-08-15 | L36: =VLOOKUP(WORKDAY(WORKDAY(K36,-1,Feriados!$A$2:$A$1037),1,Feriados!$A$2:$A$1037),'Histórico VNA IPCA'!B40:E50031,2,FALSE) -> 4129.727118 | O36: =IF(E36<>2,"",TRUNC((L36)*(1+VLOOKUP(WORKDAY(WORKDAY(K36,-1,Feriados!$A$2:$A$1037),1,Feriados!$A$2:$A$1037),'IPCA IBGE'!A:D,4,FALSE)/100)^(M36/N36),6)) ->  | P36: 2023-08-15 | Q36: =VLOOKUP(WORKDAY(WORKDAY(P36,-1,Feriados!$A$2:$A$1037),1,Feriados!$A$2:$A$1037),'Histórico VNA IPCA'!B40:E50031,2,FALSE) -> 4129.727118 | R36: 44 | S36: 31 | T36: =WORKDAY(WORKDAY(DATEVALUE(CONCATENATE("15/"&MONTH(A36)&"/"&YEAR(A36))),-1,Feriados!$A$2:$A$1037),1,Feriados!$A$2:$A$1037) -> 2023-09-15 | U36: =VLOOKUP(WORKDAY(WORKDAY(T36,-1,Feriados!$A$2:$A$1037),1,Feriados!$A$2:$A$1037),'Histórico VNA IPCA'!B40:E50031,2,FALSE) -> 4139.227805 | V36: 2023-10-15 | W36: 13 | X36: 30 | Y36: 4144.962338
A37: 2023-09-29 | B37: 4145.845279 | C37: 0.32 | D37: P | E37: 3 | F37: 4145.403785 | G37: 0.01065020533 | H37: 1.003796054 | I37: 0.3796054208 | J37: =IF(E37<>1,"",TRUNC((VLOOKUP(WORKDAY(WORKDAY(K37,-1,Feriados!$A$2:$A$1037),1,Feriados!$A$2:$A$1037),'IPCA IBGE'!A:D,4,FALSE)/100+1)*L37,6)) ->  | K37: 2023-08-15 | L37: =VLOOKUP(WORKDAY(WORKDAY(K37,-1,Feriados!$A$2:$A$1037),1,Feriados!$A$2:$A$1037),'Histórico VNA IPCA'!B41:E50032,2,FALSE) -> 4129.727118 | O37: =IF(E37<>2,"",TRUNC((L37)*(1+VLOOKUP(WORKDAY(WORKDAY(K37,-1,Feriados!$A$2:$A$1037),1,Feriados!$A$2:$A$1037),'IPCA IBGE'!A:D,4,FALSE)/100)^(M37/N37),6)) ->  | P37: 2023-08-15 | Q37: =VLOOKUP(WORKDAY(WORKDAY(P37,-1,Feriados!$A$2:$A$1037),1,Feriados!$A$2:$A$1037),'Histórico VNA IPCA'!B41:E50032,2,FALSE) -> 4129.727118 | R37: 45 | S37: 31 | T37: =WORKDAY(WORKDAY(DATEVALUE(CONCATENATE("15/"&MONTH(A37)&"/"&YEAR(A37))),-1,Feriados!$A$2:$A$1037),1,Feriados!$A$2:$A$1037) -> 2023-09-15 | U37: =VLOOKUP(WORKDAY(WORKDAY(T37,-1,Feriados!$A$2:$A$1037),1,Feriados!$A$2:$A$1037),'Histórico VNA IPCA'!B41:E50032,2,FALSE) -> 4139.227805 | V37: 2023-10-15 | W37: 14 | X37: 30 | Y37: 4145.403785
A38: 2023-10-02 | B38: 4146.507608 | C38: 0.32 | D38: P | E38: 3 | F38: 4146.486241 | G38: 0.02611219693 | H38: 1.004058167 | I38: 0.405816741 | J38: =IF(E38<>1,"",TRUNC((VLOOKUP(WORKDAY(WORKDAY(K38,-1,Feriados!$A$2:$A$1037),1,Feriados!$A$2:$A$1037),'IPCA IBGE'!A:D,4,FALSE)/100+1)*L38,6)) ->  | K38: 2023-09-15 | L38: =VLOOKUP(WORKDAY(WORKDAY(K38,-1,Feriados!$A$2:$A$1037),1,Feriados!$A$2:$A$1037),'Histórico VNA IPCA'!B42:E50033,2,FALSE) -> 4139.227805 | O38: =IF(E38<>2,"",TRUNC((L38)*(1+VLOOKUP(WORKDAY(WORKDAY(K38,-1,Feriados!$A$2:$A$1037),1,Feriados!$A$2:$A$1037),'IPCA IBGE'!A:D,4,FALSE)/100)^(M38/N38),6)) ->  | P38: 2023-09-15 | Q38: =VLOOKUP(WORKDAY(WORKDAY(P38,-1,Feriados!$A$2:$A$1037),1,Feriados!$A$2:$A$1037),'Histórico VNA IPCA'!B42:E50033,2,FALSE) -> 4139.227805 | R38: 17 | S38: 31 | T38: =WORKDAY(WORKDAY(DATEVALUE(CONCATENATE("15/"&MONTH(A38)&"/"&YEAR(A38))),-1,Feriados!$A$2:$A$1037),1,Feriados!$A$2:$A$1037) -> 2023-10-16 | U38: =VLOOKUP(WORKDAY(WORKDAY(T38,-1,Feriados!$A$2:$A$1037),1,Feriados!$A$2:$A$1037),'Histórico VNA IPCA'!B42:E50033,2,FALSE) -> 4149.991948 | V38: 2023-11-15 | W38: -14 | X38: 30 | Y38: 4146.486241
A39: 2023-10-03 | B39: 4147.170043 | C39: 0.32 | D39: P | E39: 3 | F39: 4146.913604 | G39: 0.01030663012 | H39: 1.004161652 | I39: 0.4161651972 | J39: =IF(E39<>1,"",TRUNC((VLOOKUP(WORKDAY(WORKDAY(K39,-1,Feriados!$A$2:$A$1037),1,Feriados!$A$2:$A$1037),'IPCA IBGE'!A:D,4,FALSE)/100+1)*L39,6)) ->  | K39: 2023-09-15 | L39: =VLOOKUP(WORKDAY(WORKDAY(K39,-1,Feriados!$A$2:$A$1037),1,Feriados!$A$2:$A$1037),'Histórico VNA IPCA'!B43:E50034,2,FALSE) -> 4139.227805 | O39: =IF(E39<>2,"",TRUNC((L39)*(1+VLOOKUP(WORKDAY(WORKDAY(K39,-1,Feriados!$A$2:$A$1037),1,Feriados!$A$2:$A$1037),'IPCA IBGE'!A:D,4,FALSE)/100)^(M39/N39),6)) ->  | P39: 2023-09-15 | Q39: =VLOOKUP(WORKDAY(WORKDAY(P39,-1,Feriados!$A$2:$A$1037),1,Feriados!$A$2:$A$1037),'Histórico VNA IPCA'!B43:E50034,2,FALSE) -> 4139.227805 | R39: 18 | S39: 31 | T39: =WORKDAY(WORKDAY(DATEVALUE(CONCATENATE("15/"&MONTH(A39)&"/"&YEAR(A39))),-1,Feriados!$A$2:$A$1037),1,Feriados!$A$2:$A$1037) -> 2023-10-16 | U39: =VLOOKUP(WORKDAY(WORKDAY(T39,-1,Feriados!$A$2:$A$1037),1,Feriados!$A$2:$A$1037),'Histórico VNA IPCA'!B43:E50034,2,FALSE) -> 4149.991948 | V39: 2023-11-15 | W39: -13 | X39: 30 | Y39: 4146.913604
A40: 2023-10-04 | B40: 4147.832584 | C40: 0.32 | D40: P | E40: 3 | F40: 4147.341011 | G40: 0.010306629 | H40: 1.004265147 | I40: 0.4265147188 | J40: =IF(E40<>1,"",TRUNC((VLOOKUP(WORKDAY(WORKDAY(K40,-1,Feriados!$A$2:$A$1037),1,Feriados!$A$2:$A$1037),'IPCA IBGE'!A:D,4,FALSE)/100+1)*L40,6)) ->  | K40: 2023-09-15 | L40: =VLOOKUP(WORKDAY(WORKDAY(K40,-1,Feriados!$A$2:$A$1037),1,Feriados!$A$2:$A$1037),'Histórico VNA IPCA'!B44:E50035,2,FALSE) -> 4139.227805 | O40: =IF(E40<>2,"",TRUNC((L40)*(1+VLOOKUP(WORKDAY(WORKDAY(K40,-1,Feriados!$A$2:$A$1037),1,Feriados!$A$2:$A$1037),'IPCA IBGE'!A:D,4,FALSE)/100)^(M40/N40),6)) ->  | P40: 2023-09-15 | Q40: =VLOOKUP(WORKDAY(WORKDAY(P40,-1,Feriados!$A$2:$A$1037),1,Feriados!$A$2:$A$1037),'Histórico VNA IPCA'!B44:E50035,2,FALSE) -> 4139.227805 | R40: 19 | S40: 31 | T40: =WORKDAY(WORKDAY(DATEVALUE(CONCATENATE("15/"&MONTH(A40)&"/"&YEAR(A40))),-1,Feriados!$A$2:$A$1037),1,Feriados!$A$2:$A$1037) -> 2023-10-16 | U40: =VLOOKUP(WORKDAY(WORKDAY(T40,-1,Feriados!$A$2:$A$1037),1,Feriados!$A$2:$A$1037),'Histórico VNA IPCA'!B44:E50035,2,FALSE) -> 4149.991948 | V40: 2023-11-15 | W40: -12 | X40: 30 | Y40: 4147.341011
A41: 2023-10-05 | B41: 4148.49523 | C41: 0.32 | D41: P | E41: 3 | F41: 4147.768462 | G41: 0.01030662776 | H41: 1.004368653 | I41: 0.4368653058 | J41: =IF(E41<>1,"",TRUNC((VLOOKUP(WORKDAY(WORKDAY(K41,-1,Feriados!$A$2:$A$1037),1,Feriados!$A$2:$A$1037),'IPCA IBGE'!A:D,4,FALSE)/100+1)*L41,6)) ->  | K41: 2023-09-15 | L41: =VLOOKUP(WORKDAY(WORKDAY(K41,-1,Feriados!$A$2:$A$1037),1,Feriados!$A$2:$A$1037),'Histórico VNA IPCA'!B45:E50036,2,FALSE) -> 4139.227805 | O41: =IF(E41<>2,"",TRUNC((L41)*(1+VLOOKUP(WORKDAY(WORKDAY(K41,-1,Feriados!$A$2:$A$1037),1,Feriados!$A$2:$A$1037),'IPCA IBGE'!A:D,4,FALSE)/100)^(M41/N41),6)) ->  | P41: 2023-09-15 | Q41: =VLOOKUP(WORKDAY(WORKDAY(P41,-1,Feriados!$A$2:$A$1037),1,Feriados!$A$2:$A$1037),'Histórico VNA IPCA'!B45:E50036,2,FALSE) -> 4139.227805 | R41: 20 | S41: 31 | T41: =WORKDAY(WORKDAY(DATEVALUE(CONCATENATE("15/"&MONTH(A41)&"/"&YEAR(A41))),-1,Feriados!$A$2:$A$1037),1,Feriados!$A$2:$A$1037) -> 2023-10-16 | U41: =VLOOKUP(WORKDAY(WORKDAY(T41,-1,Feriados!$A$2:$A$1037),1,Feriados!$A$2:$A$1037),'Histórico VNA IPCA'!B45:E50036,2,FALSE) -> 4149.991948 | V41: 2023-11-15 | W41: -11 | X41: 30 | Y41: 4147.768462
A42: 2023-10-06 | B42: 4149.157983 | C42: 0.32 | D42: P | E42: 3 | F42: 4148.195958 | G42: 0.01030665053 | H42: 1.00447217 | I42: 0.4472169825 | J42: =IF(E42<>1,"",TRUNC((VLOOKUP(WORKDAY(WORKDAY(K42,-1,Feriados!$A$2:$A$1037),1,Feriados!$A$2:$A$1037),'IPCA IBGE'!A:D,4,FALSE)/100+1)*L42,6)) ->  | K42: 2023-09-15 | L42: =VLOOKUP(WORKDAY(WORKDAY(K42,-1,Feriados!$A$2:$A$1037),1,Feriados!$A$2:$A$1037),'Histórico VNA IPCA'!B46:E50037,2,FALSE) -> 4139.227805 | O42: =IF(E42<>2,"",TRUNC((L42)*(1+VLOOKUP(WORKDAY(WORKDAY(K42,-1,Feriados!$A$2:$A$1037),1,Feriados!$A$2:$A$1037),'IPCA IBGE'!A:D,4,FALSE)/100)^(M42/N42),6)) ->  | P42: 2023-09-15 | Q42: =VLOOKUP(WORKDAY(WORKDAY(P42,-1,Feriados!$A$2:$A$1037),1,Feriados!$A$2:$A$1037),'Histórico VNA IPCA'!B46:E50037,2,FALSE) -> 4139.227805 | R42: 21 | S42: 31 | T42: =WORKDAY(WORKDAY(DATEVALUE(CONCATENATE("15/"&MONTH(A42)&"/"&YEAR(A42))),-1,Feriados!$A$2:$A$1037),1,Feriados!$A$2:$A$1037) -> 2023-10-16 | U42: =VLOOKUP(WORKDAY(WORKDAY(T42,-1,Feriados!$A$2:$A$1037),1,Feriados!$A$2:$A$1037),'Histórico VNA IPCA'!B46:E50037,2,FALSE) -> 4149.991948 | V42: 2023-11-15 | W42: -10 | X42: 30 | Y42: 4148.195958
A43: 2023-10-09 | B43: 4149.820841 | C43: 0.32 | D43: P | E43: 3 | F43: 4149.478708 | G43: 0.03092308109 | H43: 1.004782784 | I43: 0.4782783569 | J43: =IF(E43<>1,"",TRUNC((VLOOKUP(WORKDAY(WORKDAY(K43,-1,Feriados!$A$2:$A$1037),1,Feriados!$A$2:$A$1037),'IPCA IBGE'!A:D,4,FALSE)/100+1)*L43,6)) ->  | K43: 2023-09-15 | L43: =VLOOKUP(WORKDAY(WORKDAY(K43,-1,Feriados!$A$2:$A$1037),1,Feriados!$A$2:$A$1037),'Histórico VNA IPCA'!B47:E50038,2,FALSE) -> 4139.227805 | O43: =IF(E43<>2,"",TRUNC((L43)*(1+VLOOKUP(WORKDAY(WORKDAY(K43,-1,Feriados!$A$2:$A$1037),1,Feriados!$A$2:$A$1037),'IPCA IBGE'!A:D,4,FALSE)/100)^(M43/N43),6)) ->  | P43: 2023-09-15 | Q43: =VLOOKUP(WORKDAY(WORKDAY(P43,-1,Feriados!$A$2:$A$1037),1,Feriados!$A$2:$A$1037),'Histórico VNA IPCA'!B47:E50038,2,FALSE) -> 4139.227805 | R43: 24 | S43: 31 | T43: =WORKDAY(WORKDAY(DATEVALUE(CONCATENATE("15/"&MONTH(A43)&"/"&YEAR(A43))),-1,Feriados!$A$2:$A$1037),1,Feriados!$A$2:$A$1037) -> 2023-10-16 | U43: =VLOOKUP(WORKDAY(WORKDAY(T43,-1,Feriados!$A$2:$A$1037),1,Feriados!$A$2:$A$1037),'Histórico VNA IPCA'!B47:E50038,2,FALSE) -> 4149.991948 | V43: 2023-11-15 | W43: -7 | X43: 30 | Y43: 4149.478708
A44: 2023-10-10 | B44: 4150.483805 | C44: 0.32 | D44: P | E44: 3 | F44: 4149.906379 | G44: 0.01030661994 | H44: 1.004886343 | I44: 0.4886342712 | J44: =IF(E44<>1,"",TRUNC((VLOOKUP(WORKDAY(WORKDAY(K44,-1,Feriados!$A$2:$A$1037),1,Feriados!$A$2:$A$1037),'IPCA IBGE'!A:D,4,FALSE)/100+1)*L44,6)) ->  | K44: 2023-09-15 | L44: =VLOOKUP(WORKDAY(WORKDAY(K44,-1,Feriados!$A$2:$A$1037),1,Feriados!$A$2:$A$1037),'Histórico VNA IPCA'!B48:E50039,2,FALSE) -> 4139.227805 | O44: =IF(E44<>2,"",TRUNC((L44)*(1+VLOOKUP(WORKDAY(WORKDAY(K44,-1,Feriados!$A$2:$A$1037),1,Feriados!$A$2:$A$1037),'IPCA IBGE'!A:D,4,FALSE)/100)^(M44/N44),6)) ->  | P44: 2023-09-15 | Q44: =VLOOKUP(WORKDAY(WORKDAY(P44,-1,Feriados!$A$2:$A$1037),1,Feriados!$A$2:$A$1037),'Histórico VNA IPCA'!B48:E50039,2,FALSE) -> 4139.227805 | R44: 25 | S44: 31 | T44: =WORKDAY(WORKDAY(DATEVALUE(CONCATENATE("15/"&MONTH(A44)&"/"&YEAR(A44))),-1,Feriados!$A$2:$A$1037),1,Feriados!$A$2:$A$1037) -> 2023-10-16 | U44: =VLOOKUP(WORKDAY(WORKDAY(T44,-1,Feriados!$A$2:$A$1037),1,Feriados!$A$2:$A$1037),'Histórico VNA IPCA'!B48:E50039,2,FALSE) -> 4149.991948 | V44: 2023-11-15 | W44: -6 | X44: 30 | Y44: 4149.906379
A45: 2023-10-11 | B45: 4148.914274 | C45: 0.26 | D45: F | E45: 2 | F45: 4148.253904 | G45: -0.039819573 | H45: 1.004486201 | I45: 0.4486201261 | J45: =IF(E45<>1,"",TRUNC((VLOOKUP(WORKDAY(WORKDAY(K45,-1,Feriados!$A$2:$A$1037),1,Feriados!$A$2:$A$1037),'IPCA IBGE'!A:D,4,FALSE)/100+1)*L45,6)) ->  | K45: 2023-09-15 | L45: =VLOOKUP(WORKDAY(WORKDAY(K45,-1,Feriados!$A$2:$A$1037),1,Feriados!$A$2:$A$1037),'Histórico VNA IPCA'!B49:E50040,2,FALSE) -> 4139.227805 | M45: 26 | N45: 31 | O45: =IF(E45<>2,"",TRUNC((L45)*(1+VLOOKUP(WORKDAY(WORKDAY(K45,-1,Feriados!$A$2:$A$1037),1,Feriados!$A$2:$A$1037),'IPCA IBGE'!A:D,4,FALSE)/100)^(M45/N45),6)) -> 4148.253904 | P45: 2023-09-15 | Q45: =VLOOKUP(WORKDAY(WORKDAY(P45,-1,Feriados!$A$2:$A$1037),1,Feriados!$A$2:$A$1037),'Histórico VNA IPCA'!B49:E50040,2,FALSE) -> 4139.227805 | T45: =WORKDAY(WORKDAY(DATEVALUE(CONCATENATE("15/"&MONTH(A45)&"/"&YEAR(A45))),-1,Feriados!$A$2:$A$1037),1,Feriados!$A$2:$A$1037) -> 2023-10-16 | U45: =VLOOKUP(WORKDAY(WORKDAY(T45,-1,Feriados!$A$2:$A$1037),1,Feriados!$A$2:$A$1037),'Histórico VNA IPCA'!B49:E50040,2,FALSE) -> 4149.991948 | V45: 2023-11-15
A46: 2023-10-13 | B46: 4149.453076 | C46: 0.26 | D46: F | E46: 2 | F46: 4148.949034 | G46: 0.016757171 | H46: 1.004654525 | I46: 0.4654524731 | J46: =IF(E46<>1,"",TRUNC((VLOOKUP(WORKDAY(WORKDAY(K46,-1,Feriados!$A$2:$A$1037),1,Feriados!$A$2:$A$1037),'IPCA IBGE'!A:D,4,FALSE)/100+1)*L46,6)) ->  | K46: 2023-09-15 | L46: =VLOOKUP(WORKDAY(WORKDAY(K46,-1,Feriados!$A$2:$A$1037),1,Feriados!$A$2:$A$1037),'Histórico VNA IPCA'!B50:E50041,2,FALSE) -> 4139.227805 | M46: 28 | N46: 31 | O46: =IF(E46<>2,"",TRUNC((L46)*(1+VLOOKUP(WORKDAY(WORKDAY(K46,-1,Feriados!$A$2:$A$1037),1,Feriados!$A$2:$A$1037),'IPCA IBGE'!A:D,4,FALSE)/100)^(M46/N46),6)) -> 4148.949034 | P46: 2023-09-15 | Q46: =VLOOKUP(WORKDAY(WORKDAY(P46,-1,Feriados!$A$2:$A$1037),1,Feriados!$A$2:$A$1037),'Histórico VNA IPCA'!B50:E50041,2,FALSE) -> 4139.227805 | T46: =WORKDAY(WORKDAY(DATEVALUE(CONCATENATE("15/"&MONTH(A46)&"/"&YEAR(A46))),-1,Feriados!$A$2:$A$1037),1,Feriados!$A$2:$A$1037) -> 2023-10-16 | U46: =VLOOKUP(WORKDAY(WORKDAY(T46,-1,Feriados!$A$2:$A$1037),1,Feriados!$A$2:$A$1037),'Histórico VNA IPCA'!B50:E50041,2,FALSE) -> 4149.991948 | V46: 2023-11-15
A47: 2023-10-16 | B47: 4149.991948 | C47: 0.26 | D47: F | E47: 1 | F47: 4149.991947 | G47: 0.0251367995 | H47: 1.004907063 | I47: 0.4907062725 | J47: =IF(E47<>1,"",TRUNC((VLOOKUP(WORKDAY(WORKDAY(K47,-1,Feriados!$A$2:$A$1037),1,Feriados!$A$2:$A$1037),'IPCA IBGE'!A:D,4,FALSE)/100+1)*L47,6)) -> 4149.991947 | K47: 2023-09-15 | L47: =VLOOKUP(WORKDAY(WORKDAY(K47,-1,Feriados!$A$2:$A$1037),1,Feriados!$A$2:$A$1037),'Histórico VNA IPCA'!B51:E50042,2,FALSE) -> 4139.227805 | O47: =IF(E47<>2,"",TRUNC((L47)*(1+VLOOKUP(WORKDAY(WORKDAY(K47,-1,Feriados!$A$2:$A$1037),1,Feriados!$A$2:$A$1037),'IPCA IBGE'!A:D,4,FALSE)/100)^(M47/N47),6)) ->  | P47: 2023-09-15 | Q47: =VLOOKUP(WORKDAY(WORKDAY(P47,-1,Feriados!$A$2:$A$1037),1,Feriados!$A$2:$A$1037),'Histórico VNA IPCA'!B51:E50042,2,FALSE) -> 4139.227805 | T47: =WORKDAY(WORKDAY(DATEVALUE(CONCATENATE("15/"&MONTH(A47)&"/"&YEAR(A47))),-1,Feriados!$A$2:$A$1037),1,Feriados!$A$2:$A$1037) -> 2023-10-16 | U47: =VLOOKUP(WORKDAY(WORKDAY(T47,-1,Feriados!$A$2:$A$1037),1,Feriados!$A$2:$A$1037),'Histórico VNA IPCA'!B51:E50042,2,FALSE) -> 4149.991948 | V47: 2023-11-15
A48: 2023-10-17 | B48: 4150.603663 | C48: 0.31 | D48: P | E48: 3 | F48: 4150.420139 | G48: 0.01031789954 | H48: 1.005010748 | I48: 0.5010748026 | J48: =IF(E48<>1,"",TRUNC((VLOOKUP(WORKDAY(WORKDAY(K48,-1,Feriados!$A$2:$A$1037),1,Feriados!$A$2:$A$1037),'IPCA IBGE'!A:D,4,FALSE)/100+1)*L48,6)) ->  | K48: 2023-09-15 | L48: =VLOOKUP(WORKDAY(WORKDAY(K48,-1,Feriados!$A$2:$A$1037),1,Feriados!$A$2:$A$1037),'Histórico VNA IPCA'!B52:E50043,2,FALSE) -> 4139.227805 | O48: =IF(E48<>2,"",TRUNC((L48)*(1+VLOOKUP(WORKDAY(WORKDAY(K48,-1,Feriados!$A$2:$A$1037),1,Feriados!$A$2:$A$1037),'IPCA IBGE'!A:D,4,FALSE)/100)^(M48/N48),6)) ->  | P48: 2023-09-15 | Q48: =VLOOKUP(WORKDAY(WORKDAY(P48,-1,Feriados!$A$2:$A$1037),1,Feriados!$A$2:$A$1037),'Histórico VNA IPCA'!B52:E50043,2,FALSE) -> 4139.227805 | R48: 32 | S48: 31 | T48: =WORKDAY(WORKDAY(DATEVALUE(CONCATENATE("15/"&MONTH(A48)&"/"&YEAR(A48))),-1,Feriados!$A$2:$A$1037),1,Feriados!$A$2:$A$1037) -> 2023-10-16 | U48: =VLOOKUP(WORKDAY(WORKDAY(T48,-1,Feriados!$A$2:$A$1037),1,Feriados!$A$2:$A$1037),'Histórico VNA IPCA'!B52:E50043,2,FALSE) -> 4149.991948 | V48: 2023-11-15 | W48: 1 | X48: 30 | Y48: 4150.420139
A49: 2023-10-18 | B49: 4151.215468 | C49: 0.31 | D49: P | E49: 3 | F49: 4150.848374 | G49: 0.0103178711 | H49: 1.005114444 | I49: 0.511444374 | J49: =IF(E49<>1,"",TRUNC((VLOOKUP(WORKDAY(WORKDAY(K49,-1,Feriados!$A$2:$A$1037),1,Feriados!$A$2:$A$1037),'IPCA IBGE'!A:D,4,FALSE)/100+1)*L49,6)) ->  | K49: 2023-09-15 | L49: =VLOOKUP(WORKDAY(WORKDAY(K49,-1,Feriados!$A$2:$A$1037),1,Feriados!$A$2:$A$1037),'Histórico VNA IPCA'!B53:E50044,2,FALSE) -> 4139.227805 | O49: =IF(E49<>2,"",TRUNC((L49)*(1+VLOOKUP(WORKDAY(WORKDAY(K49,-1,Feriados!$A$2:$A$1037),1,Feriados!$A$2:$A$1037),'IPCA IBGE'!A:D,4,FALSE)/100)^(M49/N49),6)) ->  | P49: 2023-09-15 | Q49: =VLOOKUP(WORKDAY(WORKDAY(P49,-1,Feriados!$A$2:$A$1037),1,Feriados!$A$2:$A$1037),'Histórico VNA IPCA'!B53:E50044,2,FALSE) -> 4139.227805 | R49: 33 | S49: 31 | T49: =WORKDAY(WORKDAY(DATEVALUE(CONCATENATE("15/"&MONTH(A49)&"/"&YEAR(A49))),-1,Feriados!$A$2:$A$1037),1,Feriados!$A$2:$A$1037) -> 2023-10-16 | U49: =VLOOKUP(WORKDAY(WORKDAY(T49,-1,Feriados!$A$2:$A$1037),1,Feriados!$A$2:$A$1037),'Histórico VNA IPCA'!B53:E50044,2,FALSE) -> 4149.991948 | V49: 2023-11-15 | W49: 2 | X49: 30 | Y49: 4150.848374
A50: 2023-10-19 | B50: 4151.827364 | C50: 0.31 | D50: P | E50: 3 | F50: 4151.276654 | G50: 0.01031789074 | H50: 1.00521815 | I50: 0.521815035 | J50: =IF(E50<>1,"",TRUNC((VLOOKUP(WORKDAY(WORKDAY(K50,-1,Feriados!$A$2:$A$1037),1,Feriados!$A$2:$A$1037),'IPCA IBGE'!A:D,4,FALSE)/100+1)*L50,6)) ->  | K50: 2023-09-15 | L50: =VLOOKUP(WORKDAY(WORKDAY(K50,-1,Feriados!$A$2:$A$1037),1,Feriados!$A$2:$A$1037),'Histórico VNA IPCA'!B54:E50045,2,FALSE) -> 4139.227805 | O50: =IF(E50<>2,"",TRUNC((L50)*(1+VLOOKUP(WORKDAY(WORKDAY(K50,-1,Feriados!$A$2:$A$1037),1,Feriados!$A$2:$A$1037),'IPCA IBGE'!A:D,4,FALSE)/100)^(M50/N50),6)) ->  | P50: 2023-09-15 | Q50: =VLOOKUP(WORKDAY(WORKDAY(P50,-1,Feriados!$A$2:$A$1037),1,Feriados!$A$2:$A$1037),'Histórico VNA IPCA'!B54:E50045,2,FALSE) -> 4139.227805 | R50: 34 | S50: 31 | T50: =WORKDAY(WORKDAY(DATEVALUE(CONCATENATE("15/"&MONTH(A50)&"/"&YEAR(A50))),-1,Feriados!$A$2:$A$1037),1,Feriados!$A$2:$A$1037) -> 2023-10-16 | U50: =VLOOKUP(WORKDAY(WORKDAY(T50,-1,Feriados!$A$2:$A$1037),1,Feriados!$A$2:$A$1037),'Histórico VNA IPCA'!B54:E50045,2,FALSE) -> 4149.991948 | V50: 2023-11-15 | W50: 3 | X50: 30 | Y50: 4151.276654
A51: 2023-10-20 | B51: 4152.43935 | C51: 0.31 | D51: P | E51: 3 | F51: 4151.704978 | G51: 0.01031788618 | H51: 1.005321868 | I51: 0.5321867614 | J51: =IF(E51<>1,"",TRUNC((VLOOKUP(WORKDAY(WORKDAY(K51,-1,Feriados!$A$2:$A$1037),1,Feriados!$A$2:$A$1037),'IPCA IBGE'!A:D,4,FALSE)/100+1)*L51,6)) ->  | K51: 2023-09-15 | L51: =VLOOKUP(WORKDAY(WORKDAY(K51,-1,Feriados!$A$2:$A$1037),1,Feriados!$A$2:$A$1037),'Histórico VNA IPCA'!B55:E50046,2,FALSE) -> 4139.227805 | O51: =IF(E51<>2,"",TRUNC((L51)*(1+VLOOKUP(WORKDAY(WORKDAY(K51,-1,Feriados!$A$2:$A$1037),1,Feriados!$A$2:$A$1037),'IPCA IBGE'!A:D,4,FALSE)/100)^(M51/N51),6)) ->  | P51: 2023-09-15 | Q51: =VLOOKUP(WORKDAY(WORKDAY(P51,-1,Feriados!$A$2:$A$1037),1,Feriados!$A$2:$A$1037),'Histórico VNA IPCA'!B55:E50046,2,FALSE) -> 4139.227805 | R51: 35 | S51: 31 | T51: =WORKDAY(WORKDAY(DATEVALUE(CONCATENATE("15/"&MONTH(A51)&"/"&YEAR(A51))),-1,Feriados!$A$2:$A$1037),1,Feriados!$A$2:$A$1037) -> 2023-10-16 | U51: =VLOOKUP(WORKDAY(WORKDAY(T51,-1,Feriados!$A$2:$A$1037),1,Feriados!$A$2:$A$1037),'Histórico VNA IPCA'!B55:E50046,2,FALSE) -> 4149.991948 | V51: 2023-11-15 | W51: 4 | X51: 30 | Y51: 4151.704978
A52: 2023-10-23 | B52: 4153.051426 | C52: 0.31 | D52: P | E52: 3 | F52: 4152.990214 | G52: 0.03095682393 | H52: 1.005633083 | I52: 0.5633083335 | J52: =IF(E52<>1,"",TRUNC((VLOOKUP(WORKDAY(WORKDAY(K52,-1,Feriados!$A$2:$A$1037),1,Feriados!$A$2:$A$1037),'IPCA IBGE'!A:D,4,FALSE)/100+1)*L52,6)) ->  | K52: 2023-09-15 | L52: =VLOOKUP(WORKDAY(WORKDAY(K52,-1,Feriados!$A$2:$A$1037),1,Feriados!$A$2:$A$1037),'Histórico VNA IPCA'!B56:E50047,2,FALSE) -> 4139.227805 | O52: =IF(E52<>2,"",TRUNC((L52)*(1+VLOOKUP(WORKDAY(WORKDAY(K52,-1,Feriados!$A$2:$A$1037),1,Feriados!$A$2:$A$1037),'IPCA IBGE'!A:D,4,FALSE)/100)^(M52/N52),6)) ->  | P52: 2023-09-15 | Q52: =VLOOKUP(WORKDAY(WORKDAY(P52,-1,Feriados!$A$2:$A$1037),1,Feriados!$A$2:$A$1037),'Histórico VNA IPCA'!B56:E50047,2,FALSE) -> 4139.227805 | R52: 38 | S52: 31 | T52: =WORKDAY(WORKDAY(DATEVALUE(CONCATENATE("15/"&MONTH(A52)&"/"&YEAR(A52))),-1,Feriados!$A$2:$A$1037),1,Feriados!$A$2:$A$1037) -> 2023-10-16 | U52: =VLOOKUP(WORKDAY(WORKDAY(T52,-1,Feriados!$A$2:$A$1037),1,Feriados!$A$2:$A$1037),'Histórico VNA IPCA'!B56:E50047,2,FALSE) -> 4149.991948 | V52: 2023-11-15 | W52: 7 | X52: 30 | Y52: 4152.990214
A53: 2023-10-24 | B53: 4153.663592 | C53: 0.31 | D53: P | E53: 3 | F53: 4153.418715 | G53: 0.01031789092 | H53: 1.005736843 | I53: 0.5736843459 | J53: =IF(E53<>1,"",TRUNC((VLOOKUP(WORKDAY(WORKDAY(K53,-1,Feriados!$A$2:$A$1037),1,Feriados!$A$2:$A$1037),'IPCA IBGE'!A:D,4,FALSE)/100+1)*L53,6)) ->  | K53: 2023-09-15 | L53: =VLOOKUP(WORKDAY(WORKDAY(K53,-1,Feriados!$A$2:$A$1037),1,Feriados!$A$2:$A$1037),'Histórico VNA IPCA'!B57:E50048,2,FALSE) -> 4139.227805 | O53: =IF(E53<>2,"",TRUNC((L53)*(1+VLOOKUP(WORKDAY(WORKDAY(K53,-1,Feriados!$A$2:$A$1037),1,Feriados!$A$2:$A$1037),'IPCA IBGE'!A:D,4,FALSE)/100)^(M53/N53),6)) ->  | P53: 2023-09-15 | Q53: =VLOOKUP(WORKDAY(WORKDAY(P53,-1,Feriados!$A$2:$A$1037),1,Feriados!$A$2:$A$1037),'Histórico VNA IPCA'!B57:E50048,2,FALSE) -> 4139.227805 | R53: 39 | S53: 31 | T53: =WORKDAY(WORKDAY(DATEVALUE(CONCATENATE("15/"&MONTH(A53)&"/"&YEAR(A53))),-1,Feriados!$A$2:$A$1037),1,Feriados!$A$2:$A$1037) -> 2023-10-16 | U53: =VLOOKUP(WORKDAY(WORKDAY(T53,-1,Feriados!$A$2:$A$1037),1,Feriados!$A$2:$A$1037),'Histórico VNA IPCA'!B57:E50048,2,FALSE) -> 4149.991948 | V53: 2023-11-15 | W53: 8 | X53: 30 | Y53: 4153.418715
A54: 2023-10-25 | B54: 4154.275849 | C54: 0.31 | D54: P | E54: 3 | F54: 4153.84726 | G54: 0.0103178858 | H54: 1.005840614 | I54: 0.5840614238 | J54: =IF(E54<>1,"",TRUNC((VLOOKUP(WORKDAY(WORKDAY(K54,-1,Feriados!$A$2:$A$1037),1,Feriados!$A$2:$A$1037),'IPCA IBGE'!A:D,4,FALSE)/100+1)*L54,6)) ->  | K54: 2023-09-15 | L54: =VLOOKUP(WORKDAY(WORKDAY(K54,-1,Feriados!$A$2:$A$1037),1,Feriados!$A$2:$A$1037),'Histórico VNA IPCA'!B58:E50049,2,FALSE) -> 4139.227805 | O54: =IF(E54<>2,"",TRUNC((L54)*(1+VLOOKUP(WORKDAY(WORKDAY(K54,-1,Feriados!$A$2:$A$1037),1,Feriados!$A$2:$A$1037),'IPCA IBGE'!A:D,4,FALSE)/100)^(M54/N54),6)) ->  | P54: 2023-09-15 | Q54: =VLOOKUP(WORKDAY(WORKDAY(P54,-1,Feriados!$A$2:$A$1037),1,Feriados!$A$2:$A$1037),'Histórico VNA IPCA'!B58:E50049,2,FALSE) -> 4139.227805 | R54: 40 | S54: 31 | T54: =WORKDAY(WORKDAY(DATEVALUE(CONCATENATE("15/"&MONTH(A54)&"/"&YEAR(A54))),-1,Feriados!$A$2:$A$1037),1,Feriados!$A$2:$A$1037) -> 2023-10-16 | U54: =VLOOKUP(WORKDAY(WORKDAY(T54,-1,Feriados!$A$2:$A$1037),1,Feriados!$A$2:$A$1037),'Histórico VNA IPCA'!B58:E50049,2,FALSE) -> 4149.991948 | V54: 2023-11-15 | W54: 9 | X54: 30 | Y54: 4153.84726
A55: 2023-10-26 | B55: 4154.888196 | C55: 0.31 | D55: P | E55: 3 | F55: 4154.275849 | G55: 0.01031788059 | H55: 1.005944396 | I55: 0.5944395672 | J55: =IF(E55<>1,"",TRUNC((VLOOKUP(WORKDAY(WORKDAY(K55,-1,Feriados!$A$2:$A$1037),1,Feriados!$A$2:$A$1037),'IPCA IBGE'!A:D,4,FALSE)/100+1)*L55,6)) ->  | K55: 2023-09-15 | L55: =VLOOKUP(WORKDAY(WORKDAY(K55,-1,Feriados!$A$2:$A$1037),1,Feriados!$A$2:$A$1037),'Histórico VNA IPCA'!B59:E50050,2,FALSE) -> 4139.227805 | O55: =IF(E55<>2,"",TRUNC((L55)*(1+VLOOKUP(WORKDAY(WORKDAY(K55,-1,Feriados!$A$2:$A$1037),1,Feriados!$A$2:$A$1037),'IPCA IBGE'!A:D,4,FALSE)/100)^(M55/N55),6)) ->  | P55: 2023-09-15 | Q55: =VLOOKUP(WORKDAY(WORKDAY(P55,-1,Feriados!$A$2:$A$1037),1,Feriados!$A$2:$A$1037),'Histórico VNA IPCA'!B59:E50050,2,FALSE) -> 4139.227805 | R55: 41 | S55: 31 | T55: =WORKDAY(WORKDAY(DATEVALUE(CONCATENATE("15/"&MONTH(A55)&"/"&YEAR(A55))),-1,Feriados!$A$2:$A$1037),1,Feriados!$A$2:$A$1037) -> 2023-10-16 | U55: =VLOOKUP(WORKDAY(WORKDAY(T55,-1,Feriados!$A$2:$A$1037),1,Feriados!$A$2:$A$1037),'Histórico VNA IPCA'!B59:E50050,2,FALSE) -> 4149.991948 | V55: 2023-11-15 | W55: 10 | X55: 30 | Y55: 4154.275849
A56: 2023-10-27 | B56: 4154.790382 | C56: 0.27 | D56: P | E56: 3 | F56: 4154.096932 | G56: -0.004306815592 | H56: 1.005901072 | I56: 0.5901071502 | J56: =IF(E56<>1,"",TRUNC((VLOOKUP(WORKDAY(WORKDAY(K56,-1,Feriados!$A$2:$A$1037),1,Feriados!$A$2:$A$1037),'IPCA IBGE'!A:D,4,FALSE)/100+1)*L56,6)) ->  | K56: 2023-09-15 | L56: =VLOOKUP(WORKDAY(WORKDAY(K56,-1,Feriados!$A$2:$A$1037),1,Feriados!$A$2:$A$1037),'Histórico VNA IPCA'!B60:E50051,2,FALSE) -> 4139.227805 | O56: =IF(E56<>2,"",TRUNC((L56)*(1+VLOOKUP(WORKDAY(WORKDAY(K56,-1,Feriados!$A$2:$A$1037),1,Feriados!$A$2:$A$1037),'IPCA IBGE'!A:D,4,FALSE)/100)^(M56/N56),6)) ->  | P56: 2023-09-15 | Q56: =VLOOKUP(WORKDAY(WORKDAY(P56,-1,Feriados!$A$2:$A$1037),1,Feriados!$A$2:$A$1037),'Histórico VNA IPCA'!B60:E50051,2,FALSE) -> 4139.227805 | R56: 42 | S56: 31 | T56: =WORKDAY(WORKDAY(DATEVALUE(CONCATENATE("15/"&MONTH(A56)&"/"&YEAR(A56))),-1,Feriados!$A$2:$A$1037),1,Feriados!$A$2:$A$1037) -> 2023-10-16 | U56: =VLOOKUP(WORKDAY(WORKDAY(T56,-1,Feriados!$A$2:$A$1037),1,Feriados!$A$2:$A$1037),'Histórico VNA IPCA'!B60:E50051,2,FALSE) -> 4149.991948 | V56: 2023-11-15 | W56: 11 | X56: 30 | Y56: 4154.096932
A57: 2023-10-30 | B57: 4155.323883 | C57: 0.27 | D57: P | E57: 3 | F57: 4155.217178 | G57: 0.0269672571 | H57: 1.006172335 | I57: 0.617233543 | J57: =IF(E57<>1,"",TRUNC((VLOOKUP(WORKDAY(WORKDAY(K57,-1,Feriados!$A$2:$A$1037),1,Feriados!$A$2:$A$1037),'IPCA IBGE'!A:D,4,FALSE)/100+1)*L57,6)) ->  | K57: 2023-09-15 | L57: =VLOOKUP(WORKDAY(WORKDAY(K57,-1,Feriados!$A$2:$A$1037),1,Feriados!$A$2:$A$1037),'Histórico VNA IPCA'!B61:E50052,2,FALSE) -> 4139.227805 | O57: =IF(E57<>2,"",TRUNC((L57)*(1+VLOOKUP(WORKDAY(WORKDAY(K57,-1,Feriados!$A$2:$A$1037),1,Feriados!$A$2:$A$1037),'IPCA IBGE'!A:D,4,FALSE)/100)^(M57/N57),6)) ->  | P57: 2023-09-15 | Q57: =VLOOKUP(WORKDAY(WORKDAY(P57,-1,Feriados!$A$2:$A$1037),1,Feriados!$A$2:$A$1037),'Histórico VNA IPCA'!B61:E50052,2,FALSE) -> 4139.227805 | R57: 45 | S57: 31 | T57: =WORKDAY(WORKDAY(DATEVALUE(CONCATENATE("15/"&MONTH(A57)&"/"&YEAR(A57))),-1,Feriados!$A$2:$A$1037),1,Feriados!$A$2:$A$1037) -> 2023-10-16 | U57: =VLOOKUP(WORKDAY(WORKDAY(T57,-1,Feriados!$A$2:$A$1037),1,Feriados!$A$2:$A$1037),'Histórico VNA IPCA'!B61:E50052,2,FALSE) -> 4149.991948 | V57: 2023-11-15 | W57: 14 | X57: 30 | Y57: 4155.217178
A58: 2023-10-31 | B58: 4155.857454 | C58: 0.27 | D58: P | E58: 3 | F58: 4155.59066 | G58: 0.008988266654 | H58: 1.006262773 | I58: 0.6262772882 | J58: =IF(E58<>1,"",TRUNC((VLOOKUP(WORKDAY(WORKDAY(K58,-1,Feriados!$A$2:$A$1037),1,Feriados!$A$2:$A$1037),'IPCA IBGE'!A:D,4,FALSE)/100+1)*L58,6)) ->  | K58: 2023-09-15 | L58: =VLOOKUP(WORKDAY(WORKDAY(K58,-1,Feriados!$A$2:$A$1037),1,Feriados!$A$2:$A$1037),'Histórico VNA IPCA'!B62:E50053,2,FALSE) -> 4139.227805 | O58: =IF(E58<>2,"",TRUNC((L58)*(1+VLOOKUP(WORKDAY(WORKDAY(K58,-1,Feriados!$A$2:$A$1037),1,Feriados!$A$2:$A$1037),'IPCA IBGE'!A:D,4,FALSE)/100)^(M58/N58),6)) ->  | P58: 2023-09-15 | Q58: =VLOOKUP(WORKDAY(WORKDAY(P58,-1,Feriados!$A$2:$A$1037),1,Feriados!$A$2:$A$1037),'Histórico VNA IPCA'!B62:E50053,2,FALSE) -> 4139.227805 | R58: 46 | S58: 31 | T58: =WORKDAY(WORKDAY(DATEVALUE(CONCATENATE("15/"&MONTH(A58)&"/"&YEAR(A58))),-1,Feriados!$A$2:$A$1037),1,Feriados!$A$2:$A$1037) -> 2023-10-16 | U58: =VLOOKUP(WORKDAY(WORKDAY(T58,-1,Feriados!$A$2:$A$1037),1,Feriados!$A$2:$A$1037),'Histórico VNA IPCA'!B62:E50053,2,FALSE) -> 4149.991948 | V58: 2023-11-15 | W58: 15 | X58: 30 | Y58: 4155.59066
A59: 2023-11-01 | B59: 4156.391092 | C59: 0.27 | D59: P | E59: 3 | F59: 4155.94083 | G59: 0.008426479619 | H59: 1.006347565 | I59: 0.634756541 | J59: =IF(E59<>1,"",TRUNC((VLOOKUP(WORKDAY(WORKDAY(K59,-1,Feriados!$A$2:$A$1037),1,Feriados!$A$2:$A$1037),'IPCA IBGE'!A:D,4,FALSE)/100+1)*L59,6)) ->  | K59: 2023-10-15 | L59: =VLOOKUP(WORKDAY(WORKDAY(K59,-1,Feriados!$A$2:$A$1037),1,Feriados!$A$2:$A$1037),'Histórico VNA IPCA'!B63:E50054,2,FALSE) -> 4149.991948 | O59: =IF(E59<>2,"",TRUNC((L59)*(1+VLOOKUP(WORKDAY(WORKDAY(K59,-1,Feriados!$A$2:$A$1037),1,Feriados!$A$2:$A$1037),'IPCA IBGE'!A:D,4,FALSE)/100)^(M59/N59),6)) ->  | P59: 2023-10-15 | Q59: =VLOOKUP(WORKDAY(WORKDAY(P59,-1,Feriados!$A$2:$A$1037),1,Feriados!$A$2:$A$1037),'Histórico VNA IPCA'!B63:E50054,2,FALSE) -> 4149.991948 | R59: 17 | S59: 32 | T59: =WORKDAY(WORKDAY(DATEVALUE(CONCATENATE("15/"&MONTH(A59)&"/"&YEAR(A59))),-1,Feriados!$A$2:$A$1037),1,Feriados!$A$2:$A$1037) -> 2023-11-16 | U59: =VLOOKUP(WORKDAY(WORKDAY(T59,-1,Feriados!$A$2:$A$1037),1,Feriados!$A$2:$A$1037),'Histórico VNA IPCA'!B63:E50054,2,FALSE) -> 4159.950948 | V59: 2023-12-15 | W59: -15 | X59: 29 | Y59: 4155.94083
A60: 2023-11-03 | B60: 4156.9248 | C60: 0.27 | D60: P | E60: 3 | F60: 4156.641259 | G60: 0.01685368076 | H60: 1.006517172 | I60: 0.6517172016 | J60: =IF(E60<>1,"",TRUNC((VLOOKUP(WORKDAY(WORKDAY(K60,-1,Feriados!$A$2:$A$1037),1,Feriados!$A$2:$A$1037),'IPCA IBGE'!A:D,4,FALSE)/100+1)*L60,6)) ->  | K60: 2023-10-15 | L60: =VLOOKUP(WORKDAY(WORKDAY(K60,-1,Feriados!$A$2:$A$1037),1,Feriados!$A$2:$A$1037),'Histórico VNA IPCA'!B64:E50055,2,FALSE) -> 4149.991948 | O60: =IF(E60<>2,"",TRUNC((L60)*(1+VLOOKUP(WORKDAY(WORKDAY(K60,-1,Feriados!$A$2:$A$1037),1,Feriados!$A$2:$A$1037),'IPCA IBGE'!A:D,4,FALSE)/100)^(M60/N60),6)) ->  | P60: 2023-10-15 | Q60: =VLOOKUP(WORKDAY(WORKDAY(P60,-1,Feriados!$A$2:$A$1037),1,Feriados!$A$2:$A$1037),'Histórico VNA IPCA'!B64:E50055,2,FALSE) -> 4149.991948 | R60: 19 | S60: 32 | T60: =WORKDAY(WORKDAY(DATEVALUE(CONCATENATE("15/"&MONTH(A60)&"/"&YEAR(A60))),-1,Feriados!$A$2:$A$1037),1,Feriados!$A$2:$A$1037) -> 2023-11-16 | U60: =VLOOKUP(WORKDAY(WORKDAY(T60,-1,Feriados!$A$2:$A$1037),1,Feriados!$A$2:$A$1037),'Histórico VNA IPCA'!B64:E50055,2,FALSE) -> 4159.950948 | V60: 2023-12-15 | W60: -13 | X60: 29 | Y60: 4156.641259
A61: 2023-11-06 | B61: 4157.458576 | C61: 0.27 | D61: P | E61: 3 | F61: 4157.692124 | G61: 0.02528158998 | H61: 1.006771636 | I61: 0.677163556 | J61: =IF(E61<>1,"",TRUNC((VLOOKUP(WORKDAY(WORKDAY(K61,-1,Feriados!$A$2:$A$1037),1,Feriados!$A$2:$A$1037),'IPCA IBGE'!A:D,4,FALSE)/100+1)*L61,6)) ->  | K61: 2023-10-15 | L61: =VLOOKUP(WORKDAY(WORKDAY(K61,-1,Feriados!$A$2:$A$1037),1,Feriados!$A$2:$A$1037),'Histórico VNA IPCA'!B65:E50056,2,FALSE) -> 4149.991948 | O61: =IF(E61<>2,"",TRUNC((L61)*(1+VLOOKUP(WORKDAY(WORKDAY(K61,-1,Feriados!$A$2:$A$1037),1,Feriados!$A$2:$A$1037),'IPCA IBGE'!A:D,4,FALSE)/100)^(M61/N61),6)) ->  | P61: 2023-10-15 | Q61: =VLOOKUP(WORKDAY(WORKDAY(P61,-1,Feriados!$A$2:$A$1037),1,Feriados!$A$2:$A$1037),'Histórico VNA IPCA'!B65:E50056,2,FALSE) -> 4149.991948 | R61: 22 | S61: 32 | T61: =WORKDAY(WORKDAY(DATEVALUE(CONCATENATE("15/"&MONTH(A61)&"/"&YEAR(A61))),-1,Feriados!$A$2:$A$1037),1,Feriados!$A$2:$A$1037) -> 2023-11-16 | U61: =VLOOKUP(WORKDAY(WORKDAY(T61,-1,Feriados!$A$2:$A$1037),1,Feriados!$A$2:$A$1037),'Histórico VNA IPCA'!B65:E50056,2,FALSE) -> 4159.950948 | V61: 2023-12-15 | W61: -10 | X61: 29 | Y61: 4157.692124
A62: 2023-11-07 | B62: 4157.99242 | C62: 0.27 | D62: P | E62: 3 | F62: 4158.042471 | G62: 0.008426477708 | H62: 1.006856471 | I62: 0.6856470948 | J62: =IF(E62<>1,"",TRUNC((VLOOKUP(WORKDAY(WORKDAY(K62,-1,Feriados!$A$2:$A$1037),1,Feriados!$A$2:$A$1037),'IPCA IBGE'!A:D,4,FALSE)/100+1)*L62,6)) ->  | K62: 2023-10-15 | L62: =VLOOKUP(WORKDAY(WORKDAY(K62,-1,Feriados!$A$2:$A$1037),1,Feriados!$A$2:$A$1037),'Histórico VNA IPCA'!B66:E50057,2,FALSE) -> 4149.991948 | O62: =IF(E62<>2,"",TRUNC((L62)*(1+VLOOKUP(WORKDAY(WORKDAY(K62,-1,Feriados!$A$2:$A$1037),1,Feriados!$A$2:$A$1037),'IPCA IBGE'!A:D,4,FALSE)/100)^(M62/N62),6)) ->  | P62: 2023-10-15 | Q62: =VLOOKUP(WORKDAY(WORKDAY(P62,-1,Feriados!$A$2:$A$1037),1,Feriados!$A$2:$A$1037),'Histórico VNA IPCA'!B66:E50057,2,FALSE) -> 4149.991948 | R62: 23 | S62: 32 | T62: =WORKDAY(WORKDAY(DATEVALUE(CONCATENATE("15/"&MONTH(A62)&"/"&YEAR(A62))),-1,Feriados!$A$2:$A$1037),1,Feriados!$A$2:$A$1037) -> 2023-11-16 | U62: =VLOOKUP(WORKDAY(WORKDAY(T62,-1,Feriados!$A$2:$A$1037),1,Feriados!$A$2:$A$1037),'Histórico VNA IPCA'!B66:E50057,2,FALSE) -> 4159.950948 | V62: 2023-12-15 | W62: -9 | X62: 29 | Y62: 4158.042471
A63: 2023-11-08 | B63: 4158.526333 | C63: 0.27 | D63: P | E63: 3 | F63: 4158.392848 | G63: 0.008426489206 | H63: 1.006941314 | I63: 0.69413136 | J63: =IF(E63<>1,"",TRUNC((VLOOKUP(WORKDAY(WORKDAY(K63,-1,Feriados!$A$2:$A$1037),1,Feriados!$A$2:$A$1037),'IPCA IBGE'!A:D,4,FALSE)/100+1)*L63,6)) ->  | K63: 2023-10-15 | L63: =VLOOKUP(WORKDAY(WORKDAY(K63,-1,Feriados!$A$2:$A$1037),1,Feriados!$A$2:$A$1037),'Histórico VNA IPCA'!B67:E50058,2,FALSE) -> 4149.991948 | O63: =IF(E63<>2,"",TRUNC((L63)*(1+VLOOKUP(WORKDAY(WORKDAY(K63,-1,Feriados!$A$2:$A$1037),1,Feriados!$A$2:$A$1037),'IPCA IBGE'!A:D,4,FALSE)/100)^(M63/N63),6)) ->  | P63: 2023-10-15 | Q63: =VLOOKUP(WORKDAY(WORKDAY(P63,-1,Feriados!$A$2:$A$1037),1,Feriados!$A$2:$A$1037),'Histórico VNA IPCA'!B67:E50058,2,FALSE) -> 4149.991948 | R63: 24 | S63: 32 | T63: =WORKDAY(WORKDAY(DATEVALUE(CONCATENATE("15/"&MONTH(A63)&"/"&YEAR(A63))),-1,Feriados!$A$2:$A$1037),1,Feriados!$A$2:$A$1037) -> 2023-11-16 | U63: =VLOOKUP(WORKDAY(WORKDAY(T63,-1,Feriados!$A$2:$A$1037),1,Feriados!$A$2:$A$1037),'Histórico VNA IPCA'!B67:E50058,2,FALSE) -> 4159.950948 | V63: 2023-12-15 | W63: -8 | X63: 29 | Y63: 4158.392848
A64: 2023-11-09 | B64: 4159.060314 | C64: 0.27 | D64: P | E64: 3 | F64: 4158.743254 | G64: 0.008426476593 | H64: 1.007026163 | I64: 0.7026163274 | J64: =IF(E64<>1,"",TRUNC((VLOOKUP(WORKDAY(WORKDAY(K64,-1,Feriados!$A$2:$A$1037),1,Feriados!$A$2:$A$1037),'IPCA IBGE'!A:D,4,FALSE)/100+1)*L64,6)) ->  | K64: 2023-10-15 | L64: =VLOOKUP(WORKDAY(WORKDAY(K64,-1,Feriados!$A$2:$A$1037),1,Feriados!$A$2:$A$1037),'Histórico VNA IPCA'!B68:E50059,2,FALSE) -> 4149.991948 | O64: =IF(E64<>2,"",TRUNC((L64)*(1+VLOOKUP(WORKDAY(WORKDAY(K64,-1,Feriados!$A$2:$A$1037),1,Feriados!$A$2:$A$1037),'IPCA IBGE'!A:D,4,FALSE)/100)^(M64/N64),6)) ->  | P64: 2023-10-15 | Q64: =VLOOKUP(WORKDAY(WORKDAY(P64,-1,Feriados!$A$2:$A$1037),1,Feriados!$A$2:$A$1037),'Histórico VNA IPCA'!B68:E50059,2,FALSE) -> 4149.991948 | R64: 25 | S64: 32 | T64: =WORKDAY(WORKDAY(DATEVALUE(CONCATENATE("15/"&MONTH(A64)&"/"&YEAR(A64))),-1,Feriados!$A$2:$A$1037),1,Feriados!$A$2:$A$1037) -> 2023-11-16 | U64: =VLOOKUP(WORKDAY(WORKDAY(T64,-1,Feriados!$A$2:$A$1037),1,Feriados!$A$2:$A$1037),'Histórico VNA IPCA'!B68:E50059,2,FALSE) -> 4159.950948 | V64: 2023-12-15 | W64: -7 | X64: 29 | Y64: 4158.743254
A65: 2023-11-10 | B65: 4158.526771 | C65: 0.24 | D65: F | E65: 2 | F65: 4158.081816 | G65: -0.01590475679 | H65: 1.006865998 | I65: 0.6865998212 | J65: =IF(E65<>1,"",TRUNC((VLOOKUP(WORKDAY(WORKDAY(K65,-1,Feriados!$A$2:$A$1037),1,Feriados!$A$2:$A$1037),'IPCA IBGE'!A:D,4,FALSE)/100+1)*L65,6)) ->  | K65: 2023-10-15 | L65: =VLOOKUP(WORKDAY(WORKDAY(K65,-1,Feriados!$A$2:$A$1037),1,Feriados!$A$2:$A$1037),'Histórico VNA IPCA'!B69:E50060,2,FALSE) -> 4149.991948 | M65: 26 | N65: 32 | O65: =IF(E65<>2,"",TRUNC((L65)*(1+VLOOKUP(WORKDAY(WORKDAY(K65,-1,Feriados!$A$2:$A$1037),1,Feriados!$A$2:$A$1037),'IPCA IBGE'!A:D,4,FALSE)/100)^(M65/N65),6)) -> 4158.081816 | P65: 2023-10-15 | Q65: =VLOOKUP(WORKDAY(WORKDAY(P65,-1,Feriados!$A$2:$A$1037),1,Feriados!$A$2:$A$1037),'Histórico VNA IPCA'!B69:E50060,2,FALSE) -> 4149.991948 | T65: =WORKDAY(WORKDAY(DATEVALUE(CONCATENATE("15/"&MONTH(A65)&"/"&YEAR(A65))),-1,Feriados!$A$2:$A$1037),1,Feriados!$A$2:$A$1037) -> 2023-11-16 | U65: =VLOOKUP(WORKDAY(WORKDAY(T65,-1,Feriados!$A$2:$A$1037),1,Feriados!$A$2:$A$1037),'Histórico VNA IPCA'!B69:E50060,2,FALSE) -> 4159.950948 | V65: 2023-12-15
A66: 2023-11-13 | B66: 4159.001442 | C66: 0.24 | D66: F | E66: 2 | F66: 4159.016277 | G66: 0.02247336732 | H66: 1.007092275 | I66: 0.7092274906 | J66: =IF(E66<>1,"",TRUNC((VLOOKUP(WORKDAY(WORKDAY(K66,-1,Feriados!$A$2:$A$1037),1,Feriados!$A$2:$A$1037),'IPCA IBGE'!A:D,4,FALSE)/100+1)*L66,6)) ->  | K66: 2023-10-15 | L66: =VLOOKUP(WORKDAY(WORKDAY(K66,-1,Feriados!$A$2:$A$1037),1,Feriados!$A$2:$A$1037),'Histórico VNA IPCA'!B70:E50061,2,FALSE) -> 4149.991948 | M66: 29 | N66: 32 | O66: =IF(E66<>2,"",TRUNC((L66)*(1+VLOOKUP(WORKDAY(WORKDAY(K66,-1,Feriados!$A$2:$A$1037),1,Feriados!$A$2:$A$1037),'IPCA IBGE'!A:D,4,FALSE)/100)^(M66/N66),6)) -> 4159.016277 | P66: 2023-10-15 | Q66: =VLOOKUP(WORKDAY(WORKDAY(P66,-1,Feriados!$A$2:$A$1037),1,Feriados!$A$2:$A$1037),'Histórico VNA IPCA'!B70:E50061,2,FALSE) -> 4149.991948 | T66: =WORKDAY(WORKDAY(DATEVALUE(CONCATENATE("15/"&MONTH(A66)&"/"&YEAR(A66))),-1,Feriados!$A$2:$A$1037),1,Feriados!$A$2:$A$1037) -> 2023-11-16 | U66: =VLOOKUP(WORKDAY(WORKDAY(T66,-1,Feriados!$A$2:$A$1037),1,Feriados!$A$2:$A$1037),'Histórico VNA IPCA'!B70:E50061,2,FALSE) -> 4159.950948 | V66: 2023-12-15
A67: 2023-11-14 | B67: 4159.476168 | C67: 0.24 | D67: F | E67: 2 | F67: 4159.32781 | G67: 0.007490545342 | H67: 1.007167712 | I67: 0.7167711609 | J67: =IF(E67<>1,"",TRUNC((VLOOKUP(WORKDAY(WORKDAY(K67,-1,Feriados!$A$2:$A$1037),1,Feriados!$A$2:$A$1037),'IPCA IBGE'!A:D,4,FALSE)/100+1)*L67,6)) ->  | K67: 2023-10-15 | L67: =VLOOKUP(WORKDAY(WORKDAY(K67,-1,Feriados!$A$2:$A$1037),1,Feriados!$A$2:$A$1037),'Histórico VNA IPCA'!B71:E50062,2,FALSE) -> 4149.991948 | M67: 30 | N67: 32 | O67: =IF(E67<>2,"",TRUNC((L67)*(1+VLOOKUP(WORKDAY(WORKDAY(K67,-1,Feriados!$A$2:$A$1037),1,Feriados!$A$2:$A$1037),'IPCA IBGE'!A:D,4,FALSE)/100)^(M67/N67),6)) -> 4159.32781 | P67: 2023-10-15 | Q67: =VLOOKUP(WORKDAY(WORKDAY(P67,-1,Feriados!$A$2:$A$1037),1,Feriados!$A$2:$A$1037),'Histórico VNA IPCA'!B71:E50062,2,FALSE) -> 4149.991948 | T67: =WORKDAY(WORKDAY(DATEVALUE(CONCATENATE("15/"&MONTH(A67)&"/"&YEAR(A67))),-1,Feriados!$A$2:$A$1037),1,Feriados!$A$2:$A$1037) -> 2023-11-16 | U67: =VLOOKUP(WORKDAY(WORKDAY(T67,-1,Feriados!$A$2:$A$1037),1,Feriados!$A$2:$A$1037),'Histórico VNA IPCA'!B71:E50062,2,FALSE) -> 4159.950948 | V67: 2023-12-15
A68: 2023-11-16 | B68: 4159.950948 | C68: 0.24 | D68: F | E68: 1 | F68: 4159.950947 | G68: 0.01498167561 | H68: 1.007318602 | I68: 0.7318602209 | J68: =IF(E68<>1,"",TRUNC((VLOOKUP(WORKDAY(WORKDAY(K68,-1,Feriados!$A$2:$A$1037),1,Feriados!$A$2:$A$1037),'IPCA IBGE'!A:D,4,FALSE)/100+1)*L68,6)) -> 4159.950947 | K68: 2023-10-15 | L68: =VLOOKUP(WORKDAY(WORKDAY(K68,-1,Feriados!$A$2:$A$1037),1,Feriados!$A$2:$A$1037),'Histórico VNA IPCA'!B72:E50063,2,FALSE) -> 4149.991948 | O68: =IF(E68<>2,"",TRUNC((L68)*(1+VLOOKUP(WORKDAY(WORKDAY(K68,-1,Feriados!$A$2:$A$1037),1,Feriados!$A$2:$A$1037),'IPCA IBGE'!A:D,4,FALSE)/100)^(M68/N68),6)) ->  | P68: 2023-10-15 | Q68: =VLOOKUP(WORKDAY(WORKDAY(P68,-1,Feriados!$A$2:$A$1037),1,Feriados!$A$2:$A$1037),'Histórico VNA IPCA'!B72:E50063,2,FALSE) -> 4149.991948 | T68: =WORKDAY(WORKDAY(DATEVALUE(CONCATENATE("15/"&MONTH(A68)&"/"&YEAR(A68))),-1,Feriados!$A$2:$A$1037),1,Feriados!$A$2:$A$1037) -> 2023-11-16 | U68: =VLOOKUP(WORKDAY(WORKDAY(T68,-1,Feriados!$A$2:$A$1037),1,Feriados!$A$2:$A$1037),'Histórico VNA IPCA'!B72:E50063,2,FALSE) -> 4159.950948 | V68: 2023-12-15
A69: 2023-11-17 | B69: 4160.524625 | C69: 0.29 | D69: P | E69: 3 | F69: 4160.366361 | G69: 0.009986031213 | H69: 1.007419193 | I69: 0.7419193359 | J69: =IF(E69<>1,"",TRUNC((VLOOKUP(WORKDAY(WORKDAY(K69,-1,Feriados!$A$2:$A$1037),1,Feriados!$A$2:$A$1037),'IPCA IBGE'!A:D,4,FALSE)/100+1)*L69,6)) ->  | K69: 2023-10-15 | L69: =VLOOKUP(WORKDAY(WORKDAY(K69,-1,Feriados!$A$2:$A$1037),1,Feriados!$A$2:$A$1037),'Histórico VNA IPCA'!B73:E50064,2,FALSE) -> 4149.991948 | O69: =IF(E69<>2,"",TRUNC((L69)*(1+VLOOKUP(WORKDAY(WORKDAY(K69,-1,Feriados!$A$2:$A$1037),1,Feriados!$A$2:$A$1037),'IPCA IBGE'!A:D,4,FALSE)/100)^(M69/N69),6)) ->  | P69: 2023-10-15 | Q69: =VLOOKUP(WORKDAY(WORKDAY(P69,-1,Feriados!$A$2:$A$1037),1,Feriados!$A$2:$A$1037),'Histórico VNA IPCA'!B73:E50064,2,FALSE) -> 4149.991948 | R69: 33 | S69: 32 | T69: =WORKDAY(WORKDAY(DATEVALUE(CONCATENATE("15/"&MONTH(A69)&"/"&YEAR(A69))),-1,Feriados!$A$2:$A$1037),1,Feriados!$A$2:$A$1037) -> 2023-11-16 | U69: =VLOOKUP(WORKDAY(WORKDAY(T69,-1,Feriados!$A$2:$A$1037),1,Feriados!$A$2:$A$1037),'Histórico VNA IPCA'!B73:E50064,2,FALSE) -> 4159.950948 | V69: 2023-12-15 | W69: 1 | X69: 29 | Y69: 4160.366361
A70: 2023-11-20 | B70: 4161.098382 | C70: 0.29 | D70: P | E70: 3 | F70: 4161.612852 | G70: 0.02996108736 | H70: 1.007721027 | I70: 0.7721027103 | J70: =IF(E70<>1,"",TRUNC((VLOOKUP(WORKDAY(WORKDAY(K70,-1,Feriados!$A$2:$A$1037),1,Feriados!$A$2:$A$1037),'IPCA IBGE'!A:D,4,FALSE)/100+1)*L70,6)) ->  | K70: 2023-10-15 | L70: =VLOOKUP(WORKDAY(WORKDAY(K70,-1,Feriados!$A$2:$A$1037),1,Feriados!$A$2:$A$1037),'Histórico VNA IPCA'!B74:E50065,2,FALSE) -> 4149.991948 | O70: =IF(E70<>2,"",TRUNC((L70)*(1+VLOOKUP(WORKDAY(WORKDAY(K70,-1,Feriados!$A$2:$A$1037),1,Feriados!$A$2:$A$1037),'IPCA IBGE'!A:D,4,FALSE)/100)^(M70/N70),6)) ->  | P70: 2023-10-15 | Q70: =VLOOKUP(WORKDAY(WORKDAY(P70,-1,Feriados!$A$2:$A$1037),1,Feriados!$A$2:$A$1037),'Histórico VNA IPCA'!B74:E50065,2,FALSE) -> 4149.991948 | R70: 36 | S70: 32 | T70: =WORKDAY(WORKDAY(DATEVALUE(CONCATENATE("15/"&MONTH(A70)&"/"&YEAR(A70))),-1,Feriados!$A$2:$A$1037),1,Feriados!$A$2:$A$1037) -> 2023-11-16 | U70: =VLOOKUP(WORKDAY(WORKDAY(T70,-1,Feriados!$A$2:$A$1037),1,Feriados!$A$2:$A$1037),'Histórico VNA IPCA'!B74:E50065,2,FALSE) -> 4159.950948 | V70: 2023-12-15 | W70: 4 | X70: 29 | Y70: 4161.612852
A71: 2023-11-21 | B71: 4161.672218 | C71: 0.29 | D71: P | E71: =IF(A71=T71,1,IF(D71="f",2,3)) -> 3 | F71: =IF(E71=3,Y71,IF(E71=2,O71,J71)) -> 4162.028431 | G71: =+(F71/F70-1)*100 -> 0.009986008184 | H71: =+(G71/100+1)*H70 -> 1.007821658 | I71: =(+H71-1)*100 -> 0.7821658208 | J71: =IF(E71<>1,"",TRUNC((VLOOKUP(WORKDAY(WORKDAY(K71,-1,Feriados!$A$2:$A$1037),1,Feriados!$A$2:$A$1037),'IPCA IBGE'!A:D,4,FALSE)/100+1)*L71,6)) ->  | K71: =DATEVALUE(CONCATENATE("15/"&MONTH(EDATE($A71,-1))&"/"&YEAR(EDATE(A71,-1)))) -> 2023-10-15 | L71: =VLOOKUP(WORKDAY(WORKDAY(K71,-1,Feriados!$A$2:$A$1037),1,Feriados!$A$2:$A$1037),'Histórico VNA IPCA'!B75:E50066,2,FALSE) -> 4149.991948 | M71: =IF(E71<>2,"",A71-K71) ->  | N71: =IF(E71<>2,"",T71-K71) ->  | O71: =IF(E71<>2,"",TRUNC((L71)*(1+VLOOKUP(WORKDAY(WORKDAY(K71,-1,Feriados!$A$2:$A$1037),1,Feriados!$A$2:$A$1037),'IPCA IBGE'!A:D,4,FALSE)/100)^(M71/N71),6)) ->  | P71: =DATEVALUE(CONCATENATE("15/"&MONTH(EDATE($A71,-1))&"/"&YEAR(EDATE(A71,-1)))) -> 2023-10-15 | Q71: =VLOOKUP(WORKDAY(WORKDAY(P71,-1,Feriados!$A$2:$A$1037),1,Feriados!$A$2:$A$1037),'Histórico VNA IPCA'!B75:E50066,2,FALSE) -> 4149.991948 | R71: =IF(E71<>3,"",A71-P71) -> 37 | S71: =IF(E71<>3,"",T71-P71) -> 32 | T71: =WORKDAY(WORKDAY(DATEVALUE(CONCATENATE("15/"&MONTH(A71)&"/"&YEAR(A71))),-1,Feriados!$A$2:$A$1037),1,Feriados!$A$2:$A$1037) -> 2023-11-16 | U71: =VLOOKUP(WORKDAY(WORKDAY(T71,-1,Feriados!$A$2:$A$1037),1,Feriados!$A$2:$A$1037),'Histórico VNA IPCA'!B75:E50066,2,FALSE) -> 4159.950948 | V71: =DATEVALUE(CONCATENATE("15/"&MONTH(EDATE(A71,1))&"/"&YEAR(EDATE(A71,1)))) -> 2023-12-15 | W71: =IF(E71<>3,"",A71-T71) -> 5 | X71: =IF(E71<>3,"",V71-T71) -> 29 | Y71: =IF(E71<>3,"",IF(A71>T71,TRUNC(+U71*((1+C71/100)^(W71/X71)),6),TRUNC(+Q71*((1+C71/100)^(R71/S71)),6))) -> 4162.028431
A72: 2023-11-22 | C72: 0.29 | D72: P | E72: =IF(A72=T72,1,IF(D72="f",2,3)) -> 3 | F72: =IF(E72=3,Y72,IF(E72=2,O72,J72)) -> 4162.444053 | G72: =+(F72/F71-1)*100 -> 0.00998604423 | H72: =+(G72/100+1)*H71 -> 1.0079223 | I72: =(+H72-1)*100 -> 0.7922299724 | J72: =IF(E72<>1,"",TRUNC((VLOOKUP(WORKDAY(WORKDAY(K72,-1,Feriados!$A$2:$A$1037),1,Feriados!$A$2:$A$1037),'IPCA IBGE'!A:D,4,FALSE)/100+1)*L72,6)) ->  | K72: =DATEVALUE(CONCATENATE("15/"&MONTH(EDATE($A72,-1))&"/"&YEAR(EDATE(A72,-1)))) -> 2023-10-15 | L72: =VLOOKUP(WORKDAY(WORKDAY(K72,-1,Feriados!$A$2:$A$1037),1,Feriados!$A$2:$A$1037),'Histórico VNA IPCA'!B76:E50067,2,FALSE) -> 4149.991948 | M72: =IF(E72<>2,"",A72-K72) ->  | N72: =IF(E72<>2,"",T72-K72) ->  | O72: =IF(E72<>2,"",TRUNC((L72)*(1+VLOOKUP(WORKDAY(WORKDAY(K72,-1,Feriados!$A$2:$A$1037),1,Feriados!$A$2:$A$1037),'IPCA IBGE'!A:D,4,FALSE)/100)^(M72/N72),6)) ->  | P72: =DATEVALUE(CONCATENATE("15/"&MONTH(EDATE($A72,-1))&"/"&YEAR(EDATE(A72,-1)))) -> 2023-10-15 | Q72: =VLOOKUP(WORKDAY(WORKDAY(P72,-1,Feriados!$A$2:$A$1037),1,Feriados!$A$2:$A$1037),'Histórico VNA IPCA'!B76:E50067,2,FALSE) -> 4149.991948 | R72: =IF(E72<>3,"",A72-P72) -> 38 | S72: =IF(E72<>3,"",T72-P72) -> 32 | T72: =WORKDAY(WORKDAY(DATEVALUE(CONCATENATE("15/"&MONTH(A72)&"/"&YEAR(A72))),-1,Feriados!$A$2:$A$1037),1,Feriados!$A$2:$A$1037) -> 2023-11-16 | U72: =VLOOKUP(WORKDAY(WORKDAY(T72,-1,Feriados!$A$2:$A$1037),1,Feriados!$A$2:$A$1037),'Histórico VNA IPCA'!B76:E50067,2,FALSE) -> 4159.950948 | V72: =DATEVALUE(CONCATENATE("15/"&MONTH(EDATE(A72,1))&"/"&YEAR(EDATE(A72,1)))) -> 2023-12-15 | W72: =IF(E72<>3,"",A72-T72) -> 6 | X72: =IF(E72<>3,"",V72-T72) -> 29 | Y72: =IF(E72<>3,"",IF(A72>T72,TRUNC(+U72*((1+C72/100)^(W72/X72)),6),TRUNC(+Q72*((1+C72/100)^(R72/S72)),6))) -> 4162.444053

Sheet IPCA IBGE
A1: Mês | B1: Referência | C1: Índice | D1: Variação no Mês
A2: =WORKDAY(WORKDAY(DATEVALUE(CONCATENATE("15/"&MONTH(B2)&"/"&YEAR(B2))),-1,Feriados!$A$2:$A$1037),1,Feriados!$A$2:$A$1037) -> 1999-12-15 | B2: 1999-12-31 | C2: 1588.56 | D2: 0.6
A3: =WORKDAY(WORKDAY(DATEVALUE(CONCATENATE("15/"&MONTH(B3)&"/"&YEAR(B3))),-1,Feriados!$A$2:$A$1037),1,Feriados!$A$2:$A$1037) -> 2000-01-17 | B3: 2000-01-31 | C3: 1598.41 | D3: =(+C3/C2-1)*100 -> 0.6200584177
A4: =WORKDAY(WORKDAY(DATEVALUE(CONCATENATE("15/"&MONTH(B4)&"/"&YEAR(B4))),-1,Feriados!$A$2:$A$1037),1,Feriados!$A$2:$A$1037) -> 2000-02-15 | B4: 2000-02-29 | C4: 1600.49 | D4: =(+C4/C3-1)*100 -> 0.130129316
A5: =WORKDAY(WORKDAY(DATEVALUE(CONCATENATE("15/"&MONTH(B5)&"/"&YEAR(B5))),-1,Feriados!$A$2:$A$1037),1,Feriados!$A$2:$A$1037) -> 2000-03-15 | B5: 2000-03-31 | C5: 1604.01 | D5: =(+C5/C4-1)*100 -> 0.2199326456
A6: =WORKDAY(WORKDAY(DATEVALUE(CONCATENATE("15/"&MONTH(B6)&"/"&YEAR(B6))),-1,Feriados!$A$2:$A$1037),1,Feriados!$A$2:$A$1037) -> 2000-04-17 | B6: 2000-04-30 | C6: 1610.75 | D6: 0.4201968816
A7: =WORKDAY(WORKDAY(DATEVALUE(CONCATENATE("15/"&MONTH(B7)&"/"&YEAR(B7))),-1,Feriados!$A$2:$A$1037),1,Feriados!$A$2:$A$1037) -> 2000-05-15 | B7: 2000-05-31 | C7: 1610.91 | D7: 0.009933260903
A8: =WORKDAY(WORKDAY(DATEVALUE(CONCATENATE("15/"&MONTH(B8)&"/"&YEAR(B8))),-1,Feriados!$A$2:$A$1037),1,Feriados!$A$2:$A$1037) -> 2000-06-15 | B8: 2000-06-30 | C8: 1614.62 | D8: 0.2303046104
A9: =WORKDAY(WORKDAY(DATEVALUE(CONCATENATE("15/"&MONTH(B9)&"/"&YEAR(B9))),-1,Feriados!$A$2:$A$1037),1,Feriados!$A$2:$A$1037) -> 2000-07-17 | B9: 2000-07-31 | C9: 1640.62 | D9: 1.610286012
A10: =WORKDAY(WORKDAY(DATEVALUE(CONCATENATE("15/"&MONTH(B10)&"/"&YEAR(B10))),-1,Feriados!$A$2:$A$1037),1,Feriados!$A$2:$A$1037) -> 2000-08-15 | B10: 2000-08-31 | C10: 1662.11 | D10: 1.309870659
A11: =WORKDAY(WORKDAY(DATEVALUE(CONCATENATE("15/"&MONTH(B11)&"/"&YEAR(B11))),-1,Feriados!$A$2:$A$1037),1,Feriados!$A$2:$A$1037) -> 2000-09-15 | B11: 2000-09-30 | C11: 1665.93 | D11: 0.2298283507
A12: =WORKDAY(WORKDAY(DATEVALUE(CONCATENATE("15/"&MONTH(B12)&"/"&YEAR(B12))),-1,Feriados!$A$2:$A$1037),1,Feriados!$A$2:$A$1037) -> 2000-10-16 | B12: 2000-10-31 | C12: 1668.26 | D12: 0.1398618189
A13: =WORKDAY(WORKDAY(DATEVALUE(CONCATENATE("15/"&MONTH(B13)&"/"&YEAR(B13))),-1,Feriados!$A$2:$A$1037),1,Feriados!$A$2:$A$1037) -> 2000-11-16 | B13: 2000-11-30 | C13: 1673.6 | D13: 0.3200939901
A14: =WORKDAY(WORKDAY(DATEVALUE(CONCATENATE("15/"&MONTH(B14)&"/"&YEAR(B14))),-1,Feriados!$A$2:$A$1037),1,Feriados!$A$2:$A$1037) -> 2000-12-15 | B14: 2000-12-31 | C14: 1683.47 | D14: 0.5897466539
A15: =WORKDAY(WORKDAY(DATEVALUE(CONCATENATE("15/"&MONTH(B15)&"/"&YEAR(B15))),-1,Feriados!$A$2:$A$1037),1,Feriados!$A$2:$A$1037) -> 2001-01-15 | B15: 2001-01-31 | C15: 1693.07 | D15: 0.5702507321
A16: =WORKDAY(WORKDAY(DATEVALUE(CONCATENATE("15/"&MONTH(B16)&"/"&YEAR(B16))),-1,Feriados!$A$2:$A$1037),1,Feriados!$A$2:$A$1037) -> 2001-02-15 | B16: 2001-02-28 | C16: 1700.86 | D16: 0.4601109228
A17: =WORKDAY(WORKDAY(DATEVALUE(CONCATENATE("15/"&MONTH(B17)&"/"&YEAR(B17))),-1,Feriados!$A$2:$A$1037),1,Feriados!$A$2:$A$1037) -> 2001-03-15 | B17: 2001-03-31 | C17: 1707.32 | D17: 0.3798078619
A18: =WORKDAY(WORKDAY(DATEVALUE(CONCATENATE("15/"&MONTH(B18)&"/"&YEAR(B18))),-1,Feriados!$A$2:$A$1037),1,Feriados!$A$2:$A$1037) -> 2001-04-16 | B18: 2001-04-30 | C18: 1717.22 | D18: 0.5798561488
A19: =WORKDAY(WORKDAY(DATEVALUE(CONCATENATE("15/"&MONTH(B19)&"/"&YEAR(B19))),-1,Feriados!$A$2:$A$1037),1,Feriados!$A$2:$A$1037) -> 2001-05-15 | B19: 2001-05-31 | C19: 1724.26 | D19: 0.4099649433
A20: =WORKDAY(WORKDAY(DATEVALUE(CONCATENATE("15/"&MONTH(B20)&"/"&YEAR(B20))),-1,Feriados!$A$2:$A$1037),1,Feriados!$A$2:$A$1037) -> 2001-06-15 | B20: 2001-06-30 | C20: 1733.23 | D20: 0.5202231682
A21: =WORKDAY(WORKDAY(DATEVALUE(CONCATENATE("15/"&MONTH(B21)&"/"&YEAR(B21))),-1,Feriados!$A$2:$A$1037),1,Feriados!$A$2:$A$1037) -> 2001-07-16 | B21: 2001-07-31 | C21: 1756.28 | D21: 1.329886974
A22: =WORKDAY(WORKDAY(DATEVALUE(CONCATENATE("15/"&MONTH(B22)&"/"&YEAR(B22))),-1,Feriados!$A$2:$A$1037),1,Feriados!$A$2:$A$1037) -> 2001-08-15 | B22: 2001-08-31 | C22: 1768.57 | D22: 0.6997745234
A23: =WORKDAY(WORKDAY(DATEVALUE(CONCATENATE("15/"&MONTH(B23)&"/"&YEAR(B23))),-1,Feriados!$A$2:$A$1037),1,Feriados!$A$2:$A$1037) -> 2001-09-17 | B23: 2001-09-30 | C23: 1773.52 | D23: 0.2798871405
A24: =WORKDAY(WORKDAY(DATEVALUE(CONCATENATE("15/"&MONTH(B24)&"/"&YEAR(B24))),-1,Feriados!$A$2:$A$1037),1,Feriados!$A$2:$A$1037) -> 2001-10-15 | B24: 2001-10-31 | C24: 1788.24 | D24: 0.8299878208
A25: =WORKDAY(WORKDAY(DATEVALUE(CONCATENATE("15/"&MONTH(B25)&"/"&YEAR(B25))),-1,Feriados!$A$2:$A$1037),1,Feriados!$A$2:$A$1037) -> 2001-11-16 | B25: 2001-11-30 | C25: 1800.94 | D25: 0.7101954995
A26: =WORKDAY(WORKDAY(DATEVALUE(CONCATENATE("15/"&MONTH(B26)&"/"&YEAR(B26))),-1,Feriados!$A$2:$A$1037),1,Feriados!$A$2:$A$1037) -> 2001-12-17 | B26: 2001-12-31 | C26: 1812.65 | D26: 0.6502159983
A27: =WORKDAY(WORKDAY(DATEVALUE(CONCATENATE("15/"&MONTH(B27)&"/"&YEAR(B27))),-1,Feriados!$A$2:$A$1037),1,Feriados!$A$2:$A$1037) -> 2002-01-15 | B27: 2002-01-31 | C27: 1822.08 | D27: 0.5202328083
A28: =WORKDAY(WORKDAY(DATEVALUE(CONCATENATE("15/"&MONTH(B28)&"/"&YEAR(B28))),-1,Feriados!$A$2:$A$1037),1,Feriados!$A$2:$A$1037) -> 2002-02-15 | B28: 2002-02-28 | C28: 1828.64 | D28: 0.3600280998
A29: =WORKDAY(WORKDAY(DATEVALUE(CONCATENATE("15/"&MONTH(B29)&"/"&YEAR(B29))),-1,Feriados!$A$2:$A$1037),1,Feriados!$A$2:$A$1037) -> 2002-03-15 | B29: 2002-03-31 | C29: 1839.61 | D29: 0.5998993788
A30: =WORKDAY(WORKDAY(DATEVALUE(CONCATENATE("15/"&MONTH(B30)&"/"&YEAR(B30))),-1,Feriados!$A$2:$A$1037),1,Feriados!$A$2:$A$1037) -> 2002-04-15 | B30: 2002-04-30 | C30: 1854.33 | D30: 0.8001696012
A31: =WORKDAY(WORKDAY(DATEVALUE(CONCATENATE("15/"&MONTH(B31)&"/"&YEAR(B31))),-1,Feriados!$A$2:$A$1037),1,Feriados!$A$2:$A$1037) -> 2002-05-15 | B31: 2002-05-31 | C31: 1858.22 | D31: 0.2097792734
A32: =WORKDAY(WORKDAY(DATEVALUE(CONCATENATE("15/"&MONTH(B32)&"/"&YEAR(B32))),-1,Feriados!$A$2:$A$1037),1,Feriados!$A$2:$A$1037) -> 2002-06-17 | B32: 2002-06-30 | C32: 1866.02 | D32: 0.4197565412
A33: =WORKDAY(WORKDAY(DATEVALUE(CONCATENATE("15/"&MONTH(B33)&"/"&YEAR(B33))),-1,Feriados!$A$2:$A$1037),1,Feriados!$A$2:$A$1037) -> 2002-07-15 | B33: 2002-07-31 | C33: 1888.23 | D33: 1.19023376
A34: =WORKDAY(WORKDAY(DATEVALUE(CONCATENATE("15/"&MONTH(B34)&"/"&YEAR(B34))),-1,Feriados!$A$2:$A$1037),1,Feriados!$A$2:$A$1037) -> 2002-08-15 | B34: 2002-08-31 | C34: 1900.5 | D34: 0.649814906
A35: =WORKDAY(WORKDAY(DATEVALUE(CONCATENATE("15/"&MONTH(B35)&"/"&YEAR(B35))),-1,Feriados!$A$2:$A$1037),1,Feriados!$A$2:$A$1037) -> 2002-09-16 | B35: 2002-09-30 | C35: 1914.18 | D35: 0.7198105762
A36: =WORKDAY(WORKDAY(DATEVALUE(CONCATENATE("15/"&MONTH(B36)&"/"&YEAR(B36))),-1,Feriados!$A$2:$A$1037),1,Feriados!$A$2:$A$1037) -> 2002-10-15 | B36: 2002-10-31 | C36: 1939.26 | D36: 1.310221609
A37: =WORKDAY(WORKDAY(DATEVALUE(CONCATENATE("15/"&MONTH(B37)&"/"&YEAR(B37))),-1,Feriados!$A$2:$A$1037),1,Feriados!$A$2:$A$1037) -> 2002-11-18 | B37: 2002-11-30 | C37: 1997.83 | D37: 3.020224209
A38: =WORKDAY(WORKDAY(DATEVALUE(CONCATENATE("15/"&MONTH(B38)&"/"&YEAR(B38))),-1,Feriados!$A$2:$A$1037),1,Feriados!$A$2:$A$1037) -> 2002-12-16 | B38: 2002-12-31 | C38: 2039.78 | D38: 2.099778259
A39: =WORKDAY(WORKDAY(DATEVALUE(CONCATENATE("15/"&MONTH(B39)&"/"&YEAR(B39))),-1,Feriados!$A$2:$A$1037),1,Feriados!$A$2:$A$1037) -> 2003-01-15 | B39: 2003-01-31 | C39: 2085.68 | D39: 2.250242673
A40: =WORKDAY(WORKDAY(DATEVALUE(CONCATENATE("15/"&MONTH(B40)&"/"&YEAR(B40))),-1,Feriados!$A$2:$A$1037),1,Feriados!$A$2:$A$1037) -> 2003-02-17 | B40: 2003-02-28 | C40: 2118.43 | D40: 1.570231291
A41: =WORKDAY(WORKDAY(DATEVALUE(CONCATENATE("15/"&MONTH(B41)&"/"&YEAR(B41))),-1,Feriados!$A$2:$A$1037),1,Feriados!$A$2:$A$1037) -> 2003-03-17 | B41: 2003-03-31 | C41: 2144.49 | D41: 1.230156295
A42: =WORKDAY(WORKDAY(DATEVALUE(CONCATENATE("15/"&MONTH(B42)&"/"&YEAR(B42))),-1,Feriados!$A$2:$A$1037),1,Feriados!$A$2:$A$1037) -> 2003-04-15 | B42: 2003-04-30 | C42: 2165.29 | D42: 0.9699275818
A43: =WORKDAY(WORKDAY(DATEVALUE(CONCATENATE("15/"&MONTH(B43)&"/"&YEAR(B43))),-1,Feriados!$A$2:$A$1037),1,Feriados!$A$2:$A$1037) -> 2003-05-15 | B43: 2003-05-31 | C43: 2178.5 | D43: 0.6100799431
A44: =WORKDAY(WORKDAY(DATEVALUE(CONCATENATE("15/"&MONTH(B44)&"/"&YEAR(B44))),-1,Feriados!$A$2:$A$1037),1,Feriados!$A$2:$A$1037) -> 2003-06-16 | B44: 2003-06-30 | C44: 2175.23 | D44: -0.1501032821
A45: =WORKDAY(WORKDAY(DATEVALUE(CONCATENATE("15/"&MONTH(B45)&"/"&YEAR(B45))),-1,Feriados!$A$2:$A$1037),1,Feriados!$A$2:$A$1037) -> 2003-07-15 | B45: 2003-07-31 | C45: 2179.58 | D45: 0.1999788528
A46: =WORKDAY(WORKDAY(DATEVALUE(CONCATENATE("15/"&MONTH(B46)&"/"&YEAR(B46))),-1,Feriados!$A$2:$A$1037),1,Feriados!$A$2:$A$1037) -> 2003-08-15 | B46: 2003-08-31 | C46: 2186.99 | D46: 0.3399737564
A47: =WORKDAY(WORKDAY(DATEVALUE(CONCATENATE("15/"&MONTH(B47)&"/"&YEAR(B47))),-1,Feriados!$A$2:$A$1037),1,Feriados!$A$2:$A$1037) -> 2003-09-15 | B47: 2003-09-30 | C47: 2204.05 | D47: 0.7800675815
A48: =WORKDAY(WORKDAY(DATEVALUE(CONCATENATE("15/"&MONTH(B48)&"/"&YEAR(B48))),-1,Feriados!$A$2:$A$1037),1,Feriados!$A$2:$A$1037) -> 2003-10-15 | B48: 2003-10-31 | C48: 2210.44 | D48: 0.2899208276
A49: =WORKDAY(WORKDAY(DATEVALUE(CONCATENATE("15/"&MONTH(B49)&"/"&YEAR(B49))),-1,Feriados!$A$2:$A$1037),1,Feriados!$A$2:$A$1037) -> 2003-11-17 | B49: 2003-11-30 | C49: 2217.96 | D49: 0.3402037603
A50: =WORKDAY(WORKDAY(DATEVALUE(CONCATENATE("15/"&MONTH(B50)&"/"&YEAR(B50))),-1,Feriados!$A$2:$A$1037),1,Feriados!$A$2:$A$1037) -> 2003-12-15 | B50: 2003-12-31 | C50: 2229.49 | D50: 0.5198470667
A51: =WORKDAY(WORKDAY(DATEVALUE(CONCATENATE("15/"&MONTH(B51)&"/"&YEAR(B51))),-1,Feriados!$A$2:$A$1037),1,Feriados!$A$2:$A$1037) -> 2004-01-15 | B51: 2004-01-31 | C51: 2246.43 | D51: 0.759815025
A52: =WORKDAY(WORKDAY(DATEVALUE(CONCATENATE("15/"&MONTH(B52)&"/"&YEAR(B52))),-1,Feriados!$A$2:$A$1037),1,Feriados!$A$2:$A$1037) -> 2004-02-16 | B52: 2004-02-29 | C52: 2260.13 | D52: 0.6098565279
A53: =WORKDAY(WORKDAY(DATEVALUE(CONCATENATE("15/"&MONTH(B53)&"/"&YEAR(B53))),-1,Feriados!$A$2:$A$1037),1,Feriados!$A$2:$A$1037) -> 2004-03-15 | B53: 2004-03-31 | C53: 2270.75 | D53: 0.4698844757
A54: =WORKDAY(WORKDAY(DATEVALUE(CONCATENATE("15/"&MONTH(B54)&"/"&YEAR(B54))),-1,Feriados!$A$2:$A$1037),1,Feriados!$A$2:$A$1037) -> 2004-04-15 | B54: 2004-04-30 | C54: 2279.15 | D54: 0.369921832
A55: =WORKDAY(WORKDAY(DATEVALUE(CONCATENATE("15/"&MONTH(B55)&"/"&YEAR(B55))),-1,Feriados!$A$2:$A$1037),1,Feriados!$A$2:$A$1037) -> 2004-05-17 | B55: 2004-05-31 | C55: 2290.77 | D55: 0.5098391944
A56: =WORKDAY(WORKDAY(DATEVALUE(CONCATENATE("15/"&MONTH(B56)&"/"&YEAR(B56))),-1,Feriados!$A$2:$A$1037),1,Feriados!$A$2:$A$1037) -> 2004-06-15 | B56: 2004-06-30 | C56: 2307.03 | D56: 0.7098050001
A57: =WORKDAY(WORKDAY(DATEVALUE(CONCATENATE("15/"&MONTH(B57)&"/"&YEAR(B57))),-1,Feriados!$A$2:$A$1037),1,Feriados!$A$2:$A$1037) -> 2004-07-15 | B57: 2004-07-31 | C57: 2328.02 | D57: 0.9098277872
A58: =WORKDAY(WORKDAY(DATEVALUE(CONCATENATE("15/"&MONTH(B58)&"/"&YEAR(B58))),-1,Feriados!$A$2:$A$1037),1,Feriados!$A$2:$A$1037) -> 2004-08-16 | B58: 2004-08-31 | C58: 2344.08 | D58: 0.6898566164
A59: =WORKDAY(WORKDAY(DATEVALUE(CONCATENATE("15/"&MONTH(B59)&"/"&YEAR(B59))),-1,Feriados!$A$2:$A$1037),1,Feriados!$A$2:$A$1037) -> 2004-09-15 | B59: 2004-09-30 | C59: 2351.82 | D59: 0.3301935088
A60: =WORKDAY(WORKDAY(DATEVALUE(CONCATENATE("15/"&MONTH(B60)&"/"&YEAR(B60))),-1,Feriados!$A$2:$A$1037),1,Feriados!$A$2:$A$1037) -> 2004-10-15 | B60: 2004-10-31 | C60: 2362.17 | D60: 0.4400847004
A61: =WORKDAY(WORKDAY(DATEVALUE(CONCATENATE("15/"&MONTH(B61)&"/"&YEAR(B61))),-1,Feriados!$A$2:$A$1037),1,Feriados!$A$2:$A$1037) -> 2004-11-16 | B61: 2004-11-30 | C61: 2378.47 | D61: 0.690043477
A62: =WORKDAY(WORKDAY(DATEVALUE(CONCATENATE("15/"&MONTH(B62)&"/"&YEAR(B62))),-1,Feriados!$A$2:$A$1037),1,Feriados!$A$2:$A$1037) -> 2004-12-15 | B62: 2004-12-31 | C62: 2398.92 | D62: 0.8597964238
A63: =WORKDAY(WORKDAY(DATEVALUE(CONCATENATE("15/"&MONTH(B63)&"/"&YEAR(B63))),-1,Feriados!$A$2:$A$1037),1,Feriados!$A$2:$A$1037) -> 2005-01-17 | B63: 2005-01-31 | C63: 2412.83 | D63: 0.5798442633
A64: =WORKDAY(WORKDAY(DATEVALUE(CONCATENATE("15/"&MONTH(B64)&"/"&YEAR(B64))),-1,Feriados!$A$2:$A$1037),1,Feriados!$A$2:$A$1037) -> 2005-02-15 | B64: 2005-02-28 | C64: 2427.07 | D64: 0.5901783383
A65: =WORKDAY(WORKDAY(DATEVALUE(CONCATENATE("15/"&MONTH(B65)&"/"&YEAR(B65))),-1,Feriados!$A$2:$A$1037),1,Feriados!$A$2:$A$1037) -> 2005-03-15 | B65: 2005-03-31 | C65: 2441.87 | D65: 0.6097887576
A66: =WORKDAY(WORKDAY(DATEVALUE(CONCATENATE("15/"&MONTH(B66)&"/"&YEAR(B66))),-1,Feriados!$A$2:$A$1037),1,Feriados!$A$2:$A$1037) -> 2005-04-15 | B66: 2005-04-30 | C66: 2463.11 | D66: 0.869825175
A67: =WORKDAY(WORKDAY(DATEVALUE(CONCATENATE("15/"&MONTH(B67)&"/"&YEAR(B67))),-1,Feriados!$A$2:$A$1037),1,Feriados!$A$2:$A$1037) -> 2005-05-16 | B67: 2005-05-31 | C67: 2475.18 | D67: 0.4900308959
A68: =WORKDAY(WORKDAY(DATEVALUE(CONCATENATE("15/"&MONTH(B68)&"/"&YEAR(B68))),-1,Feriados!$A$2:$A$1037),1,Feriados!$A$2:$A$1037) -> 2005-06-15 | B68: 2005-06-30 | C68: 2474.68 | D68: -0.02020055107
A69: =WORKDAY(WORKDAY(DATEVALUE(CONCATENATE("15/"&MONTH(B69)&"/"&YEAR(B69))),-1,Feriados!$A$2:$A$1037),1,Feriados!$A$2:$A$1037) -> 2005-07-15 | B69: 2005-07-31 | C69: 2480.87 | D69: =(+C69/C68-1)*100 -> 0.2501333506
A70: =WORKDAY(WORKDAY(DATEVALUE(CONCATENATE("15/"&MONTH(B70)&"/"&YEAR(B70))),-1,Feriados!$A$2:$A$1037),1,Feriados!$A$2:$A$1037) -> 2005-08-15 | B70: 2005-08-31 | C70: 2485.09 | D70: 0.1701016176
A71: =WORKDAY(WORKDAY(DATEVALUE(CONCATENATE("15/"&MONTH(B71)&"/"&YEAR(B71))),-1,Feriados!$A$2:$A$1037),1,Feriados!$A$2:$A$1037) -> 2005-09-15 | B71: 2005-09-30 | C71: 2493.79 | D71: 0.3500879244
A72: =WORKDAY(WORKDAY(DATEVALUE(CONCATENATE("15/"&MONTH(B72)&"/"&YEAR(B72))),-1,Feriados!$A$2:$A$1037),1,Feriados!$A$2:$A$1037) -> 2005-10-17 | B72: 2005-10-31 | C72: 2512.49 | D72: 0.7498626588
A73: =WORKDAY(WORKDAY(DATEVALUE(CONCATENATE("15/"&MONTH(B73)&"/"&YEAR(B73))),-1,Feriados!$A$2:$A$1037),1,Feriados!$A$2:$A$1037) -> 2005-11-16 | B73: 2005-11-30 | C73: 2526.31 | D73: 0.5500519405
A74: =WORKDAY(WORKDAY(DATEVALUE(CONCATENATE("15/"&MONTH(B74)&"/"&YEAR(B74))),-1,Feriados!$A$2:$A$1037),1,Feriados!$A$2:$A$1037) -> 2005-12-15 | B74: 2005-12-31 | C74: 2535.4 | D74: 0.3598133246
A75: =WORKDAY(WORKDAY(DATEVALUE(CONCATENATE("15/"&MONTH(B75)&"/"&YEAR(B75))),-1,Feriados!$A$2:$A$1037),1,Feriados!$A$2:$A$1037) -> 2006-01-16 | B75: 2006-01-31 | C75: 2550.36 | D75: 0.5900449633
A76: =WORKDAY(WORKDAY(DATEVALUE(CONCATENATE("15/"&MONTH(B76)&"/"&YEAR(B76))),-1,Feriados!$A$2:$A$1037),1,Feriados!$A$2:$A$1037) -> 2006-02-15 | B76: 2006-02-28 | C76: 2560.82 | D76: 0.4101381766
A77: =WORKDAY(WORKDAY(DATEVALUE(CONCATENATE("15/"&MONTH(B77)&"/"&YEAR(B77))),-1,Feriados!$A$2:$A$1037),1,Feriados!$A$2:$A$1037) -> 2006-03-15 | B77: 2006-03-31 | C77: 2571.83 | D77: 0.4299404097
A78: =WORKDAY(WORKDAY(DATEVALUE(CONCATENATE("15/"&MONTH(B78)&"/"&YEAR(B78))),-1,Feriados!$A$2:$A$1037),1,Feriados!$A$2:$A$1037) -> 2006-04-17 | B78: 2006-04-30 | C78: 2577.23 | D78: 0.2099672218
A79: =WORKDAY(WORKDAY(DATEVALUE(CONCATENATE("15/"&MONTH(B79)&"/"&YEAR(B79))),-1,Feriados!$A$2:$A$1037),1,Feriados!$A$2:$A$1037) -> 2006-05-15 | B79: 2006-05-31 | C79: 2579.81 | D79: 0.1001074797
A80: =WORKDAY(WORKDAY(DATEVALUE(CONCATENATE("15/"&MONTH(B80)&"/"&YEAR(B80))),-1,Feriados!$A$2:$A$1037),1,Feriados!$A$2:$A$1037) -> 2006-06-16 | B80: 2006-06-30 | C80: 2574.39 | D80: -0.2100929913
A81: =WORKDAY(WORKDAY(DATEVALUE(CONCATENATE("15/"&MONTH(B81)&"/"&YEAR(B81))),-1,Feriados!$A$2:$A$1037),1,Feriados!$A$2:$A$1037) -> 2006-07-17 | B81: 2006-07-31 | C81: 2579.28 | D81: 0.18994791
A82: =WORKDAY(WORKDAY(DATEVALUE(CONCATENATE("15/"&MONTH(B82)&"/"&YEAR(B82))),-1,Feriados!$A$2:$A$1037),1,Feriados!$A$2:$A$1037) -> 2006-08-15 | B82: 2006-08-31 | C82: 2580.57 | D82: 0.05001395738
A83: =WORKDAY(WORKDAY(DATEVALUE(CONCATENATE("15/"&MONTH(B83)&"/"&YEAR(B83))),-1,Feriados!$A$2:$A$1037),1,Feriados!$A$2:$A$1037) -> 2006-09-15 | B83: 2006-09-30 | C83: 2585.99 | D83: 0.2100311172
A84: =WORKDAY(WORKDAY(DATEVALUE(CONCATENATE("15/"&MONTH(B84)&"/"&YEAR(B84))),-1,Feriados!$A$2:$A$1037),1,Feriados!$A$2:$A$1037) -> 2006-10-16 | B84: 2006-10-31 | C84: 2594.52 | D84: 0.3298543304
A85: =WORKDAY(WORKDAY(DATEVALUE(CONCATENATE("15/"&MONTH(B85)&"/"&YEAR(B85))),-1,Feriados!$A$2:$A$1037),1,Feriados!$A$2:$A$1037) -> 2006-11-16 | B85: 2006-11-30 | C85: 2602.56 | D85: 0.3098839092
A86: =WORKDAY(WORKDAY(DATEVALUE(CONCATENATE("15/"&MONTH(B86)&"/"&YEAR(B86))),-1,Feriados!$A$2:$A$1037),1,Feriados!$A$2:$A$1037) -> 2006-12-15 | B86: 2006-12-31 | C86: 2615.05 | D86: 0.4799120866
A87: =WORKDAY(WORKDAY(DATEVALUE(CONCATENATE("15/"&MONTH(B87)&"/"&YEAR(B87))),-1,Feriados!$A$2:$A$1037),1,Feriados!$A$2:$A$1037) -> 2007-01-15 | B87: 2007-01-31 | C87: 2626.56 | D87: 0.4401445479
A88: =WORKDAY(WORKDAY(DATEVALUE(CONCATENATE("15/"&MONTH(B88)&"/"&YEAR(B88))),-1,Feriados!$A$2:$A$1037),1,Feriados!$A$2:$A$1037) -> 2007-02-15 | B88: 2007-02-28 | C88: 2638.12 | D88: 0.4401193957
A89: =WORKDAY(WORKDAY(DATEVALUE(CONCATENATE("15/"&MONTH(B89)&"/"&YEAR(B89))),-1,Feriados!$A$2:$A$1037),1,Feriados!$A$2:$A$1037) -> 2007-03-15 | B89: 2007-03-31 | C89: 2647.88 | D89: 0.3699604264
A90: =WORKDAY(WORKDAY(DATEVALUE(CONCATENATE("15/"&MONTH(B90)&"/"&YEAR(B90))),-1,Feriados!$A$2:$A$1037),1,Feriados!$A$2:$A$1037) -> 2007-04-16 | B90: 2007-04-30 | C90: 2654.5 | D90: 0.2500113298
A91: =WORKDAY(WORKDAY(DATEVALUE(CONCATENATE("15/"&MONTH(B91)&"/"&YEAR(B91))),-1,Feriados!$A$2:$A$1037),1,Feriados!$A$2:$A$1037) -> 2007-05-15 | B91: 2007-05-31 | C91: 2661.93 | D91: 0.2799020531
A92: =WORKDAY(WORKDAY(DATEVALUE(CONCATENATE("15/"&MONTH(B92)&"/"&YEAR(B92))),-1,Feriados!$A$2:$A$1037),1,Feriados!$A$2:$A$1037) -> 2007-06-15 | B92: 2007-06-30 | C92: 2669.38 | D92: 0.2798721229
A93: =WORKDAY(WORKDAY(DATEVALUE(CONCATENATE("15/"&MONTH(B93)&"/"&YEAR(B93))),-1,Feriados!$A$2:$A$1037),1,Feriados!$A$2:$A$1037) -> 2007-07-16 | B93: 2007-07-31 | C93: 2675.79 | D93: 0.240130667
A94: =WORKDAY(WORKDAY(DATEVALUE(CONCATENATE("15/"&MONTH(B94)&"/"&YEAR(B94))),-1,Feriados!$A$2:$A$1037),1,Feriados!$A$2:$A$1037) -> 2007-08-15 | B94: 2007-08-31 | C94: 2688.37 | D94: 0.4701415283
A95: =WORKDAY(WORKDAY(DATEVALUE(CONCATENATE("15/"&MONTH(B95)&"/"&YEAR(B95))),-1,Feriados!$A$2:$A$1037),1,Feriados!$A$2:$A$1037) -> 2007-09-17 | B95: 2007-09-30 | C95: 2693.21 | D95: 0.1800347422
A96: =WORKDAY(WORKDAY(DATEVALUE(CONCATENATE("15/"&MONTH(B96)&"/"&YEAR(B96))),-1,Feriados!$A$2:$A$1037),1,Feriados!$A$2:$A$1037) -> 2007-10-15 | B96: 2007-10-31 | C96: 2701.29 | D96: 0.3000137383
A97: =WORKDAY(WORKDAY(DATEVALUE(CONCATENATE("15/"&MONTH(B97)&"/"&YEAR(B97))),-1,Feriados!$A$2:$A$1037),1,Feriados!$A$2:$A$1037) -> 2007-11-16 | B97: 2007-11-30 | C97: 2711.55 | D97: 0.3798185311
A98: =WORKDAY(WORKDAY(DATEVALUE(CONCATENATE("15/"&MONTH(B98)&"/"&YEAR(B98))),-1,Feriados!$A$2:$A$1037),1,Feriados!$A$2:$A$1037) -> 2007-12-17 | B98: 2007-12-31 | C98: 2731.62 | D98: 0.7401670631
A99: =WORKDAY(WORKDAY(DATEVALUE(CONCATENATE("15/"&MONTH(B99)&"/"&YEAR(B99))),-1,Feriados!$A$2:$A$1037),1,Feriados!$A$2:$A$1037) -> 2008-01-15 | B99: 2008-01-31 | C99: 2746.37 | D99: 0.539972617
A100: =WORKDAY(WORKDAY(DATEVALUE(CONCATENATE("15/"&MONTH(B100)&"/"&YEAR(B100))),-1,Feriados!$A$2:$A$1037),1,Feriados!$A$2:$A$1037) -> 2008-02-15 | B100: 2008-02-29 | C100: 2759.83 | D100: 0.4901014794
A101: =WORKDAY(WORKDAY(DATEVALUE(CONCATENATE("15/"&MONTH(B101)&"/"&YEAR(B101))),-1,Feriados!$A$2:$A$1037),1,Feriados!$A$2:$A$1037) -> 2008-03-17 | B101: 2008-03-31 | C101: 2773.08 | D101: 0.4801020353
A102: =WORKDAY(WORKDAY(DATEVALUE(CONCATENATE("15/"&MONTH(B102)&"/"&YEAR(B102))),-1,Feriados!$A$2:$A$1037),1,Feriados!$A$2:$A$1037) -> 2008-04-15 | B102: 2008-04-30 | C102: 2788.33 | D102: 0.5499300417
A103: =WORKDAY(WORKDAY(DATEVALUE(CONCATENATE("15/"&MONTH(B103)&"/"&YEAR(B103))),-1,Feriados!$A$2:$A$1037),1,Feriados!$A$2:$A$1037) -> 2008-05-15 | B103: 2008-05-31 | C103: 2810.36 | D103: 0.7900786492
A104: =WORKDAY(WORKDAY(DATEVALUE(CONCATENATE("15/"&MONTH(B104)&"/"&YEAR(B104))),-1,Feriados!$A$2:$A$1037),1,Feriados!$A$2:$A$1037) -> 2008-06-16 | B104: 2008-06-30 | C104: 2831.16 | D104: 0.7401187037
A105: =WORKDAY(WORKDAY(DATEVALUE(CONCATENATE("15/"&MONTH(B105)&"/"&YEAR(B105))),-1,Feriados!$A$2:$A$1037),1,Feriados!$A$2:$A$1037) -> 2008-07-15 | B105: 2008-07-31 | C105: 2846.16 | D105: 0.5298181664
A106: =WORKDAY(WORKDAY(DATEVALUE(CONCATENATE("15/"&MONTH(B106)&"/"&YEAR(B106))),-1,Feriados!$A$2:$A$1037),1,Feriados!$A$2:$A$1037) -> 2008-08-15 | B106: 2008-08-31 | C106: 2854.13 | D106: 0.2800264216
A107: =WORKDAY(WORKDAY(DATEVALUE(CONCATENATE("15/"&MONTH(B107)&"/"&YEAR(B107))),-1,Feriados!$A$2:$A$1037),1,Feriados!$A$2:$A$1037) -> 2008-09-15 | B107: 2008-09-30 | C107: 2861.55 | D107: 0.2599741427
A108: =WORKDAY(WORKDAY(DATEVALUE(CONCATENATE("15/"&MONTH(B108)&"/"&YEAR(B108))),-1,Feriados!$A$2:$A$1037),1,Feriados!$A$2:$A$1037) -> 2008-10-15 | B108: 2008-10-31 | C108: 2874.43 | D108: 0.4501057119
A109: =WORKDAY(WORKDAY(DATEVALUE(CONCATENATE("15/"&MONTH(B109)&"/"&YEAR(B109))),-1,Feriados!$A$2:$A$1037),1,Feriados!$A$2:$A$1037) -> 2008-11-17 | B109: 2008-11-30 | C109: 2884.78 | D109: 0.3600713881
A110: =WORKDAY(WORKDAY(DATEVALUE(CONCATENATE("15/"&MONTH(B110)&"/"&YEAR(B110))),-1,Feriados!$A$2:$A$1037),1,Feriados!$A$2:$A$1037) -> 2008-12-15 | B110: 2008-12-31 | C110: 2892.86 | D110: 0.2800906828
A111: =WORKDAY(WORKDAY(DATEVALUE(CONCATENATE("15/"&MONTH(B111)&"/"&YEAR(B111))),-1,Feriados!$A$2:$A$1037),1,Feriados!$A$2:$A$1037) -> 2009-01-15 | B111: 2009-01-31 | C111: 2906.74 | D111: 0.4798019953
A112: =WORKDAY(WORKDAY(DATEVALUE(CONCATENATE("15/"&MONTH(B112)&"/"&YEAR(B112))),-1,Feriados!$A$2:$A$1037),1,Feriados!$A$2:$A$1037) -> 2009-02-16 | B112: 2009-02-28 | C112: 2922.73 | D112: 0.5501008002
A113: =WORKDAY(WORKDAY(DATEVALUE(CONCATENATE("15/"&MONTH(B113)&"/"&YEAR(B113))),-1,Feriados!$A$2:$A$1037),1,Feriados!$A$2:$A$1037) -> 2009-03-16 | B113: 2009-03-31 | C113: 2928.57 | D113: 0.1998131884
A114: =WORKDAY(WORKDAY(DATEVALUE(CONCATENATE("15/"&MONTH(B114)&"/"&YEAR(B114))),-1,Feriados!$A$2:$A$1037),1,Feriados!$A$2:$A$1037) -> 2009-04-15 | B114: 2009-04-30 | C114: 2942.63 | D114: 0.4800977952
A115: =WORKDAY(WORKDAY(DATEVALUE(CONCATENATE("15/"&MONTH(B115)&"/"&YEAR(B115))),-1,Feriados!$A$2:$A$1037),1,Feriados!$A$2:$A$1037) -> 2009-05-15 | B115: 2009-05-31 | C115: 2956.46 | D115: 0.4699877321
A116: =WORKDAY(WORKDAY(DATEVALUE(CONCATENATE("15/"&MONTH(B116)&"/"&YEAR(B116))),-1,Feriados!$A$2:$A$1037),1,Feriados!$A$2:$A$1037) -> 2009-06-15 | B116: 2009-06-30 | C116: 2967.1 | D116: 0.3598898683
A117: =WORKDAY(WORKDAY(DATEVALUE(CONCATENATE("15/"&MONTH(B117)&"/"&YEAR(B117))),-1,Feriados!$A$2:$A$1037),1,Feriados!$A$2:$A$1037) -> 2009-07-15 | B117: 2009-07-31 | C117: 2974.22 | D117: 0.2399649489
A118: =WORKDAY(WORKDAY(DATEVALUE(CONCATENATE("15/"&MONTH(B118)&"/"&YEAR(B118))),-1,Feriados!$A$2:$A$1037),1,Feriados!$A$2:$A$1037) -> 2009-08-17 | B118: 2009-08-31 | C118: 2978.68 | D118: 0.1499552824
A119: =WORKDAY(WORKDAY(DATEVALUE(CONCATENATE("15/"&MONTH(B119)&"/"&YEAR(B119))),-1,Feriados!$A$2:$A$1037),1,Feriados!$A$2:$A$1037) -> 2009-09-15 | B119: 2009-09-30 | C119: 2985.83 | D119: 0.240039212
A120: =WORKDAY(WORKDAY(DATEVALUE(CONCATENATE("15/"&MONTH(B120)&"/"&YEAR(B120))),-1,Feriados!$A$2:$A$1037),1,Feriados!$A$2:$A$1037) -> 2009-10-15 | B120: 2009-10-31 | C120: 2994.19 | D120: 0.2799891487
A121: =WORKDAY(WORKDAY(DATEVALUE(CONCATENATE("15/"&MONTH(B121)&"/"&YEAR(B121))),-1,Feriados!$A$2:$A$1037),1,Feriados!$A$2:$A$1037) -> 2009-11-16 | B121: 2009-11-30 | C121: 3006.47 | D121: 0.4101276138
A122: =WORKDAY(WORKDAY(DATEVALUE(CONCATENATE("15/"&MONTH(B122)&"/"&YEAR(B122))),-1,Feriados!$A$2:$A$1037),1,Feriados!$A$2:$A$1037) -> 2009-12-15 | B122: 2009-12-31 | C122: 3017.59 | D122: 0.3698689826
A123: =WORKDAY(WORKDAY(DATEVALUE(CONCATENATE("15/"&MONTH(B123)&"/"&YEAR(B123))),-1,Feriados!$A$2:$A$1037),1,Feriados!$A$2:$A$1037) -> 2010-01-15 | B123: 2010-01-31 | C123: 3040.22 | D123: 0.7499362074
A124: =WORKDAY(WORKDAY(DATEVALUE(CONCATENATE("15/"&MONTH(B124)&"/"&YEAR(B124))),-1,Feriados!$A$2:$A$1037),1,Feriados!$A$2:$A$1037) -> 2010-02-17 | B124: 2010-02-28 | C124: 3063.93 | D124: 0.779877772
A125: =WORKDAY(WORKDAY(DATEVALUE(CONCATENATE("15/"&MONTH(B125)&"/"&YEAR(B125))),-1,Feriados!$A$2:$A$1037),1,Feriados!$A$2:$A$1037) -> 2010-03-15 | B125: 2010-03-31 | C125: 3079.86 | D125: 0.5199204943
A126: =WORKDAY(WORKDAY(DATEVALUE(CONCATENATE("15/"&MONTH(B126)&"/"&YEAR(B126))),-1,Feriados!$A$2:$A$1037),1,Feriados!$A$2:$A$1037) -> 2010-04-15 | B126: 2010-04-30 | C126: 3097.42 | D126: 0.5701557863
A127: =WORKDAY(WORKDAY(DATEVALUE(CONCATENATE("15/"&MONTH(B127)&"/"&YEAR(B127))),-1,Feriados!$A$2:$A$1037),1,Feriados!$A$2:$A$1037) -> 2010-05-17 | B127: 2010-05-31 | C127: 3110.74 | D127: 0.4300353197
A128: =WORKDAY(WORKDAY(DATEVALUE(CONCATENATE("15/"&MONTH(B128)&"/"&YEAR(B128))),-1,Feriados!$A$2:$A$1037),1,Feriados!$A$2:$A$1037) -> 2010-06-15 | B128: 2010-06-30 | C128: 3110.74 | D128: 0
A129: =WORKDAY(WORKDAY(DATEVALUE(CONCATENATE("15/"&MONTH(B129)&"/"&YEAR(B129))),-1,Feriados!$A$2:$A$1037),1,Feriados!$A$2:$A$1037) -> 2010-07-15 | B129: 2010-07-31 | C129: 3111.05 | D129: 0.009965474453
A130: =WORKDAY(WORKDAY(DATEVALUE(CONCATENATE("15/"&MONTH(B130)&"/"&YEAR(B130))),-1,Feriados!$A$2:$A$1037),1,Feriados!$A$2:$A$1037) -> 2010-08-16 | B130: 2010-08-31 | C130: 3112.29 | D130: 0.03985792578
A131: =WORKDAY(WORKDAY(DATEVALUE(CONCATENATE("15/"&MONTH(B131)&"/"&YEAR(B131))),-1,Feriados!$A$2:$A$1037),1,Feriados!$A$2:$A$1037) -> 2010-09-15 | B131: 2010-09-30 | C131: 3126.29 | D131: 0.4498295467
A132: =WORKDAY(WORKDAY(DATEVALUE(CONCATENATE("15/"&MONTH(B132)&"/"&YEAR(B132))),-1,Feriados!$A$2:$A$1037),1,Feriados!$A$2:$A$1037) -> 2010-10-15 | B132: 2010-10-31 | C132: 3149.74 | D132: 0.7500903627
A133: =WORKDAY(WORKDAY(DATEVALUE(CONCATENATE("15/"&MONTH(B133)&"/"&YEAR(B133))),-1,Feriados!$A$2:$A$1037),1,Feriados!$A$2:$A$1037) -> 2010-11-16 | B133: 2010-11-30 | C133: 3175.88 | D133: =(+C133/C132-1)*100 -> 0.8299097703
A134: =WORKDAY(WORKDAY(DATEVALUE(CONCATENATE("15/"&MONTH(B134)&"/"&YEAR(B134))),-1,Feriados!$A$2:$A$1037),1,Feriados!$A$2:$A$1037) -> 2010-12-15 | B134: 2010-12-31 | C134: 3195.89 | D134: 0.6300615892
A135: =WORKDAY(WORKDAY(DATEVALUE(CONCATENATE("15/"&MONTH(B135)&"/"&YEAR(B135))),-1,Feriados!$A$2:$A$1037),1,Feriados!$A$2:$A$1037) -> 2011-01-17 | B135: 2011-01-31 | C135: 3222.42 | D135: 0.8301286965
A136: =WORKDAY(WORKDAY(DATEVALUE(CONCATENATE("15/"&MONTH(B136)&"/"&YEAR(B136))),-1,Feriados!$A$2:$A$1037),1,Feriados!$A$2:$A$1037) -> 2011-02-15 | B136: 2011-02-28 | C136: 3248.2 | D136: 0.8000198608
A137: =WORKDAY(WORKDAY(DATEVALUE(CONCATENATE("15/"&MONTH(B137)&"/"&YEAR(B137))),-1,Feriados!$A$2:$A$1037),1,Feriados!$A$2:$A$1037) -> 2011-03-15 | B137: 2011-03-31 | C137: 3273.86 | D137: 0.7899759867
A138: =WORKDAY(WORKDAY(DATEVALUE(CONCATENATE("15/"&MONTH(B138)&"/"&YEAR(B138))),-1,Feriados!$A$2:$A$1037),1,Feriados!$A$2:$A$1037) -> 2011-04-15 | B138: 2011-04-30 | C138: 3299.07 | D138: 0.7700390365
A139: =WORKDAY(WORKDAY(DATEVALUE(CONCATENATE("15/"&MONTH(B139)&"/"&YEAR(B139))),-1,Feriados!$A$2:$A$1037),1,Feriados!$A$2:$A$1037) -> 2011-05-16 | B139: 2011-05-31 | C139: 3314.58 | D139: 0.4701324919
A140: =WORKDAY(WORKDAY(DATEVALUE(CONCATENATE("15/"&MONTH(B140)&"/"&YEAR(B140))),-1,Feriados!$A$2:$A$1037),1,Feriados!$A$2:$A$1037) -> 2011-06-15 | B140: 2011-06-30 | C140: 3319.55 | D140: 0.1499435826
A141: =WORKDAY(WORKDAY(DATEVALUE(CONCATENATE("15/"&MONTH(B141)&"/"&YEAR(B141))),-1,Feriados!$A$2:$A$1037),1,Feriados!$A$2:$A$1037) -> 2011-07-15 | B141: 2011-07-31 | C141: 3324.86 | D141: 0.1599614406
A142: =WORKDAY(WORKDAY(DATEVALUE(CONCATENATE("15/"&MONTH(B142)&"/"&YEAR(B142))),-1,Feriados!$A$2:$A$1037),1,Feriados!$A$2:$A$1037) -> 2011-08-15 | B142: 2011-08-31 | C142: 3337.16 | D142: 0.3699403885
A143: =WORKDAY(WORKDAY(DATEVALUE(CONCATENATE("15/"&MONTH(B143)&"/"&YEAR(B143))),-1,Feriados!$A$2:$A$1037),1,Feriados!$A$2:$A$1037) -> 2011-09-15 | B143: 2011-09-30 | C143: 3354.85 | D143: 0.530091455
A144: =WORKDAY(WORKDAY(DATEVALUE(CONCATENATE("15/"&MONTH(B144)&"/"&YEAR(B144))),-1,Feriados!$A$2:$A$1037),1,Feriados!$A$2:$A$1037) -> 2011-10-17 | B144: 2011-10-31 | C144: 3369.28 | D144: 0.4301235525
A145: =WORKDAY(WORKDAY(DATEVALUE(CONCATENATE("15/"&MONTH(B145)&"/"&YEAR(B145))),-1,Feriados!$A$2:$A$1037),1,Feriados!$A$2:$A$1037) -> 2011-11-16 | B145: 2011-11-30 | C145: 3386.8 | D145: 0.5199924019
A146: =WORKDAY(WORKDAY(DATEVALUE(CONCATENATE("15/"&MONTH(B146)&"/"&YEAR(B146))),-1,Feriados!$A$2:$A$1037),1,Feriados!$A$2:$A$1037) -> 2011-12-15 | B146: 2011-12-31 | C146: 3403.73 | D146: 0.4998818944
A147: =WORKDAY(WORKDAY(DATEVALUE(CONCATENATE("15/"&MONTH(B147)&"/"&YEAR(B147))),-1,Feriados!$A$2:$A$1037),1,Feriados!$A$2:$A$1037) -> 2012-01-16 | B147: 2012-01-31 | C147: 3422.79 | D147: 0.559973911
A148: =WORKDAY(WORKDAY(DATEVALUE(CONCATENATE("15/"&MONTH(B148)&"/"&YEAR(B148))),-1,Feriados!$A$2:$A$1037),1,Feriados!$A$2:$A$1037) -> 2012-02-15 | B148: 2012-02-29 | C148: 3438.19 | D148: 0.4499253533
A149: =WORKDAY(WORKDAY(DATEVALUE(CONCATENATE("15/"&MONTH(B149)&"/"&YEAR(B149))),-1,Feriados!$A$2:$A$1037),1,Feriados!$A$2:$A$1037) -> 2012-03-15 | B149: 2012-03-31 | C149: 3445.41 | D149: 0.2099942121
A150: =WORKDAY(WORKDAY(DATEVALUE(CONCATENATE("15/"&MONTH(B150)&"/"&YEAR(B150))),-1,Feriados!$A$2:$A$1037),1,Feriados!$A$2:$A$1037) -> 2012-04-16 | B150: 2012-04-30 | C150: 3467.46 | D150: 0.6399818889
A151: =WORKDAY(WORKDAY(DATEVALUE(CONCATENATE("15/"&MONTH(B151)&"/"&YEAR(B151))),-1,Feriados!$A$2:$A$1037),1,Feriados!$A$2:$A$1037) -> 2012-05-15 | B151: 2012-05-30 | C151: 3479.94 | D151: 0.3599176342
A152: =WORKDAY(WORKDAY(DATEVALUE(CONCATENATE("15/"&MONTH(B152)&"/"&YEAR(B152))),-1,Feriados!$A$2:$A$1037),1,Feriados!$A$2:$A$1037) -> 2012-06-15 | B152: 2012-06-30 | C152: 3482.72 | D152: 0.07988643482
A153: =WORKDAY(WORKDAY(DATEVALUE(CONCATENATE("15/"&MONTH(B153)&"/"&YEAR(B153))),-1,Feriados!$A$2:$A$1037),1,Feriados!$A$2:$A$1037) -> 2012-07-16 | B153: 2012-07-30 | C153: 3497.7 | D153: 0.4301235816
A154: =WORKDAY(WORKDAY(DATEVALUE(CONCATENATE("15/"&MONTH(B154)&"/"&YEAR(B154))),-1,Feriados!$A$2:$A$1037),1,Feriados!$A$2:$A$1037) -> 2012-08-15 | B154: 2012-08-31 | C154: 3512.04 | D154: 0.4099837036
A155: =WORKDAY(WORKDAY(DATEVALUE(CONCATENATE("15/"&MONTH(B155)&"/"&YEAR(B155))),-1,Feriados!$A$2:$A$1037),1,Feriados!$A$2:$A$1037) -> 2012-09-17 | B155: 2012-09-01 | C155: 3532.06 | D155: 0.5700390656
A156: =WORKDAY(WORKDAY(DATEVALUE(CONCATENATE("15/"&MONTH(B156)&"/"&YEAR(B156))),-1,Feriados!$A$2:$A$1037),1,Feriados!$A$2:$A$1037) -> 2012-10-15 | B156: 2012-10-01 | C156: 3552.9 | D156: 0.590023952
A157: =WORKDAY(WORKDAY(DATEVALUE(CONCATENATE("15/"&MONTH(B157)&"/"&YEAR(B157))),-1,Feriados!$A$2:$A$1037),1,Feriados!$A$2:$A$1037) -> 2012-11-16 | B157: 2012-11-01 | C157: 3574.22 | D157: 0.6000731797
A158: =WORKDAY(WORKDAY(DATEVALUE(CONCATENATE("15/"&MONTH(B158)&"/"&YEAR(B158))),-1,Feriados!$A$2:$A$1037),1,Feriados!$A$2:$A$1037) -> 2012-12-17 | B158: 2012-12-31 | C158: 3602.46 | D158: 0.7901024559
A159: =WORKDAY(WORKDAY(DATEVALUE(CONCATENATE("15/"&MONTH(B159)&"/"&YEAR(B159))),-1,Feriados!$A$2:$A$1037),1,Feriados!$A$2:$A$1037) -> 2013-01-15 | B159: 2013-01-31 | C159: 3633.44 | D159: 0.8599679108
A160: =WORKDAY(WORKDAY(DATEVALUE(CONCATENATE("15/"&MONTH(B160)&"/"&YEAR(B160))),-1,Feriados!$A$2:$A$1037),1,Feriados!$A$2:$A$1037) -> 2013-02-15 | B160: 2013-02-28 | C160: 3655.24 | D160: 0.5999823858
A161: =WORKDAY(WORKDAY(DATEVALUE(CONCATENATE("15/"&MONTH(B161)&"/"&YEAR(B161))),-1,Feriados!$A$2:$A$1037),1,Feriados!$A$2:$A$1037) -> 2013-03-15 | B161: 2013-03-31 | C161: 3672.42 | D161: 0.4700101772
A162: =WORKDAY(WORKDAY(DATEVALUE(CONCATENATE("15/"&MONTH(B162)&"/"&YEAR(B162))),-1,Feriados!$A$2:$A$1037),1,Feriados!$A$2:$A$1037) -> 2013-04-15 | B162: 2013-04-30 | C162: 3692.62 | D162: 0.5500460187
A163: =WORKDAY(WORKDAY(DATEVALUE(CONCATENATE("15/"&MONTH(B163)&"/"&YEAR(B163))),-1,Feriados!$A$2:$A$1037),1,Feriados!$A$2:$A$1037) -> 2013-05-15 | B163: 2013-05-31 | C163: 3706.28 | D163: 0.3699270437
A164: =WORKDAY(WORKDAY(DATEVALUE(CONCATENATE("15/"&MONTH(B164)&"/"&YEAR(B164))),-1,Feriados!$A$2:$A$1037),1,Feriados!$A$2:$A$1037) -> 2013-06-17 | B164: 2013-06-30 | C164: 3715.92 | D164: 0.2600990751
A165: =WORKDAY(WORKDAY(DATEVALUE(CONCATENATE("15/"&MONTH(B165)&"/"&YEAR(B165))),-1,Feriados!$A$2:$A$1037),1,Feriados!$A$2:$A$1037) -> 2013-07-15 | B165: 2013-07-31 | C165: 3717.03 | D165: 0.02987147194
A166: =WORKDAY(WORKDAY(DATEVALUE(CONCATENATE("15/"&MONTH(B166)&"/"&YEAR(B166))),-1,Feriados!$A$2:$A$1037),1,Feriados!$A$2:$A$1037) -> 2013-08-15 | B166: 2013-08-31 | C166: 3725.95 | D166: 0.2399765404
A167: =WORKDAY(WORKDAY(DATEVALUE(CONCATENATE("15/"&MONTH(B167)&"/"&YEAR(B167))),-1,Feriados!$A$2:$A$1037),1,Feriados!$A$2:$A$1037) -> 2013-09-16 | B167: 2013-09-30 | C167: 3738.99 | D167: 0.349977858
A168: =WORKDAY(WORKDAY(DATEVALUE(CONCATENATE("15/"&MONTH(B168)&"/"&YEAR(B168))),-1,Feriados!$A$2:$A$1037),1,Feriados!$A$2:$A$1037) -> 2013-10-15 | B168: 2013-10-31 | C168: 3760.3 | D168: 0.5699400105
A169: =WORKDAY(WORKDAY(DATEVALUE(CONCATENATE("15/"&MONTH(B169)&"/"&YEAR(B169))),-1,Feriados!$A$2:$A$1037),1,Feriados!$A$2:$A$1037) -> 2013-11-18 | B169: 2013-11-30 | C169: 3780.61 | D169: 0.5401164801
A170: =WORKDAY(WORKDAY(DATEVALUE(CONCATENATE("15/"&MONTH(B170)&"/"&YEAR(B170))),-1,Feriados!$A$2:$A$1037),1,Feriados!$A$2:$A$1037) -> 2013-12-16 | B170: 2013-12-31 | C170: 3815.39 | D170: 0.9199573614
A171: =WORKDAY(WORKDAY(DATEVALUE(CONCATENATE("15/"&MONTH(B171)&"/"&YEAR(B171))),-1,Feriados!$A$2:$A$1037),1,Feriados!$A$2:$A$1037) -> 2014-01-15 | B171: 2014-01-31 | C171: 3836.38 | D171: 0.5501403526
A172: =WORKDAY(WORKDAY(DATEVALUE(CONCATENATE("15/"&MONTH(B172)&"/"&YEAR(B172))),-1,Feriados!$A$2:$A$1037),1,Feriados!$A$2:$A$1037) -> 2014-02-17 | B172: 2014-02-28 | C172: 3862.84 | D172: 0.6897126979
A173: =WORKDAY(WORKDAY(DATEVALUE(CONCATENATE("15/"&MONTH(B173)&"/"&YEAR(B173))),-1,Feriados!$A$2:$A$1037),1,Feriados!$A$2:$A$1037) -> 2014-03-17 | B173: 2014-03-31 | C173: 3898.38 | D173: 0.9200484618
A174: =WORKDAY(WORKDAY(DATEVALUE(CONCATENATE("15/"&MONTH(B174)&"/"&YEAR(B174))),-1,Feriados!$A$2:$A$1037),1,Feriados!$A$2:$A$1037) -> 2014-04-15 | B174: 2014-04-30 | C174: 3924.5 | D174: 0.6700219065
A175: =WORKDAY(WORKDAY(DATEVALUE(CONCATENATE("15/"&MONTH(B175)&"/"&YEAR(B175))),-1,Feriados!$A$2:$A$1037),1,Feriados!$A$2:$A$1037) -> 2014-05-15 | B175: 2014-05-30 | C175: 3942.55 | D175: 0.4599312014
A176: =WORKDAY(WORKDAY(DATEVALUE(CONCATENATE("15/"&MONTH(B176)&"/"&YEAR(B176))),-1,Feriados!$A$2:$A$1037),1,Feriados!$A$2:$A$1037) -> 2014-06-16 | B176: 2014-06-30 | C176: 3958.32 | D176: 0.3999949271
A177: =WORKDAY(WORKDAY(DATEVALUE(CONCATENATE("15/"&MONTH(B177)&"/"&YEAR(B177))),-1,Feriados!$A$2:$A$1037),1,Feriados!$A$2:$A$1037) -> 2014-07-15 | B177: 2014-07-31 | C177: 3958.72 | D177: 0.0101052972
A178: =WORKDAY(WORKDAY(DATEVALUE(CONCATENATE("15/"&MONTH(B178)&"/"&YEAR(B178))),-1,Feriados!$A$2:$A$1037),1,Feriados!$A$2:$A$1037) -> 2014-08-15 | B178: 2014-08-31 | C178: 3968.62 | D178: 0.2500808342
A179: =WORKDAY(WORKDAY(DATEVALUE(CONCATENATE("15/"&MONTH(B179)&"/"&YEAR(B179))),-1,Feriados!$A$2:$A$1037),1,Feriados!$A$2:$A$1037) -> 2014-09-15 | B179: 2014-09-30 | C179: 3991.24 | D179: 0.5699714258
A180: =WORKDAY(WORKDAY(DATEVALUE(CONCATENATE("15/"&MONTH(B180)&"/"&YEAR(B180))),-1,Feriados!$A$2:$A$1037),1,Feriados!$A$2:$A$1037) -> 2014-10-15 | B180: 2014-10-30 | C180: 4008 | D180: 0.419919624
A181: =WORKDAY(WORKDAY(DATEVALUE(CONCATENATE("15/"&MONTH(B181)&"/"&YEAR(B181))),-1,Feriados!$A$2:$A$1037),1,Feriados!$A$2:$A$1037) -> 2014-11-17 | B181: 2014-11-30 | C181: 4028.44 | D181: 0.5099800399
A182: =WORKDAY(WORKDAY(DATEVALUE(CONCATENATE("15/"&MONTH(B182)&"/"&YEAR(B182))),-1,Feriados!$A$2:$A$1037),1,Feriados!$A$2:$A$1037) -> 2014-12-15 | B182: 2014-12-31 | C182: 4059.86 | D182: 0.7799545233
A183: =WORKDAY(WORKDAY(DATEVALUE(CONCATENATE("15/"&MONTH(B183)&"/"&YEAR(B183))),-1,Feriados!$A$2:$A$1037),1,Feriados!$A$2:$A$1037) -> 2015-01-15 | B183: 2015-01-31 | C183: 4110.2 | D183: 1.239944235
A184: =WORKDAY(WORKDAY(DATEVALUE(CONCATENATE("15/"&MONTH(B184)&"/"&YEAR(B184))),-1,Feriados!$A$2:$A$1037),1,Feriados!$A$2:$A$1037) -> 2015-02-18 | B184: 2015-02-28 | C184: 4160.34 | D184: 1.219891976
A185: =WORKDAY(WORKDAY(DATEVALUE(CONCATENATE("15/"&MONTH(B185)&"/"&YEAR(B185))),-1,Feriados!$A$2:$A$1037),1,Feriados!$A$2:$A$1037) -> 2015-03-16 | B185: 2015-03-31 | C185: 4215.26 | D185: 1.320084416
A186: =WORKDAY(WORKDAY(DATEVALUE(CONCATENATE("15/"&MONTH(B186)&"/"&YEAR(B186))),-1,Feriados!$A$2:$A$1037),1,Feriados!$A$2:$A$1037) -> 2015-04-15 | B186: 2015-04-30 | C186: 4245.19 | D186: 0.7100392384
A187: =WORKDAY(WORKDAY(DATEVALUE(CONCATENATE("15/"&MONTH(B187)&"/"&YEAR(B187))),-1,Feriados!$A$2:$A$1037),1,Feriados!$A$2:$A$1037) -> 2015-05-15 | B187: 2015-05-31 | C187: 4276.6 | D187: 0.7398962119
A188: =WORKDAY(WORKDAY(DATEVALUE(CONCATENATE("15/"&MONTH(B188)&"/"&YEAR(B188))),-1,Feriados!$A$2:$A$1037),1,Feriados!$A$2:$A$1037) -> 2015-06-15 | B188: 2015-06-30 | C188: 4310.39 | D188: 0.7901136417
A189: =WORKDAY(WORKDAY(DATEVALUE(CONCATENATE("15/"&MONTH(B189)&"/"&YEAR(B189))),-1,Feriados!$A$2:$A$1037),1,Feriados!$A$2:$A$1037) -> 2015-07-15 | B189: 2015-07-31 | C189: 4337.11 | D189: 0.6198975035
A190: =WORKDAY(WORKDAY(DATEVALUE(CONCATENATE("15/"&MONTH(B190)&"/"&YEAR(B190))),-1,Feriados!$A$2:$A$1037),1,Feriados!$A$2:$A$1037) -> 2015-08-17 | B190: 2015-08-31 | C190: 4346.65 | D190: 0.2199621407
A191: =WORKDAY(WORKDAY(DATEVALUE(CONCATENATE("15/"&MONTH(B191)&"/"&YEAR(B191))),-1,Feriados!$A$2:$A$1037),1,Feriados!$A$2:$A$1037) -> 2015-09-15 | B191: 2015-09-30 | C191: 4370.12 | D191: 0.5399560581
A192: =WORKDAY(WORKDAY(DATEVALUE(CONCATENATE("15/"&MONTH(B192)&"/"&YEAR(B192))),-1,Feriados!$A$2:$A$1037),1,Feriados!$A$2:$A$1037) -> 2015-10-15 | B192: 2015-10-31 | C192: 4405.95 | D192: 0.8198859528
A193: =WORKDAY(WORKDAY(DATEVALUE(CONCATENATE("15/"&MONTH(B193)&"/"&YEAR(B193))),-1,Feriados!$A$2:$A$1037),1,Feriados!$A$2:$A$1037) -> 2015-11-16 | B193: 2015-11-30 | C193: 4450.45 | D193: 1.009997844
A194: =WORKDAY(WORKDAY(DATEVALUE(CONCATENATE("15/"&MONTH(B194)&"/"&YEAR(B194))),-1,Feriados!$A$2:$A$1037),1,Feriados!$A$2:$A$1037) -> 2015-12-15 | B194: 2015-12-31 | C194: 4493.17 | D194: 0.9599029312
A195: =WORKDAY(WORKDAY(DATEVALUE(CONCATENATE("15/"&MONTH(B195)&"/"&YEAR(B195))),-1,Feriados!$A$2:$A$1037),1,Feriados!$A$2:$A$1037) -> 2016-01-15 | B195: 2016-01-31 | C195: 4550.23 | D195: 1.269927468
A196: =WORKDAY(WORKDAY(DATEVALUE(CONCATENATE("15/"&MONTH(B196)&"/"&YEAR(B196))),-1,Feriados!$A$2:$A$1037),1,Feriados!$A$2:$A$1037) -> 2016-02-15 | B196: 2016-02-29 | C196: 4591.18 | D196: 0.8999545078
A197: =WORKDAY(WORKDAY(DATEVALUE(CONCATENATE("15/"&MONTH(B197)&"/"&YEAR(B197))),-1,Feriados!$A$2:$A$1037),1,Feriados!$A$2:$A$1037) -> 2016-03-15 | B197: 2016-03-31 | C197: 4610.92 | D197: =(+C197/C196-1)*100 -> 0.4299548264
A198: =WORKDAY(WORKDAY(DATEVALUE(CONCATENATE("15/"&MONTH(B198)&"/"&YEAR(B198))),-1,Feriados!$A$2:$A$1037),1,Feriados!$A$2:$A$1037) -> 2016-04-15 | B198: 2016-04-30 | C198: 4639.05 | D198: 0.6100734777
A199: =WORKDAY(WORKDAY(DATEVALUE(CONCATENATE("15/"&MONTH(B199)&"/"&YEAR(B199))),-1,Feriados!$A$2:$A$1037),1,Feriados!$A$2:$A$1037) -> 2016-05-16 | B199: 2016-05-31 | C199: 4675.23 | D199: 0.7799010573
A200: =WORKDAY(WORKDAY(DATEVALUE(CONCATENATE("15/"&MONTH(B200)&"/"&YEAR(B200))),-1,Feriados!$A$2:$A$1037),1,Feriados!$A$2:$A$1037) -> 2016-06-15 | B200: 2016-06-30 | C200: 4691.59 | D200: 0.3499293083
... 88 more rows

Sheet COPOM Metas para Inflação
A2: 2019 | B2: 4.25 | C2: https://www.bcb.gov.br/pre/normativos/busca/normativo.asp?numero=4582&tipo=Resolu%C3%A7%C3%A3o&data=29/6/2017
A3: 2020 | B3: 4 | C3: https://www.bcb.gov.br/pre/normativos/busca/normativo.asp?numero=4582&tipo=Resolu%C3%A7%C3%A3o&data=29/6/2017
A4: 2021 | B4: 3.75 | C4: https://www.bcb.gov.br/pre/normativos/busca/normativo.asp?numero=4671&tipo=Resolu%C3%A7%C3%A3o&data=26/6/2018
A5: 2022 | B5: 3.5 | C5: https://www.bcb.gov.br/estabilidadefinanceira/exibenormativo?tipo=Resolu%C3%A7%C3%A3o&numero=4724
A6: 2023 | B6: 3.25 | C6: https://www.bcb.gov.br/estabilidadefinanceira/exibenormativo?tipo=Resolu%C3%A7%C3%A3o&numero=4831
A7: 2024 | B7: 3 | C7: https://www.bcb.gov.br/estabilidadefinanceira/exibenormativo?tipo=Resolu%C3%A7%C3%A3o%20CMN&numero=4918
A8: 2025 | B8: 3 | C8: https://www.bcb.gov.br/estabilidadefinanceira/exibenormativo?tipo=Resolu%C3%A7%C3%A3o%20CMN&numero=5018

Sheet Feriados
A1: DATA | B1: EVENTO | C1: SEMANA
A2: 1993-01-01 | B2: CONFRATERNIZACAO | C2: sexta-feira
A3: 1993-04-21 | B3: TIRADENTES | C3: quarta-feira
A4: 1993-05-01 | B4: DIA DO TRABALHO | C4: sábado
A5: 1993-09-07 | B5: INDEPENDENCIA | C5: terça-feira
A6: 1993-10-12 | B6: N.S.APARECIDA | C6: terça-feira
A7: 1993-11-02 | B7: FINADOS | C7: terça-feira
A8: 1993-11-15 | B8: PROCLAMACAO DA REP. | C8: segunda-feira
A9: 1993-12-25 | B9: NATAL | C9: sábado
A10: 1993-12-31 | B10: ULT.DIA ANO-SEM COMP | C10: sexta-feira
A11: 1994-01-01 | B11: CONFRATERNIZACAO | C11: sábado
A12: 1994-02-14 | B12: CARNAVAL | C12: segunda-feira
A13: 1994-02-15 | B13: CARNAVAL | C13: terça-feira
A14: 1994-03-31 | B14: QUINTA-FEIRA SANTA | C14: quinta-feira
A15: 1994-04-01 | B15: SEXTA-FEIRA DA PAIXA | C15: sexta-feira
A16: 1994-04-21 | B16: TIRADENTES | C16: quinta-feira
A17: 1994-05-01 | B17: DIA DO TRABALHO | C17: domingo
A18: 1994-06-02 | B18: CORPUS CHRISTI | C18: quinta-feira
A19: 1994-09-07 | B19: INDEPENDENCIA | C19: quarta-feira
A20: 1994-10-03 | B20: ELEICOES GERAIS | C20: segunda-feira
A21: 1994-10-12 | B21: N.S.APARECIDA | C21: quarta-feira
A22: 1994-11-02 | B22: FINADOS | C22: quarta-feira
A23: 1994-11-15 | B23: PROCLAMACAO DA REP. | C23: terça-feira
A24: 1994-12-25 | B24: NATAL | C24: domingo
A25: 1995-01-01 | B25: CONFRATERNIZACAO | C25: domingo
A26: 1995-02-27 | B26: CARNAVAL | C26: segunda-feira
A27: 1995-02-28 | B27: CARNAVAL | C27: terça-feira
A28: 1995-04-13 | B28: QUINTA-FEIRA SANTA | C28: quinta-feira
A29: 1995-04-14 | B29: SEXTA-FEIRA PAIXAO | C29: sexta-feira
A30: 1995-04-21 | B30: TIRADENTES | C30: sexta-feira
A31: 1995-05-01 | B31: DIA DO TRABALHO | C31: segunda-feira
A32: 1995-06-15 | B32: CORPUS CHRISTI | C32: quinta-feira
A33: 1995-09-07 | B33: INDEPENDENCIA | C33: quinta-feira
A34: 1995-10-12 | B34: N.S.APARECIDA | C34: quinta-feira
A35: 1995-11-02 | B35: FINADOS | C35: quinta-feira
A36: 1995-11-15 | B36: PROCLAMACAO DA REP. | C36: quarta-feira
A37: 1995-12-25 | B37: NATAL | C37: segunda-feira
A38: 1996-01-01 | B38: CONFRATERNIZACAO | C38: segunda-feira
A39: 1996-02-19 | B39: CARNAVAL | C39: segunda-feira
A40: 1996-02-20 | B40: CARNAVAL | C40: terça-feira
A41: 1996-04-04 | B41: QUINTA-FEIRA SANTA | C41: quinta-feira
A42: 1996-04-05 | B42: SEXTA-FEIRA PAIXAO | C42: sexta-feira
A43: 1996-04-21 | B43: TIRADENTES | C43: domingo
A44: 1996-05-01 | B44: DIA DO TRABALHO | C44: quarta-feira
A45: 1996-06-06 | B45: CORPUS CHRISTI | C45: quinta-feira
A46: 1996-09-07 | B46: INDEPENDENCIA | C46: sábado
A47: 1996-10-03 | B47: ELEICOES MUNICIPAIS | C47: quinta-feira
A48: 1996-10-12 | B48: N.S.APARECIDA | C48: sábado
A49: 1996-11-02 | B49: FINADOS | C49: sábado
A50: 1996-11-15 | B50: PROCLAMACAO DA REP. | C50: sexta-feira
A51: 1996-12-25 | B51: NATAL | C51: quarta-feira
A52: 1997-01-01 | B52: CONFRATERNIZACAO | C52: quarta-feira
A53: 1997-02-10 | B53: CARNAVAL | C53: segunda-feira
A54: 1997-02-11 | B54: CARNAVAL | C54: terça-feira
A55: 1997-03-27 | B55: QUINTA-FEIRA SANTA | C55: quinta-feira
A56: 1997-03-28 | B56: SEXTA-FEIRA PAIXAO | C56: sexta-feira
A57: 1997-04-21 | B57: TIRADENTES | C57: segunda-feira
A58: 1997-05-01 | B58: DIA DO TRABALHO | C58: quinta-feira
A59: 1997-05-29 | B59: CORPUS CHRISTI | C59: quinta-feira
A60: 1997-09-07 | B60: INDEPENDENCIA | C60: domingo
A61: 1997-10-12 | B61: N.S.APARECIDA | C61: domingo
A62: 1997-11-02 | B62: FINADOS | C62: domingo
A63: 1997-11-15 | B63: PROCLAMACAO DA REP. | C63: sábado
A64: 1997-12-25 | B64: NATAL | C64: quinta-feira
A65: 1998-01-01 | B65: CONFRATERNIZACAO | C65: quinta-feira
A66: 1998-02-23 | B66: CARNAVAL | C66: segunda-feira
A67: 1998-02-24 | B67: CARNAVAL | C67: terça-feira
A68: 1998-04-09 | B68: QUINTA-FEIRA SANTA | C68: quinta-feira
A69: 1998-04-10 | B69: SEXTA-FEIRA PAIXAO | C69: sexta-feira
A70: 1998-04-21 | B70: TIRADENTES | C70: terça-feira
A71: 1998-05-01 | B71: DIA DO TRABALHO | C71: sexta-feira
A72: 1998-06-11 | B72: CORPUS CHRISTI | C72: quinta-feira
A73: 1998-09-07 | B73: INDEPENDENCIA | C73: segunda-feira
A74: 1998-10-12 | B74: N.S.APARECIDA | C74: segunda-feira
A75: 1998-11-02 | B75: FINADOS | C75: segunda-feira
A76: 1998-11-15 | B76: PROCLAMACAO DA REP. | C76: domingo
A77: 1998-12-25 | B77: NATAL | C77: sexta-feira
A78: 1999-01-01 | B78: CONFRATERNIZACAO | C78: sexta-feira
A79: 1999-02-15 | B79: CARNAVAL | C79: segunda-feira
A80: 1999-02-16 | B80: CARNAVAL | C80: terça-feira
A81: 1999-04-01 | B81: QUINTA-FEIRA SANTA | C81: quinta-feira
A82: 1999-04-02 | B82: SEXTA-FEIRA PAIXAO | C82: sexta-feira
A83: 1999-04-21 | B83: TIRADENTES | C83: quarta-feira
A84: 1999-05-01 | B84: DIA DO TRABALHO | C84: sábado
A85: 1999-06-03 | B85: CORPUS CHRISTI | C85: quinta-feira
A86: 1999-09-07 | B86: INDEPENDENCIA | C86: terça-feira
A87: 1999-10-12 | B87: N.S.APARECIDA | C87: terça-feira
A88: 1999-11-02 | B88: FINADOS | C88: terça-feira
A89: 1999-11-15 | B89: PROCLAMACAO DA REP. | C89: segunda-feira
A90: 1999-12-25 | B90: NATAL | C90: sábado
A91: 2000-01-01 | B91: CONFRATERNIZACAO | C91: sábado
A92: 2000-03-06 | B92: SEGUNDA-FEIRA CARNAV | C92: segunda-feira
A93: 2000-03-07 | B93: TERCA-FEIRA CARNAVAL | C93: terça-feira
A94: 2000-04-21 | B94: TIRADENTES | C94: sexta-feira
A95: 2000-05-01 | B95: DIA DO TRABALHO | C95: segunda-feira
A96: 2000-06-22 | B96: CORPUS CHRISTI | C96: quinta-feira
A97: 2000-09-07 | B97: INDEPENDENCIA | C97: quinta-feira
A98: 2000-10-12 | B98: N.S.APARECIDA | C98: quinta-feira
A99: 2000-11-02 | B99: FINADOS | C99: quinta-feira
A100: 2000-11-15 | B100: PROCLAMACAO DA REP. | C100: quarta-feira
A101: 2000-12-25 | B101: NATAL | C101: segunda-feira
A102: 2001-01-01 | B102: CONFRATERNIZACAO | C102: segunda-feira
A103: 2001-02-26 | B103: SEGUNDA-FEIRA CARNAV | C103: segunda-feira
A104: 2001-02-27 | B104: TERCA-FEIRA CARNAVAL | C104: terça-feira
A105: 2001-04-13 | B105: SEXTA-FEIRA PAIXAO | C105: sexta-feira
A106: 2001-04-21 | B106: TIRADENTES | C106: sábado
A107: 2001-05-01 | B107: DIA DO TRABALHO | C107: terça-feira
A108: 2001-06-14 | B108: CORPUS CHRISTI | C108: quinta-feira
A109: 2001-09-07 | B109: INDEPENDENCIA | C109: sexta-feira
A110: 2001-10-12 | B110: N.S.APARECIDA | C110: sexta-feira
A111: 2001-11-02 | B111: FINADOS | C111: sexta-feira
A112: 2001-11-15 | B112: PROCLAMACAO DA REP. | C112: quinta-feira
A113: 2001-12-25 | B113: NATAL | C113: terça-feira
A114: 2002-01-01 | B114: CONFRATERNIZACAO | C114: terça-feira
A115: 2002-02-11 | B115: SEGUNDA-FEIRA CARNAV | C115: segunda-feira
A116: 2002-02-12 | B116: TERCA-FEIRA CARNAVAL | C116: terça-feira
A117: 2002-03-29 | B117: SEXTA-FEIRA PAIXAO | C117: sexta-feira
A118: 2002-04-21 | B118: TIRADENTES | C118: domingo
A119: 2002-05-01 | B119: DIA DO TRABALHO | C119: quarta-feira
A120: 2002-05-30 | B120: CORPUS CHRISTI | C120: quinta-feira
A121: 2002-09-07 | B121: INDEPENDENCIA | C121: sábado
A122: 2002-10-12 | B122: N.S.APARECIDA | C122: sábado
A123: 2002-11-02 | B123: FINADOS | C123: sábado
A124: 2002-11-15 | B124: PROCLAMACAO DA REP. | C124: sexta-feira
A125: 2002-12-25 | B125: NATAL | C125: quarta-feira
A126: 2003-01-01 | B126: CONFRATERNIZACAO | C126: quarta-feira
A127: 2003-03-03 | B127: SEGUNDA-FEIRA CARNAV | C127: segunda-feira
A128: 2003-03-04 | B128: TERCA-FEIRA CARNAVAL | C128: terça-feira
A129: 2003-04-18 | B129: SEXTA-FEIRA PAIXAO | C129: sexta-feira
A130: 2003-04-21 | B130: TIRADENTES | C130: segunda-feira
A131: 2003-05-01 | B131: DIA DO TRABALHO | C131: quinta-feira
A132: 2003-06-19 | B132: CORPUS CHRISTI | C132: quinta-feira
A133: 2003-09-07 | B133: INDEPENDENCIA | C133: domingo
A134: 2003-10-12 | B134: N.S.APARECIDA | C134: domingo
A135: 2003-11-02 | B135: FINADOS | C135: domingo
A136: 2003-11-15 | B136: PROCLAMACAO DA REP. | C136: sábado
A137: 2003-12-25 | B137: NATAL | C137: quinta-feira
A138: 2004-01-01 | B138: CONFRATERNIZACAO | C138: quinta-feira
A139: 2004-02-23 | B139: SEGUNDA-FEIRA CARNAV | C139: segunda-feira
A140: 2004-02-24 | B140: TERCA-FEIRA CARNAVAL | C140: terça-feira
A141: 2004-04-09 | B141: SEXTA-FEIRA PAIXAO | C141: sexta-feira
A142: 2004-04-21 | B142: TIRADENTES | C142: quarta-feira
A143: 2004-05-01 | B143: DIA DO TRABALHO | C143: sábado
A144: 2004-06-10 | B144: CORPUS CHRISTI | C144: quinta-feira
A145: 2004-09-07 | B145: INDEPENDENCIA | C145: terça-feira
A146: 2004-10-12 | B146: N.S.APARECIDA | C146: terça-feira
A147: 2004-11-02 | B147: FINADOS | C147: terça-feira
A148: 2004-11-15 | B148: PROCLAMACAO DA REP. | C148: segunda-feira
A149: 2004-12-25 | B149: NATAL | C149: sábado
A150: 2005-01-01 | B150: CONFRATERNIZACAO | C150: sábado
A151: 2005-02-07 | B151: SEGUNDA-FEIRA CARNAV | C151: segunda-feira
A152: 2005-02-08 | B152: TERCA-FEIRA CARNAVAL | C152: terça-feira
A153: 2005-03-25 | B153: SEXTA-FEIRA PAIXAO | C153: sexta-feira
A154: 2005-04-21 | B154: TIRADENTES | C154: quinta-feira
A155: 2005-05-01 | B155: DIA DO TRABALHO | C155: domingo
A156: 2005-05-26 | B156: CORPUS CHRISTI | C156: quinta-feira
A157: 2005-09-07 | B157: INDEPENDENCIA | C157: quarta-feira
A158: 2005-10-12 | B158: N.S.APARECIDA | C158: quarta-feira
A159: 2005-11-02 | B159: FINADOS | C159: quarta-feira
A160: 2005-11-15 | B160: PROCLAMACAO DA REP. | C160: terça-feira
A161: 2005-12-25 | B161: NATAL | C161: domingo
A162: 2006-01-01 | B162: CONFRATERNIZACAO | C162: domingo
A163: 2006-02-27 | B163: SEGUNDA-FEIRA CARNAV | C163: segunda-feira
A164: 2006-02-28 | B164: TERCA-FEIRA CARNAVAL | C164: terça-feira
A165: 2006-04-14 | B165: SEXTA-FEIRA PAIXAO | C165: sexta-feira
A166: 2006-04-21 | B166: TIRADENTES | C166: sexta-feira
A167: 2006-05-01 | B167: DIA DO TRABALHO | C167: segunda-feira
A168: 2006-06-15 | B168: CORPUS CHRISTI | C168: quinta-feira
A169: 2006-09-07 | B169: INDEPENDENCIA | C169: quinta-feira
A170: 2006-10-12 | B170: N.S.APARECIDA | C170: quinta-feira
A171: 2006-11-02 | B171: FINADOS | C171: quinta-feira
A172: 2006-11-15 | B172: PROCLAMACAO DA REP. | C172: quarta-feira
A173: 2006-12-25 | B173: NATAL | C173: segunda-feira
A174: 2007-01-01 | B174: CONFRATERNIZACAO | C174: segunda-feira
A175: 2007-02-19 | B175: SEGUNDA-FEIRA CARNAV | C175: segunda-feira
A176: 2007-02-20 | B176: TERCA-FEIRA CARNAVAL | C176: terça-feira
A177: 2007-04-06 | B177: SEXTA-FEIRA PAIXAO | C177: sexta-feira
A178: 2007-04-21 | B178: TIRADENTES | C178: sábado
A179: 2007-05-01 | B179: DIA DO TRABALHO | C179: terça-feira
A180: 2007-06-07 | B180: CORPUS CHRISTI | C180: quinta-feira
A181: 2007-09-07 | B181: INDEPENDENCIA | C181: sexta-feira
A182: 2007-10-12 | B182: N.S.APARECIDA | C182: sexta-feira
A183: 2007-11-02 | B183: FINADOS | C183: sexta-feira
A184: 2007-11-15 | B184: PROCLAMACAO DA REP. | C184: quinta-feira
A185: 2007-12-25 | B185: NATAL | C185: terça-feira
A186: 2008-01-01 | B186: CONFRATERNIZACAO | C186: terça-feira
A187: 2008-02-04 | B187: SEGUNDA-FEIRA CARNAV | C187: segunda-feira
A188: 2008-02-05 | B188: TERCA-FEIRA CARNAVAL | C188: terça-feira
A189: 2008-03-21 | B189: SEXTA-FEIRA PAIXAO | C189: sexta-feira
A190: 2008-04-21 | B190: TIRADENTES | C190: segunda-feira
A191: 2008-05-01 | B191: DIA DO TRABALHO | C191: quinta-feira
A192: 2008-05-22 | B192: CORPUS CHRISTI | C192: quinta-feira
A193: 2008-09-07 | B193: INDEPENDENCIA | C193: domingo
A194: 2008-10-12 | B194: N.S.APARECIDA | C194: domingo
A195: 2008-11-02 | B195: FINADOS | C195: domingo
A196: 2008-11-15 | B196: PROCLAMACAO DA REP. | C196: sábado
A197: 2008-12-25 | B197: NATAL | C197: quinta-feira
A198: 2009-01-01 | B198: CONFRATERNIZACAO | C198: quinta-feira
A199: 2009-02-23 | B199: SEGUNDA-FEIRA CARNAV | C199: segunda-feira
A200: 2009-02-24 | B200: TERCA-FEIRA CARNAVAL | C200: terça-feira
... 837 more rows
